Workbook

Sheet RESUMO MODULO TOTAL
B1: EXECUÇÃO DE CAPA ASFÁLTICA EM CONCRETO BETUMINOSO USINADO A QUENTE (CBUQ), EM VIAS DE MUNICÍPIOS DIVERSOS INSERIDOS NA ÁREA DE ATUAÇÃO DA CODEVASF 3ª SR, NO ESTADO DE PERNAMBUCO - MICRORREGIÃO DE ARARIPINA | N1: PERNAMBUCO
M2: SICRO: | N2: Pernambuco - Julho/2024
M3: SINAPI: | N3: 09/2024
M4: Data base do orçamento: | N4: 2024-12-10
B5: EXECUÇÃO DE CAPA ASFÁLTICA EM CONCRETO BETUMINOSO USINADO A QUENTE (CBUQ), EM VIAS DE MUNICÍPIOS DIVERSOS INSERIDOS NA ÁREA DE ATUAÇÃO DA CODEVASF 3ª SR, NO ESTADO DE PERNAMBUCO - MICRORREGIÃO DE ARARIPINA
B6: ITEM | C6: ORIGEM COMPOSIÇÃO | D6: CÓDIGO COMPOSIÇÃO | E6: DISCRIMINAÇÃO DOS SERVIÇOS | I6: BDI % = | J6: 0.2339 | K6: BDI DIFERENCIADO%: | L6: 0.15 | M6: R$/m² = | N6: 109.3084498
I7: Total de m² | J7: Encargos Sociais: | K7: Horista R$ | L7: Mensalista R$ | M7: PREÇO UNITÁRIO COM BDI | N7: PREÇO TOTAL COM BDI
I8: 140000 | K8: 113.98 | L8: 70
I9: UND | J9: QTDE. | K9: BDI | L9: PREÇO UNITÁRIO
E10: MOBILIZAÇÃO/DESMOBILIZAÇÃO
B11: 1 | C11: Codevasf | D11: Mob | E11: Mobilização | I11: kmxfrente | J11: 1000 | K11: 0.2339 | L11: 107.2503017 | M11: 132.3361472 | N11: 132336.15 | O11: =N11/N49 -> 0.00864762254 | P11: INCC | S11: N1 | T11: TERRAPLENAGEM | U11: =(SUMIF(P:P,"TERRAPLENAGEM",N:N)/$N$49) -> 0 | V11: =(SUMIF(P:P,"TERRAPLENAGEM",N:N)) -> 0
B12: 2 | C12: Codevasf | D12: Mob | E12: Desmobilização | I12: kmxfrente | J12: 1000 | K12: 0.2339 | L12: 107.2503017 | M12: 132.3361472 | N12: 132336.15 | O12: =N12/$N$49 -> 0.00864762254 | P12: INCC | S12: N2 | T12: PAVIMENTAÇÃO | U12: =SUMIF(P:P,"PAVIMENTAÇÃO",N:N)/$N$49 -> 0.8762357371 | V12: =(SUMIF(P:P,"PAVIMENTAÇÃO",N:N)) -> 13409195.81
E13: INSTALAÇÃO DE CANTEIRO | S13: N3 | T13: CONSULTORIA | U13: =SUMIF(P:P,"CONSULTORIA",N:N)/$N$49 -> 0 | V13: =(SUMIF(P:P,"CONSULTORIA",N:N)) -> 0
B14: 3 | C14: Codevasf | D14: Canteiro | E14: Canteiro de Obras | I14: frente | J14: 1 | K14: 0.2339 | L14: 19147.44 | M14: 23626.02622 | N14: 23626.03 | O14: =N14/J20 -> 0.1687573571 | P14: INCC | S14: N4 | T14: DRENAGEM | U14: =SUMIF(P:P,"DRENAGEM",N:N)/$N$49 -> 0.006753592386 | V14: =(SUMIF(P:P,"DRENAGEM",N:N)) -> 103351.46
B15: 4 | C15: SINAPI | D15: 103689 | E15: Fornecimento e instalação de placa de obra com chapa galvanizada e estrutura de madeira. af_03/2022_ps | I15: m² | J15: 160 | K15: 0.2339 | L15: 462.29 | M15: 570.419631 | N15: 91267.14 | P15: INCC | S15: N5 | T15: ADMINISTRAÇÃO LOCAL | U15: =SUMIF(P:P,"ADMINISTRAÇÃO LOCAL",N:N)/$N$49 -> 0 | V15: =(SUMIF(P:P,"ADMINISTRAÇÃO LOCAL",N:N)) -> 0
E16: ADMINISTRAÇÃO LOCAL DA OBRA | S16: N6 | T16: SINALIZAÇÃO VERTICAL | U16: =SUMIF(P:P,"SINALIZAÇÃO VERTICAL",N:N)/$N$49 -> 0 | V16: =(SUMIF(P:P,"SINALIZAÇÃO VERTICAL",N:N)) -> 0
B17: 5 | C17: Codevasf | D17: Adm Local | E17: Administração Local da Obra | I17: und | J17: 1 | K17: 0.2339 | L17: 749484.5335 | M17: 924788.9659 | N17: 924788.97 | O17: =N17/N49 -> 0.06043115159 | P17: INCC | S17: N7 | T17: SINALIZAÇÃO HORIZONTAL | U17: =SUMIF(P:P,"SINALIZAÇÃO HORIZONTAL",N:N)/$N$49 -> 0 | V17: =(SUMIF(P:P,"SINALIZAÇÃO HORIZONTAL",N:N)) -> 0
E18: PAVIMENTAÇÃO | S18: N8 | T18: CAP | U18: =(SUMIF(P:P,"CAP",N:N))/$N$49 -> 0 | V18: =(SUMIF(P:P,"CAP",N:N)) -> 0
B19: 6 | C19: SICRO | D19: 4011463 | E19: Concreto asfáltico - faixa C - areia e brita comerciais | I19: t | J19: 16800 | K19: 0.2339 | L19: 196.26 | M19: 242.165214 | N19: 4068375.6 | P19: PAVIMENTAÇÃO | S19: N9 | T19: IMPRIMAÇÃO | U19: =(SUMIF(P:P,"IMPRIMAÇÃO",N:N))/$N$49 -> 0 | V19: =(SUMIF(P:P,"IMPRIMAÇÃO",N:N)) -> 0
B20: 7 | C20: SICRO | D20: 4011353 | E20: Pintura de ligação | I20: m² | J20: 140000 | K20: 0.2339 | L20: 0.28 | M20: 0.345492 | N20: 48368.88 | P20: PAVIMENTAÇÃO | S20: N10 | T20: EMULSÃO ASFÁLTICA | U20: =(SUMIF(P:P,"EMULSÃO ASFÁLTICA",N:N))/$N$49 -> 0 | V20: =(SUMIF(P:P,"EMULSÃO ASFÁLTICA",N:N)) -> 0
B21: 8 | C21: SICRO | D21: 4915663 | E21: Fresagem descontínua de revestimento asfáltico - espessura de 5 cm | I21: m³ | J21: 700 | K21: 0.2339 | L21: 72.81 | M21: 89.840259 | N21: 62888.18 | P21: PAVIMENTAÇÃO | S21: N11 | T21: OBRAS COMPLEMENTARES | U21: =(SUMIF(P:P,"OBRAS COMPLEMENTARES",N:N))/$N$49 -> 0 | V21: =(SUMIF(P:P,"OBRAS COMPLEMENTARES",N:N)) -> 0
B22: 9 | C22: SICRO | D22: 4915618 | E22: Recomposição de camada granular do pavimento com material de jazida | I22: m² | J22: 14000 | K22: 0.2339 | L22: 3.12 | M22: 3.849768 | N22: 53896.75 | P22: PAVIMENTAÇÃO | S22: N12 | T22: MOBILIZAÇÃO | U22: =(SUMIF(P:P,"MOBILIZAÇÃO",N:N))/$N$49 -> 0 | V22: =(SUMIF(P:P,"MOBILIZAÇÃO",N:N)) -> 0
E23: AQUISIÇÃO E TRANSPORTE DO MATERIAL BETUMINOSO | S23: N13 | T23: INCC | U23: =(SUMIF(P:P,"INCC",N:N))/$N$49 -> 0.1170106705 | V23: =(SUMIF(P:P,"INCC",N:N)) -> 1790635.7
B24: 10 | C24: CODEVASF | D24: CPU-13 | E24: AQUISIÇÃO DE CIMENTO ASFALTICO CAP 50/70 | I24: t | J24: 1083.43 | K24: 0.15 | L24: 5293.496694 | M24: 6087.521198 | N24: 6595403.092 | P24: PAVIMENTAÇÃO
B25: 11 | C25: CODEVASF | D25: CPU-17 | E25: TRANSPORTE CAP 50/70 | I25: t | J25: 1083.43 | K25: 0.1499961141 | L25: 514.68 | M25: 591.88 | N25: 641260.55 | P25: PAVIMENTAÇÃO
B26: 12 | C26: CODEVASF | D26: CPU-15 | E26: AQUISIÇÃO DE EMULSÃO ASFÁLTICA RR-1C | I26: t | J26: 56 | K26: 0.1500000001 | L26: 3791.639004 | M26: 4360.384855 | N26: 244181.55 | P26: PAVIMENTAÇÃO
B27: 13 | C27: CODEVASF | D27: CPU-19 | E27: TRANSPORTE RR-1C | I27: t | J27: 56 | K27: 0.15 | L27: 514.68 | M27: 591.882 | N27: 33145.39 | P27: PAVIMENTAÇÃO
E28: SINALIZAÇÃO
B29: 14 | C29: SICRO | D29: 5213440 | E29: Placa de regulamentação em aço D = 0,60 m - película retrorrefletiva tipo I + SI - fornecimento e implantação | I29: und | J29: 60 | K29: 0.2339 | L29: 256.23 | M29: 316.162197 | N29: 18969.73 | P29: INCC
B30: 15 | C30: SICRO | D30: 5213464 | E30: Placa de advertência em aço, lado de 0,60 m - película retrorrefletiva tipo I + SI - fornecimento e implantação | I30: und | J30: 60 | K30: 0.2339 | L30: 256.27 | M30: 316.211553 | N30: 18972.69 | P30: INCC
B31: 16 | C31: SICRO | D31: 5213863 | E31: Suporte metálico galvanizado para placa de advertência ou regulamentação - lado ou diâmetro de 0,60 m - fornecimento e implantação | I31: und | J31: 120 | K31: 0.2339 | L31: 454.32 | M31: 560.585448 | N31: 67270.25 | P31: INCC
B32: 17 | C32: SICRO | D32: 5213400 | E32: Pintura de faixa com tinta acrílica - espessura de 0,4 mm | I32: m² | J32: 4800 | K32: 0.2339 | L32: 24.4 | M32: 30.10716 | N32: 144514.37 | P32: INCC
E33: DRENAGEM
B34: 18 | C34: SICRO | D34: 4915777 | E34: Reassentamento manual de meio-fio com material arrancado da pista | I34: m | J34: 4000 | K34: 0.2339 | L34: 13.84 | M34: 17.077176 | N34: 68308.7 | P34: DRENAGEM
B35: 19 | C35: SICRO | D35: 4915708 | E35: Limpeza de sarjeta e meio-fio | I35: m | J35: 40000 | K35: 0.2339 | L35: 0.71 | M35: 0.876069 | N35: 35042.76 | P35: DRENAGEM
B36: 20 | C36: SICRO | D36: 4915724 | E36: Caiação mecanizada com fixador de cal | I36: m² | J36: 4800 | K36: 0.2339 | L36: 1.94 | M36: 2.393766 | N36: 11490.08 | P36: INCC
E37: PROJETO EXECUTIVO
B38: 21 | C38: Codevasf | D38: Composição Própria | E38: Projeto Executivo | I38: m² | J38: 140000 | K38: 0.2338999633 | L38: 1.302862 | M38: 1.607601374 | N38: 225064.14 | O38: =N38/N49 -> 0.0147070149 | P38: INCC
E39: MOMENTO DE TRANSPORTE
B40: 22 | C40: SICRO | D40: 5914359 | E40: Transporte com caminhão basculante de 10 m³ - rodovia em leito natural | I40: tkm | J40: 0 | K40: 0.2339 | L40: 1.23 | M40: 1.517697 | N40: 0 | P40: PAVIMENTAÇÃO
B41: 23 | C41: SICRO | D41: 5914374 | E41: Transporte com caminhão basculante de 10 m³ - rodovia em revestimento primário | I41: tkm | J41: 0 | K41: 0.2339 | L41: 0.99 | M41: 1.221561 | N41: 0 | P41: PAVIMENTAÇÃO
B42: 24 | C42: SICRO | D42: 5914389 | E42: Transporte com caminhão basculante de 10 m³ - rodovia pavimentada | I42: tkm | J42: 1279488 | K42: 0.2339 | L42: 0.81 | M42: 0.999459 | N42: 1278795.8 | P42: PAVIMENTAÇÃO
B43: 25 | C43: SICRO | D43: 5914364 | E43: Transporte de cimento ou cal hidratada a granel com caminhão silo de 30 m³ - rodovia em leito natural | I43: tkm | J43: 0 | K43: 0.2339 | L43: 0.88 | M43: 1.085832 | N43: 0 | P43: PAVIMENTAÇÃO
B44: 26 | C44: SICRO | D44: 5914365 | E44: Transporte de cimento ou cal hidratada a granel com caminhão silo de 30 m³ - rodovia em revestimento primário | I44: tkm | J44: 0 | K44: 0.2339 | L44: 0.7 | M44: 0.86373 | N44: 0 | P44: PAVIMENTAÇÃO
B45: 27 | C45: SICRO | D45: 5914366 | E45: Transporte de cimento ou cal hidratada a granel com caminhão silo de 30 m³ - rodovia pavimentada | I45: tkm | J45: 0 | K45: 0.2339 | L45: 0.58 | M45: 0.715662 | N45: 0 | P45: PAVIMENTAÇÃO
B46: 28 | C46: SICRO | D46: 5914314 | E46: Transporte com caminhão basculante de 6 m³ - rodovia em leito natural | I46: tkm | J46: 0 | K46: 0.2339 | L46: 1.2 | M46: 1.48068 | N46: 0 | P46: PAVIMENTAÇÃO
B47: 29 | C47: SICRO | D47: 5914329 | E47: Transporte com caminhão basculante de 6 m³ - rodovia em revestimento primário | I47: tkm | J47: 0 | K47: 0.2339 | L47: 0.96 | M47: 1.184544 | N47: 0 | P47: PAVIMENTAÇÃO
B48: 30 | C48: SICRO | D48: 5914344 | E48: Transporte com caminhão basculante de 6 m³ - rodovia pavimentada | I48: tkm | J48: 392785.68 | K48: 0.2339 | L48: 0.79 | M48: 0.974781 | N48: 382880.02 | P48: PAVIMENTAÇÃO
J49: VALOR TOTAL DO SRP | N49: 15303182.97
B50: Obs.: Os valores estão apresentados com apenas 2 casas decimais, mas os valores da presente planilha foram calculados utilizando a precisão de 6 casa decimais.

Sheet CRONOGRAMA TOTAL
A2: ='RESUMO MODULO TOTAL'!B1 -> EXECUÇÃO DE CAPA ASFÁLTICA EM CONCRETO BETUMINOSO USINADO A QUENTE (CBUQ), EM VIAS DE MUNICÍPIOS DIVERSOS INSERIDOS NA ÁREA DE ATUAÇÃO DA CODEVASF 3ª SR, NO ESTADO DE PERNAMBUCO - MICRORREGIÃO DE ARARIPINA
A3: Cronograma Físico e Financeiro
A4: Item | B4: Descrição | C4: Total Por Etapa | D4: 30 DIAS | E4: 60 DIAS | F4: 90 DIAS | G4: 120 DIAS | H4: 150 DIAS | I4: 180 DIAS | J4: 210 DIAS | K4: 240 DIAS | L4: 270 DIAS | M4: 300 DIAS | N4: 330 DIAS | O4: 360 DIAS
B5: ='RESUMO MODULO TOTAL'!E10 -> MOBILIZAÇÃO/DESMOBILIZAÇÃO | C5: =SUM(D5:O5) -> 1 | D5: 0.5 | O5: 0.5
C6: =SUM('RESUMO MODULO TOTAL'!N11:N12) -> 264672.3 | D6: =$C$6*D5 -> 132336.15 | O6: =$C$6*O5 -> 132336.15 | P6: =SUM(D6:O6) -> 264672.3 | Q6: =IF(P6=C6,"OK","") -> OK
B7: ='RESUMO MODULO TOTAL'!E13 -> INSTALAÇÃO DE CANTEIRO | C7: =SUM(D7:O7) -> 1 | D7: 0.1 | E7: 0.5 | F7: 0.4
C8: =SUM('RESUMO MODULO TOTAL'!N14:N15) -> 114893.17 | D8: =$C$8*D7 -> 11489.317 | E8: =$C$8*E7 -> 57446.585 | F8: 45957.268 | G8: 0 | H8: 0 | I8: 0 | J8: 0 | K8: 0 | L8: 0 | M8: 0 | N8: 0 | O8: 0 | P8: =SUM(D8:O8) -> 114893.17 | Q8: =IF(P8=C8,"OK","") -> OK
B9: ='RESUMO MODULO TOTAL'!E16 -> ADMINISTRAÇÃO LOCAL DA OBRA | C9: =SUM(D9:O9) -> 1 | D9: =(D6+D8+D12+D14+D16+D18+D20+D22)/($O$29-$C$10) -> 0.02565582825 | E9: =(E6+E8+E12+E14+E16+E18+E20+E22)/($O$29-$C$10) -> 0.003995340856 | F9: 0.003196272685 | G9: 0.1554322387 | H9: 0.1554322387 | I9: 0.1554322387 | J9: 0.1554322387 | K9: 0.1554322387 | L9: 0.1554322387 | M9: 0.003993545454 | N9: 0.003993545454 | O9: 0.02657203509
C10: =SUM('RESUMO MODULO TOTAL'!N17) -> 924788.97 | D10: =$C$10*D9 -> 23726.22698 | E10: =$C$10*E9 -> 3694.847155 | F10: =$C$10*F9 -> 2955.877724 | G10: 143742.0199 | H10: 143742.0199 | I10: 143742.0199 | J10: 143742.0199 | K10: 143742.0199 | L10: 143742.0199 | M10: 3693.186787 | N10: 3693.186787 | O10: 24573.52497 | P10: =SUM(D10:O10) -> 924788.97 | Q10: =IF(P10=C10,"OK","") -> 
B11: ='RESUMO MODULO TOTAL'!E18 -> PAVIMENTAÇÃO | C11: =SUM(D11:O11) -> 1 | G11: =1/6 -> 0.1666666667 | H11: =1/6 -> 0.1666666667 | I11: 0.1666666667 | J11: 0.1666666667 | K11: 0.1666666667 | L11: 0.1666666667
C12: =SUM('RESUMO MODULO TOTAL'!N19:N22) -> 4233529.41 | D12: =$C$14*D11 -> 0 | E12: =$C$12*E11 -> 0 | F12: 0 | G12: 705588.235 | H12: 705588.235 | I12: 705588.235 | J12: 705588.235 | K12: 705588.235 | L12: 705588.235 | M12: 0 | N12: 0 | O12: 0 | P12: =SUM(D12:O12) -> 4233529.41 | Q12: =IF(P12=C12,"OK","") -> 
B13: ='RESUMO MODULO TOTAL'!E23 -> AQUISIÇÃO E TRANSPORTE DO MATERIAL BETUMINOSO | C13: =SUM(D13:O13) -> 1 | G13: =1/6 -> 0.1666666667 | H13: 0.1666666667 | I13: 0.1666666667 | J13: 0.1666666667 | K13: 0.1666666667 | L13: 0.1666666667
C14: =SUM('RESUMO MODULO TOTAL'!N24:N27) -> 7513990.582 | D14: =$C$14*D13 -> 0 | E14: =$C$14*E13 -> 0 | F14: 0 | G14: 1252331.764 | H14: 1252331.764 | I14: 1252331.764 | J14: 1252331.764 | K14: 1252331.764 | L14: 1252331.764 | M14: 0 | N14: 0 | O14: 0 | P14: =SUM(D14:O14) -> 7513990.582 | Q14: =IF(P14=C14,"OK","") -> 
B15: ='RESUMO MODULO TOTAL'!E28 -> SINALIZAÇÃO | C15: =SUM(D15:O15) -> 1 | O15: 1
C16: =SUM('RESUMO MODULO TOTAL'!N29:N32) -> 249727.04 | D16: =$C$16*D15 -> 0 | E16: =$C$16*E15 -> 0 | F16: 0 | G16: 0 | H16: 0 | I16: 0 | J16: 0 | K16: 0 | L16: 0 | M16: 0 | N16: 0 | O16: 249727.04 | P16: =SUM(D16:O16) -> 249727.04 | Q16: =IF(P16=C16,"OK","") -> OK
B17: ='RESUMO MODULO TOTAL'!E33 -> DRENAGEM | C17: =SUM(D17:O17) -> 1 | M17: 0.5 | N17: 0.5
C18: =SUM('RESUMO MODULO TOTAL'!N34:N36) -> 114841.54 | D18: =$C$18*D17 -> 0 | E18: =$C$18*E17 -> 0 | F18: 0 | G18: 0 | H18: 0 | I18: 0 | J18: 0 | K18: 0 | L18: 0 | M18: 57420.77 | N18: 57420.77 | O18: 0 | P18: =SUM(D18:O18) -> 114841.54 | Q18: =IF(P18=C18,"OK","") -> OK
B19: ='RESUMO MODULO TOTAL'!E37 -> PROJETO EXECUTIVO | C19: =SUM(D19:O19) -> 1 | D19: 1
C20: =SUM('RESUMO MODULO TOTAL'!N38) -> 225064.14 | D20: =$C$20*D19 -> 225064.14 | E20: =$C$20*E19 -> 0 | F20: 0 | G20: 0 | H20: 0 | I20: 0 | J20: 0 | K20: 0 | L20: 0 | M20: 0 | N20: 0 | O20: 0 | P20: =SUM(D20:O20) -> 225064.14 | Q20: =IF(P20=C20,"OK","") -> OK
B21: ='RESUMO MODULO TOTAL'!E39 -> MOMENTO DE TRANSPORTE | C21: =SUM(D21:O21) -> 1 | G21: =1/6 -> 0.1666666667 | H21: =1/6 -> 0.1666666667 | I21: 0.1666666667 | J21: 0.1666666667 | K21: 0.1666666667 | L21: 0.1666666667
C22: =SUM('RESUMO MODULO TOTAL'!N40:N48) -> 1661675.82 | D22: =$C$22*D21 -> 0 | E22: =$C$22*E21 -> 0 | F22: 0 | G22: 276945.97 | H22: 276945.97 | I22: 276945.97 | J22: 276945.97 | K22: 276945.97 | L22: 276945.97 | M22: 0 | N22: 0 | O22: 0 | P22: =SUM(D22:O22) -> 1661675.82 | Q22: =IF(P22=C22,"OK","") -> OK
A24: Porcentagem | D24: =SUM(D6+D8+D10+D12+D14+D16+D18+D20+D22)/$O$29 -> 0.02565582825 | E24: =SUM(E6+E8+E10+E12+E14+E16+E18+E20+E22)/$O$29 -> 0.003995340856 | F24: 0.003196272685 | G24: 0.1554322387 | H24: 0.1554322387 | I24: 0.1554322387 | J24: 0.1554322387 | K24: 0.1554322387 | L24: 0.1554322387 | M24: 0.003993545454 | N24: 0.003993545454 | O24: 0.02657203509
A25: Custo | D25: =$O$29*D24 -> 392615.834 | E25: =$O$29*E24 -> 61141.43216 | F25: =$O$29*F24 -> 48913.14572 | G25: 2378607.989 | H25: 2378607.989 | I25: 2378607.989 | J25: 2378607.989 | K25: 2378607.989 | L25: 2378607.989 | M25: 61113.95679 | N25: 61113.95679 | O25: 406636.715
A26: Porcentagem Acumulado | D26: =D24 -> 0.02565582825 | E26: =D26+E24 -> 0.02965116911 | F26: =E26+F24 -> 0.03284744179 | G26: 0.1882796805 | H26: 0.3437119192 | I26: 0.4991441579 | J26: 0.6545763966 | K26: 0.8100086353 | L26: 0.965440874 | M26: 0.9694344195 | N26: 0.9734279649 | O26: =N26+O24 -> 1
A27: Custo Acumulado | D27: =D25 -> 392615.834 | E27: =D27+E25 -> 453757.2661 | F27: 502670.4119 | G27: 2881278.4 | H27: 5259886.389 | I27: 7638494.377 | J27: 10017102.37 | K27: 12395710.35 | L27: 14774318.34 | M27: 14835432.3 | N27: 14896546.26 | O27: 15303182.97
D29: Total Geral | N29: R$ | O29: =C6+C8+C10+C12+C14+C16+C18+C20+C22 -> 15303182.97
O32: =O27-O29 -> 2.980232239e-08
O34: ='RESUMO MODULO TOTAL'!N49 -> 15303182.97
O36: =O29-O34 -> 0

Sheet Mob
A5: MOBILIZAÇÃO/DESMOBILIZAÇÃO (MOB) | F5: Frentes de serviços | H5: 10
F6: Distância da Capital ao Canteiro: | H6: 100 | I6: Fica a cargo de cada SR colocar a distancia adequada de acordo com o historico de mobilização
F8: Velocidade média de transporte (pavim.): | H8: 60
A10: Transporte dos equipamentos
A11: CODIGO | B11: EQUIPAMENTO | C11: VEÍCULO TRANSPORTADOR | D11: QTDE | E11: K | F11: FU | G11: CUSTO DO TRANSPORTE
G12: (R$/h) | H12: (R$)/km
A13: E9524 | B13: Motoniveladora - 93 kW | C13: E9665 | D13: 0 | E13: 2 | F13: 1 | G13: 389.0158 | H13: 0
A14: E9526 | B14: Retroescavadeira de pneus - capacidade da caçamba da pá-carregadeira de 0,76 m³ e da retroescavadeira de 0,29 m³ - 58 kW | C14: E9665 | D14: 0 | E14: 2 | F14: 1 | G14: 389.0158 | H14: 0
A15: E9577 | B15: Trator agrícola sobre pneus - 77 kW | C15: E9665 | D15: 0 | E15: 2 | F15: 0.5 | G15: 389.0158 | H15: 0
A16: E9518 | B16: Grade de 24 discos rebocável de D = 60 cm (24") | C16: Veículo(s) da própria frota. | D16: 1 | E16: 2 | F16: 0 | G16: 0 | H16: 0
A17: E9615 | B17: Usina misturadora de solos com capacidade de 300 t/h - 44 kW | C17: E9018 | D17: 0 | E17: 2 | F17: 2 | G17: 498.6022 | H17: 0
A18: E9689 | B18: Usina de asfalto a quente gravimétrica com capacidade de 100/140 t/h - 260 kW | C18: E9666 | D18: 0 | E18: 2 | F18: 3 | G18: 410.8401 | H18: 0
A19: E9530 | B19: Rolo compactador liso vibratório autopropelido por pneus de 11 t - 97 kW | C19: E9666 | D19: 0 | E19: 2 | F19: 0.5 | G19: 410.8401 | H19: 0
A20: E9558 | B20: Tanque de estocagem de asfalto com capacidade de 30.000 l | C20: E9665 | D20: 1 | E20: 2 | F20: 1 | G20: 389.0158 | H20: 12.96719333
A21: E9758 | B21: Vibroacabadora de asfalto sobre pneus - 82 kW | C21: E9018 | D21: 0 | E21: 2 | F21: 0.5 | G21: 498.6022 | H21: 0
A22: E9685 | B22: Rolo compactador pé de carneiro vibratório autopropelido por pneus de 11,6 t - 82 kW | C22: E9666 | D22: 0 | E22: 2 | F22: 0.5 | G22: 410.8401 | H22: 0
A23: E9605 | B23: Caminhão tanque com capacidade de 6.000 l - 136 kW | C23: E9605 | D23: 0 | E23: 1 | F23: 1 | G23: 243.9079 | H23: 0
A24: E9579 | B24: Caminhão basculante com capacidade de 10 m³ - 210 kW | C24: E9579 | D24: 5 | E24: 1 | F24: 1 | G24: 301.9163 | H24: 25.15969167
A25: E9509 | B25: Caminhão tanque distribuidor de asfalto com capacidade de 6.000 l - 7 kW/136 kW | C25: E9509 | D25: 1 | E25: 1 | F25: 1 | G25: 255.0376 | H25: 4.250626667
A26: E9762 | B26: Rolo compactador de pneus autopropelido de 27 t - 85 kW | C26: E9666 | D26: 1 | E26: 2 | F26: 0.5 | G26: 410.8401 | H26: 6.847335
A27: E9681 | B27: Rolo compactador liso tandem vibratório autopropelido de 10,4 t - 82 kW | C27: E9666 | D27: 1 | E27: 2 | F27: 0.5 | G27: 410.8401 | H27: 6.847335
A28: E9545 | B28: Vibroacabadora de asfalto sobre esteiras - 82 kW | C28: E9018 | D28: 1 | E28: 2 | F28: 0.5 | G28: 498.6022 | H28: 8.310036667
A29: E9571 | B29: Caminhão tanque com capacidade de 10.000 l - 188 kW | C29: E9571 | D29: 0 | E29: 1 | F29: 1 | G29: 317.5293 | H29: 0
A30: E9514 | B30: Distribuidor de agregados sobre pneus autopropelido - 130 kW | C30: E9665 | D30: 0 | E30: 2 | F30: 0.5 | G30: 389.0158 | H30: 0
A31: E9511 | B31: Carregadeira de pneus com capacidade de 3,40 m³ - 195 kW | C31: E9665 | D31: 0 | E31: 2 | F31: 1 | G31: 389.0158 | H31: 0
A32: E9779 | B32: Grupo gerador - 113 kVA | C32: Veículo(s) da própria frota. | D32: 1 | E32: 2 | F32: 0 | G32: 0 | H32: 0
A33: E9559 | B33: Aquecedor de fluido térmico - 12 kW | C33: Veículo(s) da própria frota. | D33: 1 | E33: 2 | F33: 0 | G33: 0 | H33: 0
A34: E9584 | B34: Carregadeira de pneus com capacidade de 1,72 m³ - 113 kW | C34: E9665 | D34: 0 | E34: 2 | F34: 1 | G34: 389.0158 | H34: 0
A35: E9021 | B35: Grupo gerador - 456 kVA | C35: E9508 | D35: 1 | E35: 2 | F35: 1 | G35: 178.8723 | H35: 5.96241
A36: E9687 | B36: Caminhão carroceria com capacidade de 5 t - 115 kW | C36: E9687 | D36: 1 | E36: 1 | F36: 1 | G36: 145.8864 | H36: 2.43144
A37: E9667 | B37: Caminhão basculante com capacidade de 14 m³ - 210 kW | C37: E9667 | D37: 0 | E37: 1 | F37: 1 | G37: 302.6333 | H37: 0
A38: E9644 | B38: Caminhão demarcador de faixas com sistema de pintura a frio - 28 kW/115 kW | C38: E9644 | D38: 1 | E38: 1 | F38: 1 | G38: 365.9227 | H38: 6.098711667
A39: E9592 | B39: Caminhão carroceria com capacidade de 15 t - 188 kW | C39: E9592 | D39: 1 | E39: 1 | F39: 1 | G39: 252.7257 | H39: 4.212095
A40: E9540 | B40: Trator sobre esteiras com lâmina - 127 kW | C40: E9018 | D40: 0 | E40: 2 | F40: 0.5 | G40: 498.6022 | H40: 0
A41: E9515 | B41: Escavadeira hidráulica sobre esteiras com caçamba com capacidade de 1,56 m³ - 118 kW | C41: E9666 | D41: 0 | E41: 2 | F41: 1 | G41: 410.8401 | H41: 0
A42: E9506 | B42: Caminhão basculante com capacidade de 6 m³ - 136 kW | C42: E9506 | D42: 1 | E42: 1 | F42: 1 | G42: 176.956 | H42: 2.949266667
A43: E9256 | B43: Equipamento para pintura com cal rebocável com dois bicos aplicadores e capacidade de 2.200 l | C43: Veículo(s) da própria frota. | D43: 1 | E43: 2 | F43: 0 | G43: 0 | H43: 0
A44: E9156 | B44: Soprador de ar costal - 2,6 kW | C44: Veículo(s) da própria frota. | D44: 1 | E44: 2 | F44: 0 | G44: 0 | H44: 0
A45: E9146 | B45: Caminhão silo com capacidade de 30 m³ - 265 kW | C45: E9146 | D45: 1 | E45: 1 | F45: 1 | G45: 451.1694 | H45: 7.51949
A46: E9010 | B46: Balança plataforma digital à bateria, com mesa de 75 x 75 cm e capacidade de 500 kg | C46: Veículo(s) da própria frota. | D46: 0 | E46: 2 | F46: 0 | G46: 0 | H46: 0
A47: E9519 | B47: Betoneira com motor a gasolina com capacidade de 600 l - 10 kW | C47: Veículo(s) da própria frota. | D47: 0 | E47: 2 | F47: 0 | G47: 0 | H47: 0
A48: E9071 | B48: Transportador manual carrinho de mão com capacidade de 80 l | C48: Veículo(s) da própria frota. | D48: 0 | E48: 2 | F48: 0 | G48: 0 | H48: 0
A49: E9064 | B49: Transportador manual gerica com capacidade de 180 l | C49: Veículo(s) da própria frota. | D49: 0 | E49: 2 | F49: 0 | G49: 0 | H49: 0
A50: E9066 | B50: Grupo gerador - 14 kVA | C50: Veículo(s) da própria frota. | D50: 0 | E50: 2 | F50: 0 | G50: 0 | H50: 0
A51: E9535 | B51: Serra circular com bancada - D = 30 cm - 4 kW | C51: Veículo(s) da própria frota. | D51: 0 | E51: 2 | F51: 0 | G51: 0 | H51: 0
A52: E9507 | B52: Plotadora de recorte com computador e programa computacional | C52: Veículo(s) da própria frota. | D52: 0 | E52: 2 | F52: 0 | G52: 0 | H52: 0
A53: E9568 | B53: Furadeira de impacto de 12,5 mm - 0,80 kW | C53: Veículo(s) da própria frota. | D53: 0 | E53: 2 | F53: 0 | G53: 0 | H53: 0
A54: E9753 | B54: Grupo gerador - 23 kVA | C54: Veículo(s) da própria frota. | D54: 0 | E54: 2 | F54: 0 | G54: 0 | H54: 0
A55: E9623 | B55: Máquina de bancada guilhotina - 4,00 kW | C55: Veículo(s) da própria frota. | D55: 0 | E55: 2 | F55: 0 | G55: 0 | H55: 0
A56: E9622 | B56: Máquina de bancada universal para corte de chapa - 1,50 kW | C56: Veículo(s) da própria frota. | D56: 0 | E56: 2 | F56: 0 | G56: 0 | H56: 0
A57: E9678 | B57: Fresadora a frio - 455 kW | C57: E9666 | D57: 1 | E57: 2 | F57: 1 | G57: 410.8401 | H57: 13.69467
G58: TOTAL | H58: 107.2503017
A61: CUSTO TOTAL MOBILIZAÇÃO E DESMOBILIZAÇÃO
A62: DESCRIÇÃO | B62: VALOR
A63: Custo Mobilização (km) | B63: 107.2503017
A64: BDI (%) | B64: 0.2339
A65: Custo Mobilização (R$/km) com BDI | B65: 132.3361472
A66: Total de Frentes | B66: 10
A67: Custo Mobilização (frentes x distancia) | B67: 132336.1472

Sheet Canteiro
A4: CANTEIRO DE OBRAS PARA CONSTRUÇAO RODOVIÁRIA
A5: Descrição dos serviços | B5: Tipo de container | C5: Unidade | D5: Quantidade | E5: Preço unitário (R$) | F5: Total (R$)
A6: Escritório e seção técnica
A7: Aluguel de casa mobiliada | B7: 10776 | C7: und | D7: 1 | E7: 650.39 | F7: 650.39
A8: Banheiro e vestiário
A9: Banheiro químico | B9: 10777 | C9: und | D9: 1 | E9: 945.23 | F9: 945.23
D10: TOTAL DO CANTEIRO | F10: 1595.62
D11: DURAÇÃO (MESES) | E11: 12 | F11: 19147.44
D12: BDI | F12: 0.2339
D13: TOTAL DO CANTEIRO (com BDI) | F13: 23626.02622

Sheet Adm Local
A4: parcela fixa da administração local (mão de obra)
A5: Código | B5: Discriminação | C5: Unidade | D5: Quantidade | F5: Custo Unitário (R$) | H5: Custo Total (R$)
B6: Mão de Obra
B7: Gerência Técnica
B8: Geral
A9: P9955 | B9: Engenheiro chefe | C9: mês | D9: 0.5 | F9: 30325.2038 | H9: 15162.6019
A10: P9840 | B10: Encarregado geral | C10: mês | D10: 0.5 | F10: 10680.1974 | H10: 5340.0987
A11: P9897 | B11: Técnico de meio ambiente | C11: mês | D11: 0 | F11: 7344.1706 | H11: 0
A12: P9948 | B12: Motorista | C12: mês | D12: 0 | F12: 5584.3607 | H12: 0
A13: P9878 | B13: Secretária | C13: mês | D13: 0 | F13: 6205.3218 | H13: 0
F14: Subtotal do Item 1.1 | H14: 20502.7006
B15: Auxiliar
A16: P9946 | B16: Engenheiro auxiliar | C16: mês | D16: 1 | F16: 21999.942 | H16: 21999.942
A17: P9903 | B17: Auxiliar técnico | C17: mês | D17: 0 | F17: 4392.0452 | H17: 0
F18: Subtotal do Item 1.2 | H18: 21999.942
B19: Gerência Administrativa
B20: Geral
A21: P9883 | B21: Chefe do setor administrativo | C21: mês | D21: 1 | F21: 7297.0285 | H21: 7297.0285
A22: P9809 | B22: Encarregado administrativo | C22: mês | D22: 1 | F22: 7297.0317 | H22: 7297.0317
A23: P9896 | B23: Porteiro | C23: mês | D23: 0 | F23: 3901.6427 | H23: 0
A24: P9827 | B24: Vigia | C24: mês | D24: 0 | F24: 4630.7095 | H24: 0
A25: P9948 | B25: Motorista | C25: mês | D25: 0 | F25: 5584.3607 | H25: 0
F26: Subtotal do Item 1.3 | H26: 14594.0602
B27: Auxiliar
A28: P9806 | B28: Auxiliar administrativo | C28: mês | D28: 1 | F28: 4790.7491 | H28: 4790.7491
A29: P9842 | B29: Faxineiro | C29: mês | D29: 0 | F29: 3901.3404 | H29: 0
F30: Subtotal do Item 1.4 | H30: 4790.7491
H31: Total da Mão de Obra da Parcela Fixa | I31: 61887.4519
A33: parcela fixa da administração local (veículos)
A34: Código | B34: Discriminação | C34: Unidade | D34: Quantidade | E34: Utilização Produtiva | F34: Utilização Improdutiva | G34: Custo Horário Produtivo (R$) | H34: Custo Horário Improdutivo (R$) | I34: Custo Total (R$)
A35: 2 | B35: Veículos
B36: Gerência Técnica
A37: 2.1 | B37: Geral
A38: E9093 | B38: Veículo Leve 53 kw | C38: mês | D38: 1 | E38: 44 | F38: 176 | G38: 35.3196 | H38: 6.1281 | I38: 2632.608
A39: E9560 | B39: Ônibus coletivo - 175 kw | C39: mês | D39: 0 | E39: 44 | F39: 176 | G39: 0.2463 | H39: 0.2463 | I39: 0
H40: Subtotal do Item 2 | I40: 2632.608
A41: 2.2 | B41: Auxiliar
A42: E9093 | B42: Veículo Leve 53 kw | C42: mês | D42: 0 | E42: 44 | F42: 176 | G42: 35.3196 | H42: 6.1281 | I42: 0
H43: Subtotal do Item 2 | I43: 0
A44: 2.3 | B44: Gerência Administrativa
A45: E9093 | B45: Veículo Leve 53 kw | C45: mês | D45: 0 | E45: 44 | F45: 176 | G45: 35.3196 | H45: 6.1281 | I45: 0
H46: Subtotal do Item 2 | I46: 0
H47: Total dos Veículos da Parcela Fixa | I47: 2632.608
A49: Composição de custo da equipe de produção de terraplenagem
A50: Código | B50: Discriminação | C50: Unidade | D50: Quantidade | F50: Custo Unitário (R$) | H50: Custo Total (R$)
B51: Equipe de Produção de Terraplenagem
A52: 3.1 | B52: Mão de Obra
A53: P9884 | B53: Encarregado de produção | C53: mês | D53: 0 | F53: 7556.9343 | H53: 0
F54: Subtotal do Item 3.1 | H54: 0
A55: Código | B55: Discriminação | C55: Unidade | D55: Quantidade | E55: Utilização Produtiva | F55: Utilização Improdutiva | G55: Custo Horário Produtivo (R$) | H55: Custo Horário Improdutivo (R$) | I55: Custo Total (R$)
A56: 3.2 | B56: Veículos
B57: Veículo Leve 53 kw | C57: mês | D57: 0 | E57: 44 | F57: 176 | G57: 35.3196 | H57: 6.1281 | I57: 0
H58: Subtotal do Item 3.2 | I58: 0
H59: Total da Equipe de Produção de Terraplenagem | I59: 0
A61: Composição de custo da equipe de produção de pavimentação
A62: Código | B62: Discriminação | C62: Unidade | D62: Quantidade | F62: Custo Unitário (R$) | H62: Custo Total (R$)
B63: Equipe de Produção de Pavimentação
A64: 3.1 | B64: Mão de Obra
A65: P9893 | B65: Encarregado de produção | C65: mês | D65: 1 | F65: 7556.9343 | H65: 7556.9343
F66: Subtotal do Item 3.1 | H66: 7556.9343
A67: Código | B67: Discriminação | C67: Unidade | D67: Quantidade | E67: Utilização Produtiva | F67: Utilização Improdutiva | G67: Custo Horário Produtivo (R$) | H67: Custo Horário Improdutivo (R$) | I67: Custo Total (R$)
A68: 3.2 | B68: Veículos
B69: Veículo Leve 53 kw | C69: mês | D69: 1 | E69: 44 | F69: 176 | G69: 35.3196 | H69: 6.1281 | I69: 2632.608
H70: Subtotal do Item 3.2 | I70: 2632.608
H71: Total da Equipe de Produção de Pavimentação | I71: 10189.5423
A73: Composição de custo da equipe de produção de drenagem
A74: Código | B74: Discriminação | C74: Unidade | D74: Quantidade | F74: Custo Unitário (R$) | H74: Custo Total (R$)
B75: Equipe de Produção de Pavimentação
A76: 3.1 | B76: Mão de Obra
A77: P9893 | B77: Encarregado de produção | C77: mês | D77: 1 | F77: 7556.9343 | H77: 7556.9343
F78: Subtotal do Item 3.1 | H78: 7556.9343
A79: Código | B79: Discriminação | C79: Unidade | D79: Quantidade | E79: Utilização Produtiva | F79: Utilização Improdutiva | G79: Custo Horário Produtivo (R$) | H79: Custo Horário Improdutivo (R$) | I79: Custo Total (R$)
A80: 3.2 | B80: Veículos
B81: Veículo Leve 53 kw | C81: mês | D81: 1 | E81: 44 | F81: 176 | G81: 35.3196 | H81: 6.1281 | I81: 2632.608
H82: Subtotal do Item 3.2 | I82: 2632.608
H83: Total da Equipe de Produção de Pavimentação | I83: 10189.5423
A85: Composição de custo da equipe de produção de sinalização
A86: Código | B86: Discriminação | C86: Unidade | D86: Quantidade | F86: Custo Unitário (R$) | H86: Custo Total (R$)
B87: Equipe de Produção de Pavimentação
A88: 3.1 | B88: Mão de Obra
A89: P9893 | B89: Encarregado de produção | C89: mês | D89: 1 | F89: 7556.9343 | H89: 7556.9343
F90: Subtotal do Item 3.1 | H90: 7556.9343
A91: Código | B91: Discriminação | C91: Unidade | D91: Quantidade | E91: Utilização Produtiva | F91: Utilização Improdutiva | G91: Custo Horário Produtivo (R$) | H91: Custo Horário Improdutivo (R$) | I91: Custo Total (R$)
A92: 3.2 | B92: Veículos
B93: Veículo Leve 53 kw | C93: mês | D93: 1 | E93: 44 | F93: 176 | G93: 35.3196 | H93: 6.1281 | I93: 2632.608
H94: Subtotal do Item 3.2 | I94: 2632.608
H95: Total da Equipe de Produção de Pavimentação | I95: 10189.5423
A97: Composição de custo da equipe topografia
A98: Código | B98: Discriminação | C98: Unidade | D98: Quantidade | F98: Custo Unitário (R$) | H98: Custo Total (R$)
B99: Equipe de Topografia
A100: 3.1 | B100: Mão de Obra
A101: P9949 | B101: Topográfo | C101: mês | D101: 1 | F101: 8442.6124 | H101: 8442.6124
A102: P9950 | B102: Auxiliar de topografia | C102: mês | D102: 1 | F102: 5648.4587 | H102: 5648.4587
F103: Subtotal do Item 3.1 | H103: 14091.0711
A104: Código | B104: Discriminação | C104: Unidade | D104: Quantidade | E104: Utilização Produtiva | F104: Utilização Improdutiva | G104: Custo Horário Produtivo (R$) | H104: Custo Horário Improdutivo (R$) | I104: Custo Total (R$)
A105: 3.2 | B105: Veículos
B106: Veículo Leve 53 kw | C106: mês | D106: 1 | E106: 44 | F106: 176 | G106: 35.3196 | H106: 6.1281 | I106: 2632.608
H107: Subtotal do Item 3.2 | I107: 2632.608
H108: Total da Equipe de Produção de Topografia | I108: 16723.6791
A110: Composição de custo do setor de medicina e segurança do trabalho
A111: Código | B111: Discriminação | C111: Unidade | D111: Quantidade | F111: Custo Unitário (R$) | H111: Custo Total (R$)
A112: 4 | B112: Setor de Medicina e Segurança do Trabalho
A113: P9876 | B113: Técnico de segurança do trabalho | C113: mês | D113: 1 | F113: 6955.1445 | H113: 6955.1445
A114: P9864 | B114: Engenheiro de segurança do trabalho | C114: mês | D114: 0 | F114: 23023.0451 | H114: 0
A115: P9851 | B115: Médico do trabalho | C115: mês | D115: 0 | F115: 18060.546 | H115: 0
A116: P9951 | B116: Médico de câmara hiperbárica | C116: mês | D116: 0 | F116: 20496.9514 | H116: 0
F117: Subtotal do Item 4 | H117: 6955.1445
A119: Parcela Variável - Composição de custo da equipe de frente de serviço
A120: Código | B120: Discriminação | C120: Unidade | D120: Quantidade | F120: Custo Unitário (R$) | H120: Custo Total (R$)
A121: 5 | B121: Equipe de Frente de Serviço | C121: equipexmês
A122: P9875 | B122: Encarregado de Turma | C122: mês | D122: 1 | F122: 5464.6695 | H122: 5464.6695
A123: P9804 | B123: Apontador | C123: mês | D123: 0.5 | F123: 4832.8362 | H123: 2416.4181
F124: Subtotal do Item 5 | H124: 7881.0876
A126: Parcela Variável - Composição de custo da equipe de frente de serviço (Terraplenagem) - Somente Compactação
A127: Código | B127: Discriminação | C127: Unidade | D127: Quantidade | F127: Produção Horária (und/h) | H127: Efs
A128: 5.1 | B128: Equipe de Frente de Serviço | C128: equipexmês
C129: mês
C130: mês
C131: mês
F132: Total de Equipes para Terraplenagem
A134: Parcela Variável - Composição de custo da acompanhamento das frentes de serviço de pavimentação
A135: Código | B135: Discriminação | C135: Unidade | D135: Quantidade | F135: Produção Horária (und/h) | H135: Efs
A136: 5.2 | B136: Equipe de Frente de Serviço | C136: equipe x mês
A137: 4011463 | B137: Concreto asfáltico - faixa C - areia e brita comerciais | C137: m² | D137: 16800 | F137: 99.6 | H137: 0.9242955712
A138: 4011353 | B138: Pintura de ligação | C138: m² | D138: 140000 | F138: 1125 | H138: 0.6819247326
A139: 4915663 | B139: Fresagem descontínua de revestimento asfáltico - espessura de 5 cm | C139: m² | D139: 700 | F139: 1500 | H139: 0.002557217747
A140: 4915618 | B140: Recomposição de camada granular do pavimento com material de jazida | C140: m³ | D140: 14000 | F140: 120.7 | H140: 0.6355967888
F141: Total de Equipes para Pavimentação | H141: 2.24437431
A143: Parcela Variável - Composição de custo da acompanhamento das frentes de serviço de drenagem
A144: Código | B144: Discriminação | C144: Unidade | D144: Quantidade | F144: Efsdu | H144: Efs
A145: 5.3 | B145: Frentes de Serviço para Drenagem | C145: equipe x mês
A146: 4915777 | B146: Reassentamento manual de meio-fio com material arrancado da pista | C146: m | D146: 4000 | F146: 0.00021 | H146: 0.84
A147: 4915708 | B147: Limpeza de sarjeta e meio-fio | C147: m | D147: 40000 | F147: 0.00021 | H147: 8.4
A148: 4915724 | B148: Caiação mecanizada com fixador de cal | C148: m | D148: 4800 | F148: 0.00021 | H148: 1.008
F149: Total de Equipes para Drenagem | H149: 1.008
A151: Parcela Variável - Composição de custo da acompanhamento das frentes de serviço de sinalização
A152: Código | B152: Discriminação | C152: Unidade | D152: Quantidade | F152: Produção Horária (und/h) | H152: Efs
A153: 5.4 | B153: Frentes de Serviço para Sinalização | C153: equipe x mês
A154: 5213440 | B154: Placa de regulamentação em aço D = 0,60 m - película retrorrefletiva tipo I + SI - fornecimento e implantação | C154: Unidade | D154: 60 | F154: 3 | H154: 0.02191900926
A155: 5213464 | B155: Placa de advertência em aço, lado de 0,60 m - película retrorrefletiva tipo I + SI - fornecimento e implantação | C155: Unidade | D155: 60 | F155: 4.1 | H155: 0.01603829946
A156: 5213863 | B156: Suporte metálico galvanizado para placa de advertência ou regulamentação - lado ou diâmetro de 0,60 m - fornecimento e implantação | C156: Unidade | D156: 120 | F156: 4.1 | H156: 0.03207659892
A157: 5213400 | B157: Pintura de faixa com tinta acrílica - espessura de 0,4 mm | C157: m² | D157: 4800 | F157: 177.07 | H157: 0.02970894122
F158: Total de Equipes para Sinalização | H158: 0.09974284886 | J158: =H158+H149 -> 1.107742849
A160: 3. PARCELA VARIÁVEL - EQUIPE DE CONTROLE TECNOLÓGICO
A161: LABORATÓRIO DE SOLOS
A162: Item | B162: Discriminação | F162: Unidade | G162: Quantidade | H162: Custo Unitário (R$) | I162: Custo Total (R$)
B163: Laboratório de Solos (equipe x mês)
B164: Mão de Obra
A165: P9858 | B165: Laboratorista | F165: func./mês | G165: 1 | H165: 6962.7078 | I165: 6962.7
A166: P9833 | B166: Auxiliar de laboratório | F166: func./mês | G166: 1 | H166: 5616.9066 | I166: 5616.9
H167: Subtotal do Item | I167: 12579.6
A168: Item | B168: Discriminação | C168: Und | D168: Quant | E168: Utilização Produtiva | F168: Utilização Improdutiva | G168: Horário Produtivo (R$) | H168: Horário Improdutivo (R$) | I168: Total (R$)
B169: Equipe de Controle Tecnológico
B170: Veículos
A171: E9125 | B171: Van furgão a diesel - 93 kW | C171: veic./mês | D171: 0.5 | E171: 44 | F171: 176 | G171: 83.0201 | H171: 47.3367 | I171: 5992.0718
H172: Subtotal do Item | I172: 5992.0718
H173: Total da Equipe do Laboratório de Solos | I173: 18571.6718
A175: 3. PARCELA VARIÁVEL - EQUIPE DE CONTROLE TECNOLÓGICO
A176: LABORATÓRIO DE ASFALTOS
A177: Item | B177: Discriminação | F177: Unidade | G177: Quantidade | H177: Custo Unitário (R$) | I177: Custo Total (R$)
B178: Laboratório de Solos (equipe x mês)
B179: Mão de Obra
A180: P9858 | B180: Laboratorista | F180: func./mês | G180: 1 | H180: 6962.7078 | I180: 6962.7
A181: P9833 | B181: Auxiliar de laboratório | F181: func./mês | G181: 1 | H181: 5616.9066 | I181: 5616.9
H182: Subtotal do Item | I182: 12579.6
A183: Item | B183: Discriminação | C183: Und | D183: Quant | E183: Utilização Produtiva | F183: Utilização Improdutiva | G183: Horário Produtivo (R$) | H183: Horário Improdutivo (R$) | I183: Total (R$)
B184: Equipe de Controle Tecnológico
B185: Veículos
A186: E9125 | B186: Van furgão a diesel - 93 kW | C186: veic./mês | D186: 0.5 | E186: 44 | F186: 176 | G186: 83.0201 | H186: 47.3367 | I186: 5992.0718
H187: Subtotal do Item | I187: 5992.0718
H188: Total da Equipe do Laboratório de Asfaltos | I188: 18571.6718
A190: Equipes de laboratório de solos para pavimentação
A191: Item | B191: Discriminação | F191: Und | G191: Quant | H191: QE | I191: Els
A192: - | B192: - | F192: - | G192: - | H192: - | I192: -
A193: - | B193: - | F193: - | G193: - | H193: - | I193: -
H194: Total de equipes de Laboratório de Solos para Pavimentação | I194: -
A196: Equipes de laboratório de Asfalto
A197: Item | B197: Discriminação | F197: Und | G197: Quant | H197: QE | I197: Ela
A198: 4011463 | B198: Concreto asfáltico - faixa C - areia e brita comerciais | F198: t | G198: 16800 | H198: 9000 | I198: 1.866666667
A199: 4011353 | B199: Pintura de ligação | F199: m² | G199: 140000 | H199: 1610000 | I199: 0.08695652174
H200: Total de equipes de Laboratório de Asfaltos | I200: 1.953623188
A202: manutenção do canteiro de obras e acampamentos
A203: Código | B203: Discriminação | C203: Unidade | D203: Quantidade | F203: Custo Unitário (R$) | H203: Custo Total (R$)
B204: Manutenção do Canteiro de Obras e Acampamentos
A205: 6.1 | B205: Mão de Obra
A206: P9952 | B206: Pedreiro | C206: mês | D206: 0 | F206: 4876.6847 | H206: 0
A207: P9954 | B207: Servente | C207: mês | D207: 0 | F207: 3953.9376 | H207: 0
A208: P9953 | B208: Eletricista | C208: mês | D208: 0 | F208: 5532.041 | H208: 0
F209: Subtotal do Item 6.1 | H209: 0
A211: Código | B211: Discriminação | C211: Unidade | D211: Quantidade | F211: Custo Produtivo (R$) | H211: Custo Total (R$)
A212: 6.2 | B212: Equipamentos
B213: Caminhão guindauto de 6 toneladas | C213: h/mês | D213: 0 | H213: 0
B214: Caminhão tanque de 8.000 litros | C214: h/mês | D214: 0 | H214: 0
A215: E9524 | B215: Motoniveladora | C215: h/mês | D215: 0 | F215: 280.9528 | H215: 0
F216: Subtotal do Item 6.2 | H216: 0
G217: Total da Manutenção do Canteiro de Obras e Acampamentos | H217: 0
A221: Resumo das parcelas de administração local
A222: Código | B222: Discriminação | C222: Unidade | D222: Quantidade | F222: Custo Unitário (R$) | H222: Custo Total (R$)
B223: Parcela Fixa
B224: Mão de Obra | C224: mês | D224: 5 | F224: 61887.4519 | H224: 309437.2595
... 27 more rows

Sheet Projeto Executivo
A4: COMPOSIÇAO PREÇO PROJETO EXECUTIVO
A6: DISCRIMINAÇAO | F6: Pr. Unit. | G6: Pr. Total
A8: A· EOUIPE TECNICA | G8: 14167.516
B9: A. 1 - Pessoal de Nível Superior | C9: Unidade | D9: Quantitativo | E9: SICRO e Rel.Custos Gerais | G9: 11293.67836
B10: Engenheiro | C10: mês | D10: 0.4 | E10: P9812 | F10: 24012.8897 | G10: 9605.15588
B11: Topógrafo | C11: mês | D11: 0.2 | E11: P9949 | F11: 8442.6124 | G11: 1688.52248
B12: A.2 - Pessoal de Nível Técnico e Aux. | G12: 2873.837644
B13: Auxiliar de topógrafo | C13: mês | D13: 0.12 | E13: P9950 | F13: 5648.4587 | G13: 677.815044
B14: Auxiliar Técnico/Assistente de Engenharia | C14: mês | D14: 0.5 | E14: P9903 | F14: 4392.0452 | G14: 2196.0226
A15: B - ENCARGOS SOCIAIS | G15: 0
B16: Taxas % | C16: JÁ INCLUSAS EM "A"
A17: C - DESPESAS GERAIS | G17: 5201.88848
B18: C.1 - MATERIAIS DE CONSUMO | C18: Estimativa % como referência de equipe técnica com encargos sociais | D18: 0.03 | F18: 14167.516 | G18: 425.0254801
B19: C.2 - VEÍCULOS (Veículo leve picape 4 x 4 com capacidade de 1,10 t - 147 kW) | C19: h | D19: 40 | E19: E9684 | F19: 110.8226 | G19: 4432.904
B20: C.3 - Estação total eletrônica com alcance máximo de 3.000 m | C20: h | D20: 55 | E20: E9553 | F20: 6.2538 | G20: 343.959
A21: D - ENSAIOS | G21: 3137.014752
B22: Laboratorista | C22: mês | D22: 0.2 | E22: P9858 | F22: 6962.7078 | G22: 1392.54156
B23: Auxiliar de Laboratório | C23: mês | D23: 0.12 | E23: P9833 | F23: 5616.9066 | G23: 674.028792
B24: Laboratório de solos | C24: mês | D24: 0.12 | E24: B8957 | F24: 3554.26 | G24: 426.5112
B25: Laboratório de asfalto | C25: mês | D25: 0.12 | E25: B8955 | F25: 5366.11 | G25: 643.9332
A26: I - SOMA (A+B+C+D) | G26: 22506.41924
A27: II - CUSTOS ADMINISTRATIVOS | D27: 0 | G27: 0
A28: TOTAL | G28: 22506.41924
F29: Por m²: | G29: 1.607601374

Sheet CONSUMO DE MAT. B TOTAL
A6: CONSUMO DO MATERIAL BETUMINOSO TOTAL
A8: TRECHO | C8: QUANTIDADES | L8: MAT. BETUMINOSO
A9: Inicio (km) | B9: Fim (km) | C9: Extensão (m) | D9: Largura (m) | E9: Espess. (m) | F9: Área (m2) | G9: Volume (m3) | H9: Densidade (t/m3) | I9: Massa (t) | J9: Unid | K9: Quant. | L9: Tipo | M9: Consumo Taxa de Aplicação | N9: Unid. | O9: Quant.
E11: 1 | O11: 0
E12: 1 | G12: 0 | O12: 0
A13: PINTURA DE LIGAÇÃO | S13: =F14*0.45 -> 63000
E14: 1 | F14: 140000 | G14: 140000 | L14: RR-1C | M14: 0,4 l/m2 | N14: t | O14: 56
A15: CBUQ FAIXA "C"
G16: 0 | I16: 16800 | L16: CAP-50/70 | M16: 0.06449 | N16: t | O16: 1083.43
G18: 0

Sheet CPU CODEVASF
A4: EXECUÇÃO DE CAPA ASFÁLTICA EM CONCRETO BETUMINOSO USINADO A QUENTE (CBUQ), EM VIAS DE MUNICÍPIOS DIVERSOS INSERIDOS NA ÁREA DE ATUAÇÃO DA CODEVASF 3ª SR, NO ESTADO DE PERNAMBUCO - MICRORREGIÃO DE ARARIPINA
F5: BDI %: | G5: 0.2339
E6: Encargos Sociais: | G6: Horista | H6: Mensalista
G7: 1.1398 | H7: 0.7
A8: COMPOSIÇÕES DE CUSTO UNITARIO
A9: CPU-13 | B9: CODEVASF | D9: AQUISIÇÃO DE CIMENTO ASFALTICO CAP 50/70 | E9: t | F9: COEF. | G9: PRECO UNITÁRIO (R$) | H9: TOTAL (R$)
D11: CIMENTO ASFALTICO 50/70 | E11: t | F11: 1 | G11: 5293.496694 | H11: 5293.496694
E12: Sub total: | H12: 5293.496694
F13: BDI | G13: 0.15 | H13: 794.0245042
G14: Total Serviços: | H14: 6087.521198
E15: CPU-13 | F15: PREÇO UNITÁRIO TOTAL: | H15: 6087.521198 | I15: =H12 -> 5293.496694
A18: CPU-15 | B18: CODEVASF | D18: AQUISIÇÃO DE EMULSÃO ASFÁLTICA RR-1C | E18: t | F18: COEF. | G18: PRECO UNITÁRIO (R$) | H18: TOTAL (R$)
D20: EMULSÃO ASFÁLTICA RR-1C | E20: t | F20: 1 | G20: 3791.639004 | H20: 3791.639004
E21: Sub total: | H21: 3791.639004
F22: BDI | G22: 0.15 | H22: 568.7458506
G23: Total Serviços: | H23: 4360.384855
E24: CPU-15 | F24: PREÇO UNITÁRIO TOTAL: | H24: 4360.384855 | I24: =H21 -> 3791.639004
A27: CPU-17 | B27: CODEVASF | D27: TRANSPORTE DE CIMENTO ASFALTICO CAP 50/70 | E27: t | F27: COEF. | G27: PRECO UNITÁRIO (R$) | H27: TOTAL (R$)
D29: TRANSPORTE DE CIMENTO ASFALTICO 50/70 | E29: t | F29: 1 | G29: 514.68 | H29: 514.68
E30: Sub total: | H30: 514.68
F31: BDI | G31: 0.15 | H31: 77.2
G32: Total Serviços: | H32: 591.88
E33: CPU-17 | F33: PREÇO UNITÁRIO TOTAL: | H33: 591.88 | I33: =H30 -> 514.68
A36: CPU-19 | B36: CODEVASF | D36: TRANSPORTE DE EMULSÃO ASFÁLTICA RR-1C | E36: UNID | F36: COEF. | G36: PRECO UNITÁRIO (R$) | H36: TOTAL (R$)
D38: TRANSPORTE DE EMULSÃO ASFÁLTICA RR-1C | E38: t | F38: 1 | G38: 514.68 | H38: 514.68
E39: Sub total: | H39: 514.68
F40: BDI | G40: 0.15 | H40: 77.202
G41: Total Serviços: | H41: 591.882
E42: CPU-19 | F42: PREÇO UNITÁRIO TOTAL: | H42: 591.882 | I42: =H39 -> 514.68
A44: CPU-20 | B44: CODEVASF | D44: CONTROLE TECNOLÓGICO - PROJETO | E44: m² | F44: COEF. | G44: PRECO UNITÁRIO (R$) | H44: TOTAL (R$)
A46: Insumo | B46: SICRO | C46: P9858 | D46: Laboratorista | E46: mês | F46: 1.071428571e-05 | G46: 5576.2888 | H46: 0.05974595143
A47: Composição | B47: SICRO | C47: P9833 | D47: Auxiliar de Laboratório | E47: mês | F47: 1.071428571e-05 | G47: 4221.2468 | H47: 0.04522764429
A48: Composição | B48: SICRO | C48: *B8957 | D48: Laboratório de Solos | E48: mês | F48: 1.071428571e-05 | G48: 4235.59 | H48: 0.04538132143
A49: Composição | B49: SICRO | C49: *B8955 | D49: Laboratório de Asfalto | E49: mês | F49: 1.071428571e-05 | G49: 5144.99 | H49: 0.05512489286
B50: *Relatório de Custos Gerais do DNIT, página 1 | E50: Sub total: | H50: 0.20547981
F51: BDI | G51: 0.2339 | H51: 0.04806172756
E52: CPU-20 | F52: PREÇO UNITÁRIO TOTAL: | H52: 0.2535415376 | I52: =H50 -> 0.20547981

Sheet BDI
A4: DETALHAMENTO DO BDI - SEM DESONERAÇÃO
A5: EXECUÇÃO DE CAPA ASFÁLTICA EM CONCRETO BETUMINOSO USINADO A QUENTE (CBUQ), EM VIAS DE MUNICÍPIOS DIVERSOS INSERIDOS NA ÁREA DE ATUAÇÃO DA CODEVASF 3ª SR, NO ESTADO DE PERNAMBUCO - MICRORREGIÃO DE ARARIPINA
A6: Descrição dos serviços | B6: Preço de Venda (%) | C6: Custo Direto (%)
A7: ADMINISTRAÇÃO CENTRAL | C7: 0.06
A8: CUSTOS FINANCEIROS | B8: 0.0102
A9: RISCOS | B9: 0.0025
A10: SEGUROS E GARANTIAS CONTRATUAIS | B10: 0.005
A11: LUCRO OPERACIONAL | C11: 0.07
A12: PIS | B12: 0.0065
A13: COFINS | B13: 0.03
A14: ISSQN | B14: 0.03
A15: Contribuição Previdenciaria | B15: 0
B16: BDI | C16: 0.2339
A17: Observação: | B17: O percentual de ISSQN aqui utilizado consiste apenas em um referencial médio.
B18: O valor real do ISSQN a ser adotado deve ser aquele proveniente das alíquotas dos municípios situados na área de influência das obras.
A54: DETALHAMENTO DO BDI DIFERENCIADO - SEM DESONERAÇÃO
A55: EXECUÇÃO DE SERVIÇOS DE PAVIMENTAÇÃO COM CONCRETO BETUMINOSO USINADO A QUENTE (CBUQ), EM VIAS DE MUNICÍPIOS DIVERSOS INSERIDOS NA ÁREA DE ATUAÇÃO DA CIDEVASF, NO ESTADO DO RIO GRANDE DO NORTE - LOTE 1
A56: DESCRIÇÃO DOS SERVIÇOS | B56: PREÇO DE VENDA (%) | C56: CUSTO DIRETO (%)
A57: ADMINISTRAÇÃO CENTRAL | C57: 0.0377
A58: DESPESA FINANCEIRAS | B58: 0.0102
A59: SEGUROS E GARANTIAS CONTRATUAIS | B59: 0.0025
A60: RISCOS | B60: 0.005
A61: LUCRO OPERACIONAL | C61: 0.05
A62: PIS | B62: 0.0065
A63: COFINS | B63: 0.03
A64: ISSQN | B64: 0
A65: Contribuição Previdenciaria | B65: 0
B66: BDI | C66: 0.15
A67: Fonte da composição, valores de referência e fórmula do BDI: Instrução Normativa N° 62/DNIT SEDE

Sheet ENC. SOCIAIS
A5: EXECUÇÃO DE CAPA ASFÁLTICA EM CONCRETO BETUMINOSO USINADO A QUENTE (CBUQ), EM VIAS DE MUNICÍPIOS DIVERSOS INSERIDOS NA ÁREA DE ATUAÇÃO DA CODEVASF 3ª SR, NO ESTADO DE PERNAMBUCO - MICRORREGIÃO DE ARARIPINA
A7: DETALHAMENTO DOS ENCARGOS SOCIAIS (%)
A8: VIGÊNCIA A PARTIR DE 12/2023 | C8: COM DESONERAÇÃO | E8: SEM DESONERAÇÃO
C10: HORISTA | D10: MENSALISTA | E10: HORISTA | F10: MENSALISTA
A12: GRUPO A
A13: A1 | B13: INSS | C13: 0 | D13: 0 | E13: 20 | F13: 20
A14: A2 | B14: SESI | C14: 1.5 | D14: 1.5 | E14: 1.5 | F14: 1.5
A15: A3 | B15: SENAI | C15: 1 | D15: 1 | E15: 1 | F15: 1
A16: A4 | B16: INCRA | C16: 0.2 | D16: 0.2 | E16: 0.2 | F16: 0.2
A17: A5 | B17: SEBRAE | C17: 0.6 | D17: 0.6 | E17: 0.6 | F17: 0.6
A18: A6 | B18: Salário Educação | C18: 2.5 | D18: 2.5 | E18: 2.5 | F18: 2.5
A19: A7 | B19: Seguro Contra Acidentes de Trabalho | C19: 3 | D19: 3 | E19: 3 | F19: 3
A20: A8 | B20: FGTS | C20: 8 | D20: 8 | E20: 8 | F20: 8
A21: A9 | B21: SECONCI | C21: 1 | D21: 1 | E21: 0 | F21: 0
A22: A | B22: Total | C22: 17.8 | D22: 17.8 | E22: 36.8 | F22: 36.8
A23: GRUPO B
A24: B1 | B24: Repouso Semanal Remunerado | C24: 17.88 | D24: - | E24: 18.01 | F24: -
A25: B2 | B25: Feriados | C25: 3.94 | D25: - | E25: 4.32 | F25: -
A26: B3 | B26: Auxílio-enfermidade | C26: 0.91 | D26: 0.69 | E26: 0.85 | F26: 0.64
A27: B4 | B27: 13° salário | C27: 10.98 | D27: 8.33 | E27: 11.03 | F27: 8.33
A28: B5 | B28: Licença-paternidade | C28: 0.07 | D28: 0.06 | E28: 0.06 | F28: 0.04
A29: B6 | B29: Faltas Justificadas | C29: 0.73 | D29: 0.56 | E29: 0.74 | F29: 0.56
A30: B7 | B30: Dias de chuva | C30: 1.45 | D30: - | E30: 1.98 | F30: -
A31: B8 | B31: Auxílio Acidente de Trabalho | C31: 0.11 | D31: 0.09 | E31: 0.1 | F31: 0.08
A32: B9 | B32: Férias Gozadas | C32: 11.35 | D32: 8.62 | E32: 10.9 | F32: 8.24
A33: B10 | B33: Salário Maternidade | C33: 0.03 | D33: 0.03 | E33: 0.04 | F33: 0.03 | L33: =(#REF!)/(1+#REF!) ->  | M33: =(#REF!) -> 
A34: B | B34: Total | C34: 47.45 | D34: 18.38 | E34: 48.03 | F34: 17.92
A35: GRUPO C
A36: C1 | B36: Aviso Prévio Indenizado | C36: 6.76 | D36: 5.14 | E36: 4.8 | F36: 3.63
A37: C2 | B37: Aviso Prévio Trabalhado | C37: 0.16 | D37: 0.12 | E37: 0.11 | F37: 0.09
A38: C3 | B38: Férias Indenizadas | C38: 2.28 | D38: 1.73 | E38: 2.91 | F38: 2.2
A39: C4 | B39: Depósito Rescisão Sem Justa Causa | C39: 3.81 | D39: 2.89 | E39: 2.83 | F39: 2.14
A40: C5 | B40: Indenização Adicional | C40: 0.57 | D40: 0.43 | E40: 0.4 | F40: 0.31
A41: C | B41: Total | C41: 13.58 | D41: 10.31 | E41: 11.05 | F41: 8.37
A42: GRUPO D
A43: D1 | B43: Reincidência de A sobre B | C43: 8.45 | D43: 3.27 | E43: 17.68 | F43: 6.59
A44: D2 | B44: Reincidência de Grupo A sobre Aviso Prévio Trabalhado e Reincidência do FGTS sobre Aviso Prévio Indenizado | C44: 0.57 | D44: 0.43 | E44: 0.42 | F44: 0.32
A45: D | B45: Total | C45: 9.02 | D45: 3.7 | E45: 18.1 | F45: 6.91
A47: T O T A L (%) | C47: 87.85 | D47: 50.19 | E47: 113.98 | F47: 70

Sheet Transporte Cap 50-70
C5: MEMÓRIA DE CÁLCULO
C10: REAJUSTE | F10: TIPOLOGIA DO MATERIAL | I10: CIMENTOS ASFÁLTICOS CAP-50-70 | M10: IMPOSTOS | N10: COFINS | O10: 0.0065 | P10: 0.0065
G11: ÍNDICE DE PAVIMENTAÇÃO DNIT | H11: 2014-07-01 | I11: ÍNDICE INICIAL | J11: 270.237 | N11: PIS | O11: 0.03 | P11: 0.03 | T11: LEGENDA | AC11: As empresas tributadas pelo Lucro Presumido pagam 0,65% de PIS e 3% de COFINS
H12: 2024-09-01 | I12: ÍNDICE FINAL | J12: 577.753 | N12: ICMS | O12: 0.205 | P12: 0.205 | Q12: =1-(O12/1) -> 0.795 | R12: =1-(P12/1) -> 0.795 | S12: =1-(Q12/1) -> 0.205 | T12: ENTRADA DE DADOS | AC12: As empresas tributadas pelo Lucro Real pagam 1,65% de PIS e 7,60% de COFINS
G13: Data ANP | H13: 2024-09-01
C14: DATA-BASE | D14: PRODUTOS | E14: LOCALIDADES | J14: CUSTO ANP (R$/Kg) | L14: CUSTO ANP | M14: IMPOSTOS DO PRODUTO | N14: CUSTO DO PRODUTO COM IMPOSTOS | O14: DMT's | P14: DMT's FLUVIAL | Q14: CUSTO DO TRANSPORTE RODOVIA PAVIMENTADA | R14: CUSTO DO TRANSPORTE FLUVIAL | S14: CUSTO DO TRANSPORTE TOTAL | T14: ICMS | U14: ATUALIZAÇÃO DO CUSTO DE TRANSPORTE | V14: CUSTO DO TRANSPORTE RODOVIA PAVIMENTADA COM IMPOSTOS E ATUALIZAÇÃO MONETÁRIA | W14: PEDÁGIO | Y14: TOTAL TRANSPORTE | Z14: AQUISIÇÃO DO PRODUTO | AA14: TOTAL GERAL ( TRANSP + AQUISIÇÃO) | AC14: 1 | AD14: 2 | AE14: 3
C15: =H12 -> 2024-09-01 | E15: REFINARIAS | F15: ENDEREÇO | G15: ESTADO | H15: CIDADE | I15: DESTINO | J15: ESTADO | K15: REGIÃO | L15: R$/t | M15: R$/t | N15: R$/t | O15: KM | P15: KM | Q15: R$/t | R15: R$/t | S15: R$/t | T15: R$/t | U15: R$/t | V15: R$/t | W15: CUSTO | X15: R$/t | Y15: R$/t | Z15: R$/t | AA15: R$/t | AC15: TOTAL GERAL ( TRANSP + AQUISIÇÃO) | AD15: TOTAL TRANSPORTE | AE15: AQUISIÇÃO DO PRODUTO
B16: =AA16 -> 5870.045024 | C16: 4 | D16: CIMENTOS ASFÁLTICOS CAP-50-70 | E16: Refinaria Landulpho Alves (RLAM) | F16: Rodovia BA 523, KM 4 – Mataripe São Francisco do Conde - BA CEP:43900-000 | G16: Bahia | H16: SÃO FRANCISCO DO CONDE - BA | I16: OURICURI - PE (ARARIPINA) | J16: =VLOOKUP('Transporte Cap 50-70'!G16,OFFSET('ANP ESTADO'!$A$1,MATCH('Transporte Cap 50-70'!$I$10,'ANP ESTADO'!B:B,0)+MATCH('Transporte Cap 50-70'!$H$13,OFFSET('ANP ESTADO'!$A$1,MATCH('Transporte Cap 50-70'!$I$10,'ANP ESTADO'!B:B,0),0,100000,1),0),2,100000,2),2,FALSE) -> 4.048003159 | K16: =VLOOKUP($H$13,OFFSET('ANP REGIÃO'!$A$9,MATCH('Transporte Cap 50-70'!$I$10,'ANP REGIÃO'!A:A,0),1,10000,10000),MATCH('Transporte Cap 50-70'!AH16,'ANP REGIÃO'!$B$8:$G$8,0),FALSE) -> 4.03046835 | L16: =IF(AND(J16="-",K16=""),"",IF(AND(J16<>0,K16=""),J16*1000,IF(AND(J16="-",K16<>0),K16*1000,IF(AND(J16<>0,K16<>0),J16*1000,"")))) -> 4048.003159 | M16: =ROUND(((L16/(1-$O$10-$O$11-$O$12))-L16),2) -> 1288.85 | N16: =L16+M16 -> 5336.853159 | O16: 675 | Q16: =ROUND((26.939+0.253*O16),2) -> 197.71 | S16: =Q16+R16 -> 197.71 | T16: =TRUNC(S16*($O$12/(1-$O$12)),2) -> 50.98 | U16: =TRUNC(IF($J$11="","",(($J$12-$J$11)/$J$11)*(S16+T16)),2) -> 282.99 | V16: =S16+T16+U16 -> 531.68 | W16: 21 | X16: =EVEN((' CONSUMO DE MAT. B TOTAL'!$O$16)*2/28)*W16/(' CONSUMO DE MAT. B TOTAL'!$O$16) -> 1.511865095 | Y16: =IF(AND(S16="",T16=""),"",V16+X16) -> 533.1918651 | Z16: =IF(OR(L16="",M16=""),"",L16+M16) -> 5336.853159 | AA16: =IF(OR(Y16="",Z16=""),"",Y16+Z16) -> 5870.045024 | AC16: =AA16 -> 5870.045024 | AD16: =Y16 -> 533.1918651 | AE16: =Z16 -> 5336.853159 | AH16: =IF(OR(G16=$D$61,G16=$D$62,G16=$D$64,G16=$D$70,G16=$D$54,G16=$D$50,G16=$D$46,G16=$D$59,G16=$D$49),"NORDESTE",IF(OR(G16=$D$45,G16=$D$47,G16=$D$48,G16=$D$58,G16=$D$66,G16=$D$67,G16=$D$71),"NORTE",IF(OR(G16=$D$51,G16=$D$53,G16=$D$55,G16=$D$56),"CENTRO-OESTE",IF(OR(G16=$D$69,G16=$D$63,G16=$D$57,G16=$D$52),"SUDESTE",IF(OR(G16=$D$68,G16=$D$60,G16=$D$65),"SUL",""))))) -> NORDESTE
B17: 5827.916694 | C17: 5 | E17: Refinaria Lubrificantes e Derivados do Nordeste (Lubnor) | F17: Av. Leite Barbosa, s/nº - Mucuripe Fortaleza - Ceará CEP:60180-420 | G17: Ceará | H17: FORTALEZA - CE | I17: OURICURI - PE (ARARIPINA) | J17: =VLOOKUP('Transporte Cap 50-70'!G17,OFFSET('ANP ESTADO'!$A$1,MATCH('Transporte Cap 50-70'!$I$10,'ANP ESTADO'!B:B,0)+MATCH('Transporte Cap 50-70'!$H$13,OFFSET('ANP ESTADO'!$A$1,MATCH('Transporte Cap 50-70'!$I$10,'ANP ESTADO'!B:B,0),0,100000,1),0),2,100000,2),2,FALSE) -> 4.015116694 | K17: =VLOOKUP($H$13,OFFSET('ANP REGIÃO'!$A$9,MATCH('Transporte Cap 50-70'!$I$10,'ANP REGIÃO'!A:A,0),1,10000,10000),MATCH('Transporte Cap 50-70'!AH17,'ANP REGIÃO'!$B$8:$G$8,0),FALSE) -> 4.03046835 | L17: 4015.116694 | M17: 1278.38 | N17: 5293.496694 | O17: 679 | Q17: 198.73 | S17: 198.73 | T17: 51.24 | U17: 284.45 | V17: 534.42 | W17: 0 | X17: =EVEN((' CONSUMO DE MAT. B TOTAL'!$O$16)*2/28)*W17/(' CONSUMO DE MAT. B TOTAL'!$O$16) -> 0 | Y17: 534.42 | Z17: 5293.496694 | AA17: 5827.916694 | AC17: 5827.916694 | AD17: 534.42 | AE17: 5293.496694 | AH17: NORDESTE
B18: 6533.23144 | C18: 6 | E18: Refinaria Capuava (Recap) | F18: Av. Alberto Soares Sampaio, 2122-A Capuava – Mauá - SP | G18: São Paulo | H18: MAUÁ - SP | I18: OURICURI - PE (ARARIPINA) | J18: =VLOOKUP('Transporte Cap 50-70'!G18,OFFSET('ANP ESTADO'!$A$1,MATCH('Transporte Cap 50-70'!$I$10,'ANP ESTADO'!B:B,0)+MATCH('Transporte Cap 50-70'!$H$13,OFFSET('ANP ESTADO'!$A$1,MATCH('Transporte Cap 50-70'!$I$10,'ANP ESTADO'!B:B,0),0,100000,1),0),2,100000,2),2,FALSE) -> 3.569007047 | K18: =VLOOKUP($H$13,OFFSET('ANP REGIÃO'!$A$9,MATCH('Transporte Cap 50-70'!$I$10,'ANP REGIÃO'!A:A,0),1,10000,10000),MATCH('Transporte Cap 50-70'!AH18,'ANP REGIÃO'!$B$8:$G$8,0),FALSE) -> 3.596409563 | L18: 3569.007047 | M18: 1136.34 | N18: 4705.347047 | O18: 2468 | Q18: 651.34 | S18: 651.34 | T18: 167.95 | U18: 932.31 | V18: 1751.6 | W18: 1059.6 | X18: =EVEN((' CONSUMO DE MAT. B TOTAL'!$O$16)*2/28)*W18/(' CONSUMO DE MAT. B TOTAL'!$O$16) -> 76.28439308 | Y18: 1827.884393 | Z18: 4705.347047 | AA18: 6533.23144 | AC18: 6533.23144 | AD18: 1827.884393 | AE18: 4705.347047 | AH18: SUDESTE
B19: 6114.802684 | C19: 7 | E19: Refinaria Duque de Caxias (Reduc) | F19: Rodovia Washington Luiz, km 113,7 Campos Elíseos – Duque de Caxias - RJ CEP:25213-005 | G19: Rio de Janeiro | H19: DUQUE DE CAXIAS - RJ | I19: OURICURI - PE (ARARIPINA) | J19: =VLOOKUP('Transporte Cap 50-70'!G19,OFFSET('ANP ESTADO'!$A$1,MATCH('Transporte Cap 50-70'!$I$10,'ANP ESTADO'!B:B,0)+MATCH('Transporte Cap 50-70'!$H$13,OFFSET('ANP ESTADO'!$A$1,MATCH('Transporte Cap 50-70'!$I$10,'ANP ESTADO'!B:B,0),0,100000,1),0),2,100000,2),2,FALSE) -> 3.453498737 | K19: =VLOOKUP($H$13,OFFSET('ANP REGIÃO'!$A$9,MATCH('Transporte Cap 50-70'!$I$10,'ANP REGIÃO'!A:A,0),1,10000,10000),MATCH('Transporte Cap 50-70'!AH19,'ANP REGIÃO'!$B$8:$G$8,0),FALSE) -> 3.596409563 | L19: 3453.498737 | M19: 1099.56 | N19: 4553.058737 | O19: 2109 | Q19: 560.52 | S19: 560.52 | T19: 144.53 | U19: 802.31 | V19: 1507.36 | W19: 755.4 | X19: =EVEN((' CONSUMO DE MAT. B TOTAL'!$O$16)*2/28)*W19/(' CONSUMO DE MAT. B TOTAL'!$O$16) -> 54.38394728 | Y19: 1561.743947 | Z19: 4553.058737 | AA19: 6114.802684 | AC19: 6114.802684 | AD19: 1561.743947 | AE19: 4553.058737 | AH19: SUDESTE
B20: 7496.171398 | C20: 8 | E20: Refinaria Alberto Pasqualini (Refap) | F20: Avenida Getúlio Vargas, 11001 - Bairro Brigadeira Canoas - RS - Brasil CEP:92420-221 | G20: Rio Grande do Sul | H20: CANOAS - RS | I20: OURICURI - PE (ARARIPINA) | J20: =VLOOKUP('Transporte Cap 50-70'!G20,OFFSET('ANP ESTADO'!$A$1,MATCH('Transporte Cap 50-70'!$I$10,'ANP ESTADO'!B:B,0)+MATCH('Transporte Cap 50-70'!$H$13,OFFSET('ANP ESTADO'!$A$1,MATCH('Transporte Cap 50-70'!$I$10,'ANP ESTADO'!B:B,0),0,100000,1),0),2,100000,2),2,FALSE) -> 3.705590753 | K20: =VLOOKUP($H$13,OFFSET('ANP REGIÃO'!$A$9,MATCH('Transporte Cap 50-70'!$I$10,'ANP REGIÃO'!A:A,0),1,10000,10000),MATCH('Transporte Cap 50-70'!AH20,'ANP REGIÃO'!$B$8:$G$8,0),FALSE) -> 3.692634135 | L20: 3705.590753 | M20: 1179.83 | N20: 4885.420753 | O20: 3603 | Q20: 938.5 | S20: 938.5 | T20: 242 | U20: 1343.34 | V20: 2523.84 | W20: 1207.2 | X20: =EVEN((' CONSUMO DE MAT. B TOTAL'!$O$16)*2/28)*W20/(' CONSUMO DE MAT. B TOTAL'!$O$16) -> 86.9106449 | Y20: 2610.750645 | Z20: 4885.420753 | AA20: 7496.171398 | AC20: 7496.171398 | AD20: 2610.750645 | AE20: 4885.420753 | AH20: SUL
B21: 6654.322965 | C21: 9 | E21: Unidade de Industrialização do Xisto (SIX) | F21: Rodovia do Xisto, BR 476, km 153 São Mateus do Sul – PR CEP 83900-000 | G21: Paraná | H21: SÃO MATEUS DO SUL - PR | I21: OURICURI - PE (ARARIPINA) | J21: =VLOOKUP('Transporte Cap 50-70'!G21,OFFSET('ANP ESTADO'!$A$1,MATCH('Transporte Cap 50-70'!$I$10,'ANP ESTADO'!B:B,0)+MATCH('Transporte Cap 50-70'!$H$13,OFFSET('ANP ESTADO'!$A$1,MATCH('Transporte Cap 50-70'!$I$10,'ANP ESTADO'!B:B,0),0,100000,1),0),2,100000,2),2,FALSE) -> 3.682802485 | K21: =VLOOKUP($H$13,OFFSET('ANP REGIÃO'!$A$9,MATCH('Transporte Cap 50-70'!$I$10,'ANP REGIÃO'!A:A,0),1,10000,10000),MATCH('Transporte Cap 50-70'!AH21,'ANP REGIÃO'!$B$8:$G$8,0),FALSE) -> 3.692634135 | L21: 3682.802485 | M21: 1172.57 | N21: 4855.372485 | O21: 2473 | Q21: 652.61 | S21: 652.61 | T21: 168.28 | U21: 934.13 | V21: 1755.02 | W21: 610.2 | X21: =EVEN((' CONSUMO DE MAT. B TOTAL'!$O$16)*2/28)*W21/(' CONSUMO DE MAT. B TOTAL'!$O$16) -> 43.93048005 | Y21: 1798.95048 | Z21: 4855.372485 | AA21: 6654.322965 | AC21: 6654.322965 | AD21: 1798.95048 | AE21: 4855.372485 | AH21: SUL
B22: 6157.000456 | C22: 10 | E22: Refinaria Gabriel Passos (Regap) | F22: Av. Refinaria Gabriel Passos, 690 Distrito Industrial Paulo Camilo Sul Betim - MG CEP:32669-205 | G22: Minas Gerais | H22: BETIM - MG | I22: OURICURI - PE (ARARIPINA) | J22: =VLOOKUP('Transporte Cap 50-70'!G22,OFFSET('ANP ESTADO'!$A$1,MATCH('Transporte Cap 50-70'!$I$10,'ANP ESTADO'!B:B,0)+MATCH('Transporte Cap 50-70'!$H$13,OFFSET('ANP ESTADO'!$A$1,MATCH('Transporte Cap 50-70'!$I$10,'ANP ESTADO'!B:B,0),0,100000,1),0),2,100000,2),2,FALSE) -> 3.612001482 | K22: =VLOOKUP($H$13,OFFSET('ANP REGIÃO'!$A$9,MATCH('Transporte Cap 50-70'!$I$10,'ANP REGIÃO'!A:A,0),1,10000,10000),MATCH('Transporte Cap 50-70'!AH22,'ANP REGIÃO'!$B$8:$G$8,0),FALSE) -> 3.596409563 | L22: 3612.001482 | M22: 1150.03 | N22: 4762.031482 | O22: 1894 | Q22: 506.12 | S22: 506.12 | T22: 130.5 | U22: 724.44 | V22: 1361.06 | W22: 471 | X22: =EVEN((' CONSUMO DE MAT. B TOTAL'!$O$16)*2/28)*W22/(' CONSUMO DE MAT. B TOTAL'!$O$16) -> 33.90897428 | Y22: 1394.968974 | Z22: 4762.031482 | AA22: 6157.000456 | AC22: 6157.000456 | AD22: 1394.968974 | AE22: 4762.031482 | AH22: SUDESTE
B23: 6969.407938 | C23: 11 | E23: Refinaria Presidente Getúlio Vargas (Repar) | F23: Rodovia do Xisto, BR 476, km 16 Araucária - PR CEP:83707-440 | G23: Paraná | H23: ARAUCÁRIA - PR | I23: OURICURI - PE (ARARIPINA) | J23: =VLOOKUP('Transporte Cap 50-70'!G23,OFFSET('ANP ESTADO'!$A$1,MATCH('Transporte Cap 50-70'!$I$10,'ANP ESTADO'!B:B,0)+MATCH('Transporte Cap 50-70'!$H$13,OFFSET('ANP ESTADO'!$A$1,MATCH('Transporte Cap 50-70'!$I$10,'ANP ESTADO'!B:B,0),0,100000,1),0),2,100000,2),2,FALSE) -> 3.682802485 | K23: =VLOOKUP($H$13,OFFSET('ANP REGIÃO'!$A$9,MATCH('Transporte Cap 50-70'!$I$10,'ANP REGIÃO'!A:A,0),1,10000,10000),MATCH('Transporte Cap 50-70'!AH23,'ANP REGIÃO'!$B$8:$G$8,0),FALSE) -> 3.692634135 | L23: 3682.802485 | M23: 1172.57 | N23: 4855.372485 | O23: 2906 | Q23: 762.16 | S23: 762.16 | T23: 196.53 | U23: 1090.94 | V23: 2049.63 | W23: 894.6 | X23: =EVEN((' CONSUMO DE MAT. B TOTAL'!$O$16)*2/28)*W23/(' CONSUMO DE MAT. B TOTAL'!$O$16) -> 64.40545305 | Y23: 2114.035453 | Z23: 4855.372485 | AA23: 6969.407938 | AC23: 6969.407938 | AD23: 2114.035453 | AE23: 4855.372485 | AH23: SUL
B24: 6559.264443 | C24: 12 | E24: Refinaria Presidente Bernardes (RPBC) | F24: Av. 9 de abril, 777 - Jardim das Indústrias Cubatão - SP CEP:11505-000 | G24: São Paulo | H24: CUBATÃO - SP | I24: OURICURI - PE (ARARIPINA) | J24: =VLOOKUP('Transporte Cap 50-70'!G24,OFFSET('ANP ESTADO'!$A$1,MATCH('Transporte Cap 50-70'!$I$10,'ANP ESTADO'!B:B,0)+MATCH('Transporte Cap 50-70'!$H$13,OFFSET('ANP ESTADO'!$A$1,MATCH('Transporte Cap 50-70'!$I$10,'ANP ESTADO'!B:B,0),0,100000,1),0),2,100000,2),2,FALSE) -> 3.569007047 | K24: =VLOOKUP($H$13,OFFSET('ANP REGIÃO'!$A$9,MATCH('Transporte Cap 50-70'!$I$10,'ANP REGIÃO'!A:A,0),1,10000,10000),MATCH('Transporte Cap 50-70'!AH24,'ANP REGIÃO'!$B$8:$G$8,0),FALSE) -> 3.596409563 | L24: 3569.007047 | M24: 1136.34 | N24: 4705.347047 | O24: 2503 | Q24: 660.2 | S24: 660.2 | T24: 170.24 | U24: 944.99 | V24: 1775.43 | W24: 1090.2 | X24: =EVEN((' CONSUMO DE MAT. B TOTAL'!$O$16)*2/28)*W24/(' CONSUMO DE MAT. B TOTAL'!$O$16) -> 78.48739651 | Y24: 1853.917397 | Z24: 4705.347047 | AA24: 6559.264443 | AC24: 6559.264443 | AD24: 1853.917397 | AE24: 4705.347047 | AH24: SUDESTE
B25: 6520.504286 | C25: 13 | E25: Refinaria de Paulínia (Replan) | F25: Rodovia SP 332 - Km. 130 Bonfim - Paulínia – SP CEP:13140-000 | G25: São Paulo | H25: PAULÍNIA - SP | I25: OURICURI - PE (ARARIPINA) | J25: =VLOOKUP('Transporte Cap 50-70'!G25,OFFSET('ANP ESTADO'!$A$1,MATCH('Transporte Cap 50-70'!$I$10,'ANP ESTADO'!B:B,0)+MATCH('Transporte Cap 50-70'!$H$13,OFFSET('ANP ESTADO'!$A$1,MATCH('Transporte Cap 50-70'!$I$10,'ANP ESTADO'!B:B,0),0,100000,1),0),2,100000,2),2,FALSE) -> 3.569007047 | K25: =VLOOKUP($H$13,OFFSET('ANP REGIÃO'!$A$9,MATCH('Transporte Cap 50-70'!$I$10,'ANP REGIÃO'!A:A,0),1,10000,10000),MATCH('Transporte Cap 50-70'!AH25,'ANP REGIÃO'!$B$8:$G$8,0),FALSE) -> 3.596409563 | L25: 3569.007047 | M25: 1136.34 | N25: 4705.347047 | O25: 2483 | Q25: 655.14 | S25: 655.14 | T25: 168.93 | U25: 937.74 | V25: 1761.81 | W25: 741 | X25: =EVEN((' CONSUMO DE MAT. B TOTAL'!$O$16)*2/28)*W25/(' CONSUMO DE MAT. B TOTAL'!$O$16) -> 53.34723978 | Y25: 1815.15724 | Z25: 4705.347047 | AA25: 6520.504286 | AC25: 6520.504286 | AD25: 1815.15724 | AE25: 4705.347047 | AH25: SUDESTE
B26: =AA26 -> 5827.206694 | C26: 14 | E26: GRECA DISTRIBUIDORA DE ASFALTOS LTDA. | F26: Avenida Parque Norte-2 - Bairro: Distrito Industrial I - CEP: 61939180 | G26: Ceará | H26: MARACANAU | I26: OURICURI - PE (ARARIPINA) | J26: =VLOOKUP('Transporte Cap 50-70'!G26,OFFSET('ANP ESTADO'!$A$1,MATCH('Transporte Cap 50-70'!$I$10,'ANP ESTADO'!B:B,0)+MATCH('Transporte Cap 50-70'!$H$13,OFFSET('ANP ESTADO'!$A$1,MATCH('Transporte Cap 50-70'!$I$10,'ANP ESTADO'!B:B,0),0,100000,1),0),2,100000,2),2,FALSE) -> 4.015116694 | K26: =VLOOKUP($H$13,OFFSET('ANP REGIÃO'!$A$9,MATCH('Transporte Cap 50-70'!$I$10,'ANP REGIÃO'!A:A,0),1,10000,10000),MATCH('Transporte Cap 50-70'!AH26,'ANP REGIÃO'!$B$8:$G$8,0),FALSE) -> 4.03046835 | L26: =IF(AND(J26="-",K26=""),"",IF(AND(J26<>0,K26=""),J26*1000,IF(AND(J26="-",K26<>0),K26*1000,IF(AND(J26<>0,K26<>0),J26*1000,"")))) -> 4015.116694 | M26: =ROUND(((L26/(1-$O$10-$O$11-$O$12))-L26),2) -> 1278.38 | N26: =L26+M26 -> 5293.496694 | O26: 678 | Q26: =ROUND((26.939+0.253*O26),2) -> 198.47 | S26: =Q26+R26 -> 198.47 | T26: =TRUNC(S26*($O$12/(1-$O$12)),2) -> 51.17 | U26: =TRUNC(IF($J$11="","",(($J$12-$J$11)/$J$11)*(S26+T26)),2) -> 284.07 | V26: =S26+T26+U26 -> 533.71 | W26: 0 | X26: =EVEN((' CONSUMO DE MAT. B TOTAL'!$O$16)*2/28)*W26/(' CONSUMO DE MAT. B TOTAL'!$O$16) -> 0 | Y26: =IF(AND(S26="",T26=""),"",V26+X26) -> 533.71 | Z26: =IF(OR(L26="",M26=""),"",L26+M26) -> 5293.496694 | AA26: =IF(OR(Y26="",Z26=""),"",Y26+Z26) -> 5827.206694 | AC26: =AA26 -> 5827.206694 | AD26: =Y26 -> 533.71 | AE26: =Z26 -> 5293.496694 | AH26: NORDESTE
B27: 5822.273159 | C27: 15 | E27: CBAA - ASFALTOS LTDA | F27: AVENIDA BANCO DO NORDESTE - Bairro: CIS - CEP: 44063640 | G27: Bahia | H27: FEIRA DE SANTANA | I27: OURICURI - PE (ARARIPINA) | J27: =VLOOKUP('Transporte Cap 50-70'!G27,OFFSET('ANP ESTADO'!$A$1,MATCH('Transporte Cap 50-70'!$I$10,'ANP ESTADO'!B:B,0)+MATCH('Transporte Cap 50-70'!$H$13,OFFSET('ANP ESTADO'!$A$1,MATCH('Transporte Cap 50-70'!$I$10,'ANP ESTADO'!B:B,0),0,100000,1),0),2,100000,2),2,FALSE) -> 4.048003159 | K27: =VLOOKUP($H$13,OFFSET('ANP REGIÃO'!$A$9,MATCH('Transporte Cap 50-70'!$I$10,'ANP REGIÃO'!A:A,0),1,10000,10000),MATCH('Transporte Cap 50-70'!AH27,'ANP REGIÃO'!$B$8:$G$8,0),FALSE) -> 4.03046835 | L27: 4048.003159 | M27: 1288.85 | N27: 5336.853159 | O27: 607 | Q27: 180.51 | S27: 180.51 | T27: 46.54 | U27: 258.37 | V27: 485.42 | W27: 0 | X27: =EVEN((' CONSUMO DE MAT. B TOTAL'!$O$16)*2/28)*W27/(' CONSUMO DE MAT. B TOTAL'!$O$16) -> 0 | Y27: 485.42 | Z27: 5336.853159 | AA27: 5822.273159 | AC27: 5822.273159 | AD27: 485.42 | AE27: 5336.853159 | AH27: NORDESTE
B28: 5872.075024 | C28: 16 | E28: BRASIL ASFALTOS LTDA. | F28: RODOVIA BA 522 - Bairro:DISTRITO INDUSTRIAL - CEP: 43813300 | G28: Bahia | H28: CANDEIAS | I28: OURICURI - PE (ARARIPINA) | J28: =VLOOKUP('Transporte Cap 50-70'!G28,OFFSET('ANP ESTADO'!$A$1,MATCH('Transporte Cap 50-70'!$I$10,'ANP ESTADO'!B:B,0)+MATCH('Transporte Cap 50-70'!$H$13,OFFSET('ANP ESTADO'!$A$1,MATCH('Transporte Cap 50-70'!$I$10,'ANP ESTADO'!B:B,0),0,100000,1),0),2,100000,2),2,FALSE) -> 4.048003159 | K28: =VLOOKUP($H$13,OFFSET('ANP REGIÃO'!$A$9,MATCH('Transporte Cap 50-70'!$I$10,'ANP REGIÃO'!A:A,0),1,10000,10000),MATCH('Transporte Cap 50-70'!AH28,'ANP REGIÃO'!$B$8:$G$8,0),FALSE) -> 4.03046835 | L28: 4048.003159 | M28: 1288.85 | N28: 5336.853159 | O28: 678 | Q28: 198.47 | S28: 198.47 | T28: 51.17 | U28: 284.07 | V28: 533.71 | W28: 21 | X28: =EVEN((' CONSUMO DE MAT. B TOTAL'!$O$16)*2/28)*W28/(' CONSUMO DE MAT. B TOTAL'!$O$16) -> 1.511865095 | Y28: 535.2218651 | Z28: 5336.853159 | AA28: 5872.075024 | AC28: 5872.075024 | AD28: 535.2218651 | AE28: 5336.853159 | AH28: NORDESTE
B29: 5827.206694 | C29: 17 | E29: STRATURA ASFALTOS LTDA. | F29: RUA OESTE UM - Bairro: Luzardo Viana - CEP: 61910000 | G29: Ceará | H29: MARACANAU | I29: OURICURI - PE (ARARIPINA) | J29: =VLOOKUP('Transporte Cap 50-70'!G29,OFFSET('ANP ESTADO'!$A$1,MATCH('Transporte Cap 50-70'!$I$10,'ANP ESTADO'!B:B,0)+MATCH('Transporte Cap 50-70'!$H$13,OFFSET('ANP ESTADO'!$A$1,MATCH('Transporte Cap 50-70'!$I$10,'ANP ESTADO'!B:B,0),0,100000,1),0),2,100000,2),2,FALSE) -> 4.015116694 | K29: =VLOOKUP($H$13,OFFSET('ANP REGIÃO'!$A$9,MATCH('Transporte Cap 50-70'!$I$10,'ANP REGIÃO'!A:A,0),1,10000,10000),MATCH('Transporte Cap 50-70'!AH29,'ANP REGIÃO'!$B$8:$G$8,0),FALSE) -> 4.03046835 | L29: 4015.116694 | M29: 1278.38 | N29: 5293.496694 | O29: 678 | Q29: 198.47 | S29: 198.47 | T29: 51.17 | U29: 284.07 | V29: 533.71 | W29: 0 | X29: =EVEN((' CONSUMO DE MAT. B TOTAL'!$O$16)*2/28)*W29/(' CONSUMO DE MAT. B TOTAL'!$O$16) -> 0 | Y29: 533.71 | Z29: 5293.496694 | AA29: 5827.206694 | AC29: 5827.206694 | AD29: 533.71 | AE29: 5293.496694 | AH29: NORDESTE
B30: 5827.206694 | C30: 18 | E30: BETUNEL INDUSTRIA E COMERCIO S/A | F30: VIA PRINCIPAL - Bairro: DISTRITO INDUSTRIAL III - CEP: 61931050 | G30: Ceará | H30: MARACANAU | I30: OURICURI - PE (ARARIPINA) | J30: =VLOOKUP('Transporte Cap 50-70'!G30,OFFSET('ANP ESTADO'!$A$1,MATCH('Transporte Cap 50-70'!$I$10,'ANP ESTADO'!B:B,0)+MATCH('Transporte Cap 50-70'!$H$13,OFFSET('ANP ESTADO'!$A$1,MATCH('Transporte Cap 50-70'!$I$10,'ANP ESTADO'!B:B,0),0,100000,1),0),2,100000,2),2,FALSE) -> 4.015116694 | K30: =VLOOKUP($H$13,OFFSET('ANP REGIÃO'!$A$9,MATCH('Transporte Cap 50-70'!$I$10,'ANP REGIÃO'!A:A,0),1,10000,10000),MATCH('Transporte Cap 50-70'!AH30,'ANP REGIÃO'!$B$8:$G$8,0),FALSE) -> 4.03046835 | L30: 4015.116694 | M30: 1278.38 | N30: 5293.496694 | O30: 678 | Q30: 198.47 | S30: 198.47 | T30: 51.17 | U30: 284.07 | V30: 533.71 | W30: 0 | X30: =EVEN((' CONSUMO DE MAT. B TOTAL'!$O$16)*2/28)*W30/(' CONSUMO DE MAT. B TOTAL'!$O$16) -> 0 | Y30: 533.71 | Z30: 5293.496694 | AA30: 5827.206694 | AC30: 5827.206694 | AD30: 533.71 | AE30: 5293.496694 | AH30: NORDESTE
B31: 6294.056481 | C31: 19 | E31: BETUNEL INDUSTRIA E COMERCIO S/A | F31: RUA VICTOR RODRIGUES RESENDE - Bairro: DISTRITO INDUSTRIAL - CEP: 3840170 | G31: Minas Gerais | H31: UBERLANDIA | I31: OURICURI - PE (ARARIPINA) | J31: =VLOOKUP('Transporte Cap 50-70'!G31,OFFSET('ANP ESTADO'!$A$1,MATCH('Transporte Cap 50-70'!$I$10,'ANP ESTADO'!B:B,0)+MATCH('Transporte Cap 50-70'!$H$13,OFFSET('ANP ESTADO'!$A$1,MATCH('Transporte Cap 50-70'!$I$10,'ANP ESTADO'!B:B,0),0,100000,1),0),2,100000,2),2,FALSE) -> 3.612001482 | K31: =VLOOKUP($H$13,OFFSET('ANP REGIÃO'!$A$9,MATCH('Transporte Cap 50-70'!$I$10,'ANP REGIÃO'!A:A,0),1,10000,10000),MATCH('Transporte Cap 50-70'!AH31,'ANP REGIÃO'!$B$8:$G$8,0),FALSE) -> 3.596409563 | L31: 3612.001482 | M31: 1150.03 | N31: 4762.031482 | O31: 2109 | Q31: 560.52 | S31: 560.52 | T31: 144.53 | U31: 802.31 | V31: 1507.36 | W31: 342.6 | X31: =EVEN((' CONSUMO DE MAT. B TOTAL'!$O$16)*2/28)*W31/(' CONSUMO DE MAT. B TOTAL'!$O$16) -> 24.66499912 | Y31: 1532.024999 | Z31: 4762.031482 | AA31: 6294.056481 | AC31: 6294.056481 | AD31: 1532.024999 | AE31: 4762.031482 | AH31: SUDESTE
B32: 6157.000456 | C32: 20 | E32: STRATURA ASFALTOS LTDA. | F32: Rodovia BR-381 Fernão Dias - Bairro: Chácara - CEP: 32670368 | G32: Minas Gerais | H32: BETIM | I32: OURICURI - PE (ARARIPINA) | J32: =VLOOKUP('Transporte Cap 50-70'!G32,OFFSET('ANP ESTADO'!$A$1,MATCH('Transporte Cap 50-70'!$I$10,'ANP ESTADO'!B:B,0)+MATCH('Transporte Cap 50-70'!$H$13,OFFSET('ANP ESTADO'!$A$1,MATCH('Transporte Cap 50-70'!$I$10,'ANP ESTADO'!B:B,0),0,100000,1),0),2,100000,2),2,FALSE) -> 3.612001482 | K32: =VLOOKUP($H$13,OFFSET('ANP REGIÃO'!$A$9,MATCH('Transporte Cap 50-70'!$I$10,'ANP REGIÃO'!A:A,0),1,10000,10000),MATCH('Transporte Cap 50-70'!AH32,'ANP REGIÃO'!$B$8:$G$8,0),FALSE) -> 3.596409563 | L32: 3612.001482 | M32: 1150.03 | N32: 4762.031482 | O32: 1894 | Q32: 506.12 | S32: 506.12 | T32: 130.5 | U32: 724.44 | V32: 1361.06 | W32: 471 | X32: =EVEN((' CONSUMO DE MAT. B TOTAL'!$O$16)*2/28)*W32/(' CONSUMO DE MAT. B TOTAL'!$O$16) -> 33.90897428 | Y32: 1394.968974 | Z32: 4762.031482 | AA32: 6157.000456 | AC32: 6157.000456 | AD32: 1394.968974 | AE32: 4762.031482 | AH32: SUDESTE
B33: 5808.176694 | C33: 21 | E33: EMAM - EMULSÕES E TRANSPORTES LTDA. | F33: RODOVIA CE 060, KM 11,5 - Bairro: - CEP: 61800000 | G33: Ceará | H33: PACATUBA | I33: OURICURI - PE (ARARIPINA) | J33: =VLOOKUP('Transporte Cap 50-70'!G33,OFFSET('ANP ESTADO'!$A$1,MATCH('Transporte Cap 50-70'!$I$10,'ANP ESTADO'!B:B,0)+MATCH('Transporte Cap 50-70'!$H$13,OFFSET('ANP ESTADO'!$A$1,MATCH('Transporte Cap 50-70'!$I$10,'ANP ESTADO'!B:B,0),0,100000,1),0),2,100000,2),2,FALSE) -> 4.015116694 | K33: =VLOOKUP($H$13,OFFSET('ANP REGIÃO'!$A$9,MATCH('Transporte Cap 50-70'!$I$10,'ANP REGIÃO'!A:A,0),1,10000,10000),MATCH('Transporte Cap 50-70'!AH33,'ANP REGIÃO'!$B$8:$G$8,0),FALSE) -> 4.03046835 | L33: 4015.116694 | M33: 1278.38 | N33: 5293.496694 | O33: 650 | Q33: 191.39 | S33: 191.39 | T33: 49.35 | U33: 273.94 | V33: 514.68 | W33: 0 | X33: =EVEN((' CONSUMO DE MAT. B TOTAL'!$O$16)*2/28)*W33/(' CONSUMO DE MAT. B TOTAL'!$O$16) -> 0 | Y33: 514.68 | Z33: 5293.496694 | AA33: 5808.176694 | AC33: 5808.176694 | AD33: 514.68 | AE33: 5293.496694 | AH33: NORDESTE
B34: 6452.794584 | C34: 22 | E34: Refinaria Henrique Lage (Revap) | F34: Rodovia Presidente Dutra, KM 143, S/N Bairro Jardim Diamante - São José dos Campos – SP CEP:12223-900 | G34: São Paulo | H34: SÃO JOSÉ DOS CAMPOS - SP | I34: OURICURI - PE (ARARIPINA) | J34: =VLOOKUP('Transporte Cap 50-70'!G34,OFFSET('ANP ESTADO'!$A$1,MATCH('Transporte Cap 50-70'!$I$10,'ANP ESTADO'!B:B,0)+MATCH('Transporte Cap 50-70'!$H$13,OFFSET('ANP ESTADO'!$A$1,MATCH('Transporte Cap 50-70'!$I$10,'ANP ESTADO'!B:B,0),0,100000,1),0),2,100000,2),2,FALSE) -> 3.569007047 | K34: =VLOOKUP($H$13,OFFSET('ANP REGIÃO'!$A$9,MATCH('Transporte Cap 50-70'!$I$10,'ANP REGIÃO'!A:A,0),1,10000,10000),MATCH('Transporte Cap 50-70'!AH34,'ANP REGIÃO'!$B$8:$G$8,0),FALSE) -> 3.596409563 | L34: 3569.007047 | M34: 1136.34 | N34: 4705.347047 | O34: 2362 | Q34: 624.53 | S34: 624.53 | T34: 161.04 | U34: 893.93 | V34: 1679.5 | W34: 943.8 | X34: =EVEN((' CONSUMO DE MAT. B TOTAL'!$O$16)*2/28)*W34/(' CONSUMO DE MAT. B TOTAL'!$O$16) -> 67.94753699 | Y34: 1747.447537 | Z34: 4705.347047 | AA34: 6452.794584 | AC34: 6452.794584 | AD34: 1747.447537 | AE34: 4705.347047 | AH34: SUDESTE
D45: Acre
D46: Alagoas
D47: Amapá
D48: Amazonas
D49: Bahia
D50: Ceará
D51: Distrito Federal
D52: Espírito Santo
D53: Goiás
D54: Maranhão
D55: Mato Grosso
D56: Mato Grosso do Sul
D57: Minas Gerais
D58: Pará
D59: Paraíba
D60: Paraná
D61: Pernambuco
D62: Piauí
D63: Rio de Janeiro
D64: Rio Grande do Norte
D65: Rio Grande do Sul
D66: Rondônia
D67: Roraima
D68: Santa Catarina
D69: São Paulo
D70: Sergipe
D71: Tocantins
D75: ASFALTOS DILUÍDOS CM-30
D76: ASFALTOS DILUÍDOS CM-70
D77: ASFALTOS DILUÍDOS CR-250
D78: ASFALTOS DILUÍDOS CR-70
D79: CAP MODIFICADO POR BORRACHA DE PNEU AB22
D80: CAP MODIFICADO POR BORRACHA DE PNEU AB8
D81: CAP MODIFICADO POR POLÍMERO 55-75-E
D82: CAP MODIFICADO POR POLÍMERO 60-85-E
D83: CAP MODIFICADO POR POLÍMERO 65-90-E
D84: CIMENTOS ASFÁLTICOS CAP-150-200
D85: CIMENTOS ASFÁLTICOS CAP-30-45
D86: CIMENTOS ASFÁLTICOS CAP-50-70
D87: CIMENTOS ASFÁLTICOS CAP-85-100
D88: EMULSÃO ASFÁLTICA CATIÔNICA DE RUPTURA CONTROLADA PARA SERVIÇO DE LAMA ASFÁLTICA
D89: EMULSÃO ASFÁLTICA DE RUPTURA LENTA CATIÔNICA PARA SERVIÇO DE LAMA ASFÁLTICA
D90: EMULSÃO ASFÁLTICA DE RUPTURA LENTA DE CARGA NEUTRA PARA SERVIÇO DE LAMA ASFÁLTICA
D91: EMULSÃO ASFÁLTICA PARA SERVIÇO DE IMPRIMAÇÃO
D92: EMULSÕES ASF. MOD. POR POLÍMEROS RC1C-E
D93: EMULSÕES ASF. MOD. POR POLÍMEROS RL1C-E
D94: EMULSÕES ASF. MOD. POR POLÍMEROS RM1C-E
D95: EMULSÕES ASF. MOD. POR POLÍMEROS RR1C-E
D96: EMULSÕES ASF. MOD. POR POLÍMEROS RR2C-E
D97: EMULSÕES ASFÁLTICAS RL-1C
D98: EMULSÕES ASFÁLTICAS RM-1C
D99: EMULSÕES ASFÁLTICAS RM-2C
D100: EMULSÕES ASFÁLTICAS RR-1C
D101: EMULSÕES ASFÁLTICAS RR-2C

Sheet Transporte RR-1C
C5: MEMÓRIA DE CÁLCULO
C10: REAJUSTE | F10: TIPOLOGIA DO MATERIAL | I10: EMULSÕES ASFÁLTICAS RR-1C | M10: IMPOSTOS | N10: COFINS | O10: 0.0065 | P10: 0.0065
G11: ÍNDICE DE PAVIMENTAÇÃO DNIT | H11: 2014-07-01 | I11: ÍNDICE INICIAL | J11: 270.237 | N11: PIS | O11: 0.03 | P11: 0.03 | T11: LEGENDA | AC11: As empresas tributadas pelo Lucro Presumido pagam 0,65% de PIS e 3% de COFINS
H12: 2024-09-01 | I12: ÍNDICE FINAL | J12: 577.753 | N12: ICMS | O12: 0.205 | P12: 0.205 | Q12: =1-(O12/1) -> 0.795 | R12: =1-(P12/1) -> 0.795 | S12: =1-(Q12/1) -> 0.205 | T12: ENTRADA DE DADOS | AC12: As empresas tributadas pelo Lucro Real pagam 1,65% de PIS e 7,60% de COFINS
G13: Data ANP | H13: 2024-09-01
C14: DATA-BASE | D14: PRODUTOS | E14: LOCALIDADES | J14: CUSTO ANP (R$/Kg) | L14: CUSTO ANP | M14: IMPOSTOS DO PRODUTO | N14: CUSTO DO PRODUTO COM IMPOSTOS | O14: DMT's | P14: DMT'S FLUVIAL | Q14: CUSTO DO TRANSPORTE RODOVIA PAVIMENTADA | R14: CUSTO DO TRANSPORTE FLUVIAL | S14: CUSTO DO TRANSPORTE TOTAL | T14: ICMS | U14: ATUALIZAÇÃO DO CUSTO DE TRANSPORTE | V14: CUSTO DO TRANSPORTE RODOVIA PAVIMENTADA COM IMPOSTOS E ATUALIZAÇÃO MONETÁRIA | W14: PEDÁGIO | Y14: TOTAL TRANSPORTE | Z14: AQUISIÇÃO DO PRODUTO | AA14: TOTAL GERAL ( TRANSP + AQUISIÇÃO) | AC14: 1 | AD14: 2 | AE14: 3
C15: =H12 -> 2024-09-01 | E15: REFINARIAS | F15: ENDEREÇO | G15: ESTADO | H15: CIDADE | I15: DESTINO | J15: ESTADO | K15: REGIÃO | L15: R$/t | M15: R$/t | N15: R$/t | O15: KM | P15: KM | Q15: R$/t | R15: R$/t | S15: R$/t | T15: R$/t | U15: R$/t | V15: R$/t | W15: CUSTO | X15: R$/t | Y15: R$/t | Z15: R$/t | AA15: R$/t | AC15: TOTAL GERAL ( TRANSP + AQUISIÇÃO) | AD15: TOTAL TRANSPORTE | AE15: AQUISIÇÃO DO PRODUTO
B16: =AA16 -> 5734.308397 | C16: 1 | D16: =I10 -> EMULSÕES ASFÁLTICAS RR-1C | E16: 'CENTRO OESTE ASFALTOS LTDA. | F16: SETOR DE INFLAMÁVEIS, S/N TRECHO 02 - LOTE 1.100 - GUARÁ - CEP:71225-000 | G16: Distrito Federal | H16: BRASÍLIA - DF | I16: OURICURI - PE (ARARIPINA) | J16: =VLOOKUP(G16,OFFSET('ANP ESTADO'!$A$1,MATCH($I$10,'ANP ESTADO'!B:B,0)+MATCH($H$13,OFFSET('ANP ESTADO'!$A$1,MATCH($I$10,'ANP ESTADO'!B:B,0),0,100000,1),0),2,100000,2),2,FALSE) -> - | K16: =VLOOKUP($H$13,OFFSET('ANP REGIÃO'!$A$9,MATCH('Transporte RR-1C'!$I$10,'ANP REGIÃO'!A:A,0),1,10000,10000),MATCH('Transporte RR-1C'!AH16,'ANP REGIÃO'!$B$8:$G$8,0),FALSE) -> 3.345478397 | L16: =IF(AND(J16="-",K16="-"),"",IF(AND(J16<>0,K16="-"),J16*1000,IF(AND(J16="-",K16<>0),K16*1000,IF(AND(J16<>0,K16<>0),J16*1000,"")))) -> 3345.478397 | M16: =ROUND(((L16/(1-$O$10-$O$11-$O$12))-L16),2) -> 1065.17 | N16: =L16+M16 -> 4410.648397 | O16: 1839 | Q16: =ROUND((26.939+0.253*O16),2) -> 492.21 | S16: =R16+Q16 -> 492.21 | T16: =TRUNC(S16*($O$12/(1-$O$12)),2) -> 126.92 | U16: =TRUNC(IF($J$11="","",(($J$12-$J$11)/$J$11)*(Q16+T16)),2) -> 704.53 | V16: =S16+T16+U16 -> 1323.66 | W16: 0 | X16: =EVEN(' CONSUMO DE MAT. B TOTAL'!$O$14*2/28)*W16/' CONSUMO DE MAT. B TOTAL'!$O$14 -> 0 | Y16: =IF(AND(Q16="",T16=""),"",V16+X16) -> 1323.66 | Z16: =IF(OR(L16="",M16=""),"",L16+M16) -> 4410.648397 | AA16: =IF(OR(Y16="",Z16=""),"",Y16+Z16) -> 5734.308397 | AC16: =AA16 -> 5734.308397 | AD16: =Y16 -> 1323.66 | AE16: =Z16 -> 4410.648397 | AH16: =IF(OR(G16=$D$63,G16=$D$64,G16=$D$66,G16=$D$72,G16=$D$56,G16=$D$52,G16=$D$48,G16=$D$61,G16=$D$51),"NORDESTE",IF(OR(G16=$D$47,G16=$D$49,G16=$D$50,G16=$D$60,G16=$D$68,G16=$D$69,G16=$D$73),"NORTE",IF(OR(G16=$D$53,G16=$D$55,G16=$D$57,G16=$D$58),"CENTRO-OESTE",IF(OR(G16=$D$71,G16=$D$65,G16=$D$59,G16=$D$54),"SUDESTE",IF(OR(G16=$D$70,G16=$D$62,G16=$D$67),"SUL",""))))) -> CENTRO-OESTE
B17: =AA17 -> 4325.349004 | C17: 2 | E17: GRECA DISTRIBUIDORA DE ASFALTOS LTDA. | F17: Avenida Parque Norte-2 - Bairro: Distrito Industrial I - CEP: 61939180 | G17: Ceará | H17: MARACANAU | I17: OURICURI - PE (ARARIPINA) | J17: =VLOOKUP(G17,OFFSET('ANP ESTADO'!$A$1,MATCH($I$10,'ANP ESTADO'!B:B,0)+MATCH($H$13,OFFSET('ANP ESTADO'!$A$1,MATCH($I$10,'ANP ESTADO'!B:B,0),0,100000,1),0),2,100000,2),2,FALSE) -> 2.875959004 | K17: =VLOOKUP($H$13,OFFSET('ANP REGIÃO'!$A$9,MATCH('Transporte RR-1C'!$I$10,'ANP REGIÃO'!A:A,0),1,10000,10000),MATCH('Transporte RR-1C'!AH17,'ANP REGIÃO'!$B$8:$G$8,0),FALSE) -> 3.065661291 | L17: =IF(AND(J17="-",K17="-"),"",IF(AND(J17<>0,K17="-"),J17*1000,IF(AND(J17="-",K17<>0),K17*1000,IF(AND(J17<>0,K17<>0),J17*1000,"")))) -> 2875.959004 | M17: =ROUND(((L17/(1-$O$10-$O$11-$O$12))-L17),2) -> 915.68 | N17: =L17+M17 -> 3791.639004 | O17: 678 | Q17: =ROUND((26.939+0.253*O17),2) -> 198.47 | S17: =R17+Q17 -> 198.47 | T17: =TRUNC(S17*($O$12/(1-$O$12)),2) -> 51.17 | U17: =TRUNC(IF($J$11="","",(($J$12-$J$11)/$J$11)*(Q17+T17)),2) -> 284.07 | V17: =S17+T17+U17 -> 533.71 | W17: 0 | X17: =EVEN(' CONSUMO DE MAT. B TOTAL'!$O$14*2/28)*W17/' CONSUMO DE MAT. B TOTAL'!$O$14 -> 0 | Y17: =IF(AND(Q17="",T17=""),"",V17+X17) -> 533.71 | Z17: =IF(OR(L17="",M17=""),"",L17+M17) -> 3791.639004 | AA17: =IF(OR(Y17="",Z17=""),"",Y17+Z17) -> 4325.349004 | AC17: =AA17 -> 4325.349004 | AD17: =Y17 -> 533.71 | AE17: =Z17 -> 3791.639004 | AH17: =IF(OR(G17=$D$63,G17=$D$64,G17=$D$66,G17=$D$72,G17=$D$56,G17=$D$52,G17=$D$48,G17=$D$61,G17=$D$51),"NORDESTE",IF(OR(G17=$D$47,G17=$D$49,G17=$D$50,G17=$D$60,G17=$D$68,G17=$D$69,G17=$D$73),"NORTE",IF(OR(G17=$D$53,G17=$D$55,G17=$D$57,G17=$D$58),"CENTRO-OESTE",IF(OR(G17=$D$71,G17=$D$65,G17=$D$59,G17=$D$54),"SUDESTE",IF(OR(G17=$D$70,G17=$D$62,G17=$D$67),"SUL",""))))) -> NORDESTE
B18: =AA18 -> 4527.161291 | C18: 3 | E18: CBAA - ASFALTOS LTDA | F18: AVENIDA BANCO DO NORDESTE - Bairro: CIS - CEP: 44063640 | G18: Bahia | H18: FEIRA DE SANTANA | I18: OURICURI - PE (ARARIPINA) | J18: =VLOOKUP(G18,OFFSET('ANP ESTADO'!$A$1,MATCH($I$10,'ANP ESTADO'!B:B,0)+MATCH($H$13,OFFSET('ANP ESTADO'!$A$1,MATCH($I$10,'ANP ESTADO'!B:B,0),0,100000,1),0),2,100000,2),2,FALSE) -> - | K18: =VLOOKUP($H$13,OFFSET('ANP REGIÃO'!$A$9,MATCH('Transporte RR-1C'!$I$10,'ANP REGIÃO'!A:A,0),1,10000,10000),MATCH('Transporte RR-1C'!AH18,'ANP REGIÃO'!$B$8:$G$8,0),FALSE) -> 3.065661291 | L18: =IF(AND(J18="-",K18="-"),"",IF(AND(J18<>0,K18="-"),J18*1000,IF(AND(J18="-",K18<>0),K18*1000,IF(AND(J18<>0,K18<>0),J18*1000,"")))) -> 3065.661291 | M18: =ROUND(((L18/(1-$O$10-$O$11-$O$12))-L18),2) -> 976.08 | N18: =L18+M18 -> 4041.741291 | O18: 607 | Q18: =ROUND((26.939+0.253*O18),2) -> 180.51 | S18: =R18+Q18 -> 180.51 | T18: =TRUNC(S18*($O$12/(1-$O$12)),2) -> 46.54 | U18: =TRUNC(IF($J$11="","",(($J$12-$J$11)/$J$11)*(Q18+T18)),2) -> 258.37 | V18: =S18+T18+U18 -> 485.42 | W18: 0 | X18: =EVEN(' CONSUMO DE MAT. B TOTAL'!$O$14*2/28)*W18/' CONSUMO DE MAT. B TOTAL'!$O$14 -> 0 | Y18: =IF(AND(Q18="",T18=""),"",V18+X18) -> 485.42 | Z18: =IF(OR(L18="",M18=""),"",L18+M18) -> 4041.741291 | AA18: =IF(OR(Y18="",Z18=""),"",Y18+Z18) -> 4527.161291 | AC18: =AA18 -> 4527.161291 | AD18: =Y18 -> 485.42 | AE18: =Z18 -> 4041.741291 | AH18: =IF(OR(G18=$D$63,G18=$D$64,G18=$D$66,G18=$D$72,G18=$D$56,G18=$D$52,G18=$D$48,G18=$D$61,G18=$D$51),"NORDESTE",IF(OR(G18=$D$47,G18=$D$49,G18=$D$50,G18=$D$60,G18=$D$68,G18=$D$69,G18=$D$73),"NORTE",IF(OR(G18=$D$53,G18=$D$55,G18=$D$57,G18=$D$58),"CENTRO-OESTE",IF(OR(G18=$D$71,G18=$D$65,G18=$D$59,G18=$D$54),"SUDESTE",IF(OR(G18=$D$70,G18=$D$62,G18=$D$67),"SUL",""))))) -> NORDESTE
B19: 4576.951291 | C19: 4 | E19: BRASIL ASFALTOS LTDA. | F19: RODOVIA BA 522 - Bairro:DISTRITO INDUSTRIAL - CEP: 43813300 | G19: Bahia | H19: CANDEIAS | I19: OURICURI - PE (ARARIPINA) | J19: =VLOOKUP(G19,OFFSET('ANP ESTADO'!$A$1,MATCH($I$10,'ANP ESTADO'!B:B,0)+MATCH($H$13,OFFSET('ANP ESTADO'!$A$1,MATCH($I$10,'ANP ESTADO'!B:B,0),0,100000,1),0),2,100000,2),2,FALSE) -> - | K19: =VLOOKUP($H$13,OFFSET('ANP REGIÃO'!$A$9,MATCH('Transporte RR-1C'!$I$10,'ANP REGIÃO'!A:A,0),1,10000,10000),MATCH('Transporte RR-1C'!AH19,'ANP REGIÃO'!$B$8:$G$8,0),FALSE) -> 3.065661291 | L19: 3065.661291 | M19: 976.08 | N19: 4041.741291 | O19: 678 | Q19: 198.47 | S19: 198.47 | T19: 51.17 | U19: 284.07 | V19: 533.71 | W19: 21 | X19: =EVEN(' CONSUMO DE MAT. B TOTAL'!$O$14*2/28)*W19/' CONSUMO DE MAT. B TOTAL'!$O$14 -> 1.5 | Y19: 535.21 | Z19: 4041.741291 | AA19: 4576.951291 | AC19: 4576.951291 | AD19: 535.21 | AE19: 4041.741291 | AH19: NORDESTE
B20: 4325.349004 | C20: 5 | E20: STRATURA ASFALTOS LTDA. | F20: RUA OESTE UM - Bairro: Luzardo Viana - CEP: 61910000 | G20: Ceará | H20: MARACANAU | I20: OURICURI - PE (ARARIPINA) | J20: =VLOOKUP(G20,OFFSET('ANP ESTADO'!$A$1,MATCH($I$10,'ANP ESTADO'!B:B,0)+MATCH($H$13,OFFSET('ANP ESTADO'!$A$1,MATCH($I$10,'ANP ESTADO'!B:B,0),0,100000,1),0),2,100000,2),2,FALSE) -> 2.875959004 | K20: =VLOOKUP($H$13,OFFSET('ANP REGIÃO'!$A$9,MATCH('Transporte RR-1C'!$I$10,'ANP REGIÃO'!A:A,0),1,10000,10000),MATCH('Transporte RR-1C'!AH20,'ANP REGIÃO'!$B$8:$G$8,0),FALSE) -> 3.065661291 | L20: 2875.959004 | M20: 915.68 | N20: 3791.639004 | O20: 678 | Q20: 198.47 | S20: 198.47 | T20: 51.17 | U20: 284.07 | V20: 533.71 | W20: 0 | X20: =EVEN(' CONSUMO DE MAT. B TOTAL'!$O$14*2/28)*W20/' CONSUMO DE MAT. B TOTAL'!$O$14 -> 0 | Y20: 533.71 | Z20: 3791.639004 | AA20: 4325.349004 | AC20: 4325.349004 | AD20: 533.71 | AE20: 3791.639004 | AH20: NORDESTE
B21: 4325.349004 | C21: 6 | E21: BETUNEL INDUSTRIA E COMERCIO S/A | F21: VIA PRINCIPAL - Bairro: DISTRITO INDUSTRIAL III - CEP: 61931050 | G21: Ceará | H21: MARACANAU | I21: OURICURI - PE (ARARIPINA) | J21: =VLOOKUP(G21,OFFSET('ANP ESTADO'!$A$1,MATCH($I$10,'ANP ESTADO'!B:B,0)+MATCH($H$13,OFFSET('ANP ESTADO'!$A$1,MATCH($I$10,'ANP ESTADO'!B:B,0),0,100000,1),0),2,100000,2),2,FALSE) -> 2.875959004 | K21: =VLOOKUP($H$13,OFFSET('ANP REGIÃO'!$A$9,MATCH('Transporte RR-1C'!$I$10,'ANP REGIÃO'!A:A,0),1,10000,10000),MATCH('Transporte RR-1C'!AH21,'ANP REGIÃO'!$B$8:$G$8,0),FALSE) -> 3.065661291 | L21: 2875.959004 | M21: 915.68 | N21: 3791.639004 | O21: 678 | Q21: 198.47 | S21: 198.47 | T21: 51.17 | U21: 284.07 | V21: 533.71 | W21: 0 | X21: =EVEN(' CONSUMO DE MAT. B TOTAL'!$O$14*2/28)*W21/' CONSUMO DE MAT. B TOTAL'!$O$14 -> 0 | Y21: 533.71 | Z21: 3791.639004 | AA21: 4325.349004 | AC21: 4325.349004 | AD21: 533.71 | AE21: 3791.639004 | AH21: NORDESTE
B22: 4912.465899 | C22: 7 | E22: STRATURA ASFALTOS LTDA. | F22: Rodovia BR-381 Fernão Dias - Bairro: Chácara - CEP: 32670368 | G22: Minas Gerais | H22: BETIM | I22: OURICURI - PE (ARARIPINA) | J22: =VLOOKUP(G22,OFFSET('ANP ESTADO'!$A$1,MATCH($I$10,'ANP ESTADO'!B:B,0)+MATCH($H$13,OFFSET('ANP ESTADO'!$A$1,MATCH($I$10,'ANP ESTADO'!B:B,0),0,100000,1),0),2,100000,2),2,FALSE) -> 2.668223041 | K22: =VLOOKUP($H$13,OFFSET('ANP REGIÃO'!$A$9,MATCH('Transporte RR-1C'!$I$10,'ANP REGIÃO'!A:A,0),1,10000,10000),MATCH('Transporte RR-1C'!AH22,'ANP REGIÃO'!$B$8:$G$8,0),FALSE) -> 2.715845632 | L22: 2668.223041 | M22: 849.54 | N22: 3517.763041 | O22: 1894 | Q22: 506.12 | S22: 506.12 | T22: 130.5 | U22: 724.44 | V22: 1361.06 | W22: 471 | X22: =EVEN(' CONSUMO DE MAT. B TOTAL'!$O$14*2/28)*W22/' CONSUMO DE MAT. B TOTAL'!$O$14 -> 33.64285714 | Y22: 1394.702857 | Z22: 3517.763041 | AA22: 4912.465899 | AC22: 4912.465899 | AD22: 1394.702857 | AE22: 3517.763041 | AH22: SUDESTE
B23: 4306.319004 | C23: 8 | E23: EMAM - EMULSÕES E TRANSPORTES LTDA. | F23: RODOVIA CE 060, KM 11,5 - Bairro: - CEP: 61800000 | G23: Ceará | H23: PACATUBA | I23: OURICURI - PE (ARARIPINA) | J23: =VLOOKUP(G23,OFFSET('ANP ESTADO'!$A$1,MATCH($I$10,'ANP ESTADO'!B:B,0)+MATCH($H$13,OFFSET('ANP ESTADO'!$A$1,MATCH($I$10,'ANP ESTADO'!B:B,0),0,100000,1),0),2,100000,2),2,FALSE) -> 2.875959004 | K23: =VLOOKUP($H$13,OFFSET('ANP REGIÃO'!$A$9,MATCH('Transporte RR-1C'!$I$10,'ANP REGIÃO'!A:A,0),1,10000,10000),MATCH('Transporte RR-1C'!AH23,'ANP REGIÃO'!$B$8:$G$8,0),FALSE) -> 3.065661291 | L23: 2875.959004 | M23: 915.68 | N23: 3791.639004 | O23: 650 | Q23: 191.39 | S23: 191.39 | T23: 49.35 | U23: 273.94 | V23: 514.68 | W23: 0 | X23: =EVEN(' CONSUMO DE MAT. B TOTAL'!$O$14*2/28)*W23/' CONSUMO DE MAT. B TOTAL'!$O$14 -> 0 | Y23: 514.68 | Z23: 3791.639004 | AA23: 4306.319004 | AC23: 4306.319004 | AD23: 514.68 | AE23: 3791.639004 | AH23: NORDESTE
B24: 5360.919043 | C24: 9 | E24: STRATURA ASFALTOS S/A | F24: AVENIDA PRESIDENTE WILSON, 08 - JUNDIAÍ - CEP:75115-100 | G24: Goiás | H24: ANÁPOLIS - GO | I24: OURICURI - PE (ARARIPINA) | J24: =VLOOKUP(G24,OFFSET('ANP ESTADO'!$A$1,MATCH($I$10,'ANP ESTADO'!B:B,0)+MATCH($H$13,OFFSET('ANP ESTADO'!$A$1,MATCH($I$10,'ANP ESTADO'!B:B,0),0,100000,1),0),2,100000,2),2,FALSE) -> 2.981937614 | K24: =VLOOKUP($H$13,OFFSET('ANP REGIÃO'!$A$9,MATCH('Transporte RR-1C'!$I$10,'ANP REGIÃO'!A:A,0),1,10000,10000),MATCH('Transporte RR-1C'!AH24,'ANP REGIÃO'!$B$8:$G$8,0),FALSE) -> 3.345478397 | L24: 2981.937614 | M24: =ROUND(((L24/(1-$O$10-$O$11-$O$12))-L24),2) -> 949.42 | N24: 3931.357614 | O24: 1990 | Q24: 530.41 | S24: 530.41 | T24: 136.77 | U24: =TRUNC(IF($J$11="","",(($J$12-$J$11)/$J$11)*(Q24+T24)),2) -> 759.21 | V24: 1426.39 | W24: 44.4 | X24: =EVEN(' CONSUMO DE MAT. B TOTAL'!$O$14*2/28)*W24/' CONSUMO DE MAT. B TOTAL'!$O$14 -> 3.171428571 | Y24: 1429.561429 | Z24: 3931.357614 | AA24: 5360.919043 | AC24: 5360.919043 | AD24: 1429.561429 | AE24: 3931.357614 | AH24: CENTRO-OESTE
B25: 5408.813328 | C25: 10 | E25: DISTRIBUIDORA BRASILEIRA DE ASFALTO SA - DISBRAL | F25: VIA PRIMARIA 8, S/N QD-18, MODS. 24/47 - DAIAG - CEP:74980-970 | G25: Goiás | H25: APARECIDA DE GOIANIA - GO | I25: OURICURI - PE (ARARIPINA) | J25: =VLOOKUP(G25,OFFSET('ANP ESTADO'!$A$1,MATCH($I$10,'ANP ESTADO'!B:B,0)+MATCH($H$13,OFFSET('ANP ESTADO'!$A$1,MATCH($I$10,'ANP ESTADO'!B:B,0),0,100000,1),0),2,100000,2),2,FALSE) -> 2.981937614 | K25: =VLOOKUP($H$13,OFFSET('ANP REGIÃO'!$A$9,MATCH('Transporte RR-1C'!$I$10,'ANP REGIÃO'!A:A,0),1,10000,10000),MATCH('Transporte RR-1C'!AH25,'ANP REGIÃO'!$B$8:$G$8,0),FALSE) -> 3.345478397 | L25: 2981.937614 | M25: 949.42 | N25: 3931.357614 | O25: 2057 | Q25: 547.36 | S25: 547.36 | T25: 141.14 | U25: 783.47 | V25: 1471.97 | W25: 76.8 | X25: =EVEN(' CONSUMO DE MAT. B TOTAL'!$O$14*2/28)*W25/' CONSUMO DE MAT. B TOTAL'!$O$14 -> 5.485714286 | Y25: 1477.455714 | Z25: 3931.357614 | AA25: 5408.813328 | AC25: 5408.813328 | AD25: 1477.455714 | AE25: 3931.357614 | AH25: CENTRO-OESTE
A26: 2403 | B26: 5408.529043 | C26: 11 | E26: INDÚSTRIA NACIONAL DE ASFALTOS LTDA. | F26: VIA PRIMEIRA E SEGUNDA 3, S/N.º LOTES 01 A 10 - DISTRITO AGROINDUSTRIAL - CEP:75370-000 | G26: Goiás | H26: GOIANIRA - GO | I26: OURICURI - PE (ARARIPINA) | J26: =VLOOKUP(G26,OFFSET('ANP ESTADO'!$A$1,MATCH($I$10,'ANP ESTADO'!B:B,0)+MATCH($H$13,OFFSET('ANP ESTADO'!$A$1,MATCH($I$10,'ANP ESTADO'!B:B,0),0,100000,1),0),2,100000,2),2,FALSE) -> 2.981937614 | K26: =VLOOKUP($H$13,OFFSET('ANP REGIÃO'!$A$9,MATCH('Transporte RR-1C'!$I$10,'ANP REGIÃO'!A:A,0),1,10000,10000),MATCH('Transporte RR-1C'!AH26,'ANP REGIÃO'!$B$8:$G$8,0),FALSE) -> 3.345478397 | L26: 2981.937614 | M26: 949.42 | N26: 3931.357614 | O26: 2060 | Q26: 548.12 | S26: 548.12 | T26: 141.33 | U26: 784.55 | V26: 1474 | W26: 44.4 | X26: =EVEN(' CONSUMO DE MAT. B TOTAL'!$O$14*2/28)*W26/' CONSUMO DE MAT. B TOTAL'!$O$14 -> 3.171428571 | Y26: 1477.171429 | Z26: 3931.357614 | AA26: 5408.529043 | AC26: 5408.529043 | AD26: 1477.171429 | AE26: 3931.357614 | AH26: CENTRO-OESTE
B27: 5049.59447 | C27: 12 | E27: STRATURA ASFALTOS S/A | F27: RUA VICTOR RODRIGUES RESENDE, 333 - DISTRITO IND. DE UBERLÂNDIA - CEP:38405-440 | G27: Minas Gerais | H27: UBERLANDIA - MG | I27: OURICURI - PE (ARARIPINA) | J27: =VLOOKUP(G27,OFFSET('ANP ESTADO'!$A$1,MATCH($I$10,'ANP ESTADO'!B:B,0)+MATCH($H$13,OFFSET('ANP ESTADO'!$A$1,MATCH($I$10,'ANP ESTADO'!B:B,0),0,100000,1),0),2,100000,2),2,FALSE) -> 2.668223041 | K27: =VLOOKUP($H$13,OFFSET('ANP REGIÃO'!$A$9,MATCH('Transporte RR-1C'!$I$10,'ANP REGIÃO'!A:A,0),1,10000,10000),MATCH('Transporte RR-1C'!AH27,'ANP REGIÃO'!$B$8:$G$8,0),FALSE) -> 2.715845632 | L27: 2668.223041 | M27: 849.54 | N27: 3517.763041 | O27: 2109 | Q27: 560.52 | S27: 560.52 | T27: 144.53 | U27: 802.31 | V27: 1507.36 | W27: 342.6 | X27: =EVEN(' CONSUMO DE MAT. B TOTAL'!$O$14*2/28)*W27/' CONSUMO DE MAT. B TOTAL'!$O$14 -> 24.47142857 | Y27: 1531.831429 | Z27: 3517.763041 | AA27: 5049.59447 | AC27: 5049.59447 | AD27: 1531.831429 | AE27: 3517.763041 | AH27: SUDESTE
B28: 5049.59447 | C28: 13 | E28: BETUNEL INDÚSTRIA E COMÉRCIO LTDA. | F28: RUA VICTOR RODRIGUES DE REZENDE, 185 - DISTRITO INDUSTRIAL - CEP:38402-334 | G28: Minas Gerais | H28: UBERLANDIA - MG | I28: OURICURI - PE (ARARIPINA) | J28: =VLOOKUP(G28,OFFSET('ANP ESTADO'!$A$1,MATCH($I$10,'ANP ESTADO'!B:B,0)+MATCH($H$13,OFFSET('ANP ESTADO'!$A$1,MATCH($I$10,'ANP ESTADO'!B:B,0),0,100000,1),0),2,100000,2),2,FALSE) -> 2.668223041 | K28: =VLOOKUP($H$13,OFFSET('ANP REGIÃO'!$A$9,MATCH('Transporte RR-1C'!$I$10,'ANP REGIÃO'!A:A,0),1,10000,10000),MATCH('Transporte RR-1C'!AH28,'ANP REGIÃO'!$B$8:$G$8,0),FALSE) -> 2.715845632 | L28: 2668.223041 | M28: 849.54 | N28: 3517.763041 | O28: 2109 | Q28: 560.52 | S28: 560.52 | T28: 144.53 | U28: 802.31 | V28: 1507.36 | W28: 342.6 | X28: =EVEN(' CONSUMO DE MAT. B TOTAL'!$O$14*2/28)*W28/' CONSUMO DE MAT. B TOTAL'!$O$14 -> 24.47142857 | Y28: 1531.831429 | Z28: 3517.763041 | AA28: 5049.59447 | AC28: 5049.59447 | AD28: 1531.831429 | AE28: 3517.763041 | AH28: SUDESTE
B29: 7006.627287 | C29: 14 | E29: ARAPETRO DISTRIBUIDORA DE PETRÓLEO LTDA. | F29: RUA 04, S/N° LOTES 17 A 20. - DISTRITO INDUSTRIAL 1/8 - CEP:78600-000 | G29: Mato grosso | H29: BARRA DO GARCAS - MT | I29: OURICURI - PE (ARARIPINA) | J29: =VLOOKUP(G29,OFFSET('ANP ESTADO'!$A$1,MATCH($I$10,'ANP ESTADO'!B:B,0)+MATCH($H$13,OFFSET('ANP ESTADO'!$A$1,MATCH($I$10,'ANP ESTADO'!B:B,0),0,100000,1),0),2,100000,2),2,FALSE) -> 4.024285858 | K29: =VLOOKUP($H$13,OFFSET('ANP REGIÃO'!$A$9,MATCH('Transporte RR-1C'!$I$10,'ANP REGIÃO'!A:A,0),1,10000,10000),MATCH('Transporte RR-1C'!AH29,'ANP REGIÃO'!$B$8:$G$8,0),FALSE) -> 3.345478397 | L29: 4024.285858 | M29: 1281.3 | N29: 5305.585858 | O29: 2389 | Q29: 631.36 | S29: 631.36 | T29: 162.8 | U29: 903.71 | V29: 1697.87 | W29: 44.4 | X29: =EVEN(' CONSUMO DE MAT. B TOTAL'!$O$14*2/28)*W29/' CONSUMO DE MAT. B TOTAL'!$O$14 -> 3.171428571 | Y29: 1701.041429 | Z29: 5305.585858 | AA29: 7006.627287 | AH29: CENTRO-OESTE
B30: 4924.735899 | C30: 15 | E30: DISTRIBUIDORA BRASILEIRA DE ASFALTO SA - DISBRAL | F30: SÃO JUDAS TADEU, 288 - DISTRITO INDUSTRIAL - CEP:32450-000 | G30: Minas Gerais | H30: SARZEDO - MG | I30: OURICURI - PE (ARARIPINA) | J30: =VLOOKUP(G30,OFFSET('ANP ESTADO'!$A$1,MATCH($I$10,'ANP ESTADO'!B:B,0)+MATCH($H$13,OFFSET('ANP ESTADO'!$A$1,MATCH($I$10,'ANP ESTADO'!B:B,0),0,100000,1),0),2,100000,2),2,FALSE) -> 2.668223041 | K30: =VLOOKUP($H$13,OFFSET('ANP REGIÃO'!$A$9,MATCH('Transporte RR-1C'!$I$10,'ANP REGIÃO'!A:A,0),1,10000,10000),MATCH('Transporte RR-1C'!AH30,'ANP REGIÃO'!$B$8:$G$8,0),FALSE) -> 2.715845632 | L30: 2668.223041 | M30: 849.54 | N30: 3517.763041 | O30: 1912 | Q30: 510.68 | S30: 510.68 | T30: 131.68 | U30: 730.97 | V30: 1373.33 | W30: 471 | X30: =EVEN(' CONSUMO DE MAT. B TOTAL'!$O$14*2/28)*W30/' CONSUMO DE MAT. B TOTAL'!$O$14 -> 33.64285714 | Y30: 1406.972857 | Z30: 3517.763041 | AA30: 4924.735899 | AH30: SUDESTE
B31: 5569.037437 | C31: 16 | E31: 'NTA - NOVAS TÉCNICAS DE ASFALTOS S/A | F31: RUA SOFIA ATAURI FADIN, 150 SALA A - B. SANTA TEREZINHA - CEP:13140-000 | G31: São Paulo | H31: PAULINIA - SP | I31: OURICURI - PE (ARARIPINA) | J31: =VLOOKUP(G31,OFFSET('ANP ESTADO'!$A$1,MATCH($I$10,'ANP ESTADO'!B:B,0)+MATCH($H$13,OFFSET('ANP ESTADO'!$A$1,MATCH($I$10,'ANP ESTADO'!B:B,0),0,100000,1),0),2,100000,2),2,FALSE) -> 2.847638866 | K31: =VLOOKUP($H$13,OFFSET('ANP REGIÃO'!$A$9,MATCH('Transporte RR-1C'!$I$10,'ANP REGIÃO'!A:A,0),1,10000,10000),MATCH('Transporte RR-1C'!AH31,'ANP REGIÃO'!$B$8:$G$8,0),FALSE) -> 2.715845632 | L31: 2847.638866 | M31: 906.66 | N31: 3754.298866 | O31: 2483 | Q31: 655.14 | S31: 655.14 | T31: 168.93 | U31: 937.74 | V31: 1761.81 | W31: 741 | X31: =EVEN(' CONSUMO DE MAT. B TOTAL'!$O$14*2/28)*W31/' CONSUMO DE MAT. B TOTAL'!$O$14 -> 52.92857143 | Y31: 1814.738571 | Z31: 3754.298866 | AA31: 5569.037437 | AC31: =AA31 -> 5569.037437 | AD31: =Y31 -> 1814.738571 | AE31: =Z31 -> 3754.298866 | AH31: SUDESTE
B32: 5540.091723 | C32: 17 | E32: COMPANHIA BRASILEIRA DE ASFALTOS DA AMAZÔNIA - IMPORTAÇÃO E EXPORTAÇÃO | F32: Avenida Doutor Olindo Dártora 2451, Galpão 02, Morro Grande - CEP:07726-555 | G32: São Paulo | H32: CAIEIRAS - SP | I32: OURICURI - PE (ARARIPINA) | J32: =VLOOKUP(G32,OFFSET('ANP ESTADO'!$A$1,MATCH($I$10,'ANP ESTADO'!B:B,0)+MATCH($H$13,OFFSET('ANP ESTADO'!$A$1,MATCH($I$10,'ANP ESTADO'!B:B,0),0,100000,1),0),2,100000,2),2,FALSE) -> 2.847638866 | K32: =VLOOKUP($H$13,OFFSET('ANP REGIÃO'!$A$9,MATCH('Transporte RR-1C'!$I$10,'ANP REGIÃO'!A:A,0),1,10000,10000),MATCH('Transporte RR-1C'!AH32,'ANP REGIÃO'!$B$8:$G$8,0),FALSE) -> 2.715845632 | L32: 2847.638866 | M32: 906.66 | N32: 3754.298866 | O32: 2456 | Q32: 648.31 | S32: 648.31 | T32: 167.17 | U32: 927.97 | V32: 1743.45 | W32: 592.8 | X32: =EVEN(' CONSUMO DE MAT. B TOTAL'!$O$14*2/28)*W32/' CONSUMO DE MAT. B TOTAL'!$O$14 -> 42.34285714 | Y32: 1785.792857 | Z32: 3754.298866 | AA32: 5540.091723 | AH32: SUDESTE
B33: 5813.092835 | C33: 18 | E33: BETUNEL INDÚSTRIA E COMÉRCIO LTDA. | F33: R 16 , 82, Vila Nova Campo Grande - CEP:79.103-834 | G33: Mato Grosso do Sul | H33: CAMPO GRANDE - MS | I33: OURICURI - PE (ARARIPINA) | J33: =VLOOKUP(G33,OFFSET('ANP ESTADO'!$A$1,MATCH($I$10,'ANP ESTADO'!B:B,0)+MATCH($H$13,OFFSET('ANP ESTADO'!$A$1,MATCH($I$10,'ANP ESTADO'!B:B,0),0,100000,1),0),2,100000,2),2,FALSE) -> 2.850491406 | K33: =VLOOKUP($H$13,OFFSET('ANP REGIÃO'!$A$9,MATCH('Transporte RR-1C'!$I$10,'ANP REGIÃO'!A:A,0),1,10000,10000),MATCH('Transporte RR-1C'!AH33,'ANP REGIÃO'!$B$8:$G$8,0),FALSE) -> 3.345478397 | L33: 2850.491406 | M33: =ROUND(((L33/(1-$O$10-$O$11-$O$12))-L33),2) -> 907.57 | N33: 3758.061406 | O33: 2878 | Q33: 755.07 | S33: 755.07 | T33: 194.7 | U33: 1080.79 | V33: 2030.56 | W33: 342.6 | X33: =EVEN(' CONSUMO DE MAT. B TOTAL'!$O$14*2/28)*W33/' CONSUMO DE MAT. B TOTAL'!$O$14 -> 24.47142857 | Y33: 2055.031429 | Z33: 3758.061406 | AA33: 5813.092835 | AH33: CENTRO-OESTE
B34: 7361.40443 | C34: 19 | E34: CENTRO OESTE ASFALTOS LTDA. | F34: RUA N, S/N.º LOTES 39/43 E LOTES 129/133 - DISTRITO INDUSTRIAL - CEP:78098-400 | G34: Mato Grosso | H34: CUIABA - MT | I34: OURICURI - PE (ARARIPINA) | J34: =VLOOKUP(G34,OFFSET('ANP ESTADO'!$A$1,MATCH($I$10,'ANP ESTADO'!B:B,0)+MATCH($H$13,OFFSET('ANP ESTADO'!$A$1,MATCH($I$10,'ANP ESTADO'!B:B,0),0,100000,1),0),2,100000,2),2,FALSE) -> 4.024285858 | K34: =VLOOKUP($H$13,OFFSET('ANP REGIÃO'!$A$9,MATCH('Transporte RR-1C'!$I$10,'ANP REGIÃO'!A:A,0),1,10000,10000),MATCH('Transporte RR-1C'!AH34,'ANP REGIÃO'!$B$8:$G$8,0),FALSE) -> 3.345478397 | L34: 4024.285858 | M34: 1281.3 | N34: 5305.585858 | O34: 2907 | Q34: 762.41 | S34: 762.41 | T34: 196.59 | U34: 1091.29 | V34: 2050.29 | W34: 77.4 | X34: =EVEN(' CONSUMO DE MAT. B TOTAL'!$O$14*2/28)*W34/' CONSUMO DE MAT. B TOTAL'!$O$14 -> 5.528571429 | Y34: 2055.818571 | Z34: 5305.585858 | AA34: 7361.40443 | AH34: CENTRO-OESTE
B35: 7361.40443 | C35: 20 | E35: BETUNEL INDÚSTRIA E COMÉRCIO LTDA. | F35: RUA N ESQUINA COM RUA X, S/N QD. IND. 7 L 01/08 - DIST. IND. - CEP:78015-285 | G35: Mato Grosso | H35: CUIABA - MT | I35: OURICURI - PE (ARARIPINA) | J35: =VLOOKUP(G35,OFFSET('ANP ESTADO'!$A$1,MATCH($I$10,'ANP ESTADO'!B:B,0)+MATCH($H$13,OFFSET('ANP ESTADO'!$A$1,MATCH($I$10,'ANP ESTADO'!B:B,0),0,100000,1),0),2,100000,2),2,FALSE) -> 4.024285858 | K35: =VLOOKUP($H$13,OFFSET('ANP REGIÃO'!$A$9,MATCH('Transporte RR-1C'!$I$10,'ANP REGIÃO'!A:A,0),1,10000,10000),MATCH('Transporte RR-1C'!AH35,'ANP REGIÃO'!$B$8:$G$8,0),FALSE) -> 3.345478397 | L35: 4024.285858 | M35: 1281.3 | N35: 5305.585858 | O35: 2907 | Q35: 762.41 | S35: 762.41 | T35: 196.59 | U35: 1091.29 | V35: 2050.29 | W35: 77.4 | X35: =EVEN(' CONSUMO DE MAT. B TOTAL'!$O$14*2/28)*W35/' CONSUMO DE MAT. B TOTAL'!$O$14 -> 5.528571429 | Y35: 2055.818571 | Z35: 5305.585858 | AA35: 7361.40443 | AH35: CENTRO-OESTE
B36: 5552.828569 | C36: 21 | E36: CASA DO ASFALTO DISTRIBUIDORA, INDÚSTRIA E COMÉRCIO DE ASFALTO LTDA. | F36: BR 376, PARQUE INDUSTRIAL, S/N LOTE 6/7/7-A-3-1 - GL.PATR.MARIALVA - CEP:86990-000 | G36: Paraná | H36: MARIALVA - PR | I36: OURICURI - PE (ARARIPINA) | J36: =VLOOKUP(G36,OFFSET('ANP ESTADO'!$A$1,MATCH($I$10,'ANP ESTADO'!B:B,0)+MATCH($H$13,OFFSET('ANP ESTADO'!$A$1,MATCH($I$10,'ANP ESTADO'!B:B,0),0,100000,1),0),2,100000,2),2,FALSE) -> 2.651442855 | K36: =VLOOKUP($H$13,OFFSET('ANP REGIÃO'!$A$9,MATCH('Transporte RR-1C'!$I$10,'ANP REGIÃO'!A:A,0),1,10000,10000),MATCH('Transporte RR-1C'!AH36,'ANP REGIÃO'!$B$8:$G$8,0),FALSE) -> 2.654062641 | L36: 2651.442855 | M36: 844.2 | N36: 3495.642855 | O36: 2837 | Q36: 744.7 | S36: 744.7 | T36: 192.02 | U36: 1065.93 | V36: 2002.65 | W36: 763.5 | X36: =EVEN(' CONSUMO DE MAT. B TOTAL'!$O$14*2/28)*W36/' CONSUMO DE MAT. B TOTAL'!$O$14 -> 54.53571429 | Y36: 2057.185714 | Z36: 3495.642855 | AA36: 5552.828569 | AC36: =AA36 -> 5552.828569 | AD36: =Y36 -> 2057.185714 | AE36: =Z36 -> 3495.642855 | AH36: SUL
B37: 5592.855712 | C37: 22 | E37: PETROBRAS DISTRIBUIDORA S.A. | F37: RUA MAQUINISTA ELEODORO JACINTO, 100 - OFICINAS - CEP:84045-170 | G37: Paraná | H37: PONTA GROSSA - PR | I37: OURICURI - PE (ARARIPINA) | J37: =VLOOKUP(G37,OFFSET('ANP ESTADO'!$A$1,MATCH($I$10,'ANP ESTADO'!B:B,0)+MATCH($H$13,OFFSET('ANP ESTADO'!$A$1,MATCH($I$10,'ANP ESTADO'!B:B,0),0,100000,1),0),2,100000,2),2,FALSE) -> 2.651442855 | K37: =VLOOKUP($H$13,OFFSET('ANP REGIÃO'!$A$9,MATCH('Transporte RR-1C'!$I$10,'ANP REGIÃO'!A:A,0),1,10000,10000),MATCH('Transporte RR-1C'!AH37,'ANP REGIÃO'!$B$8:$G$8,0),FALSE) -> 2.654062641 | L37: 2651.442855 | M37: 844.2 | N37: 3495.642855 | O37: 2890 | Q37: 758.11 | S37: 758.11 | T37: 195.48 | U37: 1085.13 | V37: 2038.72 | W37: 818.9 | X37: =EVEN(' CONSUMO DE MAT. B TOTAL'!$O$14*2/28)*W37/' CONSUMO DE MAT. B TOTAL'!$O$14 -> 58.49285714 | Y37: 2097.212857 | Z37: 3495.642855 | AA37: 5592.855712 | AC37: =AA37 -> 5592.855712 | AD37: =Y37 -> 2097.212857 | AE37: =Z37 -> 3495.642855 | AH37: SUL
L42: =(#REF!)/(1+J9) ->  | M42: =(#REF!) -> 
D47: Acre
D48: Alagoas
D49: Amapá
D50: Amazonas
D51: Bahia
D52: Ceará
D53: Distrito Federal
D54: Espírito Santo
D55: Goiás
D56: Maranhão
D57: Mato Grosso
D58: Mato Grosso do Sul
D59: Minas Gerais
D60: Pará
D61: Paraíba
D62: Paraná
D63: Pernambuco
D64: Piauí
D65: Rio de Janeiro
D66: Rio Grande do Norte
D67: Rio Grande do Sul
D68: Rondônia
D69: Roraima
D70: Santa Catarina
D71: São Paulo
D72: Sergipe
D73: Tocantins
D77: ASFALTOS DILUÍDOS CM-30
D78: ASFALTOS DILUÍDOS CM-70
D79: ASFALTOS DILUÍDOS CR-250
D80: ASFALTOS DILUÍDOS CR-70
D81: CAP MODIFICADO POR BORRACHA DE PNEU AB22
D82: CAP MODIFICADO POR BORRACHA DE PNEU AB8
D83: CAP MODIFICADO POR POLÍMERO 55-75-E
D84: CAP MODIFICADO POR POLÍMERO 60-85-E
D85: CAP MODIFICADO POR POLÍMERO 65-90-E
D86: CIMENTOS ASFÁLTICOS CAP-150-200
D87: CIMENTOS ASFÁLTICOS CAP-30-45
D88: CIMENTOS ASFÁLTICOS CAP-50-70
D89: CIMENTOS ASFÁLTICOS CAP-85-100
D90: EMULSÃO ASFÁLTICA CATIÔNICA DE RUPTURA CONTROLADA PARA SERVIÇO DE LAMA ASFÁLTICA
D91: EMULSÃO ASFÁLTICA DE RUPTURA LENTA CATIÔNICA PARA SERVIÇO DE LAMA ASFÁLTICA
D92: EMULSÃO ASFÁLTICA DE RUPTURA LENTA DE CARGA NEUTRA PARA SERVIÇO DE LAMA ASFÁLTICA
D93: EMULSÃO ASFÁLTICA PARA SERVIÇO DE IMPRIMAÇÃO
D94: EMULSÕES ASF. MOD. POR POLÍMEROS RC1C-E
D95: EMULSÕES ASF. MOD. POR POLÍMEROS RL1C-E
D96: EMULSÕES ASF. MOD. POR POLÍMEROS RM1C-E
D97: EMULSÕES ASF. MOD. POR POLÍMEROS RR1C-E
D98: EMULSÕES ASF. MOD. POR POLÍMEROS RR2C-E
D99: EMULSÕES ASFÁLTICAS RL-1C
D100: EMULSÕES ASFÁLTICAS RM-1C
D101: EMULSÕES ASFÁLTICAS RM-2C
D102: EMULSÕES ASFÁLTICAS RR-1C
D103: EMULSÕES ASFÁLTICAS RR-2C

Sheet RESUMO_Transp
B8: REAJUSTE | E8: TIPOLOGIA DO MATERIAL | G8: LIGANTE BETUMINOSO | K8: IMPOSTOS | L8: COFINS | M8: 0.0065
C9: DATA INICIAL | F9: 2014-07-01 | G9: ÍNDICE INICIAL | H9: 270.237 | L9: PIS | M9: 0.03 | P9: LEGENDA
C10: DATA FINAL | F10: 2024-09-01 | G10: ÍNDICE FINAL | H10: 577.753 | L10: ICMS | M10: 0.205 | P10: ENTRADA DE DADOS
B12: DATA-BASE | C12: PRODUTOS | D12: LOCALIDADES | H12: CUSTO ANP (R$/Kg) | J12: CUSTO ANP | K12: IMPOSTOS DO PRODUTO | L12: CUSTO DO PRODUTO COM IMPOSTOS | M12: DMT's | N12: DMT's FLUVIAL | O12: CUSTO DO TRANSPORTE TOTAL | P12: ICMS | Q12: ATUALIZAÇÃO DO CUSTO DE TRANSPORTE | R12: CUSTO DO TRANSPORTE RODOVIA PAVIMENTADA COM IMPOSTOS E ATUALIZAÇÃO MONETÁRIA | S12: PEDÁGIO | U12: TOTAL TRANSPORTE | V12: TOTAL PRODUTO | W12: TOTAL GERAL
B13: 2024-09-01 | D13: REFINARIAS | E13: ENDEREÇO | F13: ORIGEM REFINARIAS / DISTRIBUIDORAS | G13: DESTINO | H13: ESTADO | I13: REGIÃO | J13: R$/t | K13: R$/t | L13: R$/t | M13: KM | N13: KM | O13: R$/t | P13: R$/t | Q13: R$/t | R13: R$/t | S13: CUSTO POR EIXO | T13: R$/t | U13: R$/t | V13: R$/t | W13: R$/t
B14: 1 | C14: CAP 50/70 | D14: Refinaria Abreu e Lima | E14: Rodovia PE 60, Km 10 - Ipojuca - PE CEP:55590-000 | F14: PACATUBA | G14: OURICURI - PE (ARARIPINA) | H14: 4.015116694 | I14: 4.03046835 | J14: 4015.116694 | K14: 1278.38 | L14: 5293.496694 | M14: 650 | N14: 0 | O14: 191.39 | P14: 49.35 | Q14: 273.94 | R14: 514.68 | S14: 0 | T14: 0 | U14: 514.68 | V14: 5293.496694 | W14: 5808.176694
B15: 2 | D15: Refinaria Potiguar Clara Camarão | E15: Rodovia RN 221, KM 25 - Guamaré - RN CEP:59598-000 | F15: FEIRA DE SANTANA | G15: OURICURI - PE (ARARIPINA) | H15: 4.048003159 | I15: 4.03046835 | J15: 4048.003159 | K15: 1288.85 | L15: 5336.853159 | M15: 607 | N15: 0 | O15: 180.51 | P15: 46.54 | Q15: 258.37 | R15: 485.42 | S15: 0 | T15: 0 | U15: 485.42 | V15: 5336.853159 | W15: 5822.273159
B16: 3 | D16: Complexo Petroquímico do Rio de Janeiro (Comperj) | E16: Rodovia Estadual RJ-116 - Km 5,2 - Acesso A-1, s/n, Complemento Sambaetiba - Zona Urbana do 4º Distrito de Itaboraí - RJ CEP:24841-203 | F16: MARACANAU | G16: OURICURI - PE (ARARIPINA) | H16: 4.015116694 | I16: 4.03046835 | J16: 4015.116694 | K16: 1278.38 | L16: 5293.496694 | M16: 678 | N16: 0 | O16: 198.47 | P16: 51.17 | Q16: 284.07 | R16: 533.71 | S16: 0 | T16: 0 | U16: 533.71 | V16: 5293.496694 | W16: 5827.206694
B17: 4 | F17: MARACANAU | G17: OURICURI - PE (ARARIPINA) | H17: 4.015116694 | I17: 4.03046835 | J17: 4015.116694 | K17: 1278.38 | L17: 5293.496694 | M17: 678 | N17: 0 | O17: 198.47 | P17: 51.17 | Q17: 284.07 | R17: 533.71 | S17: 0 | T17: 0 | U17: 533.71 | V17: 5293.496694 | W17: 5827.206694
B18: 5 | F18: MARACANAU | G18: OURICURI - PE (ARARIPINA) | H18: 4.015116694 | I18: 4.03046835 | J18: 4015.116694 | K18: 1278.38 | L18: 5293.496694 | M18: 678 | N18: 0 | O18: 198.47 | P18: 51.17 | Q18: 284.07 | R18: 533.71 | S18: 0 | T18: 0 | U18: 533.71 | V18: 5293.496694 | W18: 5827.206694
B19: 6 | F19: FORTALEZA - CE | G19: OURICURI - PE (ARARIPINA) | H19: 4.015116694 | I19: 4.03046835 | J19: 4015.116694 | K19: 1278.38 | L19: 5293.496694 | M19: 679 | N19: 0 | O19: 198.73 | P19: 51.24 | Q19: 284.45 | R19: 534.42 | S19: 0 | T19: 0 | U19: 534.42 | V19: 5293.496694 | W19: 5827.916694
B25: 1 | C25: CAP MODIF. C/ POLÍMERO 60/85 | D25: Refinaria Abreu e Lima | E25: Rodovia PE 60, Km 10 - Ipojuca - PE CEP:55590-000 | G25: Palmas - TO | H25: 2.261894948 | I25: 2.353413905 | J25: 2261.894948 | K25: 393.19 | L25: 2655.084948 | M25: 1181 | N25: 1181 | O25: 325.73 | P25: 44.41 | Q25: 202.55 | S25: 102 | T25: 102 | V25: 2655.084948 | W25: 3329.774948
B26: 2 | D26: Refinaria Potiguar Clara Camarão | E26: Rodovia RN 221, KM 25 - Guamaré - RN CEP:59598-000 | F26: UBERLANDIA - MG | G26: Palmas - TO | H26: 2.261894948 | I26: 2.353413905 | J26: 2261.894948 | K26: 393.19 | L26: 2655.084948 | M26: 1182 | N26: 1182 | O26: 325.98 | P26: 44.45 | Q26: 202.71 | S26: 102 | T26: 102 | V26: 2655.084948 | W26: 3330.224948
B27: 3 | D27: Complexo Petroquímico do Rio de Janeiro (Comperj) | E27: Rodovia Estadual RJ-116 - Km 5,2 - Acesso A-1, s/n, Complemento Sambaetiba - Zona Urbana do 4º Distrito de Itaboraí - RJ CEP:24841-203 | F27: GOIANIRA - GO | G27: Palmas - TO | I27: 2.555206955 | J27: 2555.206955 | K27: 444.18 | L27: 2999.386955 | M27: 814 | N27: 814 | O27: 232.88 | P27: 31.75 | Q27: 144.81 | S27: 0 | T27: 0 | V27: 2999.386955 | W27: 3408.826955
B28: 4 | F28: BRASÍLIA - DF | G28: Palmas - TO | I28: 2.555206955 | J28: 2555.206955 | K28: 444.18 | L28: 2999.386955 | M28: 822 | N28: 822 | O28: 234.9 | P28: 32.03 | Q28: 146.07 | S28: 0 | T28: 0 | V28: 2999.386955 | W28: 3412.386955
B29: 5 | F29: APARECIDA DE GOIANIA - GO | G29: Palmas - TO | I29: 2.555206955 | J29: 2555.206955 | K29: 444.18 | L29: 2999.386955 | M29: 842 | N29: 842 | O29: 239.96 | P29: 32.72 | Q29: 149.22 | S29: 0 | T29: 0 | V29: 2999.386955 | W29: 3421.286955
B30: 6 | F30: ANÁPOLIS - GO | G30: Palmas - TO | I30: 2.555206955 | J30: 2555.206955 | K30: 444.18 | L30: 2999.386955 | M30: 950 | N30: 950 | O30: 267.28 | P30: 36.44 | Q30: 166.21 | S30: 0 | T30: 0 | V30: 2999.386955 | W30: 3469.316955
B33: 1 | C33: RR1-C | D33: Refinaria Abreu e Lima | E33: Rodovia PE 60, Km 10 - Ipojuca - PE CEP:55590-000 | F33: PACATUBA | G33: OURICURI - PE (ARARIPINA) | H33: 2.875959004 | I33: 3.065661291 | J33: 2875.959004 | K33: 915.68 | L33: 3791.639004 | M33: 650 | N33: 0 | O33: 191.39 | P33: 49.35 | Q33: 273.94 | R33: 514.68 | S33: 0 | T33: 0 | U33: 514.68 | V33: 3791.639004 | W33: 4306.319004
B34: 2 | D34: Refinaria Potiguar Clara Camarão | E34: Rodovia RN 221, KM 25 - Guamaré - RN CEP:59598-000 | F34: MARACANAU | G34: OURICURI - PE (ARARIPINA) | H34: 2.875959004 | I34: 3.065661291 | J34: 2875.959004 | K34: 915.68 | L34: 3791.639004 | M34: 678 | N34: 0 | O34: 198.47 | P34: 51.17 | Q34: 284.07 | R34: 533.71 | S34: 0 | T34: 0 | U34: 514.68 | V34: 3791.639004 | W34: 4325.349004
B35: 3 | D35: Complexo Petroquímico do Rio de Janeiro (Comperj) | E35: Rodovia Estadual RJ-116 - Km 5,2 - Acesso A-1, s/n, Complemento Sambaetiba - Zona Urbana do 4º Distrito de Itaboraí - RJ CEP:24841-203 | F35: MARACANAU | G35: OURICURI - PE (ARARIPINA) | H35: 2.875959004 | I35: 3.065661291 | J35: 2875.959004 | K35: 915.68 | L35: 3791.639004 | M35: 678 | N35: 0 | O35: 198.47 | P35: 51.17 | Q35: 284.07 | R35: 533.71 | S35: 0 | T35: 0 | U35: 514.68 | V35: 3791.639004 | W35: 4325.349004
B36: 4 | D36: Refinaria Abreu e Lima | E36: Rodovia PE 60, Km 10 - Ipojuca - PE CEP:55590-000 | F36: MARACANAU | G36: OURICURI - PE (ARARIPINA) | H36: 2.875959004 | I36: 3.065661291 | J36: 2875.959004 | K36: 915.68 | L36: 3791.639004 | M36: 678 | N36: 0 | O36: 198.47 | P36: 51.17 | Q36: 284.07 | R36: 533.71 | S36: 0 | T36: 0 | U36: 514.68 | V36: 3791.639004 | W36: 4325.349004
B37: 5 | D37: Refinaria Potiguar Clara Camarão | E37: Rodovia RN 221, KM 25 - Guamaré - RN CEP:59598-000 | F37: FEIRA DE SANTANA | G37: OURICURI - PE (ARARIPINA) | H37: - | I37: 3.065661291 | J37: 3065.661291 | K37: 976.08 | L37: 4041.741291 | M37: 607 | N37: 0 | O37: 180.51 | P37: 46.54 | Q37: 258.37 | R37: 485.42 | S37: 0 | T37: 0 | U37: 514.68 | V37: 4041.741291 | W37: 4527.161291
B38: 6 | D38: Complexo Petroquímico do Rio de Janeiro (Comperj) | E38: Rodovia Estadual RJ-116 - Km 5,2 - Acesso A-1, s/n, Complemento Sambaetiba - Zona Urbana do 4º Distrito de Itaboraí - RJ CEP:24841-203 | F38: CANDEIAS | G38: OURICURI - PE (ARARIPINA) | H38: - | I38: 3.065661291 | J38: 3065.661291 | K38: 976.08 | L38: 4041.741291 | M38: 678 | N38: 0 | O38: 198.47 | P38: 51.17 | Q38: 284.07 | R38: 533.71 | S38: 21 | T38: 1.5 | U38: 514.68 | V38: 4041.741291 | W38: 4576.951291

Sheet MOMENTO DE TRANSPORTE - PRINC
B5: EXECUÇÃO DE CAPA ASFÁLTICA EM CONCRETO BETUMINOSO USINADO A QUENTE (CBUQ), EM VIAS DE MUNICÍPIOS DIVERSOS INSERIDOS NA ÁREA DE ATUAÇÃO DA CODEVASF 3ª SR, NO ESTADO DE PERNAMBUCO - MICRORREGIÃO DE ARARIPINA
B6: ESTADO: | C6: PERNAMBUCO | D6: DATA BASE: | E6: Pernambuco - Julho/2024
C8: RESUMO DO TRANSPORTE PRINCIPAL
B9: CODIGO | C9: DESCRIÇÃO | D9: TKM
B10: 5914359 | C10: Transporte com caminhão basculante de 10 m³ - rodovia em leito natural | D10: 0
B11: 5914374 | C11: Transporte com caminhão basculante de 10 m³ - rodovia em revestimento primário | D11: 0
B12: 5914389 | C12: Transporte com caminhão basculante de 10 m³ - rodovia pavimentada | D12: 1279488
B13: 5914314 | C13: Transporte com caminhão basculante de 6 m³ - rodovia em leito natural | D13: 0
B14: 5914329 | C14: Transporte com caminhão basculante de 6 m³ - rodovia em revestimento primário | D14: 0
B15: 5914344 | C15: Transporte com caminhão basculante de 6 m³ - rodovia pavimentada | D15: 392785.68
B17: TIPO (P, RP ou LN) | C17: DMT ESTIMADA
B18: P | C18: 85
B20: COMPOSIÇÕES PRINCIPAIS
B21: SISTEMA DE CUSTOS REFERENCIAIS DE OBRAS - SICRO
B22: Custo Unitário de Referência | E22: Pernambuco - Julho/2024 | I22: Quantitativo | K22: t
B23: 4011463 | C23: Concreto asfáltico - faixa C - areia e brita comerciais | I23: 13440
B24: D - ATIVIDADES AUXILIARES | D24: Quantidade | E24: Unidade
B25: 6416078 | C25: Usinagem de concreto asfáltico - faixa C - areia e brita comerciais | D25: 1.02 | E25: t
B27: F - MOMENTO DE TRANSPORTE | D27: Quantidade | E27: Unidade | F27: CÓDIGO TRANSPORTE
F28: LN | G28: RP | H28: P | I28: TIPO (P, RP ou LN) | J28: DMT ESTIMADA (km) | K28: QUANTITATIVO TOTAL DE TRANSPORTE (tkm)
A29: =IF(I29="P",H29,IF(I29="RP",G29,IF(I29="LN",F29,""))) -> 5914389 | B29: 6416078 | C29: Usinagem de concreto asfáltico - faixa C - areia e brita comerciais | D29: 1.02 | E29: tkm | F29: 5914359 | G29: 5914374 | H29: 5914389 | I29: P | J29: 85 | K29: 1165248
A30: =IF(I30="P",H30,IF(I30="RP",G30,IF(I30="LN",F30,""))) -> 
B31: Obs.
B32: SISTEMA DE CUSTOS REFERENCIAIS DE OBRAS - SICRO
B33: Custo Unitário de Referência | E33: Pernambuco - Julho/2024 | I33: Quantitativo | K33: m³
B34: 4915663 | C34: Fresagem descontínua de revestimento asfáltico - espessura de 5 cm | I34: 560
B35: D - ATIVIDADES AUXILIARES | D35: Quantidade | E35: Unidade
B38: F - MOMENTO DE TRANSPORTE | D38: Quantidade | E38: Unidade | F38: CÓDIGO TRANSPORTE
F39: LN | G39: RP | H39: P | I39: TIPO (P, RP ou LN) | J39: DMT ESTIMADA (km) | K39: QUANTITATIVO TOTAL DE TRANSPORTE (tkm)
A40: =IF(I40="P",H40,IF(I40="RP",G40,IF(I40="LN",F40,""))) -> 5914389 | B40: M3507 | C40: Revestimento asfáltico - Caminhão basculante 10 m³ | D40: 2.4 | E40: tkm | F40: 5914359 | G40: 5914374 | H40: 5914389 | I40: P | J40: 85 | K40: 114240
A41: =IF(I41="P",H41,IF(I41="RP",G41,IF(I41="LN",F41,""))) -> 
B42: Obs.
B43: COMPOSIÇÕES PRINCIPAIS
B44: SISTEMA DE CUSTOS REFERENCIAIS DE OBRAS - SICRO
B45: Custo Unitário de Referência | E45: Pernambuco - Julho/2024 | I45: Quantitativo | K45: m²
B46: 4915618 | C46: Recomposição de camada granular do pavimento com material de jazida | I46: 11200
B47: D - ATIVIDADES AUXILIARES | D47: Quantidade | E47: Unidade
B48: 4016096 | C48: Escavação e carga de material de jazida com escavadeira hidráulica de 1,56 m³ | D48: 0.22005 | E48: t
B50: F - MOMENTO DE TRANSPORTE | D50: Quantidade | E50: Unidade | F50: CÓDIGO TRANSPORTE
F51: LN | G51: RP | H51: P | I51: TIPO (P, RP ou LN) | J51: DMT ESTIMADA (km) | K51: QUANTITATIVO TOTAL DE TRANSPORTE (tkm)
A52: =IF(I52="P",H52,IF(I52="RP",G52,IF(I52="LN",F52,""))) -> 5914344 | B52: 4016096 | C52: Escavação e carga de material de jazida com escavadeira hidráulica de 1,56 m³ | D52: 0.41259 | E52: tkm | F52: 5914314 | G52: 5914329 | H52: 5914344 | I52: P | J52: 85 | K52: 392785.68
A53: =IF(I53="P",H53,IF(I53="RP",G53,IF(I53="LN",F53,""))) -> 
B54: Obs.
B55: TIPO (P, RP ou LN) | C55: DMT ESTIMADA
B56: LN | C56: 0
B58: COMPOSIÇÕES PRINCIPAIS
B59: SISTEMA DE CUSTOS REFERENCIAIS DE OBRAS - SICRO
B60: Custo Unitário de Referência | E60: Pernambuco - Julho/2024 | I60: Quantitativo | K60: t
B61: 4011463 | C61: Concreto asfáltico - faixa C - areia e brita comerciais | I61: 1680
B62: D - ATIVIDADES AUXILIARES | D62: Quantidade | E62: Unidade
B63: 6416078 | C63: Usinagem de concreto asfáltico - faixa C - areia e brita comerciais | D63: 1.02 | E63: t
B65: F - MOMENTO DE TRANSPORTE | D65: Quantidade | E65: Unidade | F65: CÓDIGO TRANSPORTE
F66: LN | G66: RP | H66: P | I66: TIPO (P, RP ou LN) | J66: DMT ESTIMADA (km) | K66: QUANTITATIVO TOTAL DE TRANSPORTE (tkm)
A67: =IF(I67="P",H67,IF(I67="RP",G67,IF(I67="LN",F67,""))) -> 5914359 | B67: 6416078 | C67: Usinagem de concreto asfáltico - faixa C - areia e brita comerciais | D67: 1.02 | E67: tkm | F67: 5914359 | G67: 5914374 | H67: 5914389 | I67: LN | J67: 0 | K67: 0
A68: =IF(I68="P",H68,IF(I68="RP",G68,IF(I68="LN",F68,""))) -> 
B69: Obs.
B70: SISTEMA DE CUSTOS REFERENCIAIS DE OBRAS - SICRO
B71: Custo Unitário de Referência | E71: Pernambuco - Julho/2024 | I71: Quantitativo | K71: m³
B72: 4915663 | C72: Fresagem descontínua de revestimento asfáltico - espessura de 5 cm | I72: 70
B73: D - ATIVIDADES AUXILIARES | D73: Quantidade | E73: Unidade
B76: F - MOMENTO DE TRANSPORTE | D76: Quantidade | E76: Unidade | F76: CÓDIGO TRANSPORTE
F77: LN | G77: RP | H77: P | I77: TIPO (P, RP ou LN) | J77: DMT ESTIMADA (km) | K77: QUANTITATIVO TOTAL DE TRANSPORTE (tkm)
A78: =IF(I78="P",H78,IF(I78="RP",G78,IF(I78="LN",F78,""))) -> 5914359 | B78: M3507 | C78: Revestimento asfáltico - Caminhão basculante 10 m³ | D78: 2.4 | E78: tkm | F78: 5914359 | G78: 5914374 | H78: 5914389 | I78: LN | J78: 0 | K78: 0
A79: =IF(I79="P",H79,IF(I79="RP",G79,IF(I79="LN",F79,""))) -> 
B80: Obs.
B81: COMPOSIÇÕES PRINCIPAIS
B82: SISTEMA DE CUSTOS REFERENCIAIS DE OBRAS - SICRO
B83: Custo Unitário de Referência | E83: Pernambuco - Julho/2024 | I83: Quantitativo | K83: m²
B84: 4915618 | C84: Recomposição de camada granular do pavimento com material de jazida | I84: 1400
B85: D - ATIVIDADES AUXILIARES | D85: Quantidade | E85: Unidade
B86: 4016096 | C86: Escavação e carga de material de jazida com escavadeira hidráulica de 1,56 m³ | D86: 0.22005 | E86: t
B88: F - MOMENTO DE TRANSPORTE | D88: Quantidade | E88: Unidade | F88: CÓDIGO TRANSPORTE
F89: LN | G89: RP | H89: P | I89: TIPO (P, RP ou LN) | J89: DMT ESTIMADA (km) | K89: QUANTITATIVO TOTAL DE TRANSPORTE (tkm)
A90: =IF(I90="P",H90,IF(I90="RP",G90,IF(I90="LN",F90,""))) -> 5914314 | B90: 4016096 | C90: Escavação e carga de material de jazida com escavadeira hidráulica de 1,56 m³ | D90: 0.41259 | E90: tkm | F90: 5914314 | G90: 5914329 | H90: 5914344 | I90: LN | J90: 0 | K90: 0
A91: =IF(I91="P",H91,IF(I91="RP",G91,IF(I91="LN",F91,""))) -> 
B92: Obs.
B93: TIPO (P, RP ou LN) | C93: DMT ESTIMADA
B94: RP | C94: 0
B96: COMPOSIÇÕES PRINCIPAIS
B97: SISTEMA DE CUSTOS REFERENCIAIS DE OBRAS - SICRO
B98: Custo Unitário de Referência | E98: Pernambuco - Julho/2024 | I98: Quantitativo | K98: t
B99: 4011463 | C99: Concreto asfáltico - faixa C - areia e brita comerciais | I99: 1680
B100: D - ATIVIDADES AUXILIARES | D100: Quantidade | E100: Unidade
B101: 6416078 | C101: Usinagem de concreto asfáltico - faixa C - areia e brita comerciais | D101: 1.02 | E101: t
B103: F - MOMENTO DE TRANSPORTE | D103: Quantidade | E103: Unidade | F103: CÓDIGO TRANSPORTE
F104: LN | G104: RP | H104: P | I104: TIPO (P, RP ou LN) | J104: DMT ESTIMADA (km) | K104: QUANTITATIVO TOTAL DE TRANSPORTE (tkm)
A105: =IF(I105="P",H105,IF(I105="RP",G105,IF(I105="LN",F105,""))) -> 5914374 | B105: 6416078 | C105: Usinagem de concreto asfáltico - faixa C - areia e brita comerciais | D105: 1.02 | E105: tkm | F105: 5914359 | G105: 5914374 | H105: 5914389 | I105: RP | J105: 0 | K105: 0
A106: =IF(I106="P",H106,IF(I106="RP",G106,IF(I106="LN",F106,""))) -> 
B107: Obs.
B108: SISTEMA DE CUSTOS REFERENCIAIS DE OBRAS - SICRO
B109: Custo Unitário de Referência | E109: Pernambuco - Julho/2024 | I109: Quantitativo | K109: m³
B110: 4915663 | C110: Fresagem descontínua de revestimento asfáltico - espessura de 5 cm | I110: 70
B111: D - ATIVIDADES AUXILIARES | D111: Quantidade | E111: Unidade
B114: F - MOMENTO DE TRANSPORTE | D114: Quantidade | E114: Unidade | F114: CÓDIGO TRANSPORTE
F115: LN | G115: RP | H115: P | I115: TIPO (P, RP ou LN) | J115: DMT ESTIMADA (km) | K115: QUANTITATIVO TOTAL DE TRANSPORTE (tkm)
A116: =IF(I116="P",H116,IF(I116="RP",G116,IF(I116="LN",F116,""))) -> 5914374 | B116: M3507 | C116: Revestimento asfáltico - Caminhão basculante 10 m³ | D116: 2.4 | E116: tkm | F116: 5914359 | G116: 5914374 | H116: 5914389 | I116: RP | J116: 0 | K116: 0
A117: =IF(I117="P",H117,IF(I117="RP",G117,IF(I117="LN",F117,""))) -> 
B118: Obs.
B119: COMPOSIÇÕES PRINCIPAIS
B120: SISTEMA DE CUSTOS REFERENCIAIS DE OBRAS - SICRO
B121: Custo Unitário de Referência | E121: Pernambuco - Julho/2024 | I121: Quantitativo | K121: m²
B122: 4915618 | C122: Recomposição de camada granular do pavimento com material de jazida | I122: 1400
B123: D - ATIVIDADES AUXILIARES | D123: Quantidade | E123: Unidade
B124: 4016096 | C124: Escavação e carga de material de jazida com escavadeira hidráulica de 1,56 m³ | D124: 0.22005 | E124: t
B126: F - MOMENTO DE TRANSPORTE | D126: Quantidade | E126: Unidade | F126: CÓDIGO TRANSPORTE
F127: LN | G127: RP | H127: P | I127: TIPO (P, RP ou LN) | J127: DMT ESTIMADA (km) | K127: QUANTITATIVO TOTAL DE TRANSPORTE (tkm)
A128: =IF(I128="P",H128,IF(I128="RP",G128,IF(I128="LN",F128,""))) -> 5914329 | B128: 4016096 | C128: Escavação e carga de material de jazida com escavadeira hidráulica de 1,56 m³ | D128: 0.41259 | E128: tkm | F128: 5914314 | G128: 5914329 | H128: 5914344 | I128: RP | J128: 0 | K128: 0
A129: =IF(I129="P",H129,IF(I129="RP",G129,IF(I129="LN",F129,""))) -> 
B130: Obs.

Sheet MOMENTO DE TRANSPORTE - AUX
B4: EXECUÇÃO DE CAPA ASFÁLTICA EM CONCRETO BETUMINOSO USINADO A QUENTE (CBUQ), EM VIAS DE MUNICÍPIOS DIVERSOS INSERIDOS NA ÁREA DE ATUAÇÃO DA CODEVASF 3ª SR, NO ESTADO DE PERNAMBUCO - MICRORREGIÃO DE ARARIPINA
B5: ESTADO: | C5: PERNAMBUCO | D5: DATA BASE: | E5: Pernambuco - Julho/2024
B7: RESUMO DO TRANSPORTE AUXILIAR
B8: CODIGO | C8: DESCRIÇÃO | D8: TKM
B9: 5914359 | C9: Transporte com caminhão basculante de 10 m³ - rodovia em leito natural | D9: 0
B10: 5914374 | C10: Transporte com caminhão basculante de 10 m³ - rodovia em revestimento primário | D10: 0
B11: 5914389 | C11: Transporte com caminhão basculante de 10 m³ - rodovia pavimentada | D11: 0
B12: 5914364 | C12: Transporte de cimento ou cal hidratada a granel com caminhão silo de 30 m³ - rodovia em leito natural | D12: 0
B13: 5914365 | C13: Transporte de cimento ou cal hidratada a granel com caminhão silo de 30 m³ - rodovia em revestimento primário | D13: 0
B14: 5914366 | C14: Transporte de cimento ou cal hidratada a granel com caminhão silo de 30 m³ - rodovia pavimentada | D14: 0
B16: TIPO (P, RP ou LN) | C16: DMT ATÉ 50 KM NÃO DEVE SER PAGA | D16: SOMENTE DEVE SER ADICIONADO A DISTÂNCIA EXCEDENTE A 50 KM
B17: P | D17: 0
B19: SISTEMA DE CUSTOS REFERENCIAIS DE OBRAS - SICRO | I19: Quantitivo
B20: Custo Unitário de Referência | E20: Pernambuco - Julho/2024 | I20: (Coeficiente na composição principal) x (quantidade da principal no orçamento) | K20: t
B21: 6416078 | C21: Usinagem de concreto asfáltico - faixa C - areia e brita comerciais | I21: 13708.8
B22: F - MOMENTO DE TRANSPORTE | D22: Quantidade | E22: Unidade | F22: DMT
F23: LN | G23: RP | H23: P | I23: TIPO (P, RP ou LN) | J23: DMT ESTIMADA (km) | K23: QUANTITATIVO TOTAL DE TRANSPORTE DE MATERIAL (tkm)
A24: =IF(I24="P",H24,IF(I24="RP",G24,IF(I24="LN",F24,""))) -> 5914389 | B24: M0028 | C24: Areia média - Caminhão basculante 10 m³ | D24: 0.48713 | E24: tkm | F24: 5914359 | G24: 5914374 | H24: 5914389 | I24: P | J24: 0 | K24: 0
A25: =IF(I25="P",H25,IF(I25="RP",G25,IF(I25="LN",F25,""))) -> 5914389 | B25: M0005 | C25: Brita 0 - Caminhão basculante 10 m³ | D25: 0.09368 | E25: tkm | F25: 5914359 | G25: 5914374 | H25: 5914389 | I25: P | J25: 0 | K25: 0
A26: 5914389 | B26: M0191 | C26: Brita 1 - Caminhão basculante 10 m³ | D26: 0.09368 | E26: tkm | F26: 5914359 | G26: 5914374 | H26: 5914389 | I26: P | J26: 0 | K26: 0
A27: 5914366 | B27: M0344 | C27: Cal hidratada - a granel - Caminhão silo 30 m³ | D27: 0.0562 | E27: tkm | F27: 5914364 | G27: 5914365 | H27: 5914366 | I27: P | J27: 0 | K27: 0
A28: 5914389 | B28: M1103 | C28: Pedrisco - Caminhão basculante 10 m³ | D28: 0.20609 | E28: tkm | F28: 5914359 | G28: 5914374 | H28: 5914389 | I28: P | J28: 0 | K28: 0
A30: =IF(I30="P",H30,IF(I30="RP",G30,IF(I30="LN",F30,""))) ->  | B30: PRINCIPAL: | C30: 4011463
B31: SISTEMA DE CUSTOS REFERENCIAIS DE OBRAS - SICRO | I31: Quantitivo
B32: Custo Unitário de Referência | E32: Pernambuco - Julho/2024 | I32: (Coeficiente na composição principal) x (quantidade da principal no orçamento) | K32: m³
B33: 4016096 | C33: Escavação e carga de material de jazida com escavadeira hidráulica de 1,56 m³
B34: F - MOMENTO DE TRANSPORTE | D34: '' | E34: Unidade | F34: DMT
F35: LN | G35: RP | H35: P | I35: TIPO (P, RP ou LN) | J35: DMT ESTIMADA (km) | K35: QUANTITATIVO TOTAL DE TRANSPORTE DE MATERIAL (tkm)
A36: =IF(I36="P",H36,IF(I36="RP",G36,IF(I36="LN",F36,""))) ->  | E36: tkm
B37: PRINCIPAL: | C37: 4915618
B38: TIPO (P, RP ou LN) | C38: DMT ATÉ 50 KM NÃO DEVE SER PAGA | D38: DMT ACIMA DE 50 KM
B39: LN | C39: 0 | D39: 0
B41: SISTEMA DE CUSTOS REFERENCIAIS DE OBRAS - SICRO | I41: Quantitivo
B42: Custo Unitário de Referência | E42: Pernambuco - Julho/2024 | I42: (Coeficiente na composição principal) x (quantidade da principal no orçamento) | K42: t
B43: 6416078 | C43: Usinagem de concreto asfáltico - faixa C - areia e brita comerciais | I43: 1713.6
B44: F - MOMENTO DE TRANSPORTE | D44: Quantidade | E44: Unidade | F44: DMT
F45: LN | G45: RP | H45: P | I45: TIPO (P, RP ou LN) | J45: DMT ESTIMADA (km) | K45: QUANTITATIVO TOTAL DE TRANSPORTE DE MATERIAL (tkm)
A46: =IF(I46="P",H46,IF(I46="RP",G46,IF(I46="LN",F46,""))) -> 5914359 | B46: M0028 | C46: Areia média - Caminhão basculante 10 m³ | D46: 0.48713 | E46: tkm | F46: 5914359 | G46: 5914374 | H46: 5914389 | I46: LN | J46: 0 | K46: 0
A47: 5914359 | B47: M0005 | C47: Brita 0 - Caminhão basculante 10 m³ | D47: 0.09368 | E47: tkm | F47: 5914359 | G47: 5914374 | H47: 5914389 | I47: LN | J47: 0 | K47: 0
A48: 5914359 | B48: M0191 | C48: Brita 1 - Caminhão basculante 10 m³ | D48: 0.09368 | E48: tkm | F48: 5914359 | G48: 5914374 | H48: 5914389 | I48: LN | J48: 0 | K48: 0
A49: 5914364 | B49: M0344 | C49: Cal hidratada - a granel - Caminhão silo 30 m³ | D49: 0.0562 | E49: tkm | F49: 5914364 | G49: 5914365 | H49: 5914366 | I49: LN | J49: 0 | K49: 0
A50: 5914359 | B50: M1103 | C50: Pedrisco - Caminhão basculante 10 m³ | D50: 0.20609 | E50: tkm | F50: 5914359 | G50: 5914374 | H50: 5914389 | I50: LN | J50: 0 | K50: 0
B52: PRINCIPAL: | C52: 4011463
B53: SISTEMA DE CUSTOS REFERENCIAIS DE OBRAS - SICRO | I53: Quantitivo
B54: Custo Unitário de Referência | E54: Pernambuco - Julho/2024 | I54: (Coeficiente na composição principal) x (quantidade da principal no orçamento) | K54: m³
B55: 4016096 | C55: Escavação e carga de material de jazida com escavadeira hidráulica de 1,56 m³
B56: F - MOMENTO DE TRANSPORTE | D56: '' | E56: Unidade | F56: DMT
F57: LN | G57: RP | H57: P | I57: TIPO (P, RP ou LN) | J57: DMT ESTIMADA (km) | K57: QUANTITATIVO TOTAL DE TRANSPORTE DE MATERIAL (tkm)
A58: =IF(I58="P",H58,IF(I58="RP",G58,IF(I58="LN",F58,""))) ->  | E58: tkm
B59: PRINCIPAL: | C59: 4915618
B60: TIPO (P, RP ou LN) | C60: DMT ATÉ 50 KM NÃO DEVE SER PAGA | D60: DMT ACIMA DE 50 KM
B61: RP | C61: 0 | D61: 0
B63: SISTEMA DE CUSTOS REFERENCIAIS DE OBRAS - SICRO | I63: Quantitivo
B64: Custo Unitário de Referência | E64: Pernambuco - Julho/2024 | I64: (Coeficiente na composição principal) x (quantidade da principal no orçamento) | K64: t
B65: 6416078 | C65: Usinagem de concreto asfáltico - faixa C - areia e brita comerciais | I65: 1713.6
B66: F - MOMENTO DE TRANSPORTE | D66: Quantidade | E66: Unidade | F66: DMT
F67: LN | G67: RP | H67: P | I67: TIPO (P, RP ou LN) | J67: DMT ESTIMADA (km) | K67: QUANTITATIVO TOTAL DE TRANSPORTE DE MATERIAL (tkm)
A68: =IF(I68="P",H68,IF(I68="RP",G68,IF(I68="LN",F68,""))) -> 5914374 | B68: M0028 | C68: Areia média - Caminhão basculante 10 m³ | D68: 0.48713 | E68: tkm | F68: 5914359 | G68: 5914374 | H68: 5914389 | I68: RP | J68: 0 | K68: 0
A69: 5914374 | B69: M0005 | C69: Brita 0 - Caminhão basculante 10 m³ | D69: 0.09368 | E69: tkm | F69: 5914359 | G69: 5914374 | H69: 5914389 | I69: RP | J69: 0 | K69: 0
A70: 5914374 | B70: M0191 | C70: Brita 1 - Caminhão basculante 10 m³ | D70: 0.09368 | E70: tkm | F70: 5914359 | G70: 5914374 | H70: 5914389 | I70: RP | J70: 0 | K70: 0
A71: 5914365 | B71: M0344 | C71: Cal hidratada - a granel - Caminhão silo 30 m³ | D71: 0.0562 | E71: tkm | F71: 5914364 | G71: 5914365 | H71: 5914366 | I71: RP | J71: 0 | K71: 0
A72: 5914374 | B72: M1103 | C72: Pedrisco - Caminhão basculante 10 m³ | D72: 0.20609 | E72: tkm | F72: 5914359 | G72: 5914374 | H72: 5914389 | I72: RP | J72: 0 | K72: 0
B74: PRINCIPAL: | C74: 4011463
B75: SISTEMA DE CUSTOS REFERENCIAIS DE OBRAS - SICRO | I75: Quantitivo
B76: Custo Unitário de Referência | E76: Pernambuco - Julho/2024 | I76: (Coeficiente na composição principal) x (quantidade da principal no orçamento) | K76: m³
B77: 4016096 | C77: Escavação e carga de material de jazida com escavadeira hidráulica de 1,56 m³
B78: F - MOMENTO DE TRANSPORTE | D78: '' | E78: Unidade | F78: DMT
F79: LN | G79: RP | H79: P | I79: TIPO (P, RP ou LN) | J79: DMT ESTIMADA (km) | K79: QUANTITATIVO TOTAL DE TRANSPORTE DE MATERIAL (tkm)
A80: =IF(I80="P",H80,IF(I80="RP",G80,IF(I80="LN",F80,""))) ->  | E80: tkm
B81: PRINCIPAL: | C81: 0
A82: =IF(I82="P",H82,IF(I82="RP",G82,IF(I82="LN",F82,""))) -> 
M103: =(#REF!) -> 

Sheet MC MODULO
A1: Extensão | B1: = | C1: 2000 | D1: m | F1: QUANTIDADE DE MODULOS | G1: 10
A2: Largura | B2: = | C2: 7 | D2: m
A4: Extensão | B4: = | C4: 2 | D4: km
B6: MOBUILIZAÇÃO
A7: 1 | B7: Implantação da obra
B9: Módulos(un) | D9: Módulos(un)
B10: 10 | C10: = | D10: 10
A12: 2 | B12: Administração da obra
B14: Módulos(un) | D14: Módulos(un)
B15: 10 | C15: = | D15: 10
A17: 3 | B17: Canteiro de Obras e Almoxarifado
B19: Módulos(un) | D19: Módulos(un)
B20: 10 | C20: = | D20: 10
A22: 4 | B22: Placa de Obra em Chapa de Aço Galvanizado
B24: Módulos(un) | C24: Comprimento(m) | D24: Largura (m) | H24: Total de Area de placa (m²)
B25: 10 | C25: 2 | D25: 4 | H25: 160
B28: PAVIMENTAÇÃO
A30: 5 | B30: Concreto asfáltico - faixa C - areia e brita comerciais
B32: Extensão (m) | C32: Largura (m) | D32: Espessura (m) | E32: Densidade (t/m³) | F32: A | H32: Volume (t)
B33: 20000 | C33: 7 | D33: 0.05 | E33: 2.4 | G33: = | H33: 16800
A36: 7 | B36: Pintura de ligação
B38: Extensão (m) | D38: Largura (m) | H38: area (m2)
B39: 20000 | C39: x | D39: 7 | G39: = | H39: 140000
A42: 9 | B42: Fresagem descontínua de revestimento asfáltico - espessura de 5 cm
B44: Extensão (m) | D44: Largura (m) | E44: Espessura (m) | H44: Volume (m3)
B45: 20000 | C45: x | D45: 7 | E45: 0.05 | F45: 0.1 | G45: = | H45: 700
A48: 9 | B48: Recomposição de camada granular do pavimento com material de jazida
B50: Extensão (m) | D50: Largura (m) | H50: area (m2)
B51: 20000 | C51: x | D51: 7 | F51: 0.1 | G51: = | H51: 14000
B53: SINALIZAÇÃO
A55: 14 | B55: Fornecimento e implantação de placa de regulamentação em aço D = 0,60 m - película retrorrefletiva tipo I + SI
B57: Extensão (km) | D57: Quant. (un) | H57: Quant. (un)
B58: 20 | C58: x | D58: 3 | G58: = | H58: 60
A60: 14 | B60: Placa de advertência em aço, lado de 0,60 m - película retrorrefletiva tipo I + SI - fornecimento e implantação
B62: Extensão (km) | D62: Quant. (un) | H62: Quant. (un)
B63: 20 | C63: x | D63: 3 | G63: = | H63: 60
A66: 15 | B66: Fornecimento e implantação de suporte metálico galvanizado para placa de regulamentação - D = 0,60 m
B68: Extensão (km) | D68: Quant. (un) | H68: Quant. (un)
B69: 20 | C69: x | D69: 0.5 | G69: = | H69: 120
A71: 16 | B71: Pintura de faixa com tinta acrílica - espessura de 0,4 mm (bordos)
B73: Extensão (m) | D73: Espessura (m) | H73: Quant. (m²)
B74: 20000 | C74: x | D74: 0.1 | G74: = | H74: 4000
A76: 16 | B76: Pintura de faixa com tinta acrílica - espessura de 0,4 mm (faixa central)
H78: Quant. (m²)
H79: 800
B82: DRENAGEM
A83: 17 | B83: Reassentamento manual de meio fio com material arrancado da pista
B85: Extensão (m) | D85: Quant. (un) | G85: 0.1 | H85: Extensão(m)
B86: 20000 | C86: x | D86: 2 | G86: = | H86: 4000
A88: 18 | B88: Limpeza de sarjeta e meio-fio
B90: Extensão (m) | D90: Quant. (un) | H90: Extensão(m)
B91: 20000 | C91: x | D91: 2 | G91: = | H91: 40000
A93: 19 | B93: Caiação mecanizada com fixador de cal
B95: Extensão (m) | D95: Perimetro (m) | H95: Area (m²)
B96: 20000 | C96: x | D96: 0.24 | G96: = | H96: 4800
B99: SERVIÇOS COMPLEMENTARES
A100: 20
B102: Extensão (m) | D102: Largura (m) | G102: 0.1 | H102: extensão (m)
B103: 20000 | C103: x | D103: 1 | E103: x | G103: = | H103: 2000
B106: PROJETO EXECUTIVO
A107: 21 | B107: Projeto Executivo
B109: Extensão (m) | D109: Largura (m) | F109: Quant. (un) | H109: Área (m²)
B110: 20000 | C110: x | D110: 7 | E110: x | F110: 1 | G110: = | H110: 140000
B112: CONTROLE TECNOLOGICO - OBRA
A113: 22 | B113: Projeto Executivo
B115: Extensão (m) | D115: Largura (m) | F115: Quant. (un) | H115: meses
G116: = | H116: 5
E132: Perímetro caiação = 0,09 + 0,15

Sheet Planilha30 (hidden)

Sheet ANP ESTADO (hidden)
A1: Agência Nacional do Petróleo, Gás Natural e Biocombustíveis
A2: Superintendência de Defesa da Concorrência
A5: PREÇO MÉDIO MENSAL PONDERADO PRATICADO PELOS DISTRIBUIDORES DE PRODUTOS ASFÁLTICOS (R$/KG)
A7: Importante: | B7: Quando não houver declaração de venda do produto selecionado, ou quando a declaração de venda do produto ocorrer por menos de 03 (três) distribuidoras, a tabela indicará campo vazio.
A8: Mês | B8: Produto | C8: Estado | D8: Preço
A9: 2013-01-01 | B9: ASFALTOS DILUÍDOS CM-30 | C9: Acre | D9: -
A10: 2013-01-01 | B10: ASFALTOS DILUÍDOS CM-30 | C10: Alagoas | D10: -
A11: 2013-01-01 | B11: ASFALTOS DILUÍDOS CM-30 | C11: Amapá | D11: -
A12: 2013-01-01 | B12: ASFALTOS DILUÍDOS CM-30 | C12: Amazonas | D12: 1.453527021
A13: 2013-01-01 | B13: ASFALTOS DILUÍDOS CM-30 | C13: Bahia | D13: 1.464044142
A14: 2013-01-01 | B14: ASFALTOS DILUÍDOS CM-30 | C14: Ceará | D14: 1.447997934
A15: 2013-01-01 | B15: ASFALTOS DILUÍDOS CM-30 | C15: Distrito Federal | D15: -
A16: 2013-01-01 | B16: ASFALTOS DILUÍDOS CM-30 | C16: Espírito Santo | D16: -
A17: 2013-01-01 | B17: ASFALTOS DILUÍDOS CM-30 | C17: Goiás | D17: 1.686383065
A18: 2013-01-01 | B18: ASFALTOS DILUÍDOS CM-30 | C18: Maranhão | D18: -
A19: 2013-01-01 | B19: ASFALTOS DILUÍDOS CM-30 | C19: Mato Grosso | D19: -
A20: 2013-01-01 | B20: ASFALTOS DILUÍDOS CM-30 | C20: Mato Grosso do Sul | D20: -
A21: 2013-01-01 | B21: ASFALTOS DILUÍDOS CM-30 | C21: Minas Gerais | D21: 1.451106114
A22: 2013-01-01 | B22: ASFALTOS DILUÍDOS CM-30 | C22: Pará | D22: -
A23: 2013-01-01 | B23: ASFALTOS DILUÍDOS CM-30 | C23: Paraíba | D23: -
A24: 2013-01-01 | B24: ASFALTOS DILUÍDOS CM-30 | C24: Paraná | D24: 1.520125031
A25: 2013-01-01 | B25: ASFALTOS DILUÍDOS CM-30 | C25: Pernambuco | D25: -
A26: 2013-01-01 | B26: ASFALTOS DILUÍDOS CM-30 | C26: Piauí | D26: -
A27: 2013-01-01 | B27: ASFALTOS DILUÍDOS CM-30 | C27: Rio de Janeiro | D27: 1.330475106
A28: 2013-01-01 | B28: ASFALTOS DILUÍDOS CM-30 | C28: Rio Grande do Norte | D28: -
A29: 2013-01-01 | B29: ASFALTOS DILUÍDOS CM-30 | C29: Rio Grande do Sul | D29: 1.598611074
A30: 2013-01-01 | B30: ASFALTOS DILUÍDOS CM-30 | C30: Rondônia | D30: -
A31: 2013-01-01 | B31: ASFALTOS DILUÍDOS CM-30 | C31: Roraima | D31: -
A32: 2013-01-01 | B32: ASFALTOS DILUÍDOS CM-30 | C32: Santa Catarina | D32: -
A33: 2013-01-01 | B33: ASFALTOS DILUÍDOS CM-30 | C33: São Paulo | D33: 1.471008423
A34: 2013-01-01 | B34: ASFALTOS DILUÍDOS CM-30 | C34: Sergipe | D34: -
A35: 2013-01-01 | B35: ASFALTOS DILUÍDOS CM-30 | C35: Tocantins | D35: -
A36: 2013-02-01 | B36: ASFALTOS DILUÍDOS CM-30 | C36: Acre | D36: -
A37: 2013-02-01 | B37: ASFALTOS DILUÍDOS CM-30 | C37: Alagoas | D37: -
A38: 2013-02-01 | B38: ASFALTOS DILUÍDOS CM-30 | C38: Amapá | D38: -
A39: 2013-02-01 | B39: ASFALTOS DILUÍDOS CM-30 | C39: Amazonas | D39: 1.485578179
A40: 2013-02-01 | B40: ASFALTOS DILUÍDOS CM-30 | C40: Bahia | D40: 1.457014101
A41: 2013-02-01 | B41: ASFALTOS DILUÍDOS CM-30 | C41: Ceará | D41: 1.413192336
A42: 2013-02-01 | B42: ASFALTOS DILUÍDOS CM-30 | C42: Distrito Federal | D42: -
A43: 2013-02-01 | B43: ASFALTOS DILUÍDOS CM-30 | C43: Espírito Santo | D43: -
A44: 2013-02-01 | B44: ASFALTOS DILUÍDOS CM-30 | C44: Goiás | D44: 1.667459711
A45: 2013-02-01 | B45: ASFALTOS DILUÍDOS CM-30 | C45: Maranhão | D45: -
A46: 2013-02-01 | B46: ASFALTOS DILUÍDOS CM-30 | C46: Mato Grosso | D46: -
A47: 2013-02-01 | B47: ASFALTOS DILUÍDOS CM-30 | C47: Mato Grosso do Sul | D47: -
A48: 2013-02-01 | B48: ASFALTOS DILUÍDOS CM-30 | C48: Minas Gerais | D48: 1.452121117
A49: 2013-02-01 | B49: ASFALTOS DILUÍDOS CM-30 | C49: Pará | D49: -
A50: 2013-02-01 | B50: ASFALTOS DILUÍDOS CM-30 | C50: Paraíba | D50: -
A51: 2013-02-01 | B51: ASFALTOS DILUÍDOS CM-30 | C51: Paraná | D51: 1.493783173
A52: 2013-02-01 | B52: ASFALTOS DILUÍDOS CM-30 | C52: Pernambuco | D52: -
A53: 2013-02-01 | B53: ASFALTOS DILUÍDOS CM-30 | C53: Piauí | D53: -
A54: 2013-02-01 | B54: ASFALTOS DILUÍDOS CM-30 | C54: Rio de Janeiro | D54: 1.418234901
A55: 2013-02-01 | B55: ASFALTOS DILUÍDOS CM-30 | C55: Rio Grande do Norte | D55: -
A56: 2013-02-01 | B56: ASFALTOS DILUÍDOS CM-30 | C56: Rio Grande do Sul | D56: 1.435861782
A57: 2013-02-01 | B57: ASFALTOS DILUÍDOS CM-30 | C57: Rondônia | D57: -
A58: 2013-02-01 | B58: ASFALTOS DILUÍDOS CM-30 | C58: Roraima | D58: -
A59: 2013-02-01 | B59: ASFALTOS DILUÍDOS CM-30 | C59: Santa Catarina | D59: -
A60: 2013-02-01 | B60: ASFALTOS DILUÍDOS CM-30 | C60: São Paulo | D60: 1.434190204
A61: 2013-02-01 | B61: ASFALTOS DILUÍDOS CM-30 | C61: Sergipe | D61: -
A62: 2013-02-01 | B62: ASFALTOS DILUÍDOS CM-30 | C62: Tocantins | D62: -
A63: 2013-03-01 | B63: ASFALTOS DILUÍDOS CM-30 | C63: Acre | D63: -
A64: 2013-03-01 | B64: ASFALTOS DILUÍDOS CM-30 | C64: Alagoas | D64: -
A65: 2013-03-01 | B65: ASFALTOS DILUÍDOS CM-30 | C65: Amapá | D65: -
A66: 2013-03-01 | B66: ASFALTOS DILUÍDOS CM-30 | C66: Amazonas | D66: 1.507923921
A67: 2013-03-01 | B67: ASFALTOS DILUÍDOS CM-30 | C67: Bahia | D67: 1.449440325
A68: 2013-03-01 | B68: ASFALTOS DILUÍDOS CM-30 | C68: Ceará | D68: 1.401607485
A69: 2013-03-01 | B69: ASFALTOS DILUÍDOS CM-30 | C69: Distrito Federal | D69: -
A70: 2013-03-01 | B70: ASFALTOS DILUÍDOS CM-30 | C70: Espírito Santo | D70: -
A71: 2013-03-01 | B71: ASFALTOS DILUÍDOS CM-30 | C71: Goiás | D71: 1.661758701
A72: 2013-03-01 | B72: ASFALTOS DILUÍDOS CM-30 | C72: Maranhão | D72: -
A73: 2013-03-01 | B73: ASFALTOS DILUÍDOS CM-30 | C73: Mato Grosso | D73: -
A74: 2013-03-01 | B74: ASFALTOS DILUÍDOS CM-30 | C74: Mato Grosso do Sul | D74: -
A75: 2013-03-01 | B75: ASFALTOS DILUÍDOS CM-30 | C75: Minas Gerais | D75: 1.44324333
A76: 2013-03-01 | B76: ASFALTOS DILUÍDOS CM-30 | C76: Pará | D76: -
A77: 2013-03-01 | B77: ASFALTOS DILUÍDOS CM-30 | C77: Paraíba | D77: -
A78: 2013-03-01 | B78: ASFALTOS DILUÍDOS CM-30 | C78: Paraná | D78: 1.468995996
A79: 2013-03-01 | B79: ASFALTOS DILUÍDOS CM-30 | C79: Pernambuco | D79: -
A80: 2013-03-01 | B80: ASFALTOS DILUÍDOS CM-30 | C80: Piauí | D80: -
A81: 2013-03-01 | B81: ASFALTOS DILUÍDOS CM-30 | C81: Rio de Janeiro | D81: 1.438055574
A82: 2013-03-01 | B82: ASFALTOS DILUÍDOS CM-30 | C82: Rio Grande do Norte | D82: -
A83: 2013-03-01 | B83: ASFALTOS DILUÍDOS CM-30 | C83: Rio Grande do Sul | D83: 1.581425878
A84: 2013-03-01 | B84: ASFALTOS DILUÍDOS CM-30 | C84: Rondônia | D84: -
A85: 2013-03-01 | B85: ASFALTOS DILUÍDOS CM-30 | C85: Roraima | D85: -
A86: 2013-03-01 | B86: ASFALTOS DILUÍDOS CM-30 | C86: Santa Catarina | D86: -
A87: 2013-03-01 | B87: ASFALTOS DILUÍDOS CM-30 | C87: São Paulo | D87: 1.466061702
A88: 2013-03-01 | B88: ASFALTOS DILUÍDOS CM-30 | C88: Sergipe | D88: -
A89: 2013-03-01 | B89: ASFALTOS DILUÍDOS CM-30 | C89: Tocantins | D89: -
A90: 2013-04-01 | B90: ASFALTOS DILUÍDOS CM-30 | C90: Acre | D90: -
A91: 2013-04-01 | B91: ASFALTOS DILUÍDOS CM-30 | C91: Alagoas | D91: -
A92: 2013-04-01 | B92: ASFALTOS DILUÍDOS CM-30 | C92: Amapá | D92: -
A93: 2013-04-01 | B93: ASFALTOS DILUÍDOS CM-30 | C93: Amazonas | D93: 1.484796656
A94: 2013-04-01 | B94: ASFALTOS DILUÍDOS CM-30 | C94: Bahia | D94: 1.454836546
A95: 2013-04-01 | B95: ASFALTOS DILUÍDOS CM-30 | C95: Ceará | D95: 1.387073962
A96: 2013-04-01 | B96: ASFALTOS DILUÍDOS CM-30 | C96: Distrito Federal | D96: -
A97: 2013-04-01 | B97: ASFALTOS DILUÍDOS CM-30 | C97: Espírito Santo | D97: -
A98: 2013-04-01 | B98: ASFALTOS DILUÍDOS CM-30 | C98: Goiás | D98: 1.673481836
A99: 2013-04-01 | B99: ASFALTOS DILUÍDOS CM-30 | C99: Maranhão | D99: -
A100: 2013-04-01 | B100: ASFALTOS DILUÍDOS CM-30 | C100: Mato Grosso | D100: 1.921938422
A101: 2013-04-01 | B101: ASFALTOS DILUÍDOS CM-30 | C101: Mato Grosso do Sul | D101: -
A102: 2013-04-01 | B102: ASFALTOS DILUÍDOS CM-30 | C102: Minas Gerais | D102: 1.456556683
A103: 2013-04-01 | B103: ASFALTOS DILUÍDOS CM-30 | C103: Pará | D103: -
A104: 2013-04-01 | B104: ASFALTOS DILUÍDOS CM-30 | C104: Paraíba | D104: -
A105: 2013-04-01 | B105: ASFALTOS DILUÍDOS CM-30 | C105: Paraná | D105: 1.534419498
A106: 2013-04-01 | B106: ASFALTOS DILUÍDOS CM-30 | C106: Pernambuco | D106: -
A107: 2013-04-01 | B107: ASFALTOS DILUÍDOS CM-30 | C107: Piauí | D107: -
A108: 2013-04-01 | B108: ASFALTOS DILUÍDOS CM-30 | C108: Rio de Janeiro | D108: 1.418419516
A109: 2013-04-01 | B109: ASFALTOS DILUÍDOS CM-30 | C109: Rio Grande do Norte | D109: -
A110: 2013-04-01 | B110: ASFALTOS DILUÍDOS CM-30 | C110: Rio Grande do Sul | D110: 1.572582456
A111: 2013-04-01 | B111: ASFALTOS DILUÍDOS CM-30 | C111: Rondônia | D111: -
A112: 2013-04-01 | B112: ASFALTOS DILUÍDOS CM-30 | C112: Roraima | D112: -
A113: 2013-04-01 | B113: ASFALTOS DILUÍDOS CM-30 | C113: Santa Catarina | D113: -
A114: 2013-04-01 | B114: ASFALTOS DILUÍDOS CM-30 | C114: São Paulo | D114: 1.475764348
A115: 2013-04-01 | B115: ASFALTOS DILUÍDOS CM-30 | C115: Sergipe | D115: -
A116: 2013-04-01 | B116: ASFALTOS DILUÍDOS CM-30 | C116: Tocantins | D116: -
A117: 2013-05-01 | B117: ASFALTOS DILUÍDOS CM-30 | C117: Acre | D117: -
A118: 2013-05-01 | B118: ASFALTOS DILUÍDOS CM-30 | C118: Alagoas | D118: -
A119: 2013-05-01 | B119: ASFALTOS DILUÍDOS CM-30 | C119: Amapá | D119: -
A120: 2013-05-01 | B120: ASFALTOS DILUÍDOS CM-30 | C120: Amazonas | D120: -
A121: 2013-05-01 | B121: ASFALTOS DILUÍDOS CM-30 | C121: Bahia | D121: 1.492587424
A122: 2013-05-01 | B122: ASFALTOS DILUÍDOS CM-30 | C122: Ceará | D122: 1.376263021
A123: 2013-05-01 | B123: ASFALTOS DILUÍDOS CM-30 | C123: Distrito Federal | D123: -
A124: 2013-05-01 | B124: ASFALTOS DILUÍDOS CM-30 | C124: Espírito Santo | D124: -
A125: 2013-05-01 | B125: ASFALTOS DILUÍDOS CM-30 | C125: Goiás | D125: 1.668214819
A126: 2013-05-01 | B126: ASFALTOS DILUÍDOS CM-30 | C126: Maranhão | D126: -
A127: 2013-05-01 | B127: ASFALTOS DILUÍDOS CM-30 | C127: Mato Grosso | D127: 1.903098159
A128: 2013-05-01 | B128: ASFALTOS DILUÍDOS CM-30 | C128: Mato Grosso do Sul | D128: -
A129: 2013-05-01 | B129: ASFALTOS DILUÍDOS CM-30 | C129: Minas Gerais | D129: 1.464709716
A130: 2013-05-01 | B130: ASFALTOS DILUÍDOS CM-30 | C130: Pará | D130: -
A131: 2013-05-01 | B131: ASFALTOS DILUÍDOS CM-30 | C131: Paraíba | D131: -
A132: 2013-05-01 | B132: ASFALTOS DILUÍDOS CM-30 | C132: Paraná | D132: 1.489027849
A133: 2013-05-01 | B133: ASFALTOS DILUÍDOS CM-30 | C133: Pernambuco | D133: -
A134: 2013-05-01 | B134: ASFALTOS DILUÍDOS CM-30 | C134: Piauí | D134: -
A135: 2013-05-01 | B135: ASFALTOS DILUÍDOS CM-30 | C135: Rio de Janeiro | D135: 1.399256048
A136: 2013-05-01 | B136: ASFALTOS DILUÍDOS CM-30 | C136: Rio Grande do Norte | D136: -
A137: 2013-05-01 | B137: ASFALTOS DILUÍDOS CM-30 | C137: Rio Grande do Sul | D137: 1.539636961
A138: 2013-05-01 | B138: ASFALTOS DILUÍDOS CM-30 | C138: Rondônia | D138: -
A139: 2013-05-01 | B139: ASFALTOS DILUÍDOS CM-30 | C139: Roraima | D139: -
A140: 2013-05-01 | B140: ASFALTOS DILUÍDOS CM-30 | C140: Santa Catarina | D140: -
A141: 2013-05-01 | B141: ASFALTOS DILUÍDOS CM-30 | C141: São Paulo | D141: 1.451215936
A142: 2013-05-01 | B142: ASFALTOS DILUÍDOS CM-30 | C142: Sergipe | D142: -
A143: 2013-05-01 | B143: ASFALTOS DILUÍDOS CM-30 | C143: Tocantins | D143: -
A144: 2013-06-01 | B144: ASFALTOS DILUÍDOS CM-30 | C144: Acre | D144: -
A145: 2013-06-01 | B145: ASFALTOS DILUÍDOS CM-30 | C145: Alagoas | D145: -
A146: 2013-06-01 | B146: ASFALTOS DILUÍDOS CM-30 | C146: Amapá | D146: -
A147: 2013-06-01 | B147: ASFALTOS DILUÍDOS CM-30 | C147: Amazonas | D147: 1.586325818
A148: 2013-06-01 | B148: ASFALTOS DILUÍDOS CM-30 | C148: Bahia | D148: 1.44812907
A149: 2013-06-01 | B149: ASFALTOS DILUÍDOS CM-30 | C149: Ceará | D149: 1.382700989
A150: 2013-06-01 | B150: ASFALTOS DILUÍDOS CM-30 | C150: Distrito Federal | D150: -
A151: 2013-06-01 | B151: ASFALTOS DILUÍDOS CM-30 | C151: Espírito Santo | D151: -
A152: 2013-06-01 | B152: ASFALTOS DILUÍDOS CM-30 | C152: Goiás | D152: 1.699613867
A153: 2013-06-01 | B153: ASFALTOS DILUÍDOS CM-30 | C153: Maranhão | D153: -
A154: 2013-06-01 | B154: ASFALTOS DILUÍDOS CM-30 | C154: Mato Grosso | D154: 1.915975658
A155: 2013-06-01 | B155: ASFALTOS DILUÍDOS CM-30 | C155: Mato Grosso do Sul | D155: -
A156: 2013-06-01 | B156: ASFALTOS DILUÍDOS CM-30 | C156: Minas Gerais | D156: 1.475366896
A157: 2013-06-01 | B157: ASFALTOS DILUÍDOS CM-30 | C157: Pará | D157: -
A158: 2013-06-01 | B158: ASFALTOS DILUÍDOS CM-30 | C158: Paraíba | D158: -
A159: 2013-06-01 | B159: ASFALTOS DILUÍDOS CM-30 | C159: Paraná | D159: 1.432166974
A160: 2013-06-01 | B160: ASFALTOS DILUÍDOS CM-30 | C160: Pernambuco | D160: -
A161: 2013-06-01 | B161: ASFALTOS DILUÍDOS CM-30 | C161: Piauí | D161: -
A162: 2013-06-01 | B162: ASFALTOS DILUÍDOS CM-30 | C162: Rio de Janeiro | D162: 1.527420226
A163: 2013-06-01 | B163: ASFALTOS DILUÍDOS CM-30 | C163: Rio Grande do Norte | D163: -
A164: 2013-06-01 | B164: ASFALTOS DILUÍDOS CM-30 | C164: Rio Grande do Sul | D164: 1.59868349
A165: 2013-06-01 | B165: ASFALTOS DILUÍDOS CM-30 | C165: Rondônia | D165: -
A166: 2013-06-01 | B166: ASFALTOS DILUÍDOS CM-30 | C166: Roraima | D166: -
A167: 2013-06-01 | B167: ASFALTOS DILUÍDOS CM-30 | C167: Santa Catarina | D167: -
A168: 2013-06-01 | B168: ASFALTOS DILUÍDOS CM-30 | C168: São Paulo | D168: 1.432748187
A169: 2013-06-01 | B169: ASFALTOS DILUÍDOS CM-30 | C169: Sergipe | D169: -
A170: 2013-06-01 | B170: ASFALTOS DILUÍDOS CM-30 | C170: Tocantins | D170: -
A171: 2013-07-01 | B171: ASFALTOS DILUÍDOS CM-30 | C171: Acre | D171: -
A172: 2013-07-01 | B172: ASFALTOS DILUÍDOS CM-30 | C172: Alagoas | D172: -
A173: 2013-07-01 | B173: ASFALTOS DILUÍDOS CM-30 | C173: Amapá | D173: -
A174: 2013-07-01 | B174: ASFALTOS DILUÍDOS CM-30 | C174: Amazonas | D174: 1.509890931
A175: 2013-07-01 | B175: ASFALTOS DILUÍDOS CM-30 | C175: Bahia | D175: 1.436150016
A176: 2013-07-01 | B176: ASFALTOS DILUÍDOS CM-30 | C176: Ceará | D176: 1.424835845
A177: 2013-07-01 | B177: ASFALTOS DILUÍDOS CM-30 | C177: Distrito Federal | D177: -
A178: 2013-07-01 | B178: ASFALTOS DILUÍDOS CM-30 | C178: Espírito Santo | D178: -
A179: 2013-07-01 | B179: ASFALTOS DILUÍDOS CM-30 | C179: Goiás | D179: 1.663778454
A180: 2013-07-01 | B180: ASFALTOS DILUÍDOS CM-30 | C180: Maranhão | D180: -
A181: 2013-07-01 | B181: ASFALTOS DILUÍDOS CM-30 | C181: Mato Grosso | D181: 1.930589551
A182: 2013-07-01 | B182: ASFALTOS DILUÍDOS CM-30 | C182: Mato Grosso do Sul | D182: -
A183: 2013-07-01 | B183: ASFALTOS DILUÍDOS CM-30 | C183: Minas Gerais | D183: 1.476572352
A184: 2013-07-01 | B184: ASFALTOS DILUÍDOS CM-30 | C184: Pará | D184: -
A185: 2013-07-01 | B185: ASFALTOS DILUÍDOS CM-30 | C185: Paraíba | D185: -
A186: 2013-07-01 | B186: ASFALTOS DILUÍDOS CM-30 | C186: Paraná | D186: 1.477167274
A187: 2013-07-01 | B187: ASFALTOS DILUÍDOS CM-30 | C187: Pernambuco | D187: -
A188: 2013-07-01 | B188: ASFALTOS DILUÍDOS CM-30 | C188: Piauí | D188: -
A189: 2013-07-01 | B189: ASFALTOS DILUÍDOS CM-30 | C189: Rio de Janeiro | D189: 1.584464713
A190: 2013-07-01 | B190: ASFALTOS DILUÍDOS CM-30 | C190: Rio Grande do Norte | D190: -
A191: 2013-07-01 | B191: ASFALTOS DILUÍDOS CM-30 | C191: Rio Grande do Sul | D191: 1.612487925
A192: 2013-07-01 | B192: ASFALTOS DILUÍDOS CM-30 | C192: Rondônia | D192: -
A193: 2013-07-01 | B193: ASFALTOS DILUÍDOS CM-30 | C193: Roraima | D193: -
A194: 2013-07-01 | B194: ASFALTOS DILUÍDOS CM-30 | C194: Santa Catarina | D194: -
A195: 2013-07-01 | B195: ASFALTOS DILUÍDOS CM-30 | C195: São Paulo | D195: 1.507844909
A196: 2013-07-01 | B196: ASFALTOS DILUÍDOS CM-30 | C196: Sergipe | D196: -
A197: 2013-07-01 | B197: ASFALTOS DILUÍDOS CM-30 | C197: Tocantins | D197: -
A198: 2013-08-01 | B198: ASFALTOS DILUÍDOS CM-30 | C198: Acre | D198: -
A199: 2013-08-01 | B199: ASFALTOS DILUÍDOS CM-30 | C199: Alagoas | D199: -
A200: 2013-08-01 | B200: ASFALTOS DILUÍDOS CM-30 | C200: Amapá | D200: -
A201: 2013-08-01 | B201: ASFALTOS DILUÍDOS CM-30 | C201: Amazonas | D201: 1.509275641
A202: 2013-08-01 | B202: ASFALTOS DILUÍDOS CM-30 | C202: Bahia | D202: 1.416699323
A203: 2013-08-01 | B203: ASFALTOS DILUÍDOS CM-30 | C203: Ceará | D203: 1.447403364
... 4297 more rows

Sheet ANP REGIÃO (hidden)
A1: Agência Nacional do Petróleo, Gás Natural e Biocombustíveis
A2: Superintendência de Defesa da Concorrência
A6: PREÇO MÉDIO MENSAL PONDERADO PRATICADO PELOS DISTRIBUIDORES DE PRODUTOS ASFÁLTICOS (R$/KG)
A8: Produto | B8: Mês | C8: Norte | D8: Nordeste | E8: Centro-Oeste | F8: Sudeste | G8: Sul | H8: Brasil
A9: ASFALTOS DILUÍDOS CM-30 | B9: 2008-11-01 | C9: 1.775468292 | D9: 1.55087853 | E9: 2.022143291 | F9: 1.55449367 | G9: 1.584532899 | H9: 1.64286837
A10: ASFALTOS DILUÍDOS CM-30 | B10: 2008-12-01 | C10: 1.806837667 | D10: 1.509118192 | E10: 2.013020124 | F10: 1.610902223 | G10: 1.607187591 | H10: 1.637581471
A11: ASFALTOS DILUÍDOS CM-30 | B11: 2009-01-01 | C11: 1.497052858 | D11: 1.504296346 | E11: 1.963097671 | F11: 1.524672247 | G11: 1.585137209 | H11: 1.564945876
A12: ASFALTOS DILUÍDOS CM-30 | B12: 2009-02-01 | C12: 1.42787112 | D12: 1.497693283 | E12: 1.981065098 | F12: 1.583490231 | G12: 1.595924062 | H12: 1.565451036
A13: ASFALTOS DILUÍDOS CM-30 | B13: 2009-03-01 | C13: 1.404941405 | D13: 1.497647987 | E13: 1.893430263 | F13: 1.52754782 | G13: 1.588720029 | H13: 1.532713147
A14: ASFALTOS DILUÍDOS CM-30 | B14: 2009-04-01 | C14: 1.410510748 | D14: 1.484826261 | E14: 1.909226429 | F14: 1.464149371 | G14: 1.553831928 | H14: 1.516717648
A15: ASFALTOS DILUÍDOS CM-30 | B15: 2009-05-01 | C15: 1.480355678 | D15: 1.466898928 | E15: 1.891590435 | F15: 1.435443718 | G15: 1.54161118 | H15: 1.537574371
A16: ASFALTOS DILUÍDOS CM-30 | B16: 2009-06-01 | C16: 1.580751039 | D16: 1.444888837 | E16: 1.842074119 | F16: 1.424264315 | G16: 1.501526696 | H16: 1.541315575
A17: ASFALTOS DILUÍDOS CM-30 | B17: 2009-07-01 | C17: 1.905432476 | D17: 1.482618211 | E17: 1.949046345 | F17: 1.584435299 | G17: 1.610310436 | H17: 1.651032523
A18: ASFALTOS DILUÍDOS CM-30 | B18: 2009-08-01 | C18: 1.716995184 | D18: 1.423854915 | E18: 1.712385478 | F18: 1.418000805 | G18: 1.520643497 | H18: 1.504911469
A19: ASFALTOS DILUÍDOS CM-30 | B19: 2009-09-01 | C19: 1.64329494 | D19: 1.445317761 | E19: 1.731518803 | F19: 1.419374251 | G19: 1.500735895 | H19: 1.50552312
A20: ASFALTOS DILUÍDOS CM-30 | B20: 2009-10-01 | C20: 1.588031924 | D20: 1.458932649 | E20: 1.762015056 | F20: 1.429024419 | G20: 1.513753831 | H20: 1.511681904
A21: ASFALTOS DILUÍDOS CM-30 | B21: 2009-11-01 | C21: 1.639348604 | D21: 1.449059777 | E21: 1.772650817 | F21: 1.434122677 | G21: 1.526043188 | H21: 1.499657392
A22: ASFALTOS DILUÍDOS CM-30 | B22: 2009-12-01 | C22: 1.664266853 | D22: 1.441966636 | E22: 1.890574802 | F22: 1.429077727 | G22: 1.520539334 | H22: 1.508864598
A23: ASFALTOS DILUÍDOS CM-30 | B23: 2010-01-01 | C23: 1.842506144 | D23: 1.454977129 | E23: 1.865022447 | F23: 1.414817608 | G23: 1.474450765 | H23: 1.497735227
A24: ASFALTOS DILUÍDOS CM-30 | B24: 2010-02-01 | C24: 1.709886915 | D24: 1.442956487 | E24: 1.919844741 | F24: 1.433146251 | G24: 1.500882448 | H24: 1.496542251
A25: ASFALTOS DILUÍDOS CM-30 | B25: 2010-03-01 | C25: 1.535743416 | D25: 1.448880499 | E25: 1.935062728 | F25: 1.435026116 | G25: 1.480618635 | H25: 1.486789802
A26: ASFALTOS DILUÍDOS CM-30 | B26: 2010-04-01 | C26: 1.710046479 | D26: 1.440300254 | E26: 1.911935961 | F26: 1.421102153 | G26: 1.481270937 | H26: 1.511086431
A27: ASFALTOS DILUÍDOS CM-30 | B27: 2010-05-01 | C27: 1.755610465 | D27: 1.435277221 | E27: 1.873293889 | F27: 1.406944432 | G27: 1.48177605 | H27: 1.537170565
A28: ASFALTOS DILUÍDOS CM-30 | B28: 2010-06-01 | C28: 1.602224314 | D28: 1.396004336 | E28: 1.731734721 | F28: 1.399996227 | G28: 1.49193962 | H28: 1.498073418
A29: ASFALTOS DILUÍDOS CM-30 | B29: 2010-07-01 | C29: 1.559901627 | D29: 1.381016708 | E29: 1.732688214 | F29: 1.402904856 | G29: 1.473854427 | H29: 1.490075269
A30: ASFALTOS DILUÍDOS CM-30 | B30: 2010-08-01 | C30: 1.526639389 | D30: 1.38817836 | E30: 1.738946087 | F30: 1.398751236 | G30: 1.455749849 | H30: 1.495828516
A31: ASFALTOS DILUÍDOS CM-30 | B31: 2010-09-01 | C31: 1.565378829 | D31: 1.408204664 | E31: 1.757027378 | F31: 1.411642875 | G31: 1.487257745 | H31: 1.512257128
A32: ASFALTOS DILUÍDOS CM-30 | B32: 2010-10-01 | C32: 1.481711294 | D32: 1.404357715 | E32: 1.751159947 | F32: 1.403489437 | G32: 1.469340847 | H32: 1.49988826
A33: ASFALTOS DILUÍDOS CM-30 | B33: 2010-11-01 | C33: 1.519267672 | D33: 1.410130904 | E33: 1.779405625 | F33: 1.421283822 | G33: 1.458559112 | H33: 1.481658635
A34: ASFALTOS DILUÍDOS CM-30 | B34: 2010-12-01 | C34: 1.559287556 | D34: 1.40982051 | E34: 1.825185618 | F34: 1.417673572 | G34: 1.473243884 | H34: 1.469113031
A35: ASFALTOS DILUÍDOS CM-30 | B35: 2011-01-01 | C35: 1.525923305 | D35: 1.445794092 | E35: 1.774600924 | F35: 1.403274235 | G35: 1.466002814 | H35: 1.457256066
A36: ASFALTOS DILUÍDOS CM-30 | B36: 2011-02-01 | C36: 1.552825112 | D36: 1.392094259 | E36: 1.763836123 | F36: 1.385194937 | G36: 1.44955884 | H36: 1.426250478
A37: ASFALTOS DILUÍDOS CM-30 | B37: 2011-03-01 | C37: 1.469219693 | D37: 1.369442916 | E37: 1.696017922 | F37: 1.353812804 | G37: 1.435170694 | H37: 1.400130249
A38: ASFALTOS DILUÍDOS CM-30 | B38: 2011-04-01 | C38: 1.470570262 | D38: 1.373220492 | E38: 1.650829394 | F38: 1.345928103 | G38: 1.42199894 | H38: 1.400493522
A39: ASFALTOS DILUÍDOS CM-30 | B39: 2011-05-01 | C39: 1.428528955 | D39: 1.322646267 | E39: 1.700380913 | F39: 1.345068163 | G39: 1.439361431 | H39: 1.428058019
A40: ASFALTOS DILUÍDOS CM-30 | B40: 2011-06-01 | C40: 1.407622163 | D40: 1.305708657 | E40: 1.741843669 | F40: 1.354620495 | G40: 1.399501693 | H40: 1.44029982
A41: ASFALTOS DILUÍDOS CM-30 | B41: 2011-07-01 | C41: 1.259234065 | D41: 1.312033305 | E41: 1.737489696 | F41: 1.33656388 | G41: 1.422474887 | H41: 1.420839252
A42: ASFALTOS DILUÍDOS CM-30 | B42: 2011-08-01 | C42: 1.470680061 | D42: 1.299778765 | E42: 1.727443485 | F42: 1.341477821 | G42: 1.353018352 | H42: 1.425675534
A43: ASFALTOS DILUÍDOS CM-30 | B43: 2011-09-01 | C43: 1.56132872 | D43: 1.321196084 | E43: 1.729821548 | F43: 1.357451483 | G43: 1.395684798 | H43: 1.455202413
A44: ASFALTOS DILUÍDOS CM-30 | B44: 2011-10-01 | C44: 1.520569722 | D44: 1.326218736 | E44: 1.71738046 | F44: 1.332691392 | G44: 1.3577774 | H44: 1.442295871
A45: ASFALTOS DILUÍDOS CM-30 | B45: 2011-11-01 | C45: 1.465886334 | D45: 1.337041154 | E45: 1.741004886 | F45: 1.345486103 | G45: 1.447580565 | H45: 1.445354137
A46: ASFALTOS DILUÍDOS CM-30 | B46: 2011-12-01 | C46: 1.470883899 | D46: 1.335587636 | E46: 1.778724141 | F46: 1.408293068 | G46: 1.428112306 | H46: 1.422418604
A47: ASFALTOS DILUÍDOS CM-30 | B47: 2012-01-01 | C47: 1.384955015 | D47: 1.350130156 | E47: 1.780783883 | F47: 1.421354107 | G47: 1.430352474 | H47: 1.394658167
A48: ASFALTOS DILUÍDOS CM-30 | B48: 2012-02-01 | C48: 1.332181678 | D48: 1.368143891 | E48: 1.741020394 | F48: 1.400200985 | G48: 1.425400986 | H48: 1.410605707
A49: ASFALTOS DILUÍDOS CM-30 | B49: 2012-03-01 | C49: 1.411621867 | D49: 1.349122214 | E49: 1.620096006 | F49: 1.393295764 | G49: 1.406130569 | H49: 1.409768786
A50: ASFALTOS DILUÍDOS CM-30 | B50: 2012-04-01 | C50: 1.549007912 | D50: 1.383976456 | E50: 1.640712752 | F50: 1.404716397 | G50: 1.440617793 | H50: 1.45608482
A51: ASFALTOS DILUÍDOS CM-30 | B51: 2012-05-01 | C51: 1.596178941 | D51: 1.386362272 | E51: 1.712061183 | F51: 1.39923955 | G51: 1.448350887 | H51: 1.498461969
A52: ASFALTOS DILUÍDOS CM-30 | B52: 2012-06-01 | C52: 1.701432576 | D52: 1.388053518 | E52: 1.740352007 | F52: 1.422118749 | G52: 1.449196072 | H52: 1.527722717
A53: ASFALTOS DILUÍDOS CM-30 | B53: 2012-07-01 | C53: 1.652026742 | D53: 1.39436857 | E53: 1.718644846 | F53: 1.439670261 | G53: 1.46187567 | H53: 1.523069159
A54: ASFALTOS DILUÍDOS CM-30 | B54: 2012-08-01 | C54: 1.689998835 | D54: 1.40333785 | E54: 1.741895041 | F54: 1.421723369 | G54: 1.445685799 | H54: 1.536533078
A55: ASFALTOS DILUÍDOS CM-30 | B55: 2012-09-01 | C55: 1.690177972 | D55: 1.421500003 | E55: 1.780920724 | F55: 1.445180432 | G55: 1.483645866 | H55: 1.549410653
A56: ASFALTOS DILUÍDOS CM-30 | B56: 2012-10-01 | C56: 1.574840342 | D56: 1.417066109 | E56: 1.794832036 | F56: 1.451304526 | G56: 1.482037109 | H56: 1.550631802
A57: ASFALTOS DILUÍDOS CM-30 | B57: 2012-11-01 | C57: 1.655163526 | D57: 1.455878748 | E57: 1.840129766 | F57: 1.461204615 | G57: 1.483499722 | H57: 1.552500776
A58: ASFALTOS DILUÍDOS CM-30 | B58: 2012-12-01 | C58: 1.714876125 | D58: 1.435854741 | E58: 1.804066573 | F58: 1.45222765 | G58: 1.509417648 | H58: 1.523411999
A59: ASFALTOS DILUÍDOS CM-30 | B59: 2013-01-01 | C59: 1.495776335 | D59: 1.449494588 | E59: 1.854050525 | F59: 1.44638752 | G59: 1.563753675 | H59: 1.502137259
A60: ASFALTOS DILUÍDOS CM-30 | B60: 2013-02-01 | C60: 1.635067666 | D60: 1.420609638 | E60: 1.731071498 | F60: 1.442746356 | G60: 1.461828405 | H60: 1.4739561
A61: ASFALTOS DILUÍDOS CM-30 | B61: 2013-03-01 | C61: 1.646229098 | D61: 1.413299983 | E61: 1.83828087 | F61: 1.450015152 | G61: 1.525760413 | H61: 1.506542904
A62: ASFALTOS DILUÍDOS CM-30 | B62: 2013-04-01 | C62: 1.581864474 | D62: 1.399189564 | E62: 1.793825113 | F62: 1.458704755 | G62: 1.551913702 | H62: 1.523623636
A63: ASFALTOS DILUÍDOS CM-30 | B63: 2013-05-01 | C63: 1.815646773 | D63: 1.390143517 | E63: 1.812783313 | F63: 1.44951052 | G63: 1.504233457 | H63: 1.549918592
A64: ASFALTOS DILUÍDOS CM-30 | B64: 2013-06-01 | C64: 1.631101583 | D64: 1.383186536 | E64: 1.816642105 | F64: 1.474232641 | G64: 1.503043689 | H64: 1.581049429
A65: ASFALTOS DILUÍDOS CM-30 | B65: 2013-07-01 | C65: 1.86596563 | D65: 1.422051117 | E65: 1.793072753 | F65: 1.498018808 | G65: 1.533391901 | H65: 1.59880513
A66: ASFALTOS DILUÍDOS CM-30 | B66: 2013-08-01 | C66: 1.700325546 | D66: 1.435094415 | E66: 1.821452614 | F66: 1.511722868 | G66: 1.530793596 | H66: 1.606176585
A67: ASFALTOS DILUÍDOS CM-30 | B67: 2013-09-01 | C67: 1.562873733 | D67: 1.472197748 | E67: 1.879842712 | F67: 1.542652867 | G67: 1.490667543 | H67: 1.627945893
A68: ASFALTOS DILUÍDOS CM-30 | B68: 2013-10-01 | C68: 1.648504013 | D68: 1.472152345 | E68: 1.825494997 | F68: 1.501177682 | G68: 1.48378912 | H68: 1.597538775
A69: ASFALTOS DILUÍDOS CM-30 | B69: 2013-11-01 | C69: 1.619179062 | D69: 1.486413317 | E69: 1.844012679 | F69: 1.496326809 | G69: 1.506096878 | H69: 1.581665844
A70: ASFALTOS DILUÍDOS CM-30 | B70: 2013-12-01 | C70: 1.633358293 | D70: 1.494818097 | E70: 1.897197176 | F70: 1.502864538 | G70: 1.517074296 | H70: 1.572475244
A71: ASFALTOS DILUÍDOS CM-30 | B71: 2014-01-01 | C71: 1.688311265 | D71: 1.494181305 | E71: 1.798355903 | F71: 1.484202293 | G71: 1.533353813 | H71: 1.542909737
A72: ASFALTOS DILUÍDOS CM-30 | B72: 2014-02-01 | C72: 1.598304434 | D72: 1.479706587 | E72: 1.814390215 | F72: 1.514829392 | G72: 1.522800588 | H72: 1.528970287
A73: ASFALTOS DILUÍDOS CM-30 | B73: 2014-03-01 | C73: 1.648287687 | D73: 1.472852501 | E73: 1.76657319 | F73: 1.513020673 | G73: 1.506185248 | H73: 1.530181178
A74: ASFALTOS DILUÍDOS CM-30 | B74: 2014-04-01 | C74: 1.534459987 | D74: 1.493898767 | E74: 1.757271278 | F74: 1.533021309 | G74: 1.524275274 | H74: 1.550566305
A75: ASFALTOS DILUÍDOS CM-30 | B75: 2014-05-01 | C75: 1.58658327 | D75: 1.490834685 | E75: 1.804339251 | F75: 1.501138131 | G75: 1.567043824 | H75: 1.586452272
A76: ASFALTOS DILUÍDOS CM-30 | B76: 2014-06-01 | C76: 1.658277164 | D76: 1.505801121 | E76: 1.839593445 | F76: 1.5068632 | G76: 1.523776953 | H76: 1.636070702
A77: ASFALTOS DILUÍDOS CM-30 | B77: 2014-07-01 | C77: 1.890299542 | D77: 1.500730514 | E77: 1.708277865 | F77: 1.487293964 | G77: 1.505956069 | H77: 1.587065158
A78: ASFALTOS DILUÍDOS CM-30 | B78: 2014-08-01 | C78: 1.632741832 | D78: 1.501945324 | E78: 1.671203189 | F78: 1.482359341 | G78: 1.506327366 | H78: 1.557910377
A79: ASFALTOS DILUÍDOS CM-30 | B79: 2014-09-01 | C79: 1.66956717 | D79: 1.546830427 | E79: 1.864797016 | F79: 1.496764585 | G79: 1.570533242 | H79: 1.639281057
A80: ASFALTOS DILUÍDOS CM-30 | B80: 2014-10-01 | C80: 1.742876916 | D80: 1.508978569 | E80: 1.746650466 | F80: 1.470773645 | G80: 1.454273462 | H80: 1.57912022
A81: ASFALTOS DILUÍDOS CM-30 | B81: 2014-11-01 | C81: 1.864723419 | D81: 1.57943059 | E81: 1.749156218 | F81: 1.465084479 | G81: 1.529147988 | H81: 1.601359821
A82: ASFALTOS DILUÍDOS CM-30 | B82: 2014-12-01 | C82: 1.812671914 | D82: 1.704844348 | E82: 1.963310066 | F82: 1.623676702 | G82: 1.649644659 | H82: 1.718826981
A83: ASFALTOS DILUÍDOS CM-30 | B83: 2015-01-01 | C83: 2.154807062 | D83: 2.023760447 | E83: 2.318863736 | F83: 1.866588967 | G83: 1.898380434 | H83: 2.007792032
A84: ASFALTOS DILUÍDOS CM-30 | B84: 2015-02-01 | C84: 2.260238625 | D84: 2.005673765 | E84: 2.393875762 | F84: 1.854519766 | G84: 1.927395107 | H84: 2.007653781
A85: ASFALTOS DILUÍDOS CM-30 | B85: 2015-03-01 | C85: 2.124176462 | D85: 1.968822849 | E85: 2.279643254 | F85: 1.887760911 | G85: 1.930217145 | H85: 1.984816916
A86: ASFALTOS DILUÍDOS CM-30 | B86: 2015-04-01 | C86: 2.030049505 | D86: 2.001506448 | E86: 2.379118903 | F86: 1.85245167 | G86: 1.949025254 | H86: 1.98064321
A87: ASFALTOS DILUÍDOS CM-30 | B87: 2015-05-01 | C87: 2.507271651 | D87: 1.946869908 | E87: 2.254758192 | F87: 1.807470001 | G87: 2.016929536 | H87: 2.005474234
A88: ASFALTOS DILUÍDOS CM-30 | B88: 2015-06-01 | C88: 2.248320042 | D88: 1.944259736 | E88: 2.314331796 | F88: 1.846998595 | G88: 1.968565125 | H88: 2.042581344
A89: ASFALTOS DILUÍDOS CM-30 | B89: 2015-07-01 | C89: 1.992222758 | D89: 1.992791635 | E89: 2.046769953 | F89: 1.782648603 | G89: 1.931671385 | H89: 1.942627362
A90: ASFALTOS DILUÍDOS CM-30 | B90: 2015-08-01 | C90: 2.307605931 | D90: 2.038089127 | E90: 2.252748105 | F90: 1.828097705 | G90: 1.939824481 | H90: 2.08193616
A91: ASFALTOS DILUÍDOS CM-30 | B91: 2015-09-01 | C91: 2.314289704 | D91: 2.095307531 | E91: 2.344561987 | F91: 1.942551091 | G91: 2.005352614 | H91: 2.168175541
A92: ASFALTOS DILUÍDOS CM-30 | B92: 2015-10-01 | C92: 2.329456663 | D92: 2.170570012 | E92: 2.43273012 | F92: 2.035624751 | G92: 2.110261148 | H92: 2.237533782
A93: ASFALTOS DILUÍDOS CM-30 | B93: 2015-11-01 | C93: 2.606056566 | D93: 2.437098304 | E93: 2.711612141 | F93: 2.280113896 | G93: 2.326446297 | H93: 2.474998781
A94: ASFALTOS DILUÍDOS CM-30 | B94: 2015-12-01 | C94: 2.635374006 | D94: 2.395920309 | E94: 2.693528386 | F94: 2.272528129 | G94: 2.330740659 | H94: 2.452848156
A95: ASFALTOS DILUÍDOS CM-30 | B95: 2016-01-01 | C95: 2.715863993 | D95: 2.373861647 | E95: 2.844670602 | F95: 2.263650658 | G95: 2.232631691 | H95: 2.400563394
A96: ASFALTOS DILUÍDOS CM-30 | B96: 2016-02-01 | C96: 2.80468316 | D96: 2.466846816 | E96: 2.791787007 | F96: 2.295637115 | G96: 2.346556173 | H96: 2.464348548
A97: ASFALTOS DILUÍDOS CM-30 | B97: 2016-03-01 | C97: 2.5805021 | D97: 2.470678753 | E97: 2.707688025 | F97: 2.235301999 | G97: 2.383115972 | H97: 2.423563924
A98: ASFALTOS DILUÍDOS CM-30 | B98: 2016-04-01 | C98: 2.942006312 | D98: 2.740742032 | E98: 2.759071855 | F98: 2.544439178 | G98: 2.710751632 | H98: 2.680274833
A99: ASFALTOS DILUÍDOS CM-30 | B99: 2016-05-01 | C99: 3.010579472 | D99: 2.650277047 | E99: 2.857121361 | F99: 2.575583152 | G99: 2.770413362 | H99: 2.70973327
A100: ASFALTOS DILUÍDOS CM-30 | B100: 2016-06-01 | C100: 2.909179844 | D100: 2.621385041 | E100: 2.943487281 | F100: 2.659109515 | G100: 2.684759555 | H100: 2.743619517
A101: ASFALTOS DILUÍDOS CM-30 | B101: 2016-07-01 | C101: 2.985740381 | D101: 2.591644045 | E101: 2.98927803 | F101: 2.604396599 | G101: 2.660884423 | H101: 2.745135539
A102: ASFALTOS DILUÍDOS CM-30 | B102: 2016-08-01 | C102: 2.935243919 | D102: 2.623917329 | E102: 2.970490854 | F102: 2.679486504 | G102: 2.727025649 | H102: 2.781385962
A103: ASFALTOS DILUÍDOS CM-30 | B103: 2016-09-01 | C103: 2.649136821 | D103: 2.521054851 | E103: 2.781583925 | F103: 2.51393313 | G103: 2.371271501 | H103: 2.595617128
A104: ASFALTOS DILUÍDOS CM-30 | B104: 2016-10-01 | C104: 2.626109257 | D104: 2.444469093 | E104: 2.781617873 | F104: 2.507383127 | G104: 2.38325399 | H104: 2.566999037
A105: ASFALTOS DILUÍDOS CM-30 | B105: 2016-11-01 | C105: 2.535087408 | D105: 2.374145527 | E105: 2.952768674 | F105: 2.481263765 | G105: 2.382206771 | H105: 2.542842366
A106: ASFALTOS DILUÍDOS CM-30 | B106: 2016-12-01 | C106: 2.50039107 | D106: 2.253413483 | E106: 3.038519458 | F106: 2.589438892 | G106: 2.395593424 | H106: 2.476439295
A107: ASFALTOS DILUÍDOS CM-30 | B107: 2017-01-01 | C107: 2.392875504 | D107: 2.232695674 | E107: 3.089080971 | F107: 2.535744039 | G107: 2.378694833 | H107: 2.374216192
A108: ASFALTOS DILUÍDOS CM-30 | B108: 2017-02-01 | C108: 2.68039414 | D108: 2.271897225 | E108: 2.764408032 | F108: 2.573933685 | G108: 2.384644398 | H108: 2.470721466
A109: ASFALTOS DILUÍDOS CM-30 | B109: 2017-03-01 | C109: 2.23884121 | D109: 2.386958079 | E109: 2.667220252 | F109: 2.372165947 | G109: 2.30121887 | H109: 2.378796986
A110: ASFALTOS DILUÍDOS CM-30 | B110: 2017-04-01 | C110: 2.420191398 | D110: 2.307969596 | E110: 2.794093014 | F110: 2.258409912 | G110: 2.256434297 | H110: 2.380268484
A111: ASFALTOS DILUÍDOS CM-30 | B111: 2017-05-01 | C111: 2.432106692 | D111: 2.167919128 | E111: 2.699836936 | F111: 2.255387192 | G111: 2.204026958 | H111: 2.361515909
A112: ASFALTOS DILUÍDOS CM-30 | B112: 2017-06-01 | C112: 2.428301776 | D112: 2.181938689 | E112: 2.756672055 | F112: 2.234549022 | G112: 2.305778546 | H112: 2.44553453
A113: ASFALTOS DILUÍDOS CM-30 | B113: 2017-07-01 | C113: 2.453752061 | D113: 2.218075334 | E113: 2.694625022 | F113: 2.414329247 | G113: 2.269601102 | H113: 2.473436106
A114: ASFALTOS DILUÍDOS CM-30 | B114: 2017-08-01 | C114: 2.447930976 | D114: 2.153112031 | E114: 2.595349952 | F114: 2.302919065 | G114: 2.170148667 | H114: 2.380876423
A115: ASFALTOS DILUÍDOS CM-30 | B115: 2017-09-01 | C115: 2.494551504 | D115: 2.14243989 | E115: 2.623166503 | F115: 2.371308095 | G115: 2.303698507 | H115: 2.393542204
A116: ASFALTOS DILUÍDOS CM-30 | B116: 2017-10-01 | C116: 2.349953944 | D116: 2.18056004 | E116: 2.614160957 | F116: 2.415254962 | G116: 2.20079573 | H116: 2.367947121
A117: ASFALTOS DILUÍDOS CM-30 | B117: 2017-11-01 | C117: 2.670126991 | D117: 2.433169195 | E117: 2.908627464 | F117: 2.58469482 | G117: 2.415192709 | H117: 2.602101348
A118: ASFALTOS DILUÍDOS CM-30 | B118: 2017-12-01 | C118: 2.587352645 | D118: 2.425358882 | E118: 2.906633765 | F118: 2.602890298 | G118: 2.42288976 | H118: 2.531764464
A119: ASFALTOS DILUÍDOS CM-30 | B119: 2018-01-01 | C119: 2.950360755 | D119: 2.662862923 | E119: 2.875953993 | F119: 2.620738484 | G119: 2.646955252 | H119: 2.735956369
A120: ASFALTOS DILUÍDOS CM-30 | B120: 2018-02-01 | C120: 2.677899567 | D120: 2.672498164 | E120: 2.942595474 | F120: 2.62043113 | G120: 2.567885662 | H120: 2.668369933
A121: ASFALTOS DILUÍDOS CM-30 | B121: 2018-03-01 | C121: 2.733363025 | D121: 2.589050022 | E121: 2.809172556 | F121: 2.561928393 | G121: 2.575946067 | H121: 2.634876584
A122: ASFALTOS DILUÍDOS CM-30 | B122: 2018-04-01 | C122: 2.75780112 | D122: 2.669553602 | E122: 2.773908242 | F122: 2.59547006 | G122: 2.556042394 | H122: 2.6643302
A123: ASFALTOS DILUÍDOS CM-30 | B123: 2018-05-01 | C123: 2.841213362 | D123: 2.672025877 | E123: 2.884501482 | F123: 2.686718021 | G123: 2.736485103 | H123: 2.77737896
A124: ASFALTOS DILUÍDOS CM-30 | B124: 2018-06-01 | C124: 3.008444789 | D124: 2.919605178 | E124: 3.158454886 | F124: 2.84673108 | G124: 2.953523993 | H124: 2.982291635
A125: ASFALTOS DILUÍDOS CM-30 | B125: 2018-07-01 | C125: 3.268237549 | D125: 3.036524094 | E125: 3.399360399 | F125: 3.026467598 | G125: 3.19779631 | H125: 3.164126546
A126: ASFALTOS DILUÍDOS CM-30 | B126: 2018-08-01 | C126: 3.56441315 | D126: 3.415193769 | E126: 3.707706206 | F126: 3.425079349 | G126: 3.356722461 | H126: 3.515558112
A127: ASFALTOS DILUÍDOS CM-30 | B127: 2018-09-01 | C127: 3.173913778 | D127: 3.445064118 | E127: 3.73526324 | F127: 3.385816186 | G127: 3.607309454 | H127: 3.483238429
A128: ASFALTOS DILUÍDOS CM-30 | B128: 2018-10-01 | C128: 3.487778119 | D128: 3.460508804 | E128: 3.721444057 | F128: 3.432525565 | G128: 3.60602088 | H128: 3.545390344
A129: ASFALTOS DILUÍDOS CM-30 | B129: 2018-11-01 | C129: 4.047272484 | D129: 3.814893312 | E129: 4.280131586 | F129: 4.178126777 | G129: 3.967681367 | H129: 3.990147183
A130: ASFALTOS DILUÍDOS CM-30 | B130: 2018-12-01 | C130: 3.951491146 | D130: 3.967113195 | E130: 4.341144202 | F130: 3.916766066 | G130: 3.911993357 | H130: 3.999742654
A131: ASFALTOS DILUÍDOS CM-30 | B131: 2019-01-01 | C131: 3.796855325 | D131: 3.870018889 | E131: 4.201901762 | F131: 3.954196997 | G131: 3.976786028 | H131: 3.933951911
A132: ASFALTOS DILUÍDOS CM-30 | B132: 2019-02-01 | C132: 3.516584073 | D132: 4.090361178 | E132: 4.498422953 | F132: 4.469942475 | G132: 4.254590254 | H132: 4.188544679
A133: ASFALTOS DILUÍDOS CM-30 | B133: 2019-03-01 | C133: 4.216758117 | D133: 4.361910728 | E133: 4.907194889 | F133: 4.398717729 | G133: 4.290823922 | H133: 4.360295279
A134: ASFALTOS DILUÍDOS CM-30 | B134: 2019-04-01 | C134: 4.281648205 | D134: 4.234661428 | E134: 4.531627215 | F134: 4.43722653 | G134: 4.466881471 | H134: 4.38082044
A135: ASFALTOS DILUÍDOS CM-30 | B135: 2019-05-01 | C135: 4.287644659 | D135: 4.190699738 | E135: 4.857910872 | F135: 4.267461963 | G135: 4.633806379 | H135: 4.366402151
A136: ASFALTOS DILUÍDOS CM-30 | B136: 2019-06-01 | C136: 4.475609892 | D136: 3.965052934 | E136: 4.66272934 | F136: 4.350600604 | G136: 4.211229921 | H136: 4.319323669
A137: ASFALTOS DILUÍDOS CM-30 | B137: 2019-07-01 | C137: 4.394498989 | D137: 4.058039305 | E137: 4.834221945 | F137: 4.094659414 | G137: 4.233003281 | H137: 4.346977757
A138: ASFALTOS DILUÍDOS CM-30 | B138: 2019-08-01 | C138: 4.48173504 | D138: 3.910662496 | E138: 4.576329081 | F138: 4.11161654 | G138: 4.255419985 | H138: 4.258345083
A139: ASFALTOS DILUÍDOS CM-30 | B139: 2019-09-01 | C139: 4.439578796 | D139: 3.859904896 | E139: 4.495256968 | F139: 4.111321475 | G139: 4.117359152 | H139: 4.251607085
A140: ASFALTOS DILUÍDOS CM-30 | B140: 2019-10-01 | C140: 4.335888631 | D140: 3.772324962 | E140: 4.459242357 | F140: 4.056084115 | G140: 3.942458011 | H140: 4.07740702
A141: ASFALTOS DILUÍDOS CM-30 | B141: 2019-11-01 | C141: 4.316238692 | D141: 3.910245509 | E141: 4.581841077 | F141: 4.07902404 | G141: 4.106621274 | H141: 4.094561212
A142: ASFALTOS DILUÍDOS CM-30 | B142: 2019-12-01 | C142: 4.199435972 | D142: 3.980119663 | E142: 4.673774805 | F142: 4.434268142 | G142: 3.986410312 | H142: 4.164691616
A143: ASFALTOS DILUÍDOS CM-30 | B143: 2020-01-01 | C143: 3.59298003 | D143: 3.895320617 | E143: 4.685420623 | F143: 4.387074674 | G143: 4.124467668 | H143: 4.053338937
A144: ASFALTOS DILUÍDOS CM-30 | B144: 2020-02-01 | C144: 3.642667016 | D144: 3.877395187 | E144: 4.438194543 | F144: 3.699944607 | G144: 3.778164011 | H144: 3.839010438
A145: ASFALTOS DILUÍDOS CM-30 | B145: 2020-03-01 | C145: 4.676668339 | D145: 3.791138977 | E145: 4.289222343 | F145: 3.718402734 | G145: 3.60908619 | H145: 3.93117068
A146: ASFALTOS DILUÍDOS CM-30 | B146: 2020-04-01 | C146: 4.313362837 | D146: 3.6957655 | E146: 4.255395321 | F146: 3.865895531 | G146: 3.732253382 | H146: 3.964125211
A147: ASFALTOS DILUÍDOS CM-30 | B147: 2020-05-01 | C147: 3.249134658 | D147: 3.637769912 | E147: 4.113544882 | F147: 3.760550026 | G147: 3.710618099 | H147: 3.65617504
A148: ASFALTOS DILUÍDOS CM-30 | B148: 2020-06-01 | C148: 4.017903076 | D148: 3.567031492 | E148: 4.277369171 | F148: 3.937886485 | G148: 3.625830069 | H148: 3.924524506
A149: ASFALTOS DILUÍDOS CM-30 | B149: 2020-07-01 | C149: 3.840497509 | D149: 3.51327048 | E149: 4.21549069 | F149: 3.954223886 | G149: 3.688841275 | H149: 3.843774448
A150: ASFALTOS DILUÍDOS CM-30 | B150: 2020-08-01 | C150: 4.174467203 | D150: 3.465394219 | E150: 4.277710211 | F150: 4.06746494 | G150: 3.62858863 | H150: 3.947166917
A151: ASFALTOS DILUÍDOS CM-30 | B151: 2020-09-01 | C151: 4.167371331 | D151: 3.746360816 | E151: 4.167424356 | F151: 3.795621791 | G151: 3.627729935 | H151: 3.973129945
A152: ASFALTOS DILUÍDOS CM-30 | B152: 2020-10-01 | C152: 4.408099527 | D152: 3.718989878 | E152: 4.278979192 | F152: 4.008746906 | G152: 3.591048183 | H152: 4.03964377
A153: ASFALTOS DILUÍDOS CM-30 | B153: 2020-11-01 | C153: 4.056306006 | D153: 3.969209281 | E153: 4.547900893 | F153: 4.27945542 | G153: 3.973347244 | H153: 4.175826149
A154: ASFALTOS DILUÍDOS CM-30 | B154: 2020-12-01 | C154: 4.132064138 | D154: 3.851632751 | E154: 4.426704386 | F154: 3.906236422 | G154: 3.8709398 | H154: 4.035347374
A155: ASFALTOS DILUÍDOS CM-30 | B155: 2021-01-01 | C155: 3.489836333 | D155: 3.951525937 | E155: 4.628269702 | F155: 4.011577011 | G155: 3.935136638 | H155: 3.917092391
A156: ASFALTOS DILUÍDOS CM-30 | B156: 2021-02-01 | C156: 4.099318116 | D156: 4.267109523 | E156: 4.832061615 | F156: 4.414202706 | G156: 4.149048932 | H156: 4.26819704
A157: ASFALTOS DILUÍDOS CM-30 | B157: 2021-03-01 | C157: 4.528355792 | D157: 4.239831731 | E157: 4.926314562 | F157: 4.269697839 | G157: 4.130655409 | H157: 4.377833785
A158: ASFALTOS DILUÍDOS CM-30 | B158: 2021-04-01 | C158: 4.349271867 | D158: 4.086995154 | E158: 4.477597522 | F158: 4.156113398 | G158: 4.044189822 | H158: 4.253361798
A159: ASFALTOS DILUÍDOS CM-30 | B159: 2021-05-01 | C159: 4.488889413 | D159: 4.707945815 | E159: 5.101489686 | F159: 4.784034896 | G159: 4.523986615 | H159: 4.790548085
A160: ASFALTOS DILUÍDOS CM-30 | B160: 2021-06-01 | C160: 4.010467711 | D160: 4.479592126 | E160: 5.113041212 | F160: 4.779739905 | G160: 4.721214307 | H160: 4.764890884
A161: ASFALTOS DILUÍDOS CM-30 | B161: 2021-07-01 | C161: 4.752234128 | D161: 4.559350506 | E161: 5.004758283 | F161: 4.80272972 | G161: 4.748550678 | H161: 4.817586047
A162: ASFALTOS DILUÍDOS CM-30 | B162: 2021-08-01 | C162: 5.085284532 | D162: 4.772501255 | E162: 5.198537142 | F162: 5.244735259 | G162: 4.76131175 | H162: 5.0981692
A163: ASFALTOS DILUÍDOS CM-30 | B163: 2021-09-01 | C163: 5.110300267 | D163: 4.538072365 | E163: 5.241721185 | F163: 5.017144197 | G163: 4.862861245 | H163: 5.016958886
A164: ASFALTOS DILUÍDOS CM-30 | B164: 2021-10-01 | C164: 5.080697261 | D164: 4.66826742 | E164: 5.119544199 | F164: 5.384779065 | G164: 4.658516432 | H164: 5.021294312
A165: ASFALTOS DILUÍDOS CM-30 | B165: 2021-11-01 | C165: 5.436518753 | D165: 5.08776781 | E165: 5.150063985 | F165: 5.634257884 | G165: 5.174530131 | H165: 5.228141289
A166: ASFALTOS DILUÍDOS CM-30 | B166: 2021-12-01 | C166: 5.184291386 | D166: 4.975486975 | E166: 5.572122251 | F166: 6.135655205 | G166: 5.01180992 | H166: 5.339565801
A167: ASFALTOS DILUÍDOS CM-30 | B167: 2022-01-01 | C167: 4.928191974 | D167: 5.023555623 | E167: 6.018407512 | F167: 5.214773026 | G167: 5.481979244 | H167: 5.250789679
A168: ASFALTOS DILUÍDOS CM-30 | B168: 2022-02-01 | C168: 5.545684189 | D168: 5.708628413 | E168: 6.011065894 | F168: 4.8651 | G168: 5.763367147 | H168: 5.736057428
A169: ASFALTOS DILUÍDOS CM-30 | B169: 2022-03-01 | C169: 6.326844735 | D169: 5.644687904 | E169: 5.930807225 | F169: 6.181141143 | G169: 5.498041682 | H169: 5.922781038
A170: ASFALTOS DILUÍDOS CM-30 | B170: 2022-04-01 | C170: 5.974220681 | D170: 5.832747324 | E170: 6.206692615 | F170: 5.720329997 | G170: 6.17800291 | H170: 6.012354229
A171: ASFALTOS DILUÍDOS CM-30 | B171: 2022-05-01 | C171: 5.354015586 | D171: 5.464335309 | E171: 6.007611639 | F171: 5.995095583 | G171: 5.49095009 | H171: 5.670722744
A172: ASFALTOS DILUÍDOS CM-30 | B172: 2022-06-01 | C172: 5.802443798 | D172: 5.316964203 | E172: 5.25267889 | F172: 5.813931518 | G172: 5.644996328 | H172: 5.469498687
A173: ASFALTOS DILUÍDOS CM-30 | B173: 2022-07-01 | C173: 5.965614765 | D173: 5.829314879 | E173: 5.919099711 | F173: 5.742484775 | G173: 5.674430543 | H173: 5.862020702
A174: ASFALTOS DILUÍDOS CM-30 | B174: 2022-08-01 | C174: 6.424230463 | D174: 5.758256878 | E174: 5.752352843 | F174: 5.791905352 | G174: 5.31271724 | H174: 5.823186051
A175: ASFALTOS DILUÍDOS CM-30 | B175: 2022-09-01 | C175: 5.540097074 | D175: 5.609921619 | E175: 5.963592489 | F175: 5.302181194 | G175: 4.977929161 | H175: 5.699429921
A176: ASFALTOS DILUÍDOS CM-30 | B176: 2022-10-01 | C176: 4.785670999 | D176: 4.727521094 | E176: 5.339105147 | F176: 4.851160007 | G176: 4.532580513 | H176: 5.041661715
A177: ASFALTOS DILUÍDOS CM-30 | B177: 2022-11-01 | C177: 7.765855923 | D177: 4.775654982 | E177: 5.237626127 | F177: 4.636383138 | G177: 4.460593179 | H177: 5.074993862
A178: ASFALTOS DILUÍDOS CM-30 | B178: 2022-12-01 | C178: 4.65725 | D178: 4.966905362 | E178: 5.655161554 | F178: 4.840935672 | G178: 4.661007861 | H178: 5.11324949
A179: ASFALTOS DILUÍDOS CM-30 | B179: 2023-01-01 | C179: 4.948950319 | D179: 5.056264922 | E179: 5.359597966 | F179: 4.426497959 | G179: 4.103267888 | H179: 4.715605129
A180: ASFALTOS DILUÍDOS CM-30 | B180: 2023-02-01 | C180: 5.407494667 | D180: 4.335771195 | E180: 4.746646601 | F180: 4.674884727 | G180: 4.014547173 | H180: 4.417800736
A181: ASFALTOS DILUÍDOS CM-30 | B181: 2023-03-01 | C181: 4.99131 | D181: 4.01354912 | E181: 4.74625028 | F181: 4.08071937 | G181: 4.082484954 | H181: 4.270345723
A182: ASFALTOS DILUÍDOS CM-30 | B182: 2023-04-01 | C182: 4.438479015 | D182: 4.094201354 | E182: 5.135816186 | F182: 4.368265095 | G182: 3.859308149 | H182: 4.153818797
A183: ASFALTOS DILUÍDOS CM-30 | B183: 2023-05-01 | C183: 5.018589297 | D183: 4.506282643 | E183: 5.616638293 | F183: 4.034756925 | G183: 4.063701717 | H183: 4.686492725
A184: ASFALTOS DILUÍDOS CM-30 | B184: 2023-06-01 | C184: 4.439644526 | D184: 4.495805354 | E184: 5.228174524 | F184: 3.772028745 | G184: 4.009042073 | H184: 4.588045148
A185: ASFALTOS DILUÍDOS CM-30 | B185: 2023-07-01 | C185: 4.360399352 | D185: 4.250187634 | E185: 6.188049155 | F185: 3.699216781 | G185: 4.315773768 | H185: 4.790717553
A186: ASFALTOS DILUÍDOS CM-30 | B186: 2023-08-01 | C186: 4.043215999 | D186: 4.100901709 | E186: 5.414198228 | F186: 3.964297949 | G186: 4.055989778 | H186: 4.607810697
A187: ASFALTOS DILUÍDOS CM-30 | B187: 2023-09-01 | C187: 5.69501625 | D187: 4.358586276 | E187: 5.187252517 | F187: 4.112508656 | G187: 4.211646236 | H187: 4.748640211
A188: ASFALTOS DILUÍDOS CM-30 | B188: 2023-10-01 | C188: 5.685185 | D188: 4.294075647 | E188: 4.912919476 | F188: 4.365095101 | G188: 4.257370162 | H188: 4.609445905
A189: ASFALTOS DILUÍDOS CM-30 | B189: 2023-11-01 | C189: 4.815085397 | D189: 4.345599447 | E189: 5.404502747 | F189: 4.045271104 | G189: 4.164697405 | H189: 4.781498943
A190: ASFALTOS DILUÍDOS CM-30 | B190: 2023-12-01 | C190: 5.411492308 | D190: 4.700043896 | E190: 5.306415734 | F190: 4.313216862 | G190: 4.188732062 | H190: 4.664845353
A191: ASFALTOS DILUÍDOS CM-30 | B191: 2024-01-01 | C191: 3.716178391 | D191: 4.395163811 | E191: 4.888126947 | F191: 3.977196797 | G191: 4.057095331 | H191: 4.290228903
A192: ASFALTOS DILUÍDOS CM-30 | B192: 2024-02-01 | C192: 5.349588571 | D192: 4.281881871 | E192: 5.36118056 | F192: 4.287786155 | G192: 4.151112946 | H192: 4.366194996
A193: ASFALTOS DILUÍDOS CM-30 | B193: 2024-03-01 | C193: 6.437624165 | D193: 4.512948358 | E193: 4.994035932 | F193: 4.680610304 | G193: 4.197388123 | H193: 4.725137967
A194: ASFALTOS DILUÍDOS CM-30 | B194: 2024-04-01 | C194: 6.524010018 | D194: 5.333668875 | E194: 5.011370357 | F194: 3.991999626 | G194: 4.15116124 | H194: 4.439406986
A195: ASFALTOS DILUÍDOS CM-30 | B195: 2024-05-01 | C195: 6.61993633 | D195: *** | E195: 5.21538288 | F195: 4.24855796 | G195: 4.478170767 | H195: 4.960078568
A196: ASFALTOS DILUÍDOS CM-30 | B196: 2024-06-01 | C196: 6.461820806 | D196: 4.288169263 | E196: 4.921606124 | F196: 4.517339741 | G196: 4.897585787 | H196: 4.922850803
A197: ASFALTOS DILUÍDOS CM-30 | B197: 2024-07-01 | C197: 6.120612239 | D197: 4.599255433 | E197: 5.497451069 | F197: 4.667838533 | G197: 4.514452653 | H197: 4.962740397
A198: ASFALTOS DILUÍDOS CM-30 | B198: 2024-08-01 | C198: 4.993225349 | D198: 4.428025283 | E198: 5.661947528 | F198: 4.958688154 | G198: 4.60903985 | H198: 5.143625042
A199: ASFALTOS DILUÍDOS CM-30 | B199: 2024-09-01 | C199: 6.554494856 | D199: 4.508326987 | E199: 5.819155159 | F199: 5.012107159 | G199: 4.596016256 | H199: 5.205694528
A200: ASFALTOS DILUÍDOS CM-70 | B200: 2008-11-01 | C200: *** | D200: *** | E200: *** | F200: *** | G200: *** | H200: ***
A201: ASFALTOS DILUÍDOS CM-70 | B201: 2008-12-01 | C201: *** | D201: *** | E201: *** | F201: *** | G201: *** | H201: ***
A202: ASFALTOS DILUÍDOS CM-70 | B202: 2009-01-01 | C202: *** | D202: *** | E202: *** | F202: *** | G202: *** | H202: ***
A203: ASFALTOS DILUÍDOS CM-70 | B203: 2009-02-01 | C203: *** | D203: *** | E203: *** | F203: *** | G203: *** | H203: ***
A204: ASFALTOS DILUÍDOS CM-70 | B204: 2009-03-01 | C204: *** | D204: *** | E204: *** | F204: *** | G204: *** | H204: ***
... 4654 more rows

Sheet Curva ABC (hidden)
B2: Item | C2: Descrição | D2: Total R$ | E2: % individual | F2: % acumul. | G2: Classe | I2: Onde: | J2: A <= | K2: 0.75
A3: 1 | B3: =VLOOKUP(A3,'RESUMO MODULO TOTAL'!B11:N50,1,0) -> 1 | C3: =VLOOKUP(B3,#REF!,4,0) ->  | D3: =VLOOKUP(B3,#REF!,13,0) ->  | E3: =D3/#REF! ->  | F3: =E3 ->  | G3: =IF(F3<=$K$2,"A",IF(AND(F3<=$L$3,F3>$J$3),"B",IF(F3>$K$4,"C"))) ->  | J3: 0.75 | K3: < B <= | L3: 0.95
A4: 2 | B4: =VLOOKUP(A4,#REF!,2,0) ->  | C4: =VLOOKUP(B4,#REF!,4,0) ->  | D4: =VLOOKUP(B4,#REF!,13,0) ->  | E4: =D4/#REF! ->  | F4: =F3+E4 ->  | G4: =IF(F4<=$K$2,"A",IF(AND(F4<=$L$3,F4>$J$3),"B",IF(F4>$K$4,"C"))) ->  | J4: C > | K4: 0.95
A5: 3 | B5: =VLOOKUP(A5,#REF!,2,0) ->  | C5: =VLOOKUP(B5,#REF!,4,0) ->  | D5: =VLOOKUP(B5,#REF!,13,0) ->  | E5: =D5/#REF! ->  | F5: =F4+E5 ->  | G5: =IF(F5<=$K$2,"A",IF(AND(F5<=$L$3,F5>$J$3),"B",IF(F5>$K$4,"C"))) -> 
A6: 4 | B6: =VLOOKUP(A6,#REF!,2,0) ->  | C6: =VLOOKUP(B6,#REF!,4,0) ->  | D6: =VLOOKUP(B6,#REF!,13,0) ->  | E6: =D6/#REF! -> 
A7: 5 | B7: =VLOOKUP(A7,#REF!,2,0) ->  | C7: =VLOOKUP(B7,#REF!,4,0) ->  | D7: =VLOOKUP(B7,#REF!,13,0) ->  | E7: =D7/#REF! -> 
A8: 6 | B8: =VLOOKUP(A8,#REF!,2,0) ->  | C8: =VLOOKUP(B8,#REF!,4,0) ->  | D8: =VLOOKUP(B8,#REF!,13,0) ->  | E8: =D8/#REF! -> 
A9: 7 | B9: =VLOOKUP(A9,#REF!,2,0) ->  | C9: =VLOOKUP(B9,#REF!,4,0) ->  | D9: =VLOOKUP(B9,#REF!,13,0) ->  | E9: =D9/#REF! -> 
A10: 8 | B10: =VLOOKUP(A10,#REF!,2,0) ->  | C10: =VLOOKUP(B10,#REF!,4,0) ->  | D10: =VLOOKUP(B10,#REF!,13,0) ->  | E10: =D10/#REF! -> 
A11: 9 | B11: =VLOOKUP(A11,#REF!,2,0) ->  | C11: =VLOOKUP(B11,#REF!,4,0) ->  | D11: =VLOOKUP(B11,#REF!,13,0) ->  | E11: =D11/#REF! -> 
A12: 10 | B12: =VLOOKUP(A12,#REF!,2,0) ->  | C12: =VLOOKUP(B12,#REF!,4,0) ->  | D12: =VLOOKUP(B12,#REF!,13,0) ->  | E12: =D12/#REF! -> 
A13: 11 | B13: =VLOOKUP(A13,#REF!,2,0) ->  | C13: =VLOOKUP(B13,#REF!,4,0) ->  | D13: =VLOOKUP(B13,#REF!,13,0) ->  | E13: =D13/#REF! -> 
A14: 12 | B14: =VLOOKUP(A14,#REF!,2,0) ->  | C14: =VLOOKUP(B14,#REF!,4,0) ->  | D14: =VLOOKUP(B14,#REF!,13,0) ->  | E14: =D14/#REF! -> 
A15: 13 | B15: =VLOOKUP(A15,#REF!,2,0) ->  | C15: =VLOOKUP(B15,#REF!,4,0) ->  | D15: =VLOOKUP(B15,#REF!,13,0) ->  | E15: =D15/#REF! -> 
A16: 14 | B16: =VLOOKUP(A16,#REF!,2,0) ->  | C16: =VLOOKUP(B16,#REF!,4,0) ->  | D16: =VLOOKUP(B16,#REF!,13,0) ->  | E16: =D16/#REF! -> 
A17: 15 | B17: =VLOOKUP(A17,#REF!,2,0) ->  | C17: =VLOOKUP(B17,#REF!,4,0) ->  | D17: =VLOOKUP(B17,#REF!,13,0) ->  | E17: =D17/#REF! -> 
A18: 16 | B18: =VLOOKUP(A18,#REF!,2,0) ->  | C18: =VLOOKUP(B18,#REF!,4,0) ->  | D18: =VLOOKUP(B18,#REF!,13,0) ->  | E18: =D18/#REF! -> 
A19: 17 | B19: =VLOOKUP(A19,#REF!,2,0) ->  | C19: =VLOOKUP(B19,#REF!,4,0) ->  | D19: =VLOOKUP(B19,#REF!,13,0) ->  | E19: =D19/#REF! -> 
A20: 18 | B20: =VLOOKUP(A20,#REF!,2,0) ->  | C20: =VLOOKUP(B20,#REF!,4,0) ->  | D20: =VLOOKUP(B20,#REF!,13,0) ->  | E20: =D20/#REF! -> 
A21: 19 | B21: =VLOOKUP(A21,#REF!,2,0) ->  | C21: =VLOOKUP(B21,#REF!,4,0) ->  | D21: =VLOOKUP(B21,#REF!,13,0) ->  | E21: =D21/#REF! -> 
A22: 20 | B22: =VLOOKUP(A22,#REF!,2,0) ->  | C22: =VLOOKUP(B22,#REF!,4,0) ->  | D22: =VLOOKUP(B22,#REF!,13,0) ->  | E22: =D22/#REF! -> 
A23: 21 | B23: =VLOOKUP(A23,#REF!,2,0) ->  | C23: =VLOOKUP(B23,#REF!,4,0) ->  | D23: =VLOOKUP(B23,#REF!,13,0) ->  | E23: =D23/#REF! -> 
A24: 22 | B24: =VLOOKUP(A24,#REF!,2,0) ->  | C24: =VLOOKUP(B24,#REF!,4,0) ->  | D24: =VLOOKUP(B24,#REF!,13,0) ->  | E24: =D24/#REF! -> 
A25: 23 | B25: =VLOOKUP(A25,#REF!,2,0) ->  | C25: =VLOOKUP(B25,#REF!,4,0) ->  | D25: =VLOOKUP(B25,#REF!,13,0) ->  | E25: =D25/#REF! -> 
A26: 24 | B26: =VLOOKUP(A26,#REF!,2,0) ->  | C26: =VLOOKUP(B26,#REF!,4,0) ->  | D26: =VLOOKUP(B26,#REF!,13,0) ->  | E26: =D26/#REF! -> 
A27: 25 | B27: =VLOOKUP(A27,#REF!,2,0) ->  | C27: =VLOOKUP(B27,#REF!,4,0) ->  | D27: =VLOOKUP(B27,#REF!,13,0) ->  | E27: =D27/#REF! -> 
A28: 26 | B28: =VLOOKUP(A28,#REF!,2,0) ->  | C28: =VLOOKUP(B28,#REF!,4,0) ->  | D28: =VLOOKUP(B28,#REF!,13,0) ->  | E28: =D28/#REF! ->  | F28: =F27+E28 ->  | G28: =IF(F28<=$K$2,"A",IF(AND(F28<=$L$3,F28>$J$3),"B",IF(F28>$K$4,"C"))) -> 
A29: 27 | B29: =VLOOKUP(A29,#REF!,2,0) ->  | C29: =VLOOKUP(B29,#REF!,4,0) ->  | D29: =VLOOKUP(B29,#REF!,13,0) ->  | E29: =D29/#REF! -> 
A30: 28 | B30: =VLOOKUP(A30,#REF!,2,0) ->  | C30: =VLOOKUP(B30,#REF!,4,0) ->  | D30: =VLOOKUP(B30,#REF!,13,0) ->  | E30: =D30/#REF! -> 
A31: 29 | B31: =VLOOKUP(A31,#REF!,2,0) ->  | C31: =VLOOKUP(B31,#REF!,4,0) ->  | D31: =VLOOKUP(B31,#REF!,13,0) ->  | E31: =D31/#REF! -> 
A32: 30 | B32: =VLOOKUP(A32,#REF!,2,0) ->  | C32: =VLOOKUP(B32,#REF!,4,0) ->  | D32: =VLOOKUP(B32,#REF!,13,0) ->  | E32: =D32/#REF! -> 
A33: 31 | B33: =VLOOKUP(A33,#REF!,2,0) ->  | C33: =VLOOKUP(B33,#REF!,4,0) ->  | D33: =VLOOKUP(B33,#REF!,13,0) ->  | E33: =D33/#REF! -> 
A34: 32 | B34: =VLOOKUP(A34,#REF!,2,0) ->  | C34: =VLOOKUP(B34,#REF!,4,0) ->  | D34: =VLOOKUP(B34,#REF!,13,0) ->  | E34: =D34/#REF! -> 

Sheet MATERIAL SICRO (hidden)
A1: CGCIT | B1: SISTEMA DE CUSTOS REFERENCIAIS DE OBRAS - SICRO | D1: DNIT
B2: Pernambuco - Julho/2024
A3: Código | B3: Descrição | C3: Unidade | D3: Preço Unitário (R$)
A4: M0003 | B4: Aço CA 25 | C4: kg | D4: 6.2117
A5: M0004 | B5: Aço CA 50 | C5: kg | D5: 6.085
A6: M0005 | B6: Brita 0 | C6: m³ | D6: 135.2562
A7: M0006 | B7: Fibra de poliamida para concreto | C7: kg | D7: 27.8816
A8: M0007 | B8: Fibra de aço para concreto | C8: kg | D8: 13.6189
A9: M0008 | B9: Detergente líquido neutro | C9: l | D9: 4.4798
A10: M0009 | B10: Aço CP 175 RB | C10: kg | D10: 8.937
A11: M0010 | B11: Aditivo superplastificante para concreto e argamassa | C11: kg | D11: 17.2741
A12: M0011 | B12: Aditivo modificador de viscosidade para concreto e argamassa | C12: kg | D12: 10.3811
A13: M0012 | B13: Silicato de alumínio | C13: kg | D13: 2.11
A14: M0013 | B14: Grampo de ancoragem em aço CA 50 - D = 12,5 mm | C14: kg | D14: 6.085
A15: M0014 | B15: Aço CA 60 | C15: kg | D15: 7.6583
A16: M0015 | B16: Espoleta elétrica Nº 8 - D = 6,0 mm | C16: un | D16: 20.9776
A17: M0016 | B17: Grampo sargento em ferro fundido tipo C com abertura útil de 105 mm (4") | C17: un | D17: 46.8348
A18: M0017 | B18: Saco de aniagem ou de ráfia de 50 kg - C = 95 cm e L = 65 cm | C18: un | D18: 2.7908
A19: M0018 | B19: Grampo pesado em aço-carbono para cabo de aço - D = 13 mm (1/2") | C19: un | D19: 19.0274
A20: M0019 | B20: Esticador em aço tipo olhal x olhal para cabo de aço - D = 13 mm | C20: un | D20: 133.7028
A21: M0020 | B21: Grampo de ancoragem em aço CA 50 - D = 6,3 mm | C21: kg | D21: 6.8027
A22: M0021 | B22: Herbicida glifosato para áreas contínuas | C22: l | D22: 26.5159
A23: M0025 | B23: Adesivo plástico para tubos de PVC | C23: kg | D23: 51.9944
A24: M0026 | B24: Aditivo aglutinante para argamassa | C24: l | D24: 7.9122
A25: M0028 | B25: Areia média | C25: m³ | D25: 121.8512
A26: M0029 | B26: Sílica ativa para concreto e argamassa (microssílica) | C26: kg | D26: 2.0053
A27: M0030 | B27: Aditivo plastificante e retardador de pega para concreto e argamassa | C27: kg | D27: 6.6067
A28: M0032 | B28: Adesivo de contato para laminado elastoplástico | C28: kg | D28: 48.6382
A29: M0035 | B29: Diluente tipo aguarrás para tintas e vernizes | C29: l | D29: 14.768
A30: M0039 | B30: Gasolina comum | C30: l | D30: 5.2236
A31: M0041 | B31: Contêiner com 2 banheiros - L = 2,44 m e C = 6,09 m (1 TEU) | C31: un | D31: 81103.883
A32: M0042 | B32: Contêiner com janela - L = 2,44 m e C = 6,09 m (1 TEU) | C32: un | D32: 56753.8324
A33: M0043 | B33: Óleo diesel | C33: l | D33: 5.23
A34: M0044 | B34: Abrasivo de vidro com granulometria de 210 a 420 micra | C34: kg | D34: 9.46
A35: M0045 | B35: Barreira plástica monobloco para canalização de trânsito - C = 100 cm, L = 50 cm e H = 55 cm | C35: un | D35: 505.0111
A36: M0046 | B36: Barreira plástica para canalização de trânsito - C = 60 cm, L = 45 cm e H = 60 cm | C36: un | D36: 316.8834
A37: M0047 | B37: Cone de sinalização em polietileno - H = 75 cm e base quadrada de 40 x 40 cm | C37: un | D37: 100.0035
A38: M0048 | B38: Balizador cônico refletivo em polietileno semiflexível - H = 114 cm e base octogonal de D = 40 cm | C38: un | D38: 151.66
A39: M0049 | B39: Delimitador de tráfego flexível com chumbador e duas faixas refletivas - H = 77 cm e D = 21 cm | C39: un | D39: 187.5701
A40: M0050 | B40: Aditivo natural tipo goma xantana para hidrossemeadura | C40: kg | D40: 103.714
A41: M0051 | B41: Cilindro canalizador de tráfego em polietileno - H = 117 cm e base quadrada de 60 x 60 cm | C41: un | D41: 203.167
A42: M0052 | B42: Fita adesiva de PVC - L = 50 mm e C = 50 m | C42: m | D42: 0.1123
A43: M0053 | B43: Tela plástica em polipropileno na cor laranja para tapume - L = 1,2 m | C43: m | D43: 1.8815
A44: M0054 | B44: Fita zebrada de cor laranja e branca - L = 7 a 8 cm | C44: m | D44: 0.071
A45: M0055 | B45: Barreira plástica articulável modular - C = 240 cm e H = 100 cm | C45: un | D45: 1269.5155
A46: M0056 | B46: Ferramenta de corte para removedora de faixa de sinalização (Smith Cutter) | C46: un | D46: 7545.9611
A47: M0057 | B47: Contêiner com janela - L = 4,88 m e C = 6,09 m (1 TEU duplo) | C47: un | D47: 115496.1674
A48: M0058 | B48: Contêiner com janela e 2 banheiros - L = 4,88 m e C = 6,09 m (1 TEU duplo) | C48: un | D48: 122015.6674
A49: M0059 | B49: Contêiner com revestimento térmico, janela e banheiro - L = 2,44 m e C = 6,09 m (1 TEU) | C49: un | D49: 75525.1165
A50: M0060 | B50: Contêiner com janela - L = 2,44 m e C = 4,58 m (3/4 TEU) | C50: un | D50: 58223.1362
A51: M0065 | B51: Contêiner com janela e banheiro - L = 2,44 m e 4,58 m (3/4 TEU) | C51: un | D51: 71486.138
A52: M0066 | B52: Contêiner com revestimento térmico, janela e banheiro - L = 2,44 m e C = 12,90 m (2 TEU) | C52: un | D52: 119944.3784
A53: M0067 | B53: Tubo PEAD PE 100 PN 10 com flanges - D = 160 mm | C53: m | D53: 169.9148
A54: M0068 | B54: Caibro de pinho - L = 7,5 cm e E = 10,0 cm | C54: m | D54: 25.1296
A55: M0069 | B55: Arame farpado em aço galvanizado - D = 1,60 mm | C55: m | D55: 0.7264
A56: M0071 | B56: Contêiner com 3 janelas para guarita - L = 2,44 m e C = 3,05 m (1/2 TEU) | C56: un | D56: 42617.0345
A57: M0072 | B57: Arame liso em aço galvanizado - D = 2,10 mm (14 BWG) | C57: kg | D57: 15.7284
A58: M0073 | B58: Muda de árvore com altura de 0,30 a 0,80 m | C58: un | D58: 15.3723
A59: M0074 | B59: Muda de arbusto com altura até 0,50 m | C59: un | D59: 21.394
A60: M0075 | B60: Arame liso recozido em aço-carbono - D = 1,24 mm (18 BWG) | C60: kg | D60: 11.9007
A61: M0076 | B61: Disco de corte abrasivo para policorte - D = 300 mm | C61: un | D61: 15.3615
A62: M0080 | B62: Areia fina | C62: m³ | D62: 134.2401
A63: M0081 | B63: Areia grossa | C63: m³ | D63: 117.9732
A64: M0082 | B64: Areia média lavada | C64: m³ | D64: 132.753
A65: M0083 | B65: Argamassa pré-dosada para grauteamento | C65: kg | D65: 1.8855
A66: M0084 | B66: Argamassa pré-dosada autoadensável para grauteamento | C66: kg | D66: 1.7037
A67: M0085 | B67: Ancoragem ativa para 4 cordoalhas - D = 12,7 mm | C67: un | D67: 382.1528
A68: M0086 | B68: Ancoragem ativa para 6 cordoalhas - D = 12,7 mm | C68: un | D68: 492.4186
A69: M0087 | B69: Ancoragem ativa para 7 cordoalhas - D = 12,7 mm | C69: un | D69: 569.1581
A70: M0088 | B70: Ancoragem ativa para 8 cordoalhas - D = 12,7 mm | C70: un | D70: 699.2489
A71: M0089 | B71: Ancoragem ativa para 9 cordoalhas - D = 12,7 mm | C71: un | D71: 751.8646
A72: M0091 | B72: Ancoragem ativa para 10 cordoalhas - D = 12,7 mm | C72: un | D72: 832.7646
A73: M0092 | B73: Ancoragem ativa para 12 cordoalhas - D = 12,7 mm | C73: un | D73: 1053.886
A74: M0093 | B74: Ancoragem ativa para 15 cordoalhas - D = 12,7 mm | C74: un | D74: 1461.4816
A75: M0094 | B75: Ancoragem ativa para 19 cordoalhas - D = 12,7 mm | C75: un | D75: 1858.9593
A76: M0098 | B76: Bambu com diâmetro médio de 10 cm | C76: m | D76: 21.7769
A77: M0099 | B77: Equipamentos para a fábrica de dormentes de concreto protendido | C77: ISF | D77: 571.802
A78: M0100 | B78: Ancoragem ativa para 22 cordoalhas - D = 12,7 mm | C78: un | D78: 2405.5036
A79: M0101 | B79: Ancoragem ativa para 27 cordoalhas - D = 12,7 mm | C79: un | D79: 2932.2996
A80: M0102 | B80: Ancoragem ativa para 31 cordoalhas - D = 12,7 mm | C80: un | D80: 3344.5025
A81: M0103 | B81: Aditivo acelerador de pega para concreto e argamassa projetados | C81: kg | D81: 7.4826
A82: M0104 | B82: Asfalto diluído de petróleo - CM-30 | C82: t | D82: -
A83: M0105 | B83: Ancoragem ativa para 4 cordoalhas - D = 15,2 mm | C83: un | D83: 472.471
A84: M0106 | B84: Ancoragem ativa para 6 cordoalhas - D = 15,2 mm | C84: un | D84: 626.8879
A85: M0107 | B85: Geocomposto para drenagem | C85: m² | D85: 42.489
A86: M0108 | B86: Ancoragem ativa para 7 cordoalhas - D = 15,2 mm | C86: un | D86: 738.4215
A87: M0109 | B87: Geodreno vertical - L = 10 cm e E = 5 mm | C87: m | D87: 5.18
A88: M0110 | B88: Ancoragem ativa para 10 cordoalhas - D = 15,2 mm | C88: un | D88: 1139.1174
A89: M0111 | B89: Ancoragem ativa para 9 cordoalhas - D = 15,2 mm | C89: un | D89: 1014.5649
A90: M0112 | B90: Disco diamantado segmentado para corte de pavimento - D = 1.000 mm | C90: un | D90: 5880.8292
A91: M0113 | B91: Ancoragem ativa para 12 cordoalhas - D = 15,2 mm | C91: un | D91: 1393.388
A92: M0114 | B92: Disco diamantado segmentado para corte de pavimento - D = 1.500 mm | C92: un | D92: 26164.9787
A93: M0115 | B93: Biomanta vegetal de fibras de coco entrelaçadas com fios de polipropileno biodegradáveis - densidade 0,4 kg/m² | C93: m² | D93: 6.5033
A94: M0116 | B94: Mangote flangeado de borracha reforçada com lonas sintéticas - C = 1,80 m e D = 0,30 m | C94: un | D94: 16646.3487
A95: M0117 | B95: Mangote flangeado de borracha reforçada com lonas sintéticas - C = 1,80 m e D = 0,40 m | C95: un | D95: 23062.057
A96: M0118 | B96: Mangote flangeado de borracha reforçada com lonas sintéticas - C = 1,80 m e D = 0,45 m | C96: un | D96: 25487.0473
A97: M0119 | B97: Mangote flangeado de borracha reforçada com lonas sintéticas - C = 1,80 m e D = 0,50 m | C97: un | D97: 27615.6206
A98: M0120 | B98: Tubo PEAD PE 100 PN 8 com flanges - D = 250 mm | C98: m | D98: 315.6639
A99: M0121 | B99: Tubo PEAD PE 100 PN 8 com flanges - D = 400 mm | C99: m | D99: 2026.5106
A100: M0122 | B100: Tubo PEAD PE 100 PN 8 com flanges - D = 450 mm | C100: m | D100: 2545.3907
A101: M0123 | B101: Tubo PEAD PE 100 PN 8 com flanges - D = 500 mm | C101: m | D101: 2850.2269
A102: M0124 | B102: Flutuador bipartido em polietileno com núcleo de espuma em poliuretano para tubos - D = 0,30 m | C102: un | D102: 4344.3133
A103: M0125 | B103: Flutuador bipartido em polietileno com núcleo de espuma em poliuretano para tubos - D = 0,40 m | C103: un | D103: 5970.8334
A104: M0126 | B104: Flutuador bipartido em polietileno com núcleo de espuma em poliuretano para tubos - D = 0,45 m | C104: un | D104: 6884.7234
A105: M0127 | B105: Flutuador bipartido em polietileno com núcleo de espuma em poliuretano para tubos - D = 0,50 m | C105: un | D105: 7395.4496
A106: M0128 | B106: Biomanta vegetal de fibras de palha entrelaçadas com fios de polipropileno biodegradáveis - densidade 0,6 kg/m² | C106: m² | D106: 5.7
A107: M0129 | B107: Retentor de sedimento em fibras vegetais - D = 20 cm | C107: m | D107: 63.1424
A108: M0130 | B108: Ancoragem ativa para 15 cordoalhas - D = 15,2 mm | C108: un | D108: 1832.0785
A109: M0131 | B109: Tubo PEAD corrugado com paredes estruturadas para drenagem - D = 400 mm | C109: m | D109: 235.022
A110: M0132 | B110: Tubo PEAD corrugado com paredes estruturadas para drenagem - D = 450 mm | C110: m | D110: 292.732
A111: M0133 | B111: Tubo PEAD corrugado com paredes estruturadas para drenagem - D = 500 mm | C111: m | D111: 387.0327
A112: M0134 | B112: Tubo PEAD corrugado com paredes estruturadas para drenagem - D = 600 mm | C112: m | D112: 564.0929
A113: M0135 | B113: Tubo PEAD corrugado com paredes estruturadas para drenagem - D = 750 mm | C113: m | D113: 795.6179
A114: M0136 | B114: Tubo PEAD corrugado com paredes estruturadas para drenagem - D = 800 mm | C114: m | D114: 841.4448
A115: M0137 | B115: Tubo PEAD corrugado com paredes estruturadas para drenagem - D = 900 mm | C115: m | D115: 1065.9447
A116: M0138 | B116: Ancoragem ativa para 19 cordoalhas - D = 15,2 mm | C116: un | D116: 2385.1955
A117: M0139 | B117: Tubo PEAD corrugado com paredes estruturadas para drenagem - D = 1.000 mm | C117: m | D117: 1477.2087
A118: M0140 | B118: Bentonita | C118: kg | D118: 2.883
A119: M0141 | B119: Tubo PEAD corrugado com paredes estruturadas para drenagem - D = 1.050 mm | C119: m | D119: 1489.645
A120: M0142 | B120: Tubo PEAD corrugado com paredes estruturadas para drenagem - D = 1.200 mm | C120: m | D120: 2073.4157
A121: M0143 | B121: Tubo PEAD corrugado com paredes estruturadas para drenagem - D = 1.500 mm | C121: m | D121: 2318.0977
A122: M0145 | B122: Ancoragem ativa para 22 cordoalhas - D = 15,2 mm | C122: un | D122: 3087.2731
A123: M0146 | B123: Ancoragem ativa para 27 cordoalhas - D = 15,2 mm | C123: un | D123: 4045.4238
A124: M0148 | B124: Ancoragem ativa para lajes para 1 cordoalha - D = 12,7 mm | C124: un | D124: 92.6367
A125: M0151 | B125: Ancoragem ativa para lajes para 2 cordoalhas - D = 12,7 mm | C125: un | D125: 164.7877
A126: M0152 | B126: Ancoragem ativa para lajes para 3 cordoalhas - D = 12,7 mm | C126: un | D126: 232.4885
A127: M0153 | B127: Ancoragem ativa para lajes para 4 cordoalhas - D = 12,7 mm | C127: un | D127: 310.5585
A128: M0156 | B128: Bloco de concreto - L = 19 cm, A = 19 cm e C = 39 cm | C128: un | D128: 4.9472
A129: M0158 | B129: Tela metálica galvanizada dobrada em L - C = 2,0 m, L = 0,4 m e H = 0,4 m | C129: un | D129: 471.6495
A130: M0160 | B130: Extintor de incêndio tipo espuma mecânica - V = 10 l | C130: un | D130: 613.3423
A131: M0161 | B131: Barra de fibra de vidro (vergalhão) - D = 25,0 mm | C131: m | D131: 60.9799
A132: M0162 | B132: Corrente de elo soldado em aço galvanizado com acabamento polido - D = 3,18 mm (1/8") | C132: m | D132: 7.0835
A133: M0163 | B133: Gonzo com aba em aço galvanizado - D = 12,7 mm (1/2") | C133: un | D133: 2.9301
A134: M0164 | B134: Tubo em aço galvanizado - E = 1,50 mm e seção de 20 x 20 mm | C134: m | D134: 12.4976
A135: M0166 | B135: Tubo em aço galvanizado - E = 2,25 mm e D = 20 mm (3/4") | C135: m | D135: 30.3416
A136: M0167 | B136: Tela de poliamida industrial - E = 0,40 mm e malha de 1,6 mm | C136: m² | D136: 14.953
A137: M0168 | B137: Abraçadeira de poliamida - E = 3,6 mm e C = 200 mm | C137: un | D137: 0.2152
A138: M0169 | B138: Roda em aço e pneu com câmara de ar 83/203 mm (3,25"/8") para carrinho de mão | C138: un | D138: 75.861
A139: M0173 | B139: Ancoragem ativa para lajes para 1 cordoalha - D = 15,2 mm | C139: un | D139: 103.3583
A140: M0178 | B140: Ancoragem ativa para lajes para 2 cordoalhas - D = 15,2 mm | C140: un | D140: 217.3916
A141: M0181 | B141: Ancoragem ativa para lajes para 3 cordoalhas - D = 15,2 mm | C141: un | D141: 264.182
A142: M0184 | B142: Ancoragem ativa para lajes para 4 cordoalhas - D = 15,2 mm | C142: un | D142: 375.5094
A143: M0191 | B143: Brita 1 | C143: m³ | D143: 131.9373
A144: M0192 | B144: Brita 2 | C144: m³ | D144: 129.2999
A145: M0193 | B145: Brita 3 | C145: m³ | D145: 126.7137
A146: M0194 | B146: Escória de aciaria | C146: m³ | D146: 12.8667
A147: M0198 | B147: Parafuso de cabeça chata em aço - D = 4,5 mm e bucha plástica - D = 8 mm (S8) | C147: un | D147: 0.344
A148: M0199 | B148: Coroa de botões cruzados linha R32 - D = 43 mm (1 11/16’’) | C148: un | D148: 319.7346
A149: M0201 | B149: Coroa de botões esféricos linha T38 - D = 89 mm (3 1/2") | C149: un | D149: 836.0114
A150: M0202 | B150: Coroa de botões esféricos linha T45 - D = 76 mm (3") | C150: un | D150: 678.4699
A151: M0204 | B151: Instalações físicas para a central de pré-moldagem de dormentes de concreto protendido | C151: CMCC | D151: 1674.24
A152: M0217 | B152: Enxofre | C152: kg | D152: 4.4
A153: M0220 | B153: Adubo à base de nitrogênio, fósforo e potássio (NPK) | C153: kg | D153: 3.2774
A154: M0222 | B154: Filer calcário | C154: kg | D154: 0.1994
A155: M0223 | B155: Sementes para hidrossemeadura | C155: kg | D155: 33.9
A156: M0224 | B156: Guia-chapéu pré-moldada - C = 120 cm | C156: un | D156: 63
A157: M0225 | B157: Adubo orgânico composto | C157: kg | D157: 0.2459
A158: M0229 | B158: Gabião tipo colchão em liga de zinco e alumínio revestido com polímero de malha hexagonal - E = 0,17 m | C158: m² | D158: 209.0442
A159: M0230 | B159: Gabião tipo caixa em liga de zinco e alumínio de malha hexagonal - C = 2,00 m, L = 1,00 m e H = 0,50 m | C159: un | D159: 641.4555
A160: M0231 | B160: Gabião tipo caixa em liga de zinco e alumínio de malha hexagonal - C = 2,00 m, L = 1,00 m e H = 1,00 m | C160: un | D160: 993.6369
A161: M0232 | B161: Gabião tipo caixa em liga de zinco e alumínio revestido com polímero de malha hexagonal - C = 2,00 m, L = 1,00 m e H = 0,50 m | C161: un | D161: 794.9942
A162: M0233 | B162: Gabião tipo caixa em liga de zinco e alumínio revestido com polímero de malha hexagonal - C = 2,00 m, L = 1,00 m e H = 1,00 m | C162: un | D162: 1113.4687
A163: M0234 | B163: Gabião tipo saco em liga de zinco e alumínio revestido com polímero de malha hexagonal - D = 0,65 m | C163: m³ | D163: 576.2024
A164: M0235 | B164: Gabião tipo colchão em liga de zinco e alumínio revestido com polímero de malha hexagonal - E = 0,23 m | C164: m² | D164: 220.3396
A165: M0236 | B165: Gabião tipo colchão em liga de zinco e alumínio revestido com polímero de malha hexagonal - E = 0,30 m | C165: m² | D165: 240.7945
A166: M0237 | B166: Energia elétrica | C166: kWh | D166: 0.9973
A167: M0253 | B167: Cabo de cobre flexível antichama isolado em PVC - tensão de 450/750 V e seção de 16 mm² | C167: m | D167: 14.0995
A168: M0254 | B168: Mistura gasosa de argônio e dióxido de carbono para solda MIG/MAG | C168: m³ | D168: 50.0343
A169: M0256 | B169: Tinta à base de etil silicato de zinco bicomponente para fundo preparador de pintura | C169: l | D169: 87.7584
A170: M0257 | B170: Diluente para tinta à base de etil silicato de zinco | C170: l | D170: 33.9452
A171: M0260 | B171: Cabo de cobre PP flexível isolado em PVC - tensão de 300/500 V e seção de 3 x 1,5 mm² | C171: m | D171: 4.8699
A172: M0264 | B172: Bomba de combustível industrial eletrônica simples | C172: un | D172: 25709.9458
A173: M0265 | B173: Tanque de combustível aéreo horizontal com escada para visita - capacidade de 5.000 l | C173: un | D173: 20601.0885
A174: M0266 | B174: Cabo de cobre flexível antichama isolado em PVC - tensão de 0,6/1,0 kV e seção de 240 mm² | C174: m | D174: 152.0191
A175: M0267 | B175: Módulo de torre de elevador de cremalheira | C175: un | D175: 3975.0731
A176: M0268 | B176: Módulo de ancoragem de torre de elevador de cremalheira | C176: un | D176: 2998.2574
A177: M0269 | B177: Cabo de cobre flexível antichama isolado em PVC - tensão de 0,6/1,0 kV e seção de 50 mm² | C177: m | D177: 37.0384
A178: M0284 | B178: Caibro de pinho - L = 7,5 cm e E = 7,5 cm | C178: m | D178: 17.9501
A179: M0285 | B179: Pontalete para escoramento - D = 15 cm | C179: m | D179: 8.54
A180: M0286 | B180: Tábua - E = 2,5 cm e L = 30 cm | C180: m | D180: 19.2529
A181: M0289 | B181: Tábua - E = 2,5 cm e L = 15 cm | C181: m | D181: 8.8678
A182: M0290 | B182: Tábua - E = 2,5 cm e L = 10 cm | C182: m | D182: 5.5775
A183: M0291 | B183: Estrutura modular com 2 banheiros - L = 2,44 m e C = 6,06 m (1 TEU) | C183: un | D183: 80138.6447
A184: M0292 | B184: Estrutura modular com janela - L = 2,44 m e C = 6,06 m (1 TEU) | C184: un | D184: 73492.2398
A185: M0293 | B185: Estrutura modular com janela - L = 4,88 m e C = 6,06 m (1 TEU duplo) | C185: un | D185: 121064.1111
A186: M0294 | B186: Estrutura modular com janela e 2 banheiros - L = 4,88 m e C = 6,06 m (1 TEU duplo) | C186: un | D186: 121611.5019
A187: M0295 | B187: Estrutura modular com revestimento térmico, janela e banheiro - L = 2,44 m e C = 6,06 m (1 TEU) | C187: un | D187: 72679.0163
A188: M0296 | B188: Estrutura modular com revestimento térmico, janela e banheiro - L = 2,44 m e C = 12,19 m (2 TEU) | C188: un | D188: 144596.71
A189: M0297 | B189: Estrutura modular com 3 janelas para guarita - L = 2,44 m e C = 3,05 m (1/2 TEU) | C189: un | D189: 48949.4034
A190: M0301 | B190: Pontalete para escoramento - D = 10 cm | C190: m | D190: 3.7974
A191: M0310 | B191: Peça de madeira - L = 7,5 cm e E = 2,5 cm | C191: m | D191: 6.0349
A192: M0311 | B192: Filtro de aspiração de ar externo com capacidade 3,58 l/s para compressor de ar respirável | C192: un | D192: 200.4886
A193: M0312 | B193: Filtro de purificação de ar comprimido com capacidade de 35 MPa para compressor de ar respirável | C193: un | D193: 222.6208
A194: M0344 | B194: Cal hidratada - a granel | C194: kg | D194: 0.5358
A195: M0345 | B195: Cal hidratada - saco | C195: kg | D195: 0.8583
A196: M0346 | B196: Disco de aço para bomba de projeção via seca | C196: un | D196: 369.3885
A197: M0347 | B197: Disco de aço para bomba de projeção via úmida | C197: un | D197: 1372.9972
A198: M0348 | B198: Disco de borracha para bomba de projeção via seca | C198: un | D198: 284.9942
A199: M0349 | B199: Disco de borracha para bomba de projeção via úmida | C199: un | D199: 639.653
A200: M0350 | B200: Bico para bomba de projeção | C200: un | D200: 291.8555
... 1478 more rows

Sheet Pessoal Sicro (hidden)
A1: CGCIT | B1: SISTEMA DE CUSTOS REFERENCIAIS DE OBRAS - SICRO | G1: DNIT
A3: Pernambuco - Julho/2024
A4: Sem desoneração
A5: Código | B5: Descrição | C5: Unidade | D5: Salário (R$) | E5: Encargos Totais | F5: Custo (R$) | G5: Periculosidade/ Insalubridade
A6: P9801 | B6: Ajudante | C6: h | D6: 7.2326 | E6: 2.027092 | F6: 21.8937 | G6: 0
A7: P9802 | B7: Ajudante especializado | C7: h | D7: 8.6656 | E7: 1.957595 | F7: 25.6293 | G7: 0
A8: P9803 | B8: Almoxarife | C8: mês | D8: 2769.8 | E8: 1.196154 | F8: 6082.9073 | G8: 0
A9: P9804 | B9: Apontador | C9: mês | D9: 2062.2917 | E9: 1.34343 | F9: 4832.8362 | G9: 0
A10: P9805 | B10: Armador | C10: h | D10: 11.35 | E10: 1.698049 | F10: 30.6228 | G10: 0
A11: P9806 | B11: Auxiliar administrativo | C11: mês | D11: 2041.6 | E11: 1.346566 | F11: 4790.7491 | G11: 0
A12: P9807 | B12: Bombeiro hidráulico | C12: h | D12: 11.35 | E12: 1.760161 | F12: 31.3278 | G12: 0
A13: P9808 | B13: Carpinteiro | C13: h | D13: 9.4893 | E13: 1.813253 | F13: 26.6958 | G13: 0
A14: P9809 | B14: Encarregado administrativo | C14: mês | D14: 3681.6786 | E14: 0.981985 | F14: 7297.0317 | G14: 0
A15: P9810 | B15: Eletricista | C15: h | D15: 10.843 | E15: 1.765536 | F15: 29.9867 | G15: 0
A16: P9811 | B16: Encarregado especializado | C16: mês | D16: 3779.5746 | E16: 0.999414 | F16: 7556.9343 | G16: 0
A17: P9812 | B17: Engenheiro | C17: mês | D17: 13144.9414 | E17: 0.826778 | F17: 24012.8897 | G17: 0
A18: P9814 | B18: Operacional | C18: mês | D18: 1598.9799 | E18: 1.48864 | F18: 3979.2853 | G18: 0
A19: P9815 | B19: Jardineiro | C19: h | D19: 10.01 | E19: 1.770477 | F19: 27.7324 | G19: 0
A20: P9819 | B20: Engenheiro supervisor | C20: mês | D20: 13144.9414 | E20: 0.826778 | F20: 24012.8897 | G20: 0
A21: P9821 | B21: Pedreiro | C21: h | D21: 9.3746 | E21: 1.815441 | F21: 26.3936 | G21: 0
A22: P9822 | B22: Pintor | C22: h | D22: 11.35 | E22: 1.700979 | F22: 30.6561 | G22: 0
A23: P9823 | B23: Serralheiro | C23: h | D23: 9.8816 | E23: 1.78448 | F23: 27.5151 | G23: 0
A24: P9824 | B24: Servente | C24: h | D24: 7 | E24: 2.055999 | F24: 21.3919 | G24: 0
A25: P9825 | B25: Soldador | C25: h | D25: 12.7906 | E25: 1.633777 | F25: 33.6875 | G25: 0
A26: P9826 | B26: Chefe setor de finanças | C26: mês | D26: 13224.5511 | E26: 0.825872 | F26: 24146.3375 | G26: 0
A27: P9827 | B27: Vigia | C27: mês | D27: 1494.4353 | E27: 1.798635 | F27: 4630.7095 | G27: 0.3
A28: P9830 | B28: Montador | C28: h | D28: 11.35 | E28: 1.764589 | F28: 31.378 | G28: 0
A29: P9833 | B29: Auxiliar de laboratório | C29: mês | D29: 2497 | E29: 1.249462 | F29: 5616.9066 | G29: 0
A30: P9837 | B30: Oceanógrafo | C30: mês | D30: 5497.5504 | E30: 0.964583 | F30: 10800.394 | G30: 0
A31: P9840 | B31: Encarregado geral | C31: mês | D31: 5555.771 | E31: 0.922361 | F31: 10680.1974 | G31: 0
A32: P9842 | B32: Faxineiro | C32: mês | D32: 1526.8 | E32: 1.55524 | F32: 3901.3404 | G32: 0
A33: P9843 | B33: Operador de equipamento leve | C33: h | D33: 9.28 | E33: 1.805959 | F33: 26.0392 | G33: 0
A34: P9845 | B34: Operador de equipamento pesado | C34: h | D34: 12.27 | E34: 1.631026 | F34: 32.2826 | G34: 0
A35: P9846 | B35: Operador de equipamento especial | C35: h | D35: 15.4572 | E35: 1.510232 | F35: 38.8011 | G35: 0
A36: P9847 | B36: Perfurador de tubulão | C36: h | D36: 7.2215 | E36: 2.023807 | F36: 21.8364 | G36: 0
A37: P9848 | B37: Desenhista | C37: mês | D37: 3503.4059 | E37: 1.002192 | F37: 7014.4912 | G37: 0
A38: P9849 | B38: Condutor maquinista fluvial | C38: mês | D38: 2517.7241 | E38: 1.207391 | F38: 5557.6015 | G38: 0
A39: P9850 | B39: Copeiro | C39: mês | D39: 1579.6 | E39: 1.508071 | F39: 3961.7489 | G39: 0
A40: P9851 | B40: Médico do trabalho | C40: mês | D40: 9755.7285 | E40: 0.851276 | F40: 18060.546 | G40: 0
A41: P9852 | B41: Blaster | C41: h | D41: 11.3432 | E41: 2.036074 | F41: 37.8417 | G41: 0.3
A42: P9853 | B42: Pré-marcador | C42: h | D42: 7.2213 | E42: 2.003379 | F42: 21.6883 | G42: 0
A43: P9854 | B43: Recepcionista | C43: mês | D43: 1617.2445 | E43: 1.463985 | F43: 3984.8661 | G43: 0
A44: P9855 | B44: Marinheiro de máquinas | C44: mês | D44: 2253.4092 | E44: 1.25684 | F44: 5085.584 | G44: 0
A45: P9856 | B45: Marinheiro de convés | C45: h | D45: 10.09 | E45: 1.70695 | F45: 27.3131 | G45: 0
A46: P9857 | B46: Marinheiro de convés - mensalista | C46: mês | D46: 2219.8016 | E46: 1.264222 | F46: 5026.1236 | G46: 0
A47: P9858 | B47: Laboratorista | C47: mês | D47: 3425.4 | E47: 1.03267 | F47: 6962.7078 | G47: 0
A48: P9859 | B48: Trabalhador de via | C48: h | D48: 6.7613 | E48: 2.098616 | F48: 20.9506 | G48: 0
A49: P9861 | B49: Selecionador de material pétreo | C49: h | D49: 7.2213 | E49: 2.012353 | F49: 21.7531 | G49: 0
A50: P9864 | B50: Engenheiro de segurança do trabalho | C50: mês | D50: 12545.6683 | E50: 0.835139 | F50: 23023.0451 | G50: 0
A51: P9866 | B51: Motorista de caminhão | C51: h | D51: 12.27 | E51: 1.618844 | F51: 32.1332 | G51: 0
A52: P9867 | B52: Técnico especializado - mensalista | C52: mês | D52: 3176.354 | E52: 1.14408 | F52: 6810.357 | G52: 0
A53: P9869 | B53: Encarregado de obras de artes especiais | C53: mês | D53: 3779.5746 | E53: 0.999414 | F53: 7556.9343 | G53: 0
A54: P9870 | B54: Motorista de veículo leve | C54: h | D54: 11.35 | E54: 1.663051 | F54: 30.2256 | G54: 0
A55: P9871 | B55: Motorista de veículo especial | C55: h | D55: 12.736 | E55: 1.59952 | F55: 33.1074 | G55: 0
A56: P9875 | B56: Encarregado de turma | C56: mês | D56: 2419.0968 | E56: 1.258971 | F56: 5464.6695 | G56: 0
A57: P9876 | B57: Técnico de segurança do trabalho | C57: mês | D57: 3425.4 | E57: 1.030462 | F57: 6955.1445 | G57: 0
A58: P9878 | B58: Secretária | C58: mês | D58: 2880.5744 | E58: 1.154196 | F58: 6205.3218 | G58: 0
A59: P9880 | B59: Piloto fluvial | C59: mês | D59: 3456.53 | E59: 1.080562 | F59: 7191.5249 | G59: 0
A60: P9882 | B60: Técnico especializado | C60: h | D60: 14.438 | E60: 1.552129 | F60: 36.8476 | G60: 0
A61: P9883 | B61: Chefe do setor administrativo | C61: mês | D61: 3681.677 | E61: 0.981985 | F61: 7297.0285 | G61: 0
A62: P9884 | B62: Encarregado de terraplenagem | C62: mês | D62: 3779.5746 | E62: 0.999414 | F62: 7556.9343 | G62: 0
A63: P9885 | B63: Frentista de túnel | C63: h | D63: 9.28 | E63: 1.860062 | F63: 26.5413 | G63: 0
A64: P9889 | B64: Técnico da qualidade | C64: mês | D64: 3599.017 | E64: 1.01438 | F64: 7249.7878 | G64: 0
A65: P9892 | B65: Auxiliar de blaster | C65: h | D65: 10.01 | E65: 2.117258 | F65: 34.2067 | G65: 0.3
A66: P9893 | B66: Encarregado de pavimentação | C66: mês | D66: 3779.5746 | E66: 0.999414 | F66: 7556.9343 | G66: 0
A67: P9896 | B67: Porteiro | C67: mês | D67: 1526.8 | E67: 1.555438 | F67: 3901.6427 | G67: 0
A68: P9897 | B68: Técnico de meio ambiente | C68: mês | D68: 3625.7572 | E68: 1.025555 | F68: 7344.1706 | G68: 0
A69: P9900 | B69: Comprador | C69: mês | D69: 3417.5003 | E69: 1.109804 | F69: 7210.2558 | G69: 0
A70: P9901 | B70: Encarregado de superestrutura ferroviária | C70: mês | D70: 3779.5746 | E70: 0.999414 | F70: 7556.9343 | G70: 0
A71: P9903 | B71: Auxiliar técnico | C71: mês | D71: 1813.9413 | E71: 1.421272 | F71: 4392.0452 | G71: 0
A72: P9907 | B72: Comandante de longo curso | C72: mês | D72: 10939.1272 | E72: 0.857597 | F72: 20320.4898 | G72: 0
A73: P9908 | B73: Imediato | C73: mês | D73: 9096.5302 | E73: 0.87846 | F73: 17087.4681 | G73: 0
A74: P9909 | B74: Oficial de náutica | C74: mês | D74: 2898.3709 | E74: 1.147706 | F74: 6224.8485 | G74: 0
A75: P9910 | B75: Oficial de máquinas | C75: mês | D75: 2911.9083 | E75: 1.14124 | F75: 6235.0945 | G75: 0
A76: P9913 | B76: Draguista | C76: mês | D76: 3319.6694 | E76: 1.094001 | F76: 6951.391 | G76: 0
A77: P9915 | B77: Maquinista | C77: h | D77: 12.8694 | E77: 1.603346 | F77: 33.5035 | G77: 0
A78: P9916 | B78: Encarregado de conservação rodoviária | C78: mês | D78: 3779.5746 | E78: 0.999414 | F78: 7556.9343 | G78: 0
A79: P9920 | B79: Mestre fluvial | C79: mês | D79: 4603.1372 | E79: 0.999368 | F79: 9203.3652 | G79: 0
A80: P9921 | B80: Mergulhador raso autônomo de emergência | C80: h | D80: 10.2049 | E80: 2.430589 | F80: 37.5763 | G80: 0.2516
A81: P9922 | B81: Mergulhador raso dependente de emergência | C81: h | D81: 10.1794 | E81: 2.496647 | F81: 38.6475 | G81: 0.3
A82: P9924 | B82: Mergulhador raso dependente | C82: h | D82: 10.1794 | E82: 3.658874 | F82: 50.4783 | G82: 0.3
A83: P9925 | B83: Mergulhador raso autônomo | C83: h | D83: 10.2049 | E83: 3.385966 | F83: 47.3258 | G83: 0.2516
A84: P9926 | B84: Mergulhador raso auxiliar de superfície | C84: h | D84: 10.2049 | E84: 2.227327 | F84: 35.5021 | G84: 0.2516
A85: P9927 | B85: Frentista de túnel com periculosidade | C85: h | D85: 9.28 | E85: 2.187933 | F85: 32.368 | G85: 0.3
A86: P9930 | B86: Eletricista com periculosidade | C86: h | D86: 10.843 | E86: 2.093046 | F86: 36.7907 | G86: 0.3
A87: P9931 | B87: Operador de equipamento de mergulho | C87: h | D87: 18.8397 | E87: 1.787043 | F87: 55.0749 | G87: 0.1363
A88: P9932 | B88: Operador de equipamento pesado com periculosidade | C88: h | D88: 12.27 | E88: 1.958296 | F88: 39.9792 | G88: 0.3
A89: P9933 | B89: Supervisor de mergulho raso | C89: mês | D89: 4144.7423 | E89: 1.315251 | F89: 10161.0471 | G89: 0.1363
A90: P9934 | B90: Motorista de veículo especial com periculosidade | C90: h | D90: 12.736 | E90: 1.92673 | F90: 41.0956 | G90: 0.3
A91: P9938 | B91: Operador de equipamento leve com periculosidade | C91: h | D91: 9.28 | E91: 2.13323 | F91: 31.8603 | G91: 0.3
A92: P9939 | B92: Operador de equipamento leve com insalubridade | C92: h | D92: 9.28 | E92: 2.320956 | F92: 33.3853 | G92: 0.2766
A93: P9942 | B93: Marinheiro de convés com periculosidade | C93: h | D93: 10.09 | E93: 2.03554 | F93: 33.6555 | G93: 0.3
A94: P9944 | B94: Operador de equipamento especial com periculosidade | C94: h | D94: 15.4572 | E94: 1.837505 | F94: 48.497 | G94: 0.3
A95: P9946 | B95: Engenheiro auxiliar | C95: mês | D95: 12002 | E95: 0.833023 | F95: 21999.942 | G95: 0
A96: P9947 | B96: Técnico florestal | C96: mês | D96: 3625.7572 | E96: 1.025555 | F96: 7344.1706 | G96: 0
A97: P9948 | B97: Motorista de veículo leve - mensalista | C97: mês | D97: 2497 | E97: 1.236428 | F97: 5584.3607 | G97: 0
A98: P9949 | B98: Topógrafo | C98: mês | D98: 4239.4 | E98: 0.991464 | F98: 8442.6124 | G98: 0
A99: P9950 | B99: Auxiliar de topografia | C99: mês | D99: 2497 | E99: 1.262098 | F99: 5648.4587 | G99: 0
A100: P9951 | B100: Médico de câmara hiperbárica | C100: mês | D100: 9755.7285 | E100: 1.043117 | F100: 20496.9514 | G100: 0.0579
A101: P9952 | B101: Pedreiro - mensalista | C101: mês | D101: 2062.4086 | E101: 1.364558 | F101: 4876.6847 | G101: 0
A102: P9953 | B102: Eletricista - mensalista | C102: mês | D102: 2385.4464 | E102: 1.31908 | F102: 5532.041 | G102: 0
A103: P9954 | B103: Servente - mensalista | C103: mês | D103: 1540 | E103: 1.567492 | F103: 3953.9376 | G103: 0
A104: P9955 | B104: Engenheiro chefe | C104: mês | D104: 16729.0333 | E104: 0.812729 | F104: 30325.2038 | G104: 0
A105: P9956 | B105: Motorista de caminhão com periculosidade | C105: h | D105: 12.27 | E105: 1.946054 | F105: 39.829 | G105: 0.3
A106: P9972 | B106: Técnico de batimetria | C106: mês | D106: 3437.2198 | E106: 1.096195 | F106: 7205.0829 | G106: 0

Sheet Equipamentos (hidden)
A1: CGCIT | B1: SISTEMA DE CUSTOS REFERENCIAIS DE OBRAS - SICRO | K1: DNIT
B2: Pernambuco - Julho/2024
A3: Código | B3: Descrição | C3: Valor de Aquisição (R$) | D3: Depreciação (R$/h) | E3: Oportunidade de Capital (R$/h) | F3: Seguros e Impostos (R$/h) | G3: Manutenção (R$/h) | H3: Operação (R$/h) | I3: Mão de Obra de Operação (R$/h) | J3: Custo Produtivo (R$/h) | K3: Custo Improdutivo (R$/h)
A4: E9001 | B4: Conjunto vibratório para tubos de concreto com encaixe PB e 3 jogos de fôrmas - D = 0,60 m - 2,20 kW | C4: 64610.7049 | D4: 8.6148 | E4: 1.9932 | F4: 0 | G4: 6.4611 | H4: 0 | I4: 0 | J4: 17.0691 | K4: 10.608
A5: E9002 | B5: Conjunto vibratório para tubos de concreto com encaixe PB e 3 jogos de fôrmas - D = 0,80 m - 2,20 kW | C5: 87779.0324 | D5: 11.7039 | E5: 2.708 | F5: 0 | G5: 8.7779 | H5: 0 | I5: 0 | J5: 23.1898 | K5: 14.4119
A6: E9003 | B6: Conjunto vibratório para tubos de concreto com encaixe PB e 3 jogos de fôrmas - D = 1,00 m - 2,20 kW | C6: 105144.5162 | D6: 14.0193 | E6: 3.2437 | F6: 0 | G6: 10.5145 | H6: 0 | I6: 0 | J6: 27.7775 | K6: 17.263
A7: E9004 | B7: Conjunto vibratório para tubos de concreto com encaixe PB e 3 jogos de fôrmas - D = 1,20 m - 2,20 kW | C7: 111470.3237 | D7: 14.8627 | E7: 3.4389 | F7: 0 | G7: 11.147 | H7: 0 | I7: 0 | J7: 29.4486 | K7: 18.3016
A8: E9005 | B8: Conjunto vibratório para tubos de concreto com encaixe PB e 3 jogos de fôrmas - D = 1,50 m - 2,20 kW | C8: 132342.5146 | D8: 17.6457 | E8: 4.0828 | F8: 0 | G8: 13.2343 | H8: 0 | I8: 0 | J8: 34.9628 | K8: 21.7285
A9: E9006 | B9: Equipamento para sondagem manual | C9: 3680.597 | D9: 0.6257 | E9: 0.1363 | F9: 0 | G9: 0.3681 | H9: 0 | I9: 0 | J9: 1.1301 | K9: 0.762
A10: E9007 | B10: Bomba de pistão triplex com capacidade de 7,80 m³/h (130 l/min) - 8,20 kW | C10: 158061.9834 | D10: 12.645 | E10: 2.9257 | F10: 0 | G10: 11.0643 | H10: 8.1483 | I10: 0 | J10: 34.7833 | K10: 15.5707
A11: E9008 | B11: Transportador manual de tubos de concreto com capacidade de 1 t | C11: 1582.1766 | D11: 1.424 | E11: 0.0976 | F11: 0 | G11: 0.7911 | H11: 0 | I11: 0 | J11: 2.3127 | K11: 1.5216
A12: E9009 | B12: Embarcação rebocadora - 268 kW | C12: 643959.7914 | D12: 8.3849 | E12: 3.7364 | F12: 0 | G12: 18.6331 | H12: 266.3116 | I12: 136.0671 | J12: 433.1331 | K12: 148.1884
A13: E9010 | B13: Balança plataforma digital à bateria, com mesa de 75 x 75 cm e capacidade de 500 kg | C13: 4847.9993 | D13: 0.7272 | E13: 0.0997 | F13: 0 | G13: 0.404 | H13: 0 | I13: 0 | J13: 1.2309 | K13: 0.8269
A14: E9011 | B14: Carro manual modelo plataforma de 200 x 80 cm com capacidade de 800 kg | C14: 1937.0054 | D14: 0.3487 | E14: 0.0717 | F14: 0 | G14: 0.1937 | H14: 0 | I14: 0 | J14: 0.6141 | K14: 0.4204
A15: E9014 | B15: Deflectômetro de impacto (FWD) instalado em picape com reboque e faixa de carga de 7 a 120 kN - 147 kW | C15: 2132937.915 | D15: 170.635 | E15: 39.4807 | F15: 0 | G15: 106.6469 | H15: 0 | I15: 33.1074 | J15: 349.87 | K15: 243.2231
A16: E9015 | B16: Elevador de obra com capacidade de 1.000 kg - 9 kW | C16: 65864.4441 | D16: 5.2692 | E16: 1.2192 | F16: 0 | G16: 4.6105 | H16: 0 | I16: 26.0392 | J16: 37.1381 | K16: 32.5276
A17: E9016 | B17: Usina misturadora móvel de reciclagem a frio com sistema de espuma de asfalto - 129,40 kW | C17: 10045342.76 | D17: 585.9783 | E17: 180.7743 | F17: 0 | G17: 753.4007 | H17: 94.7467 | I17: 38.8011 | J17: 1653.7011 | K17: 805.5537
A18: E9017 | B18: Escavadeira hidráulica sobre esteira com capacidade de 0,4 m³ - 64 kW | C18: 718069.1517 | D18: 50.2648 | E18: 13.2915 | F18: 0 | G18: 50.2648 | H18: 43.5136 | I18: 32.2826 | J18: 189.6173 | K18: 95.8389
A19: E9020 | B19: Recicladora a frio - 455 kW | C19: 5110609.362 | D19: 298.1189 | E19: 91.9697 | F19: 0 | G19: 425.8841 | H19: 475.93 | I19: 38.8011 | J19: 1330.7038 | K19: 428.8897
A20: E9021 | B20: Grupo gerador - 456 kVA | C20: 351962.7165 | D20: 17.5981 | E20: 6.2046 | F20: 0 | G20: 12.5701 | H20: 362.7005 | I20: 0 | J20: 399.0733 | K20: 23.8027
A21: E9022 | B21: Pórtico metálico rolante com capacidade de 25 t - 30 kW | C21: 978187.5233 | D21: 44.0184 | E21: 16.5974 | F21: 0 | G21: 34.2366 | H21: 0 | I21: 26.0392 | J21: 120.8916 | K21: 86.655
A22: E9023 | B22: Guindaste móvel sobre esteiras com dragline com capacidade de 1,9 a 2,3 m³ - 270 kW | C22: 3557936.007 | D22: 124.5278 | E22: 60.3693 | F22: 0 | G22: 177.8968 | H22: 70.605 | I22: 38.8011 | J22: 472.2 | K22: 223.6982
A23: E9024 | B23: Misturador de nata cimento - 1,50 kW | C23: 8161.969 | D23: 0.653 | E23: 0.1511 | F23: 0 | G23: 0.5713 | H23: 0 | I23: 26.0392 | J23: 27.4146 | K23: 26.8433
A24: E9025 | B24: Conjunto bomba e macaco hidráulico para protensão com capacidade de 7.000 kN - 15 kW | C24: 100609.7897 | D24: 5.7491 | E24: 1.7736 | F24: 0 | G24: 5.7491 | H24: 0 | I24: 38.8011 | J24: 52.0729 | K24: 46.3238
A25: E9026 | B25: Bomba para injeção de nata de cimento com capacidade de 2 MPa - 2,20 kW | C25: 31819.924 | D25: 2.5456 | E25: 0.589 | F25: 0 | G25: 2.2274 | H25: 0 | I25: 0 | J25: 5.362 | K25: 3.1346
A26: E9028 | B26: Bomba de alta pressão para hidrojateamento com capacidade de 18 MPa - 5,20 kW | C26: 5108.0482 | D26: 0.4086 | E26: 0.0945 | F26: 0 | G26: 0.4597 | H26: 9.507 | I26: 26.0392 | J26: 36.509 | K26: 26.5423
A27: E9029 | B27: Conjunto bomba e macaco hidráulico para protensão com capacidade de 8.000 kN - 20 kW | C27: 127936.7052 | D27: 7.3107 | E27: 2.2553 | F27: 0 | G27: 7.3107 | H27: 0 | I27: 38.8011 | J27: 55.6778 | K27: 48.3671
A28: E9030 | B28: Bomba de protensão com leitura digital para tensionamento de estais - 3 kW | C28: 13914.1833 | D28: 0.7951 | E28: 0.2453 | F28: 0 | G28: 0.7951 | H28: 0 | I28: 0 | J28: 1.8355 | K28: 1.0404
A29: E9031 | B29: Elevador de cremalheira com cabine simples, com capacidade de 1.500 kg e altura de até 100 m - 15 kW | C29: 338640.3791 | D29: 27.0912 | E29: 6.2682 | F29: 0 | G29: 23.7048 | H29: 0 | I29: 26.0392 | J29: 83.1034 | K29: 59.3986
A30: E9032 | B30: Equipamento para regulagem final de estais com até 37 cordoalhas - D = 15,7 mm - 20 kW | C30: 74560.4405 | D30: 4.2606 | E30: 1.3144 | F30: 0 | G30: 4.2606 | H30: 0 | I30: 38.8011 | J30: 48.6367 | K30: 44.3761
A31: E9033 | B31: Equipamento para regulagem final de estais de 38 a 55 cordoalhas - D = 15,7 mm - 30 kW | C31: 106499.6756 | D31: 6.0857 | E31: 1.8774 | F31: 0 | G31: 6.0857 | H31: 0 | I31: 38.8011 | J31: 52.8499 | K31: 46.7642
A32: E9034 | B32: Equipamento para regulagem final de estais de 56 a 73 cordoalhas - D = 15,7 mm - 40 kW | C32: 159704.1837 | D32: 9.126 | E32: 2.8154 | F32: 0 | G32: 9.126 | H32: 0 | I32: 38.8011 | J32: 59.8685 | K32: 50.7425
A33: E9035 | B33: Equipamento para regulagem final de estais de 74 a 91 cordoalhas - D = 15,7 mm - 50 kW | C33: 212909.4782 | D33: 12.1663 | E33: 3.7533 | F33: 0 | G33: 12.1663 | H33: 0 | I33: 38.8011 | J33: 66.887 | K33: 54.7207
A34: E9036 | B34: Grua fixa para alturas de 60 a 102 m, com alcance de 60 m com capacidade de 1.500 kg na ponta da lança - 37 kW | C34: 3356216.478 | D34: 167.8108 | E34: 59.1653 | F34: 0 | G34: 191.7838 | H34: 0 | I34: 38.8011 | J34: 457.561 | K34: 265.7772
A35: E9038 | B35: Macaco hidráulico monocordoalha para tensionamento de estais - 3 kW | C35: 17416.0009 | D35: 0.9952 | E35: 0.307 | F35: 0 | G35: 0.9952 | H35: 0 | I35: 38.8011 | J35: 41.0985 | K35: 40.1033
A36: E9039 | B36: Máquina de solda por termofusão para tubos PEAD com gerador de 4 kW | C36: 118918.6009 | D36: 6.7953 | E36: 2.0964 | F36: 0 | G36: 6.7953 | H36: 3.9748 | I36: 38.8011 | J36: 58.4629 | K36: 47.6928
A37: E9040 | B37: Serra mármore - 1,45 kW | C37: 460.8817 | D37: 0.0415 | E37: 0.0085 | F37: 0 | G37: 0.023 | H37: 0 | I37: 0 | J37: 0.073 | K37: 0.05
A38: E9042 | B38: Trator sobre esteiras com lâmina - 97 kW | C38: 1332835.523 | D38: 51.8325 | E38: 22.8433 | F38: 0 | G38: 74.0464 | H38: 71.0234 | I38: 32.2826 | J38: 252.0282 | K38: 106.9584
A39: E9043 | B39: Embarcação de alumínio com comprimento de 6 m e motor de popa - 18,60 kW | C39: 25155.1148 | D39: 0.393 | E39: 0.1482 | F39: 0 | G39: 0.4367 | H39: 38.8636 | I39: 39.4077 | J39: 79.2492 | K39: 39.9489
A40: E9044 | B40: Central de concreto com capacidade de 150 m³/h - dosadora e misturadora | C40: 2107725.205 | D40: 120.4414 | E40: 37.1562 | F40: 0 | G40: 105.3863 | H40: 0 | I40: 38.8011 | J40: 301.785 | K40: 196.3987
A41: E9045 | B41: Conjunto bomba e macaco hidráulico para elevação com capacidade de 496 kN | C41: 64095.6202 | D41: 5.1276 | E41: 1.1864 | F41: 0 | G41: 5.1276 | H41: 6.0176 | I41: 38.8011 | J41: 56.2603 | K41: 45.1151
A42: E9046 | B42: Conjunto bomba e macaco hidráulico para elevação com capacidade de 929 kN | C42: 76865.5962 | D42: 6.1492 | E42: 1.4228 | F42: 0 | G42: 6.1492 | H42: 6.0176 | I42: 38.8011 | J42: 58.5399 | K42: 46.3731
A43: E9047 | B43: Conjunto bomba e macaco hidráulico para elevação com capacidade de 1.390 kN | C43: 109843.4468 | D43: 8.7875 | E43: 2.0332 | F43: 0 | G43: 8.7875 | H43: 6.0176 | I43: 38.8011 | J43: 64.4269 | K43: 49.6218
A44: E9048 | B44: Conjunto bomba e macaco hidráulico para elevação com capacidade de 1.859 kN | C44: 127514.4249 | D44: 10.2012 | E44: 2.3603 | F44: 0 | G44: 10.2012 | H44: 6.0176 | I44: 38.8011 | J44: 67.5814 | K44: 51.3626
A45: E9049 | B45: Bomba de alta pressão para hidrojateamento com capacidade de 250 MPa - 72 kW | C45: 703291.1848 | D45: 56.2633 | E45: 13.0179 | F45: 0 | G45: 63.2962 | H45: 56.484 | I45: 26.0392 | J45: 215.1006 | K45: 95.3204
A46: E9050 | B46: Guindaste móvel sobre pneus com 2 eixos com capacidade de 18 t - 97 kW | C46: 2984725.882 | D46: 149.2363 | E46: 52.6165 | F46: 0 | G46: 191.8752 | H46: 25.3655 | I46: 33.1074 | J46: 452.2009 | K46: 234.9602
A47: E9051 | B47: Máquina levantadora e posicionadora de via - 7,40 kW | C47: 868908.5981 | D47: 69.5127 | E47: 16.0835 | F47: 0 | G47: 60.8236 | H47: 10.8233 | I47: 26.0392 | J47: 183.2823 | K47: 111.6354
A48: E9052 | B48: Empilhadeira a diesel com capacidade de 10 t - 82 kW | C48: 722900.1016 | D48: 57.832 | E48: 13.3809 | F48: 0 | G48: 50.603 | H48: 64.329 | I48: 26.0392 | J48: 212.1841 | K48: 97.2521
A49: E9053 | B49: Perfuratriz hidráulica montada em flutuante - 32 kW | C49: 369725.7052 | D49: 11.5539 | E49: 2.3763 | F49: 0 | G49: 10.2702 | H49: 16.736 | I49: 31.8603 | J49: 72.7967 | K49: 45.7905
A50: E9054 | B50: Equipamento sobre forma-trilho para execução e acabamento de pavimento de concreto - 13,40 kW | C50: 1421116.08 | D50: 113.6893 | E50: 26.3049 | F50: 0 | G50: 71.0558 | H50: 19.5989 | I50: 26.0392 | J50: 256.6881 | K50: 166.0334
A51: E9055 | B51: Guincho pneumático com capacidade de 2,5 t | C51: 524214.0097 | D51: 47.1793 | E51: 9.7032 | F51: 0 | G51: 26.2107 | H51: 0 | I51: 0 | J51: 83.0932 | K51: 56.8825
A52: E9056 | B52: Plataforma autoelevatória de 12 x 24 m com capacidade de 150 t | C52: 840623.7828 | D52: 6.5674 | E52: 4.7274 | F52: 0 | G52: 14.5942 | H52: 0 | I52: 105.1527 | J52: 131.0417 | K52: 116.4475
A53: E9057 | B53: Batelão sem propulsão com capacidade de 66 m³ | C53: 224795.5305 | D53: 1.7562 | E53: 1.2642 | F53: 0 | G53: 2.927 | H53: 0 | I53: 27.3131 | J53: 33.2605 | K53: 30.3335
A54: E9058 | B54: Plataforma flutuante de 12 x 24 x 1,8 m com capacidade de 150 t | C54: 672325.1872 | D54: 5.2525 | E54: 3.781 | F54: 0 | G54: 8.7542 | H54: 0 | I54: 27.3131 | J54: 45.1008 | K54: 36.3466
A55: E9059 | B55: Plataforma autoelevatória de 12 x 24 m montada na obra com capacidade de 150 t | C55: 840623.7828 | D55: 6.5674 | E55: 4.7274 | F55: 0 | G55: 14.5942 | H55: 0 | I55: 105.1527 | J55: 131.0417 | K55: 116.4475
A56: E9060 | B56: Perfuratriz pneumática rotopercussiva montada em flutuante com pressão de 0,70 MPa e capacidade de 2.500 gpm | C56: 34962.6387 | D56: 1.0926 | E56: 0.2247 | F56: 0 | G56: 0.9712 | H56: 0 | I56: 63.7206 | J56: 66.0091 | K56: 65.0379
A57: E9061 | B57: Lixadeira elétrica manual angular - 2 kW | C57: 1406.0119 | D57: 0.1125 | E57: 0.026 | F57: 0 | G57: 0.0703 | H57: 0 | I57: 0 | J57: 0.2088 | K57: 0.1385
A58: E9062 | B58: Soprador de ar quente manual - 1,60 kW | C58: 4793.5935 | D58: 0.6391 | E58: 0.0986 | F58: 0 | G58: 0.3995 | H58: 0 | I58: 0 | J58: 1.1372 | K58: 0.7377
A59: E9063 | B59: Equipamento de estabilização dinâmica da via - 300 kW | C59: 24797418.24 | D59: 991.8967 | E59: 420.7502 | F59: 0 | G59: 991.8967 | H59: 188.28 | I59: 38.8011 | J59: 2631.6247 | K59: 1451.448
A60: E9064 | B60: Transportador manual gerica com capacidade de 180 l | C60: 1041.1782 | D60: 1.0412 | E60: 0.0642 | F60: 0 | G60: 0.5206 | H60: 0 | I60: 0 | J60: 1.626 | K60: 1.1054
A61: E9065 | B61: Carro controle ferroviário - 186 kW | C61: 29728075.1 | D61: 1189.123 | E61: 504.4111 | F61: 0 | G61: 1040.4826 | H61: 116.7336 | I61: 38.8011 | J61: 2889.5514 | K61: 1732.3352
A62: E9066 | B62: Grupo gerador - 14 kVA | C62: 68323.2143 | D62: 3.4162 | E62: 1.2044 | F62: 0 | G62: 2.4401 | H62: 10.9307 | I62: 0 | J62: 17.9914 | K62: 4.6206
A63: E9067 | B63: Veículo ferroviário para capina química com capacidade de 12.000 l - 115 kW | C63: 1697951.381 | D63: 67.9181 | E63: 28.81 | F63: 0 | G63: 42.4488 | H63: 72.174 | I63: 26.0392 | J63: 237.3901 | K63: 122.7673
A64: E9068 | B64: Perfuratriz hidráulica rotopercussiva para CCPH - 123 kW | C64: 3692600.7 | D64: 246.1734 | E64: 66.4514 | F64: 0 | G64: 246.1734 | H64: 96.4935 | I64: 32.2826 | J64: 687.5743 | K64: 344.9074
A65: E9069 | B65: Vibrador de imersão para concreto - 4,10 kW | C65: 4031.3722 | D65: 0.645 | E65: 0.1492 | F65: 0 | G65: 0.4031 | H65: 7.4959 | I65: 0 | J65: 8.6932 | K65: 0.7942
A66: E9070 | B66: Ponte rolante com capacidade de 5 t e vão de até 15 m - 10 kW | C66: 330297.9165 | D66: 13.2119 | E66: 5.6043 | F66: 0 | G66: 8.2574 | H66: 0 | I66: 26.0392 | J66: 53.1128 | K66: 44.8554
A67: E9071 | B67: Transportador manual carrinho de mão com capacidade de 80 l | C67: 453.8341 | D67: 0.4538 | E67: 0.028 | F67: 0 | G67: 0.2269 | H67: 0 | I67: 0 | J67: 0.7087 | K67: 0.4818
A68: E9072 | B68: Martelo hidráulico vibratório com unidade hidráulica - 486 kW | C68: 2989021.241 | D68: 199.2681 | E68: 53.7899 | F68: 0 | G68: 174.3596 | H68: 381.267 | I68: 38.8011 | J68: 847.4857 | K68: 291.8591
A69: E9073 | B69: Bomba de concreto rebocável com capacidade de 30 m³/h - 74 kW | C69: 481951.5165 | D69: 38.5561 | E69: 8.9209 | F69: 0 | G69: 38.5561 | H69: 73.5338 | I69: 26.0392 | J69: 185.6061 | K69: 73.5162
A70: E9074 | B70: Tanque de estocagem de asfalto com agitadores de 60.000 l | C70: 880858.5507 | D70: 36.7024 | E70: 12.738 | F70: 0 | G70: 22.939 | H70: 0 | I70: 0 | J70: 72.3794 | K70: 49.4404
A71: E9075 | B71: Trado cavadeira de 12" | C71: 144.5474 | D71: 0.0723 | E71: 0.0067 | F71: 0 | G71: 0.0361 | H71: 0 | I71: 0 | J71: 0.1151 | K71: 0.079
A72: E9076 | B72: Equipamento para pintura eletrostática com cabine dupla de 7,00 kW e estufa de 80.000 kCal | C72: 162054.8828 | D72: 10.4178 | E72: 2.8568 | F72: 0 | G72: 5.7877 | H72: 0 | I72: 26.0392 | J72: 45.1015 | K72: 39.3138
A73: E9077 | B73: Perfuratriz de circulação reversa tipo Wirth ou similar com unidade hidráulica (Power Pack) - 273 kW | C73: 4242891.071 | D73: 282.8594 | E73: 76.3544 | F73: 0 | G73: 282.8594 | H73: 142.779 | I73: 32.2826 | J73: 817.1348 | K73: 391.4964
A74: E9078 | B74: Treliça lançadeira com capacidade de carga de 100 a 120 t e vão máximo de 45 m - 110 kW | C74: 3543334.965 | D74: 94.4889 | E74: 58.2997 | F74: 0 | G74: 59.0556 | H74: 0 | I74: 38.8011 | J74: 250.6453 | K74: 191.5897
A75: E9079 | B75: Bomba submersível com capacidade de 360 m³/h - 23 kW | C75: 179355.8784 | D75: 14.3485 | E75: 3.3199 | F75: 0 | G75: 12.5549 | H75: 0 | I75: 0 | J75: 30.2233 | K75: 17.6684
A76: E9080 | B76: Carrelone com capacidade máxima de 70 t | C76: 1759337.934 | D76: 79.1702 | E76: 29.8516 | F76: 0 | G76: 43.9834 | H76: 0 | I76: 26.0392 | J76: 179.0444 | K76: 135.061
A77: E9081 | B77: Fischietti simples com capacidade de 70 t | C77: 106229.9884 | D77: 4.7803 | E77: 1.8025 | F77: 0 | G77: 2.6557 | H77: 0 | I77: 26.0392 | J77: 35.2777 | K77: 32.622
A78: E9083 | B78: Vagão fechado FLT com capacidade de 99 t | C78: 822500 | D78: 13.0229 | E78: 13.11 | F78: 0 | G78: 6.8542 | H78: 0 | I78: 0 | J78: 32.9871 | K78: 26.1329
A79: E9084 | B79: Vagão tanque convencional TCT com capacidade de 97 t e 103.000 l | C79: 1230000 | D79: 19.475 | E79: 19.6052 | F79: 0 | G79: 10.25 | H79: 0 | I79: 0 | J79: 49.3302 | K79: 39.0802
A80: E9085 | B80: Vagão gôndola GDE com capacidade de 93,5 t / 29 m³ | C80: 620000 | D80: 9.8167 | E80: 9.8823 | F80: 0 | G80: 5.1667 | H80: 0 | I80: 0 | J80: 24.8657 | K80: 19.699
A81: E9086 | B81: Bomba de concreto rebocável com capacidade de 41 m³/h - 74 kW | C81: 532101.5165 | D81: 42.5681 | E81: 9.8492 | F81: 0 | G81: 42.5681 | H81: 73.5338 | I81: 26.0392 | J81: 194.5584 | K81: 78.4565
A82: E9089 | B82: Roçadeira costal - 1,40 kW | C82: 2865.8127 | D82: 0.4299 | E82: 0.0589 | F82: 0 | G82: 0.3343 | H82: 8.0443 | I82: 0 | J82: 8.8674 | K82: 0.4888
A83: E9093 | B83: Veículo leve - 53 kW (sem motorista) | C83: 71248.4342 | D83: 4.2749 | E83: 1.3188 | F83: 0.5344 | G83: 4.2749 | H83: 24.9166 | I83: 0 | J83: 35.3196 | K83: 6.1281
A84: E9094 | B84: Guindaste móvel sobre pneus com 6 eixos com capacidade máxima de 350 t - 450 kW | C84: 17355120.6 | D84: 867.756 | E84: 305.946 | F84: 123.9651 | G84: 1115.6863 | H84: 117.675 | I84: 33.1074 | J84: 2564.1358 | K84: 1330.7745
A85: E9095 | B85: Guindaste móvel sobre pneus com 8 eixos com capacidade máxima de 500 t - 500 kW | C85: 30011948.77 | D85: 1500.5974 | E85: 529.0678 | F85: 214.3711 | G85: 1929.3396 | H85: 130.75 | I85: 33.1074 | J85: 4337.2333 | K85: 2277.1437
A86: E9096 | B86: Minicarregadeira de pneus - 45,50 kW | C86: 406469.5683 | D86: 28.4529 | E86: 7.5238 | F86: 0 | G86: 28.4529 | H86: 59.4913 | I86: 32.2826 | J86: 156.2035 | K86: 68.2593
A87: E9101 | B87: Removedora de faixas de sinalização viária - 9,69 kW | C87: 50803.5188 | D87: 4.0643 | E87: 0.9404 | F87: 0 | G87: 3.5562 | H87: 17.7158 | I87: 0 | J87: 26.2767 | K87: 5.0047
A88: E9102 | B88: Extrusora para sarjeta de concreto - 10,44 kW | C88: 81168.207 | D88: 6.4935 | E88: 1.5024 | F88: 0 | G88: 5.6818 | H88: 8.1902 | I88: 26.0392 | J88: 47.9071 | K88: 34.0351
A89: E9103 | B89: Extrusora para meio-fio de concreto - 10,44 kW | C89: 63929.4736 | D89: 5.1144 | E89: 1.1833 | F89: 0 | G89: 4.4751 | H89: 8.1902 | I89: 26.0392 | J89: 45.0022 | K89: 32.3369
A90: E9105 | B90: Embarcação empurradora multipropósito - 2 x 186 kW | C90: 5205497.184 | D90: 67.7799 | E90: 30.2035 | F90: 0 | G90: 150.622 | H90: 369.6564 | I90: 136.0671 | J90: 754.3289 | K90: 234.0505
A91: E9106 | B91: Balsa de convés com capacidade de 200 t | C91: 1924659.071 | D91: 15.0364 | E91: 10.8237 | F91: 0 | G91: 25.0607 | H91: 0 | I91: 27.3131 | J91: 78.2339 | K91: 53.1732
A92: E9107 | B92: Compactador manual com soquete vibratório - 2,24 kW | C92: 11363.3376 | D92: 0.7576 | E92: 0.2045 | F92: 0 | G92: 0.7576 | H92: 4.0953 | I92: 0 | J92: 5.815 | K92: 0.9621
A93: E9108 | B93: Soldadora de trilho por caldeamento na via - 400 kW | C93: 9438533.391 | D93: 151.0165 | E93: 151.413 | F93: 0 | G93: 188.7707 | H93: 251.04 | I93: 77.6022 | J93: 819.8424 | K93: 380.0317
A94: E9110 | B94: Escavadeira hidráulica sobre esteiras para rocha com caçamba com capacidade de 1,56 m³ - 118 kW | C94: 1082017.329 | D94: 108.2017 | E94: 21.4587 | F94: 0 | G94: 108.2017 | H94: 117.2566 | I94: 32.2826 | J94: 387.4013 | K94: 161.943
A95: E9111 | B95: Jateador abrasivo úmido com capacidade de 350 kg de abrasivo | C95: 257231.6322 | D95: 23.1508 | E95: 4.7614 | F95: 0 | G95: 23.1508 | H95: 0 | I95: 26.0392 | J95: 77.1022 | K95: 53.9514
A96: E9112 | B96: Sinalizador direcional móvel com sistema fotovoltaico de energia e montado em chassi sobre pneus | C96: 22763.0842 | D96: 2.0487 | E96: 0.4213 | F96: 0 | G96: 1.1382 | H96: 0 | I96: 0 | J96: 3.6082 | K96: 2.47
A97: E9113 | B97: Painel de Mensagem Variável - PMV móvel, com sistema fotovoltaico de energia e montado em chassi sobre pneus | C97: 171021.5165 | D97: 15.3919 | E97: 3.1656 | F97: 0 | G97: 8.5511 | H97: 0 | I97: 0 | J97: 27.1086 | K97: 18.5575
A98: E9116 | B98: Semáforo móvel com 3 lentes e bateria - D = 200 mm | C98: 7830.0169 | D98: 0.7047 | E98: 0.1449 | F98: 0 | G98: 0.3915 | H98: 0 | I98: 0 | J98: 1.2411 | K98: 0.8496
A99: E9117 | B99: Carregadeira de pneus para rocha com capacidade de 2,50 m³ - 105 kW | C99: 1000824.48 | D99: 100.0824 | E99: 19.8485 | F99: 0 | G99: 100.0824 | H99: 104.3385 | I99: 32.2826 | J99: 356.6344 | K99: 152.2135
A100: E9118 | B100: Cortadora de pavimento com disco diamantado de 450 a 1.500 mm - 55,40 kW | C100: 485941.6789 | D100: 38.8753 | E100: 8.9948 | F100: 0 | G100: 38.8753 | H100: 43.4613 | I100: 26.0392 | J100: 156.2459 | K100: 73.9093
A101: E9119 | B101: Minicarregadeira sobre pneus com valetadeira - 55,40 kW | C101: 614245.5519 | D101: 42.9972 | E101: 11.3697 | F101: 0 | G101: 42.9972 | H101: 72.4355 | I101: 32.2826 | J101: 202.0822 | K101: 86.6495
A102: E9120 | B102: Equipamento de cravação sobre esteira para geodreno com haste para profundidade de até 20 m - 258 kW | C102: 2943389.346 | D102: 206.0373 | E102: 54.4821 | F102: 0 | G102: 206.0373 | H102: 175.4142 | I102: 26.0392 | J102: 668.0101 | K102: 286.5586
A103: E9122 | B103: Perfuratriz tipo Bottom Feed para coluna de brita - 194 kW | C103: 4764553.839 | D103: 317.6369 | E103: 85.7421 | F103: 0 | G103: 317.6369 | H103: 101.462 | I103: 32.2826 | J103: 854.7605 | K103: 435.6616
A104: E9125 | B104: Veículo tipo van furgão com capacidade de 1,54 t - 93 kW | C104: 227277.102 | D104: 11.3639 | E104: 4.09 | F104: 1.6572 | G104: 11.3639 | H104: 24.3195 | I104: 30.2256 | J104: 83.0201 | K104: 47.3367
A105: E9126 | B105: Draga backhoe com capacidade de 7 m³ - 1.000 kW | C105: 86160818.31 | D105: 969.3092 | E105: 697.7411 | F105: 0 | G105: 2154.0205 | H105: 993.7 | I105: 65.405 | J105: 4880.1758 | K105: 1732.4553
A106: E9127 | B106: Escavadeira hidráulica com martelo hidráulico de 520 kg - 75 kW | C106: 1022936.319 | D106: 116.907 | E106: 20.287 | F106: 0 | G106: 146.1338 | H106: 50.9925 | I106: 32.2826 | J106: 366.6029 | K106: 169.4766
A107: E9134 | B107: Miniônibus com capacidade para 30 passageiros - 111 kW | C107: 653548.5593 | D107: 28.0092 | E107: 11.5211 | F107: 4.6682 | G107: 42.0138 | H107: 110.3007 | I107: 32.1332 | J107: 228.6462 | K107: 76.3317
A108: E9141 | B108: Rebarbador hidráulico com bomba manual com capacidade de força de 9.000 kgf | C108: 93422.483 | D108: 7.4738 | E108: 1.7293 | F108: 0 | G108: 4.6711 | H108: 0 | I108: 0 | J108: 13.8742 | K108: 9.2031
A109: E9144 | B109: Pórtico metálico rolante com talha com capacidade de 5 t - 10 kW | C109: 303016.2997 | D109: 12.1207 | E109: 5.1414 | F109: 0 | G109: 7.5754 | H109: 0 | I109: 26.0392 | J109: 50.8767 | K109: 43.3013
A110: E9148 | B110: Macaco de protensão de fios com bomba - 3,72 kW | C110: 101509.7899 | D110: 5.8006 | E110: 1.7895 | F110: 0 | G110: 5.8006 | H110: 0 | I110: 38.8011 | J110: 52.1918 | K110: 46.3912
A111: E9149 | B111: Máquina de aplicação e extração de grampo elástico tipo Pandrol - 6,70 kW | C111: 265351.6732 | D111: 21.2281 | E111: 4.9117 | F111: 0 | G111: 21.2281 | H111: 9.7995 | I111: 0 | J111: 57.1674 | K111: 26.1398
A112: E9151 | B112: Britador de mandíbulas móvel sobre esteiras, sem peneira, com capacidade de 140 m³/h - 170 kW | C112: 2973157.958 | D112: 169.8947 | E112: 52.4125 | F112: 0 | G112: 169.8947 | H112: 160.038 | I112: 38.8011 | J112: 591.041 | K112: 261.1083
A113: E9152 | B113: Ferramenta de fixação à pólvora de ação direta | C113: 1050.2245 | D113: 0.0893 | E113: 0.0194 | F113: 0 | G113: 0.084 | H113: 0 | I113: 0 | J113: 0.1927 | K113: 0.1087
A114: E9153 | B114: Ferramenta de fixação à pólvora e sistema à pistão | C114: 990.7633 | D114: 0.0842 | E114: 0.0183 | F114: 0 | G114: 0.0793 | H114: 0 | I114: 0 | J114: 0.1818 | K114: 0.1025
A115: E9154 | B115: Equipamento para selagem com material asfáltico rebocável com capacidade de 370 l - 35 kW | C115: 462534.163 | D115: 29.7343 | E115: 8.1538 | F115: 0 | G115: 9.9114 | H115: 27.4575 | I115: 26.0392 | J115: 101.2962 | K115: 63.9273
A116: E9155 | B116: Caldeira de asfalto rebocável com capacidade de 600 l - 5,20 kW | C116: 136142.5384 | D116: 8.752 | E116: 2.4 | F116: 0 | G116: 2.9173 | H116: 3.8074 | I116: 0 | J116: 17.8767 | K116: 11.152
A117: E9156 | B117: Soprador de ar costal - 2,6 kW | C117: 2636.3299 | D117: 0.4218 | E117: 0.0976 | F117: 0 | G117: 0.3691 | H117: 4.7535 | I117: 0 | J117: 5.642 | K117: 0.5194
A118: E9157 | B118: Locomotiva diesel-elétrica CC - bitola métrica - 2.237 kW | C118: 8595000 | D118: 137.52 | E118: 137.881 | F118: 0 | G118: 171.9 | H118: 1403.9412 | I118: 33.5035 | J118: 1884.7457 | K118: 308.9045
A119: E9158 | B119: Locomotiva diesel-elétrica CC - bitola larga - 2.237 kW | C119: 8975000 | D119: 143.6 | E119: 143.977 | F119: 0 | G119: 179.5 | H119: 1403.9412 | I119: 33.5035 | J119: 1904.5217 | K119: 321.0805
A120: E9159 | B120: Vagão plataforma PNE com capacidade de 82 t - bitola métrica | C120: 736000 | D120: 11.6533 | E120: 11.7312 | F120: 0 | G120: 6.1333 | H120: 0 | I120: 0 | J120: 29.5178 | K120: 23.3845
A121: E9160 | B121: Vagão plataforma PNT com capacidade de 98 t - bitola larga | C121: 880000 | D121: 13.9333 | E121: 14.0265 | F121: 0 | G121: 7.3333 | H121: 0 | I121: 0 | J121: 35.2931 | K121: 27.9598
A122: E9161 | B122: Vagão fechado com porta para carga e descarga de paletes FLD com capacidade de 64 t - bitola métrica | C122: 730000 | D122: 11.5583 | E122: 11.6356 | F122: 0 | G122: 6.0833 | H122: 0 | I122: 0 | J122: 29.2772 | K122: 23.1939
A123: E9162 | B123: Vagão fechado com porta para carga e descarga de paletes FLT com capacidade de 99 t - bitola larga | C123: 823000 | D123: 13.0308 | E123: 13.1179 | F123: 0 | G123: 6.8583 | H123: 0 | I123: 0 | J123: 33.007 | K123: 26.1487
A124: E9163 | B124: Vagão hopper aberto com descarga automática HNE com capacidade de 45 m³ - bitola métrica | C124: 880000 | D124: 13.9333 | E124: 14.0265 | F124: 0 | G124: 7.3333 | H124: 0 | I124: 0 | J124: 35.2931 | K124: 27.9598
A125: E9164 | B125: Vagão hopper aberto com descarga automática HNT com capacidade de 63 m³ - bitola larga | C125: 915000 | D125: 14.4875 | E125: 14.5843 | F125: 0 | G125: 7.625 | H125: 0 | I125: 0 | J125: 36.6968 | K125: 29.0718
A126: E9167 | B126: Equipamento para carga e descarga de TLS de até 250 m - 90 kW | C126: 2825235.995 | D126: 45.2038 | E126: 45.3224 | F126: 0 | G126: 56.5047 | H126: 56.484 | I126: 38.8011 | J126: 242.316 | K126: 129.3273
A127: E9168 | B127: Carregadeira de pneus com implemento de garfo - 195 kW | C127: 1733507.243 | D127: 121.3455 | E127: 32.0872 | F127: 0 | G127: 121.3455 | H127: 81.588 | I127: 32.2826 | J127: 388.6488 | K127: 185.7153
A128: E9200 | B128: Carregadeira de pneus para rocha com capacidade de 2,50 m³ - 105 kW com periculosidade | C128: 1000824.48 | D128: 100.0824 | E128: 19.8485 | F128: 0 | G128: 100.0824 | H128: 104.3385 | I128: 39.9792 | J128: 364.331 | K128: 159.9101
A129: E9203 | B129: Escavadeira hidráulica com martelo hidráulico de 1.700 kg - 103 kW com periculosidade | C129: 1962701.174 | D129: 224.3087 | E129: 38.9246 | F129: 0 | G129: 280.3859 | H129: 70.0297 | I129: 39.9792 | J129: 653.6281 | K129: 303.2125
A130: E9204 | B130: Perfuratriz sobre esteiras - 145 kW com periculosidade | C130: 1723726.99 | D130: 114.9151 | E130: 31.0199 | F130: 0 | G130: 114.9151 | H130: 113.7525 | I130: 39.9792 | J130: 414.5818 | K130: 185.9142
A131: E9205 | B131: Equipamento de corte a plasma CNC - 12.000 x 5.500 mm - 19,5 kW | C131: 1090274.959 | D131: 87.222 | E131: 20.181 | F131: 0 | G131: 65.4165 | H131: 0 | I131: 0 | J131: 172.8195 | K131: 107.403
A132: E9206 | B132: Equipamento de solda MIG automática com acessórios - 14,6 kVA | C132: 83493.384 | D132: 6.6795 | E132: 1.5455 | F132: 0 | G132: 6.6795 | H132: 0 | I132: 0 | J132: 14.9045 | K132: 8.225
A133: E9207 | B133: Máquina de solda elétrica retificadora 425 A - 18,70 kW | C133: 6193.8037 | D133: 0.4955 | E133: 0.1146 | F133: 0 | G133: 0.4955 | H133: 0 | I133: 0 | J133: 1.1056 | K133: 0.6101
A134: E9209 | B134: Martelete perfurador/rompedor a ar comprimido de 25 kg para rocha, com insalubridade, com capacidade de 2.040 gpm | C134: 27308.3691 | D134: 2.1847 | E134: 0.5055 | F134: 0 | G134: 2.1847 | H134: 0 | I134: 33.3853 | J134: 38.2602 | K134: 36.0755
A135: E9213 | B135: Jumbo eletro-hidráulico com 3 braços - 155 kW/237 kW com periculosidade | C135: 12143146.74 | D135: 809.5431 | E135: 218.526 | F135: 0 | G135: 1011.9289 | H135: 170.2365 | I135: 48.497 | J135: 2258.7315 | K135: 1076.5661
A136: E9231 | B136: Maçarico lança-chamas a gás liquefeito de petróleo (GLP) | C136: 85.7415 | D136: 0.0069 | E136: 0.0016 | F136: 0 | G136: 0.0069 | H136: 0 | I136: 0 | J136: 0.0154 | K136: 0.0085
A137: E9242 | B137: Estação transmissora de superfície para televisionamento | C137: 12122.3492 | D137: 0.7793 | E137: 0.2137 | F137: 0 | G137: 0.4329 | H137: 0 | I137: 0 | J137: 1.4259 | K137: 0.993
A138: E9243 | B138: Câmara hiperbárica com filtro, serpentina e reservatório de ar para mergulho raso - D = 1,80 m e H = 2,22 m | C138: 448392.9419 | D138: 7.8469 | E138: 7.2623 | F138: 0 | G138: 11.2098 | H138: 0 | I138: 55.0749 | J138: 81.3939 | K138: 70.1841
A139: E9244 | B139: Estação transmissora de superfície para comunicação sem fio | C139: 38780.5134 | D139: 2.493 | E139: 0.6836 | F139: 0 | G139: 1.385 | H139: 0 | I139: 0 | J139: 4.5616 | K139: 3.1766
A140: E9245 | B140: Estação transmissora de superfície para comunicação com fio | C140: 6499.7988 | D140: 0.4178 | E140: 0.1146 | F140: 0 | G140: 0.2321 | H140: 0 | I140: 0 | J140: 0.7645 | K140: 0.5324
A141: E9246 | B141: Painel de controle de ar com manômetros e pneufatômetros | C141: 12473.2344 | D141: 0.8019 | E141: 0.2199 | F141: 0 | G141: 0.4455 | H141: 0 | I141: 0 | J141: 1.4673 | K141: 1.0218
A142: E9247 | B142: Sistema de Sino aberto (sinete) para mergulho até 50 m - 33,50 kW | C142: 553214.5164 | D142: 14.7524 | E142: 9.1022 | F142: 0 | G142: 14.7524 | H142: 0 | I142: 55.0749 | J142: 93.6819 | K142: 78.9295
A143: E9248 | B143: Sistema de ar comprimido para mergulho até 30 m com pressão de trabalho de 1,4 MPa - 7,46 kW | C143: 51800.3961 | D143: 3.4534 | E143: 0.9322 | F143: 0 | G143: 3.4534 | H143: 6.6327 | I143: 0 | J143: 14.4717 | K143: 4.3856
A144: E9249 | B144: Sistema de ar comprimido para mergulho até 50 m com pressão de trabalho de 1,7 MPa - 16,18 kW | C144: 79131.9997 | D144: 5.2755 | E144: 1.424 | F144: 0 | G144: 5.2755 | H144: 14.3856 | I144: 0 | J144: 26.3606 | K144: 6.6995
A145: E9251 | B145: Fonte de plasma para corte manual - 65A - 15 kW | C145: 32636.7327 | D145: 2.6109 | E145: 0.6041 | F145: 0 | G145: 2.6109 | H145: 0 | I145: 0 | J145: 5.8259 | K145: 3.215
A146: E9252 | B146: Serra de esquadria com braço telescópico - D = 250 mm (10") - 1,80 kW | C146: 5296.9182 | D146: 0.4767 | E146: 0.098 | F146: 0 | G146: 0.2648 | H146: 0 | I146: 0 | J146: 0.8395 | K146: 0.5747
A147: E9253 | B147: Rebordeadeira diâmetro máximo 3,00 m - 4,85 kW | C147: 66070.5533 | D147: 2.6428 | E147: 1.1211 | F147: 0 | G147: 2.3125 | H147: 0 | I147: 0 | J147: 6.0764 | K147: 3.7639
A148: E9254 | B148: Dobradeira viradeira manual comprimento máximo de dobra de até 2.000 mm | C148: 18888.2435 | D148: 0.7555 | E148: 0.3205 | F148: 0 | G148: 0.6611 | H148: 0 | I148: 0 | J148: 1.7371 | K148: 1.076
A149: E9255 | B149: Fonte de plasma para corte manual - 45A - 10 kW | C149: 21804.3327 | D149: 1.7443 | E149: 0.4036 | F149: 0 | G149: 1.7443 | H149: 0 | I149: 0 | J149: 3.8922 | K149: 2.1479
A150: E9256 | B150: Equipamento para pintura com cal rebocável com dois bicos aplicadores e capacidade de 2.200 l | C150: 71536.3675 | D150: 4.0878 | E150: 1.2611 | F150: 0 | G150: 4.0878 | H150: 0 | I150: 26.0392 | J150: 35.4759 | K150: 31.3881
A151: E9259 | B151: Ventilador centrífugo média pressão com capacidade de 38 m³/min - 2,21 kW | C151: 17059.9911 | D151: 1.5354 | E151: 0.3158 | F151: 0 | G151: 1.0236 | H151: 0 | I151: 0 | J151: 2.8748 | K151: 1.8512
A152: E9260 | B152: Detector de gases com bomba elétrica para espaço confinado | C152: 4078.349 | D152: 0.3263 | E152: 0.0755 | F152: 0 | G152: 0.2039 | H152: 0 | I152: 0 | J152: 0.6057 | K152: 0.4018
A153: E9261 | B153: Equipamento de pintura com pistola airless - 0,90 kW | C153: 2457.1322 | D153: 0.2211 | E153: 0.0455 | F153: 0 | G153: 0.1229 | H153: 0 | I153: 0 | J153: 0.3895 | K153: 0.2666
A154: E9262 | B154: Escova rotativa com cerdas de aço para tratamento de superfície - 0,91 kW | C154: 19592.9973 | D154: 1.5674 | E154: 0.3627 | F154: 0 | G154: 0.9796 | H154: 0 | I154: 26.0392 | J154: 28.9489 | K154: 27.9693
A155: E9263 | B155: Tripé com guincho para espaço confinado | C155: 9742.4123 | D155: 0.7794 | E155: 0.1803 | F155: 0 | G155: 0.5845 | H155: 0 | I155: 0 | J155: 1.5442 | K155: 0.9597
A156: E9264 | B156: Respirador purificador de ar motorizado | C156: 8476.0072 | D156: 0.6781 | E156: 0.1569 | F156: 0 | G156: 0.4238 | H156: 0 | I156: 0 | J156: 1.2588 | K156: 0.835
A157: E9265 | B157: Respirador de adução de ar tipo linha de ar comprimido para jateamento | C157: 17302.3672 | D157: 1.3842 | E157: 0.3203 | F157: 0 | G157: 0.8651 | H157: 0 | I157: 0 | J157: 2.5696 | K157: 1.7045
A158: E9267 | B158: Exaustor centrífugo alta pressão com capacidade de 35 m³/min - 1,47 kW | C158: 5483.6017 | D158: 0.4935 | E158: 0.1015 | F158: 0 | G158: 0.329 | H158: 0 | I158: 0 | J158: 0.924 | K158: 0.595
A159: E9501 | B159: Ventilador axial para ventilação forçada com velocidade de saída de 32,8 m/s - D = 1.000 mm - 30 kW | C159: 458424.8539 | D159: 41.2582 | E159: 8.4854 | F159: 0 | G159: 27.5055 | H159: 0 | I159: 0 | J159: 77.2491 | K159: 49.7436
A160: E9502 | B160: Bate-estaca de gravidade para 6 t - 119 kW | C160: 934478.4221 | D160: 53.3988 | E160: 16.4735 | F160: 0 | G160: 40.0491 | H160: 80.9081 | I160: 32.2826 | J160: 223.1121 | K160: 102.1549
A161: E9503 | B161: Guilhotina hidráulica 16 x 6.100 mm - 30 kW | C161: 1328606.479 | D161: 53.1443 | E161: 22.5431 | F161: 0 | G161: 46.5012 | H161: 0 | I161: 26.0392 | J161: 148.2278 | K161: 101.7266
A162: E9505 | B162: Prensa dobradeira capacidade 320 t - comprimento até 3.100 mm - 30 kW | C162: 841605.6527 | D162: 33.6642 | E162: 14.2799 | F162: 0 | G162: 29.4562 | H162: 0 | I162: 26.0392 | J162: 103.4395 | K162: 73.9833
A163: E9507 | B163: Plotadora de recorte com computador e programa computacional | C163: 90334.8238 | D163: 13.5502 | E163: 1.8579 | F163: 0 | G163: 9.0335 | H163: 0 | I163: 0 | J163: 24.4416 | K163: 15.4081
A164: E9510 | B164: Ventilador centrífugo baixa pressão com capacidade de 58 m³/min - 3,68 kW | C164: 13611.3368 | D164: 1.225 | E164: 0.2519 | F164: 0 | G164: 0.8167 | H164: 0 | I164: 0 | J164: 2.2936 | K164: 1.4769
A165: E9511 | B165: Carregadeira de pneus com capacidade de 3,40 m³ - 195 kW | C165: 2045679.626 | D165: 143.1976 | E165: 37.8655 | F165: 0 | G165: 143.1976 | H165: 81.588 | I165: 32.2826 | J165: 438.1313 | K165: 213.3457
A166: E9512 | B166: Veículo leve - 53 kW | C166: 71248.4342 | D166: 4.2749 | E166: 1.3188 | F166: 0.5344 | G166: 4.2749 | H166: 24.9166 | I166: 30.2256 | J166: 65.5452 | K166: 36.3537
A167: E9513 | B167: Compressor de ar portátil de 160,46 l/s (340 PCM) - 81 kW | C167: 317421.4092 | D167: 21.1614 | E167: 5.7123 | F167: 0 | G167: 21.1614 | H167: 72.0171 | I167: 0 | J167: 120.0522 | K167: 26.8737
A168: E9514 | B168: Distribuidor de agregados sobre pneus autopropelido - 130 kW | C168: 957664.2952 | D168: 54.7237 | E168: 16.8823 | F168: 0 | G168: 47.8832 | H168: 129.181 | I168: 32.2826 | J168: 280.9528 | K168: 103.8886
A169: E9515 | B169: Escavadeira hidráulica sobre esteiras com caçamba com capacidade de 1,56 m³ - 118 kW | C169: 1082017.329 | D169: 75.7412 | E169: 20.0281 | F169: 0 | G169: 75.7412 | H169: 80.2282 | I169: 32.2826 | J169: 284.0213 | K169: 128.0519
A170: E9516 | B170: Perfuratriz hidráulica sobre esteiras - 283 kW | C170: 5256668.817 | D170: 350.4446 | E170: 94.5981 | F170: 0 | G170: 350.4446 | H170: 148.009 | I170: 32.2826 | J170: 975.7789 | K170: 477.3253
A171: E9518 | B171: Grade de 24 discos rebocável de D = 60 cm (24") | C171: 43022.6814 | D171: 2.7657 | E171: 0.7584 | F171: 0 | G171: 1.5365 | H171: 0 | I171: 0 | J171: 5.0606 | K171: 3.5241
A172: E9519 | B172: Betoneira com motor a gasolina com capacidade de 600 l - 10 kW | C172: 38556.4909 | D172: 3.0845 | E172: 0.7137 | F172: 0 | G172: 2.3134 | H172: 18.2826 | I172: 26.0392 | J172: 50.4334 | K172: 29.8374
A173: E9521 | B173: Grupo gerador - 3,2 kVA | C173: 3555.5045 | D173: 0.1778 | E173: 0.0627 | F173: 0 | G173: 0.127 | H173: 4.346 | I173: 0 | J173: 4.7135 | K173: 0.2405
A174: E9522 | B174: Caldeira de asfalto rebocável com capacidade de 1.500 l - 6,5 kW | C174: 184914.4813 | D174: 11.8874 | E174: 3.2598 | F174: 0 | G174: 3.9625 | H174: 4.7593 | I174: 0 | J174: 23.869 | K174: 15.1472
A175: E9523 | B175: Motoscraper - 304 kW | C175: 5781703.292 | D175: 272.0802 | E175: 99.6749 | F175: 0 | G175: 306.0902 | H175: 254.3872 | I175: 32.2826 | J175: 964.5151 | K175: 404.0377
A176: E9524 | B176: Motoniveladora - 93 kW | C176: 1353454.954 | D176: 67.6727 | E176: 23.8595 | F176: 0 | G176: 87.0078 | H176: 72.9585 | I176: 32.2826 | J176: 283.7811 | K176: 123.8148
A177: E9525 | B177: Ponte rolante com capacidade de 15 t e vão de até 15 m - 20 kW | C177: 3438996.279 | D177: 137.5599 | E177: 58.3512 | F177: 0 | G177: 85.9749 | H177: 0 | I177: 52.0784 | J177: 333.9644 | K177: 247.9895
A178: E9526 | B178: Retroescavadeira de pneus - capacidade da caçamba da pá-carregadeira de 0,76 m³ e da retroescavadeira de 0,29 m³ - 58 kW | C178: 466217.2183 | D178: 32.6352 | E178: 8.6297 | F178: 0 | G178: 32.6352 | H178: 39.4342 | I178: 32.2826 | J178: 145.6169 | K178: 73.5475
A179: E9527 | B179: Martelete perfurador/rompedor a ar comprimido de 25 kg para rocha com capacidade de 2.040 gpm | C179: 27308.3691 | D179: 2.1847 | E179: 0.5055 | F179: 0 | G179: 2.1847 | H179: 0 | I179: 26.0392 | J179: 30.9141 | K179: 28.7294
A180: E9528 | B180: Empilhadeira a diesel com capacidade de 4 t - 60 kW | C180: 522435.5224 | D180: 41.7948 | E180: 9.6703 | F180: 0 | G180: 36.5705 | H180: 47.07 | I180: 26.0392 | J180: 161.1448 | K180: 77.5043
A181: E9529 | B181: Jateador para estruturas metálicas com transportador a roletes - 22 kW | C181: 4298734.537 | D181: 286.5823 | E181: 77.3593 | F181: 0 | G181: 214.9367 | H181: 0 | I181: 26.0392 | J181: 604.9175 | K181: 389.9808
A182: E9530 | B182: Rolo compactador liso vibratório autopropelido por pneus de 11 t - 97 kW | C182: 911450.0652 | D182: 60.7633 | E182: 16.4023 | F182: 0 | G182: 60.7633 | H182: 81.1696 | I182: 32.2826 | J182: 251.3811 | K182: 109.4482
A183: E9532 | B183: Equipamento de solda MIG com acessórios - 14,6 kVA | C183: 80505.2398 | D183: 6.4404 | E183: 1.4902 | F183: 0 | G183: 6.4404 | H183: 0 | I183: 0 | J183: 14.371 | K183: 7.9306
A184: E9535 | B184: Serra circular com bancada - D = 30 cm - 4 kW | C184: 7181.4296 | D184: 0.6463 | E184: 0.1329 | F184: 0 | G184: 0.3591 | H184: 0 | I184: 26.0392 | J184: 27.1775 | K184: 26.8184
A185: E9536 | B185: Embarcação de transporte de pessoal e apoio logístico - 30 kW | C185: 129622.1931 | D185: 2.0253 | E185: 0.7637 | F185: 0 | G185: 2.2504 | H185: 62.6832 | I185: 39.4077 | J185: 107.1303 | K185: 42.1967
A186: E9538 | B186: Conjunto vibratório para meio tubo de concreto com encaixe PB e 3 jogos de fôrmas - D = 0,30 m - 2,20 kW | C186: 15779.9375 | D186: 2.104 | E186: 0.4868 | F186: 0 | G186: 1.578 | H186: 0 | I186: 0 | J186: 4.1688 | K186: 2.5908
A187: E9539 | B187: Equipamento de batimetria monofeixe | C187: 108471.9421 | D187: 6.9732 | E187: 1.9122 | F187: 0 | G187: 3.874 | H187: 0 | I187: 39.482 | J187: 52.2414 | K187: 48.3674
A188: E9540 | B188: Trator sobre esteiras com lâmina - 127 kW | C188: 1725963.39 | D188: 67.1208 | E188: 29.5811 | F188: 0 | G188: 95.8869 | H188: 92.9894 | I188: 32.2826 | J188: 317.8608 | K188: 128.9845
A189: E9541 | B189: Trator sobre esteiras com lâmina - 259 kW | C189: 4800373.031 | D189: 186.6812 | E189: 82.2731 | F189: 0 | G189: 266.6874 | H189: 189.6398 | I189: 32.2826 | J189: 757.5641 | K189: 301.2369
A190: E9543 | B190: Compressor de ar respirável com capacidade de até 35 MPa e 3,58 l/s - 5,52 kW | C190: 57334.8881 | D190: 3.8223 | E190: 1.0318 | F190: 0 | G190: 3.8223 | H190: 0 | I190: 0 | J190: 8.6764 | K190: 4.8541
A191: E9544 | B191: Vassoura mecânica rebocável com largura de 2,44 m | C191: 71235.0414 | D191: 6.4112 | E191: 1.3186 | F191: 0 | G191: 4.2741 | H191: 0 | I191: 0 | J191: 12.0039 | K191: 7.7298
A192: E9545 | B192: Vibroacabadora de asfalto sobre esteiras - 82 kW | C192: 3742066.272 | D192: 187.1033 | E192: 65.9673 | F192: 0 | G192: 240.5614 | H192: 81.4834 | I192: 38.8011 | J192: 613.9165 | K192: 291.8717
A193: E9547 | B193: Máquina de solda elétrica transformadora 250 A - 9,20 kW | C193: 1379.4876 | D193: 0.1104 | E193: 0.0255 | F193: 0 | G193: 0.1104 | H193: 0 | I193: 0 | J193: 0.2463 | K193: 0.1359
A194: E9548 | B194: Bomba centrífuga com capacidade de 7,1 a 22 m³/h - 1,50 kW | C194: 2494.1818 | D194: 0.1995 | E194: 0.0462 | F194: 0 | G194: 0.1746 | H194: 0 | I194: 0 | J194: 0.4203 | K194: 0.2457
A195: E9551 | B195: Obturador mecânico simples com extensão de 12 m | C195: 4889.9953 | D195: 0.4401 | E195: 0.0905 | F195: 0 | G195: 0.2445 | H195: 0 | I195: 0 | J195: 0.7751 | K195: 0.5306
A196: E9552 | B196: Nível ótico com capacidade de aumento de 32x | C196: 12008.8151 | D196: 0.9607 | E196: 0.2223 | F196: 0 | G196: 0.6004 | H196: 0 | I196: 0 | J196: 1.7834 | K196: 1.183
A197: E9553 | B197: Estação total eletrônica com alcance máximo de 3.000 m | C197: 39453.8355 | D197: 3.5508 | E197: 0.7303 | F197: 0 | G197: 1.9727 | H197: 0 | I197: 0 | J197: 6.2538 | K197: 4.2811
A198: E9556 | B198: Compactador manual de placa vibratória - 3,00 kW | C198: 10899.9801 | D198: 0.7267 | E198: 0.1962 | F198: 0 | G198: 0.7267 | H198: 5.4848 | I198: 0 | J198: 7.1344 | K198: 0.9229
A199: E9558 | B199: Tanque de estocagem de asfalto com capacidade de 30.000 l | C199: 705715.8334 | D199: 29.4048 | E199: 10.2053 | F199: 0 | G199: 18.378 | H199: 0 | I199: 0 | J199: 57.9881 | K199: 39.6101
A200: E9559 | B200: Aquecedor de fluido térmico - 12 kW | C200: 687496.8181 | D200: 30.9374 | E200: 9.5442 | F200: 0 | G200: 20.6249 | H200: 9.414 | I200: 0 | J200: 70.5205 | K200: 40.4816
... 341 more rows

Sheet SINTÉTICO SICRO (hidden)
A1: CGCIT | B1: SISTEMA DE CUSTOS REFERENCIAIS DE OBRAS - SICRO | D1: DNIT
B2: Pernambuco - Julho/2024
A3: Código | B3: Descrição do Serviço | C3: Unidade | D3: Custo Unitário (R$)
A4: 307731 | B4: Aparelho de apoio de neoprene fretado para estruturas moldadas no local - fornecimento e instalação | C4: dm³ | D4: 136.22
A5: 307732 | B5: Aparelho de apoio de neoprene fretado para estruturas pré-moldadas - fornecimento e instalação | C5: dm³ | D5: 112.07
A6: 308308 | B6: Aparelho de apoio metálico elastomérico fixo com capacidade de 1.500 kN - fornecimento e instalação | C6: un | D6: 6271.42
A7: 308313 | B7: Aparelho de apoio metálico elastomérico fixo com capacidade de 10.000 kN - fornecimento e instalação | C7: un | D7: 39522.53
A8: 308309 | B8: Aparelho de apoio metálico elastomérico fixo com capacidade de 2.500 kN - fornecimento e instalação | C8: un | D8: 10249.59
A9: 308310 | B9: Aparelho de apoio metálico elastomérico fixo com capacidade de 4.000 kN - fornecimento e instalação | C9: un | D9: 14840.38
A10: 308311 | B10: Aparelho de apoio metálico elastomérico fixo com capacidade de 5.500 kN - fornecimento e instalação | C10: un | D10: 20587.45
A11: 308312 | B11: Aparelho de apoio metálico elastomérico fixo com capacidade de 7.500 kN - fornecimento e instalação | C11: un | D11: 28562.49
A12: 308307 | B12: Aparelho de apoio metálico elastomérico fixo com capacidade de 700 kN - fornecimento e instalação | C12: un | D12: 4031.46
A13: 308322 | B13: Aparelho de apoio metálico elastomérico multidirecional com capacidade de 1.500 kN - fornecimento e instalação | C13: un | D13: 5395.46
A14: 308327 | B14: Aparelho de apoio metálico elastomérico multidirecional com capacidade de 10.000 kN - fornecimento e instalação | C14: un | D14: 33237.97
A15: 308323 | B15: Aparelho de apoio metálico elastomérico multidirecional com capacidade de 2.500 kN - fornecimento e instalação | C15: un | D15: 8034.69
A16: 308324 | B16: Aparelho de apoio metálico elastomérico multidirecional com capacidade de 4.000 kN - fornecimento e instalação | C16: un | D16: 12376.66
A17: 308325 | B17: Aparelho de apoio metálico elastomérico multidirecional com capacidade de 5.500 kN - fornecimento e instalação | C17: un | D17: 17504.65
A18: 308326 | B18: Aparelho de apoio metálico elastomérico multidirecional com capacidade de 7.500 kN - fornecimento e instalação | C18: un | D18: 24544.15
A19: 308321 | B19: Aparelho de apoio metálico elastomérico multidirecional com capacidade de 700 kN - fornecimento e instalação | C19: un | D19: 4052.69
A20: 308315 | B20: Aparelho de apoio metálico elastomérico unidirecional com capacidade de 1.500 kN - fornecimento e instalação | C20: un | D20: 6738.45
A21: 308320 | B21: Aparelho de apoio metálico elastomérico unidirecional com capacidade de 10.000 kN - fornecimento e instalação | C21: un | D21: 44698.77
A22: 308316 | B22: Aparelho de apoio metálico elastomérico unidirecional com capacidade de 2.500 kN - fornecimento e instalação | C22: un | D22: 9613.68
A23: 308317 | B23: Aparelho de apoio metálico elastomérico unidirecional com capacidade de 4.000 kN - fornecimento e instalação | C23: un | D23: 16993.24
A24: 308318 | B24: Aparelho de apoio metálico elastomérico unidirecional com capacidade de 5.500 kN - fornecimento e instalação | C24: un | D24: 23368.33
A25: 308319 | B25: Aparelho de apoio metálico elastomérico unidirecional com capacidade de 7.500 kN - fornecimento e instalação | C25: un | D25: 28005.36
A26: 308314 | B26: Aparelho de apoio metálico elastomérico unidirecional com capacidade de 700 kN - fornecimento e instalação | C26: un | D26: 4682.31
A27: 308250 | B27: Aparelho de apoio metálico esférico fixo com capacidade de 1.000 kN - fornecimento e instalação | C27: un | D27: 6424.09
A28: 308251 | B28: Aparelho de apoio metálico esférico fixo com capacidade de 1.500 kN - fornecimento e instalação | C28: un | D28: 9893.71
A29: 308268 | B29: Aparelho de apoio metálico esférico fixo com capacidade de 10.000 kN - fornecimento e instalação | C29: un | D29: 77160.2
A30: 308252 | B30: Aparelho de apoio metálico esférico fixo com capacidade de 2.000 kN - fornecimento e instalação | C30: un | D30: 11797.03
A31: 308253 | B31: Aparelho de apoio metálico esférico fixo com capacidade de 2.500 kN - fornecimento e instalação | C31: un | D31: 14447.89
A32: 308254 | B32: Aparelho de apoio metálico esférico fixo com capacidade de 3.000 kN - fornecimento e instalação | C32: un | D32: 16628.52
A33: 308255 | B33: Aparelho de apoio metálico esférico fixo com capacidade de 3.500 kN - fornecimento e instalação | C33: un | D33: 19939.59
A34: 308256 | B34: Aparelho de apoio metálico esférico fixo com capacidade de 4.000 kN - fornecimento e instalação | C34: un | D34: 25803.04
A35: 308257 | B35: Aparelho de apoio metálico esférico fixo com capacidade de 4.500 kN - fornecimento e instalação | C35: un | D35: 30992.65
A36: 308258 | B36: Aparelho de apoio metálico esférico fixo com capacidade de 5.000 kN - fornecimento e instalação | C36: un | D36: 34558.45
A37: 308259 | B37: Aparelho de apoio metálico esférico fixo com capacidade de 5.500 kN - fornecimento e instalação | C37: un | D37: 39760.76
A38: 308260 | B38: Aparelho de apoio metálico esférico fixo com capacidade de 6.000 kN - fornecimento e instalação | C38: un | D38: 44082.12
A39: 308261 | B39: Aparelho de apoio metálico esférico fixo com capacidade de 6.500 kN - fornecimento e instalação | C39: un | D39: 48456.96
A40: 308262 | B40: Aparelho de apoio metálico esférico fixo com capacidade de 7.000 kN - fornecimento e instalação | C40: un | D40: 54376.45
A41: 308263 | B41: Aparelho de apoio metálico esférico fixo com capacidade de 7.500 kN - fornecimento e instalação | C41: un | D41: 55538
A42: 308264 | B42: Aparelho de apoio metálico esférico fixo com capacidade de 8.000 kN - fornecimento e instalação | C42: un | D42: 60011.8
A43: 308265 | B43: Aparelho de apoio metálico esférico fixo com capacidade de 8.500 kN - fornecimento e instalação | C43: un | D43: 61061.08
A44: 308266 | B44: Aparelho de apoio metálico esférico fixo com capacidade de 9.000 kN - fornecimento e instalação | C44: un | D44: 69121.29
A45: 308267 | B45: Aparelho de apoio metálico esférico fixo com capacidade de 9.500 kN - fornecimento e instalação | C45: un | D45: 73173.04
A46: 308288 | B46: Aparelho de apoio metálico esférico multidirecional com capacidade de 1.000 kN - fornecimento e instalação | C46: un | D46: 8389.98
A47: 308289 | B47: Aparelho de apoio metálico esférico multidirecional com capacidade de 1.500 kN - fornecimento e instalação | C47: un | D47: 11978.09
A48: 308306 | B48: Aparelho de apoio metálico esférico multidirecional com capacidade de 10.000 kN - fornecimento e instalação | C48: un | D48: 81014.56
A49: 308290 | B49: Aparelho de apoio metálico esférico multidirecional com capacidade de 2.000 kN - fornecimento e instalação | C49: un | D49: 15396.98
A50: 308291 | B50: Aparelho de apoio metálico esférico multidirecional com capacidade de 2.500 kN - fornecimento e instalação | C50: un | D50: 18840.24
A51: 308292 | B51: Aparelho de apoio metálico esférico multidirecional com capacidade de 3.000 kN - fornecimento e instalação | C51: un | D51: 21111.23
A52: 308293 | B52: Aparelho de apoio metálico esférico multidirecional com capacidade de 3.500 kN - fornecimento e instalação | C52: un | D52: 24164.29
A53: 308294 | B53: Aparelho de apoio metálico esférico multidirecional com capacidade de 4.000 kN - fornecimento e instalação | C53: un | D53: 27134.33
A54: 308295 | B54: Aparelho de apoio metálico esférico multidirecional com capacidade de 4.500 kN - fornecimento e instalação | C54: un | D54: 32532.15
A55: 308296 | B55: Aparelho de apoio metálico esférico multidirecional com capacidade de 5.000 kN - fornecimento e instalação | C55: un | D55: 35315.02
A56: 308297 | B56: Aparelho de apoio metálico esférico multidirecional com capacidade de 5.500 kN - fornecimento e instalação | C56: un | D56: 39225.94
A57: 308298 | B57: Aparelho de apoio metálico esférico multidirecional com capacidade de 6.000 kN - fornecimento e instalação | C57: un | D57: 44525.32
A58: 308299 | B58: Aparelho de apoio metálico esférico multidirecional com capacidade de 6.500 kN - fornecimento e instalação | C58: un | D58: 48093.71
A59: 308300 | B59: Aparelho de apoio metálico esférico multidirecional com capacidade de 7.000 kN - fornecimento e instalação | C59: un | D59: 51757.59
A60: 308301 | B60: Aparelho de apoio metálico esférico multidirecional com capacidade de 7.500 kN - fornecimento e instalação | C60: un | D60: 55829.1
A61: 308302 | B61: Aparelho de apoio metálico esférico multidirecional com capacidade de 8.000 kN - fornecimento e instalação | C61: un | D61: 62932.57
A62: 308303 | B62: Aparelho de apoio metálico esférico multidirecional com capacidade de 8.500 kN - fornecimento e instalação | C62: un | D62: 68886.41
A63: 308304 | B63: Aparelho de apoio metálico esférico multidirecional com capacidade de 9.000 kN - fornecimento e instalação | C63: un | D63: 72688.62
A64: 308305 | B64: Aparelho de apoio metálico esférico multidirecional com capacidade de 9.500 kN - fornecimento e instalação | C64: un | D64: 77157.21
A65: 308269 | B65: Aparelho de apoio metálico esférico unidirecional com capacidade de 1.000 kN - fornecimento e instalação | C65: un | D65: 9589.03
A66: 308270 | B66: Aparelho de apoio metálico esférico unidirecional com capacidade de 1.500 kN - fornecimento e instalação | C66: un | D66: 13158.72
A67: 308287 | B67: Aparelho de apoio metálico esférico unidirecional com capacidade de 10.000 kN - fornecimento e instalação | C67: un | D67: 84615.2
A68: 308271 | B68: Aparelho de apoio metálico esférico unidirecional com capacidade de 2.000 kN - fornecimento e instalação | C68: un | D68: 16302.88
A69: 308272 | B69: Aparelho de apoio metálico esférico unidirecional com capacidade de 2.500 kN - fornecimento e instalação | C69: un | D69: 19047.99
A70: 308273 | B70: Aparelho de apoio metálico esférico unidirecional com capacidade de 3.000 kN - fornecimento e instalação | C70: un | D70: 22612.98
A71: 308274 | B71: Aparelho de apoio metálico esférico unidirecional com capacidade de 3.500 kN - fornecimento e instalação | C71: un | D71: 26130.14
A72: 308275 | B72: Aparelho de apoio metálico esférico unidirecional com capacidade de 4.000 kN - fornecimento e instalação | C72: un | D72: 30221.34
A73: 308276 | B73: Aparelho de apoio metálico esférico unidirecional com capacidade de 4.500 kN - fornecimento e instalação | C73: un | D73: 38584.28
A74: 308277 | B74: Aparelho de apoio metálico esférico unidirecional com capacidade de 5.000 kN - fornecimento e instalação | C74: un | D74: 42692.84
A75: 308278 | B75: Aparelho de apoio metálico esférico unidirecional com capacidade de 5.500 kN - fornecimento e instalação | C75: un | D75: 46267.14
A76: 308279 | B76: Aparelho de apoio metálico esférico unidirecional com capacidade de 6.000 kN - fornecimento e instalação | C76: un | D76: 49974.83
A77: 308280 | B77: Aparelho de apoio metálico esférico unidirecional com capacidade de 6.500 kN - fornecimento e instalação | C77: un | D77: 54247.92
A78: 308281 | B78: Aparelho de apoio metálico esférico unidirecional com capacidade de 7.000 kN - fornecimento e instalação | C78: un | D78: 58273.16
A79: 308282 | B79: Aparelho de apoio metálico esférico unidirecional com capacidade de 7.500 kN - fornecimento e instalação | C79: un | D79: 62559.45
A80: 308283 | B80: Aparelho de apoio metálico esférico unidirecional com capacidade de 8.000 kN - fornecimento e instalação | C80: un | D80: 66505.13
A81: 308284 | B81: Aparelho de apoio metálico esférico unidirecional com capacidade de 8.500 kN - fornecimento e instalação | C81: un | D81: 71736.08
A82: 308285 | B82: Aparelho de apoio metálico esférico unidirecional com capacidade de 9.000 kN - fornecimento e instalação | C82: un | D82: 76020.99
A83: 308286 | B83: Aparelho de apoio metálico esférico unidirecional com capacidade de 9.500 kN - fornecimento e instalação | C83: un | D83: 80418.1
A84: 307733 | B84: Junta de dilatação em elastômero e perfil VV - L = 20 mm e H = 40 mm - fornecimento e instalação | C84: m | D84: 261.53
A85: 307734 | B85: Junta de dilatação em elastômero e perfil VV - L = 25 mm e H = 50 mm - fornecimento e instalação | C85: m | D85: 315.02
A86: 307735 | B86: Junta de dilatação em elastômero e perfil VV - L = 35 mm e H = 60 mm - fornecimento e instalação | C86: m | D86: 413.3
A87: 307736 | B87: Junta de dilatação em elastômero e perfil VV - L = 40 mm e H = 70 mm - fornecimento e instalação | C87: m | D87: 551.74
A88: 307737 | B88: Junta de dilatação em elastômero e perfil VV - L = 50 mm e H = 80 mm - fornecimento e instalação | C88: m | D88: 582.7
A89: 307730 | B89: Junta de dilatação em perfil extrudado de borracha vulcanizada | C89: m | D89: 0
A90: 307084 | B90: Lábios poliméricos em junta de pavimento de concreto - L = 20 mm e H = 30 mm - confecção e assentamento | C90: m | D90: 32.34
A91: 407818 | B91: Armação em aço CA-25 - fornecimento, preparo e colocação | C91: kg | D91: 11.25
A92: 407819 | B92: Armação em aço CA-50 - fornecimento, preparo e colocação | C92: kg | D92: 11.63
A93: 407820 | B93: Armação em aço CA-60 - fornecimento, preparo e colocação | C93: kg | D93: 12.84
A94: 407740 | B94: Chumbador tipo espera em aço CA-25 para fixação de estrutura metálica em concreto - fornecimento e instalação | C94: kg | D94: 14.1
A95: 408037 | B95: Luva de emenda com rosca cônica para aço CA-50 - D = 12,5 mm - fornecimento e instalação | C95: un | D95: 20.29
A96: 408038 | B96: Luva de emenda com rosca cônica para aço CA-50 - D = 16 mm - fornecimento e instalação | C96: un | D96: 31.71
A97: 408039 | B97: Luva de emenda com rosca cônica para aço CA-50 - D = 20 mm - fornecimento e instalação | C97: un | D97: 41.96
A98: 408041 | B98: Luva de emenda com rosca cônica para aço CA-50 - D = 25 mm - fornecimento e instalação | C98: un | D98: 55.47
A99: 408042 | B99: Luva de emenda com rosca cônica para aço CA-50 - D = 32 mm - fornecimento e instalação | C99: un | D99: 79.2
A100: 408031 | B100: Luva de emenda prensada para aço CA-50 - D = 12,5 mm - fornecimento e instalação | C100: un | D100: 21.33
A101: 408032 | B101: Luva de emenda prensada para aço CA-50 - D = 16 mm - fornecimento e instalação | C101: un | D101: 29.02
A102: 408033 | B102: Luva de emenda prensada para aço CA-50 - D = 20 mm - fornecimento e instalação | C102: un | D102: 39.54
A103: 408035 | B103: Luva de emenda prensada para aço CA-50 - D = 25 mm - fornecimento e instalação | C103: un | D103: 68.87
A104: 408036 | B104: Luva de emenda prensada para aço CA-50 - D = 32 mm - fornecimento e instalação | C104: un | D104: 145.76
A105: 408067 | B105: Tela de aço eletrossoldada - fornecimento, preparo e colocação | C105: kg | D105: 10.57
A106: 407743 | B106: Treliça nervurada três barras longitudinais interligadas por duas diagonais sinusoidal - fornecimento e instalação | C106: kg | D106: 11.49
A107: 607137 | B107: Arco metálico galvanizado tipo MP 152S - arco alto - vão = 10,08 m e altura = 6,12 m - aterro rodoviário mínimo = 0,90 m e máximo = 5,00 m - areia e brita comerciais | C107: m | D107: 59298.73
A108: 606785 | B108: Arco metálico galvanizado tipo MP 152S - arco alto - vão = 10,08 m e altura = 6,12 m - aterro rodoviário mínimo = 0,90 m e máximo = 5,00 m - areia extraída e brita produzida | C108: m | D108: 58681.7
A109: 607139 | B109: Arco metálico galvanizado tipo MP 152S - arco alto - vão = 10,31 m e altura = 6,17 m - aterro rodoviário mínimo = 0,90 m e máximo = 4,90 m - areia e brita comerciais | C109: m | D109: 60095.67
A110: 606787 | B110: Arco metálico galvanizado tipo MP 152S - arco alto - vão = 10,31 m e altura = 6,17 m - aterro rodoviário mínimo = 0,90 m e máximo = 4,90 m - areia extraída e brita produzida | C110: m | D110: 59170.89
A111: 607140 | B111: Arco metálico galvanizado tipo MP 152S - arco alto - vão = 10,36 m e altura = 5,38 m - aterro rodoviário mínimo = 1,20 m e máximo = 3,60 m - areia e brita comerciais | C111: m | D111: 54888.88
A112: 606788 | B112: Arco metálico galvanizado tipo MP 152S - arco alto - vão = 10,36 m e altura = 5,38 m - aterro rodoviário mínimo = 1,20 m e máximo = 3,60 m - areia extraída e brita produzida | C112: m | D112: 54639.86
A113: 607141 | B113: Arco metálico galvanizado tipo MP 152S - arco alto - vão = 10,54 m e altura = 6,05 m - aterro rodoviário mínimo = 1,20 m e máximo = 4,20 m - areia e brita comerciais | C113: m | D113: 61159.25
A114: 606789 | B114: Arco metálico galvanizado tipo MP 152S - arco alto - vão = 10,54 m e altura = 6,05 m - aterro rodoviário mínimo = 1,20 m e máximo = 4,20 m - areia extraída e brita produzida | C114: m | D114: 60517.99
A115: 607144 | B115: Arco metálico galvanizado tipo MP 152S - arco alto - vão = 10,57 m e altura = 5,41 m - aterro rodoviário mínimo = 1,20 m e máximo = 4,10 m - areia e brita comerciais | C115: m | D115: 71710.47
A116: 606792 | B116: Arco metálico galvanizado tipo MP 152S - arco alto - vão = 10,57 m e altura = 5,41 m - aterro rodoviário mínimo = 1,20 m e máximo = 4,10 m - areia extraída e brita produzida | C116: m | D116: 71124.75
A117: 607142 | B117: Arco metálico galvanizado tipo MP 152S - arco alto - vão = 10,74 m e altura = 6,48 m - aterro rodoviário mínimo = 1,20 m e máximo = 4,70 m - areia e brita comerciais | C117: m | D117: 64150.26
A118: 606790 | B118: Arco metálico galvanizado tipo MP 152S - arco alto - vão = 10,74 m e altura = 6,48 m - aterro rodoviário mínimo = 1,20 m e máximo = 4,70 m - areia extraída e brita produzida | C118: m | D118: 63460.52
A119: 607145 | B119: Arco metálico galvanizado tipo MP 152S - arco alto - vão = 10,77 m e altura = 6,10 m - aterro rodoviário mínimo = 1,20 m e máximo = 4,70 m - areia e brita comerciais | C119: m | D119: 79164.15
A120: 606793 | B120: Arco metálico galvanizado tipo MP 152S - arco alto - vão = 10,77 m e altura = 6,10 m - aterro rodoviário mínimo = 1,20 m e máximo = 4,70 m - areia extraída e brita produzida | C120: m | D120: 78509.08
A121: 607146 | B121: Arco metálico galvanizado tipo MP 152S - arco alto - vão = 10,97 m e altura = 6,53 m - aterro rodoviário mínimo = 1,20 m e máximo = 4,70 m - areia e brita comerciais | C121: m | D121: 82579.83
A122: 606794 | B122: Arco metálico galvanizado tipo MP 152S - arco alto - vão = 10,97 m e altura = 6,53 m - aterro rodoviário mínimo = 1,20 m e máximo = 4,70 m - areia extraída e brita produzida | C122: m | D122: 81868.84
A123: 607143 | B123: Arco metálico galvanizado tipo MP 152S - arco alto - vão = 11,35 m e altura = 7,12 m - aterro rodoviário mínimo = 1,20 m e máximo = 4,70 m - areia e brita comerciais | C123: m | D123: 69278.77
A124: 606791 | B124: Arco metálico galvanizado tipo MP 152S - arco alto - vão = 11,35 m e altura = 7,12 m - aterro rodoviário mínimo = 1,20 m e máximo = 4,70 m - areia extraída e brita produzida | C124: m | D124: 68484.69
A125: 607147 | B125: Arco metálico galvanizado tipo MP 152S - arco alto - vão = 11,58 m e altura = 7,16 m - aterro rodoviário mínimo = 1,20 m e máximo = 6,40 m - areia e brita comerciais | C125: m | D125: 89075.58
A126: 606795 | B126: Arco metálico galvanizado tipo MP 152S - arco alto - vão = 11,58 m e altura = 7,16 m - aterro rodoviário mínimo = 1,20 m e máximo = 6,40 m - areia extraída e brita produzida | C126: m | D126: 88256.3
A127: 607112 | B127: Arco metálico galvanizado tipo MP 152S - arco alto - vão = 6,12 m e altura = 2,77 m - aterro rodoviário mínimo = 0,75 m e máximo = 5,40 m - areia e brita comerciais | C127: m | D127: 28984.86
A128: 606760 | B128: Arco metálico galvanizado tipo MP 152S - arco alto - vão = 6,12 m e altura = 2,77 m - aterro rodoviário mínimo = 0,75 m e máximo = 5,40 m - areia extraída e brita produzida | C128: m | D128: 28770.1
A129: 607113 | B129: Arco metálico galvanizado tipo MP 152S - arco alto - vão = 6,30 m e altura = 3,68 m - aterro rodoviário mínimo = 0,75 m e máximo = 7,50 m - areia e brita comerciais | C129: m | D129: 35211.52
A130: 606761 | B130: Arco metálico galvanizado tipo MP 152S - arco alto - vão = 6,30 m e altura = 3,68 m - aterro rodoviário mínimo = 0,75 m e máximo = 7,50 m - areia extraída e brita produzida | C130: m | D130: 34964.66
A131: 606762 | B131: Arco metálico galvanizado tipo MP 152S - arco alto - vão = 6,55 m e altura = 3,56 m - aterro rodoviário mínimo = 0,75 m e máximo = 4,9 m - areia extraída e brita produzida | C131: m | D131: 34909.86
A132: 607114 | B132: Arco metálico galvanizado tipo MP 152S - arco alto - vão = 6,55 m e altura = 3,56 m - aterro rodoviário mínimo = 0,75 m e máximo = 4,90 m - areia e brita comerciais | C132: m | D132: 35161.39
A133: 607116 | B133: Arco metálico galvanizado tipo MP 152S - arco alto - vão = 6,78 m e altura = 3,61 m - aterro rodoviário mínimo = 0,75 m e máximo = 4,80 m - areia e brita comerciais | C133: m | D133: 35716.22
A134: 606764 | B134: Arco metálico galvanizado tipo MP 152S - arco alto - vão = 6,78 m e altura = 3,61 m - aterro rodoviário mínimo = 0,75 m e máximo = 4,80 m - areia extraída e brita produzida | C134: m | D134: 35454.1
A135: 607115 | B135: Arco metálico galvanizado tipo MP 152S - arco alto - vão = 6,96 m e altura = 4,42 m - aterro rodoviário mínimo = 0,75 m e máximo = 8,10 m - areia e brita comerciais | C135: m | D135: 40548.53
A136: 606763 | B136: Arco metálico galvanizado tipo MP 152S - arco alto - vão = 6,96 m e altura = 4,42 m - aterro rodoviário mínimo = 0,75 m e máximo = 8,10 m - areia extraída e brita produzida | C136: m | D136: 40233.19
A137: 607117 | B137: Arco metálico galvanizado tipo MP 152S - arco alto - vão = 6,99 m e altura = 4,27 m - aterro rodoviário mínimo = 0,75 m e máximo = 5,70 m - areia e brita comerciais | C137: m | D137: 40540.23
A138: 606765 | B138: Arco metálico galvanizado tipo MP 152S - arco alto - vão = 6,99 m e altura = 4,27 m - aterro rodoviário mínimo = 0,75 m e máximo = 5,70 m - areia extraída e brita produzida | C138: m | D138: 40233.54
A139: 607118 | B139: Arco metálico galvanizado tipo MP 152S - arco alto - vão = 7,01 m e altura = 3,63 m - aterro rodoviário mínimo = 0,75 m e máximo = 4,60 m - areia e brita comerciais | C139: m | D139: 36342.73
A140: 606766 | B140: Arco metálico galvanizado tipo MP 152S - arco alto - vão = 7,01 m e altura = 3,63 m - aterro rodoviário mínimo = 0,75 m e máximo = 4,60 m - areia extraída e brita produzida | C140: m | D140: 36072.13
A141: 607120 | B141: Arco metálico galvanizado tipo MP 152S - arco alto - vão = 7,24 m e altura = 3,68 m - aterro rodoviário mínimo = 0,90 m e máximo = 4,4 m - areia e brita comerciais | C141: m | D141: 37006.59
A142: 606768 | B142: Arco metálico galvanizado tipo MP 152S - arco alto - vão = 7,24 m e altura = 3,68 m - aterro rodoviário mínimo = 0,90 m e máximo = 4,40 m - areia extraída e brita produzida | C142: m | D142: 36721.64
A143: 607119 | B143: Arco metálico galvanizado tipo MP 152S - arco alto - vão = 7,42 m e altura = 4,52 m - aterro rodoviário mínimo = 0,90 m e máximo = 6,40 m - areia e brita comerciais | C143: m | D143: 42527.06
A144: 606767 | B144: Arco metálico galvanizado tipo MP 152S - arco alto - vão = 7,42 m e altura = 4,52 m - aterro rodoviário mínimo = 0,90 m e máximo = 6,40 m - areia extraída e brita produzida | C144: m | D144: 42179.55
A145: 607121 | B145: Arco metálico galvanizado tipo MP 152S - arco alto - vão = 7,47 m e altura = 4,19 m - aterro rodoviário mínimo = 0,90 m e máximo = 4,30 m - areia e brita comerciais | C145: m | D145: 40067.49
A146: 606769 | B146: Arco metálico galvanizado tipo MP 152S - arco alto - vão = 7,47 m e altura = 4,19 m - aterro rodoviário mínimo = 0,90 m e máximo = 4,30 m - areia extraída e brita produzida | C146: m | D146: 39742.61
A147: 607123 | B147: Arco metálico galvanizado tipo MP 152S - arco alto - vão = 7,67 m e altura = 3,99 m - aterro rodoviário mínimo = 0,90 m e máximo = 4,10 m - areia e brita comerciais | C147: m | D147: 39533.13
A148: 606771 | B148: Arco metálico galvanizado tipo MP 152S - arco alto - vão = 7,67 m e altura = 3,99 m - aterro rodoviário mínimo = 0,90 m e máximo = 4,10 m - areia extraída e brita produzida | C148: m | D148: 39209.46
A149: 607122 | B149: Arco metálico galvanizado tipo MP 152S - arco alto - vão = 7,85 m e altura = 4,60 m - aterro rodoviário mínimo = 0,90 m e máximo = 6,00 m - areia e brita comerciais | C149: m | D149: 43855.47
A150: 606770 | B150: Arco metálico galvanizado tipo MP 152S - arco alto - vão = 7,85 m e altura = 4,60 m - aterro rodoviário mínimo = 0,90 m e máximo = 6,00 m - areia extraída e brita produzida | C150: m | D150: 43482.19
A151: 607125 | B151: Arco metálico galvanizado tipo MP 152S - arco alto - vão = 7,90 m e altura = 4,04 m - aterro rodoviário mínimo = 0,90 m e máximo = 4,00 m - areia e brita comerciais | C151: m | D151: 40864.8
A152: 606773 | B152: Arco metálico galvanizado tipo MP 152S - arco alto - vão = 7,90 m e altura = 4,04 m - aterro rodoviário mínimo = 0,90 m e máximo = 4,00 m - areia extraída e brita produzida | C152: m | D152: 40524.25
A153: 607124 | B153: Arco metálico galvanizado tipo MP 152S - arco alto - vão = 8,08 m e altura = 4,65 m - aterro rodoviário mínimo = 0,90 m e máximo = 5,80 m - areia e brita comerciais | C153: m | D153: 44513.02
A154: 606772 | B154: Arco metálico galvanizado tipo MP 152S - arco alto - vão = 8,08 m e altura = 4,65 m - aterro rodoviário mínimo = 0,90 m e máximo = 5,80 m - areia extraída e brita produzida | C154: m | D154: 44127.79
A155: 607126 | B155: Arco metálico galvanizado tipo MP 152S - arco alto - vão = 8,31 m e altura = 4,70 m - aterro rodoviário mínimo = 0,90 m e máximo = 5,60 m - areia e brita comerciais | C155: m | D155: 45746.69
A156: 606774 | B156: Arco metálico galvanizado tipo MP 152S - arco alto - vão = 8,31 m e altura = 4,70 m - aterro rodoviário mínimo = 0,90 m e máximo = 5,60 m - areia extraída e brita produzida | C156: m | D156: 45342.9
A157: 607127 | B157: Arco metálico galvanizado tipo MP 152S - arco alto - vão = 8,36 m e altura = 4,11 m - aterro rodoviário mínimo = 0,90 m e máximo = 3,70 m - areia e brita comerciais | C157: m | D157: 42124.99
A158: 606775 | B158: Arco metálico galvanizado tipo MP 152S - arco alto - vão = 8,36 m e altura = 4,11 m - aterro rodoviário mínimo = 0,90 m e máximo = 3,70 m - areia extraída e brita produzida | C158: m | D158: 41763.97
A159: 607129 | B159: Arco metálico galvanizado tipo MP 152S - arco alto - vão = 8,59 m e altura = 4,39 m - aterro rodoviário mínimo = 0,90 m e máximo = 3,60 m - areia e brita comerciais | C159: m | D159: 44078.18
A160: 606777 | B160: Arco metálico galvanizado tipo MP 152S - arco alto - vão = 8,59 m e altura = 4,39 m - aterro rodoviário mínimo = 0,90 m e máximo = 3,60 m - areia extraída e brita produzida | C160: m | D160: 43682.81
A161: 607128 | B161: Arco metálico galvanizado tipo MP 152S - arco alto - vão = 8,97 m e altura = 5,00 m - aterro rodoviário mínimo = 0,90 m e máximo = 5,80 m - areia e brita comerciais | C161: m | D161: 48470.58
A162: 606776 | B162: Arco metálico galvanizado tipo MP 152S - arco alto - vão = 8,97 m e altura = 5,00 m - aterro rodoviário mínimo = 0,90 m e máximo = 5,80 m - areia extraída e brita produzida | C162: m | D162: 48008.62
A163: 607130 | B163: Arco metálico galvanizado tipo MP 152S - arco alto - vão = 9,17 m e altura = 5,49 m - aterro rodoviário mínimo = 0,90 m e máximo = 5,60 m - areia e brita comerciais | C163: m | D163: 51652.44
A164: 606778 | B164: Arco metálico galvanizado tipo MP 152S - arco alto - vão = 9,17 m e altura = 5,49 m - aterro rodoviário mínimo = 0,90 m e máximo = 5,60 m - areia extraída e brita produzida | C164: m | D164: 51144.66
A165: 607131 | B165: Arco metálico galvanizado tipo MP 152S - arco alto - vão = 9,22 m e altura = 4,70 m - aterro rodoviário mínimo = 0,90 m e máximo = 4,10 m - areia e brita comerciais | C165: m | D165: 48479.21
A166: 606779 | B166: Arco metálico galvanizado tipo MP 152S - arco alto - vão = 9,22 m e altura = 4,70 m - aterro rodoviário mínimo = 0,90 m e máximo = 4,10 m - areia extraída e brita produzida | C166: m | D166: 48030
A167: 607133 | B167: Arco metálico galvanizado tipo MP 152S - arco alto - vão = 9,45 m e altura = 4,75 m - aterro rodoviário mínimo = 0,90 m e máximo = 4,00 m - areia e brita comerciais | C167: m | D167: 49209.28
A168: 606781 | B168: Arco metálico galvanizado tipo MP 152S - arco alto - vão = 9,45 m e altura = 4,75 m - aterro rodoviário mínimo = 0,90 m e máximo = 4,00 m - areia extraída e brita produzida | C168: m | D168: 48746.56
A169: 607132 | B169: Arco metálico galvanizado tipo MP 152S - arco alto - vão = 9,63 m e altura = 5,59 m - aterro rodoviário mínimo = 0,90 m e máximo = 5,30 m - areia e brita comerciais | C169: m | D169: 53645.23
A170: 606780 | B170: Arco metálico galvanizado tipo MP 152S - arco alto - vão = 9,63 m e altura = 5,59 m - aterro rodoviário mínimo = 0,90 m e máximo = 5,30 m - areia extraída e brita produzida | C170: m | D170: 53101.86
A171: 607134 | B171: Arco metálico galvanizado tipo MP 152S - arco alto - vão = 9,65 m e altura = 5,41 m - aterro rodoviário mínimo = 0,90 m e máximo = 4,70 m - areia e brita comerciais | C171: m | D171: 53119.7
A172: 606782 | B172: Arco metálico galvanizado tipo MP 152S - arco alto - vão = 9,65 m e altura = 5,41 m - aterro rodoviário mínimo = 0,90 m e máximo = 4,70 m - areia extraída e brita produzida | C172: m | D172: 52588.75
A173: 607136 | B173: Arco metálico galvanizado tipo MP 152S - arco alto - vão = 9,68 m e altura = 5,23 m - aterro rodoviário mínimo = 0,90 m e máximo = 3,90 m - areia e brita comerciais | C173: m | D173: 52410.89
A174: 606784 | B174: Arco metálico galvanizado tipo MP 152S - arco alto - vão = 9,68 m e altura = 5,23 m - aterro rodoviário mínimo = 0,90 m e máximo = 3,90 m - areia extraída e brita produzida | C174: m | D174: 51896.91
A175: 607135 | B175: Arco metálico galvanizado tipo MP 152S - arco alto - vão = 9,86 m e altura = 6,07 m - aterro rodoviário mínimo = 0,90 m e máximo = 5,20 m - areia e brita comerciais | C175: m | D175: 58458.23
A176: 606783 | B176: Arco metálico galvanizado tipo MP 152S - arco alto - vão = 9,86 m e altura = 6,07 m - aterro rodoviário mínimo = 0,90 m e máximo = 5,20 m - areia extraída e brita produzida | C176: m | D176: 57862.39
A177: 607138 | B177: Arco metálico galvanizado tipo MP 152S - arco alto - vão = 9,91 m e altura = 5,28 m - aterro rodoviário mínimo = 0,90 m e máximo = 3,80 m - areia e brita comerciais | C177: m | D177: 53308.86
A178: 606786 | B178: Arco metálico galvanizado tipo MP 152S - arco alto - vão = 9,91 m e altura = 5,28 m - aterro rodoviário mínimo = 0,90 m e máximo = 3,80 m - areia extraída e brita produzida | C178: m | D178: 52761.32
A179: 606842 | B179: Arco metálico galvanizado tipo MP 152S - ovoide - vão = 7,21 m e altura = 7,82 m - aterro rodoviário mínimo = 0,75 m e máximo = 6,70 m - areia e brita comerciais | C179: m | D179: 66393.19
A180: 606832 | B180: Arco metálico galvanizado tipo MP 152S - ovoide - vão = 7,21 m e altura = 7,82 m - aterro rodoviário mínimo = 0,75 m e máximo = 6,70 m - areia extraída e brita produzida | C180: m | D180: 66085.33
A181: 606843 | B181: Arco metálico galvanizado tipo MP 152S - ovoide - vão = 7,31 m e altura = 7,87 m - aterro rodoviário mínimo = 0,90 m e máximo = 6,80 m - areia e brita comerciais | C181: m | D181: 68985.36
A182: 606833 | B182: Arco metálico galvanizado tipo MP 152S - ovoide - vão = 7,31 m e altura = 7,87 m - aterro rodoviário mínimo = 0,90 m e máximo = 6,80 m - areia extraída e brita produzida | C182: m | D182: 68661.8
A183: 606845 | B183: Arco metálico galvanizado tipo MP 152S - ovoide - vão = 7,57 m e altura = 8,44 m - aterro rodoviário mínimo = 0,90 m e máximo = 5,60 m - areia e brita comerciais | C183: m | D183: 71525.41
A184: 606835 | B184: Arco metálico galvanizado tipo MP 152S - ovoide - vão = 7,57 m e altura = 8,44 m - aterro rodoviário mínimo = 0,90 m e máximo = 5,60 m - areia extraída e brita produzida | C184: m | D184: 71202.99
A185: 606844 | B185: Arco metálico galvanizado tipo MP 152S - ovoide - vão = 7,77 m e altura = 7,90 m - aterro rodoviário mínimo = 0,90 m e máximo = 6,80 m - areia e brita comerciais | C185: m | D185: 70054
A186: 606834 | B186: Arco metálico galvanizado tipo MP 152S - ovoide - vão = 7,77 m e altura = 7,90 m - aterro rodoviário mínimo = 0,90 m e máximo = 6,80 m - areia extraída e brita produzida | C186: m | D186: 69722.1
A187: 606847 | B187: Arco metálico galvanizado tipo MP 152S - ovoide - vão = 8,13 m e altura = 8,01 m - aterro rodoviário mínimo = 0,90 m e máximo = 3,50 m - areia e brita comerciais | C187: m | D187: 74797.97
A188: 606837 | B188: Arco metálico galvanizado tipo MP 152S - ovoide - vão = 8,13 m e altura = 8,01 m - aterro rodoviário mínimo = 0,90 m e máximo = 3,50 m - areia extraída e brita produzida | C188: m | D188: 74435.07
A189: 606846 | B189: Arco metálico galvanizado tipo MP 152S - ovoide - vão = 8,36 m e altura = 8,23 m - aterro rodoviário mínimo = 0,90 m e máximo = 4,30 m - areia e brita comerciais | C189: m | D189: 76603.08
A190: 606836 | B190: Arco metálico galvanizado tipo MP 152S - ovoide - vão = 8,36 m e altura = 8,23 m - aterro rodoviário mínimo = 0,90 m e máximo = 4,30 m - areia extraída e brita produzida | C190: m | D190: 76236.23
A191: 606848 | B191: Arco metálico galvanizado tipo MP 152S - ovoide - vão = 8,56 m e altura = 8,48 m - aterro rodoviário mínimo = 0,90 m e máximo = 5,30 m - areia e brita comerciais | C191: m | D191: 77023.26
A192: 606838 | B192: Arco metálico galvanizado tipo MP 152S - ovoide - vão = 8,56 m e altura = 8,48 m - aterro rodoviário mínimo = 0,90 m e máximo = 5,30 m - areia extraída e brita produzida | C192: m | D192: 76641.65
A193: 606849 | B193: Arco metálico galvanizado tipo MP 152S - ovoide - vão = 8,71 m e altura = 9,32 m - aterro rodoviário mínimo = 0,90 m e máximo = 6,00 m - areia e brita comerciais | C193: m | D193: 81641.73
A194: 606839 | B194: Arco metálico galvanizado tipo MP 152S - ovoide - vão = 8,71 m e altura = 9,32 m - aterro rodoviário mínimo = 0,90 m e máximo = 6,00 m - areia extraída e brita produzida | C194: m | D194: 81269.6
A195: 606850 | B195: Arco metálico galvanizado tipo MP 152S - ovoide - vão = 9,15 m e altura = 9,04 m - aterro rodoviário mínimo = 0,90 m e máximo = 4,70 m - areia e brita comerciais | C195: m | D195: 83931.72
A196: 606840 | B196: Arco metálico galvanizado tipo MP 152S - ovoide - vão = 9,15 m e altura = 9,04 m - aterro rodoviário mínimo = 0,90 m e máximo = 4,70 m - areia extraída e brita produzida | C196: m | D196: 83524.65
A197: 606851 | B197: Arco metálico galvanizado tipo MP 152S - ovoide - vão = 9,15 m e altura = 9,50 m - aterro rodoviário mínimo = 0,90 m e máximo = 5,70 m - areia e brita comerciais | C197: m | D197: 84707.72
A198: 606841 | B198: Arco metálico galvanizado tipo MP 152S - ovoide - vão = 9,15 m e altura = 9,50 m - aterro rodoviário mínimo = 0,90 m e máximo = 5,70 m - areia extraída e brita produzida | C198: m | D198: 84318.13
A199: 605604 | B199: Argamassa de solo-cimento com 10% de cimento e material de jazida - preparo e injeção em tunnel liner | C199: m³ | D199: 296.29
A200: 605695 | B200: Bueiro metálico com chapas múltiplas MP 100 com revestimento em epóxi - D = 0,60 m - brita comercial | C200: m | D200: 1579.62
... 6294 more rows

Sheet INSUMOS SINAPI (hidden)
A1: PRECOS DE INSUMOS - BANCO NACIONAL
A3: MES DE COLETA: 09/2024
A4: LOCALIDADE: 1250 - RECIFE
A5: ENCARGOS SOCIAIS (%) HORISTA 113,98 MENSALISTA 70,00
A7: CODIGO | B7: DESCRICAO DO INSUMO | C7: UNIDADE DE MEDIDA | D7: ORIGEM DO PRECO | E7: PRECO MEDIANO R$
A8: 38605 | B8: ABERTURA PARA ENCAIXE DE CUBA OU LAVATORIO EM BANCADA DE MARMORE/ GRANITO OU OUTRO TIPO DE PEDRA NATURAL | C8: UN | D8: CR | E8: 159.92
A9: 11270 | B9: ABRACADEIRA DE LATAO PARA FIXACAO DE CABO PARA-RAIO, DIMENSOES 32 X 24 X 24 MM | C9: UN | D9: CR | E9: 4.05
A10: 412 | B10: ABRACADEIRA DE NYLON PARA AMARRACAO DE CABOS, COMPRIMENTO DE *230* X *7,6* MM | C10: UN | D10: CR | E10: 1.18
A11: 414 | B11: ABRACADEIRA DE NYLON PARA AMARRACAO DE CABOS, COMPRIMENTO DE 100 X 2,5 MM | C11: UN | D11: CR | E11: 0.07
A12: 410 | B12: ABRACADEIRA DE NYLON PARA AMARRACAO DE CABOS, COMPRIMENTO DE 150 X *3,6* MM | C12: UN | D12: CR | E12: 0.18
A13: 411 | B13: ABRACADEIRA DE NYLON PARA AMARRACAO DE CABOS, COMPRIMENTO DE 200 X *4,6* MM | C13: UN | D13: C | E13: 0.23
A14: 408 | B14: ABRACADEIRA DE NYLON PARA AMARRACAO DE CABOS, COMPRIMENTO DE 390 X *4,6* MM | C14: UN | D14: CR | E14: 1.14
A15: 39131 | B15: ABRACADEIRA EM ACO PARA AMARRACAO DE ELETRODUTOS, TIPO D, COM 1 1/2" E CUNHA DE FIXACAO | C15: UN | D15: CR | E15: 5.44
A16: 394 | B16: ABRACADEIRA EM ACO PARA AMARRACAO DE ELETRODUTOS, TIPO D, COM 1 1/2" E PARAFUSO DE FIXACAO | C16: UN | D16: CR | E16: 5.51
A17: 39130 | B17: ABRACADEIRA EM ACO PARA AMARRACAO DE ELETRODUTOS, TIPO D, COM 1 1/4" E CUNHA DE FIXACAO | C17: UN | D17: CR | E17: 4.97
A18: 395 | B18: ABRACADEIRA EM ACO PARA AMARRACAO DE ELETRODUTOS, TIPO D, COM 1 1/4" E PARAFUSO DE FIXACAO | C18: UN | D18: CR | E18: 5.31
A19: 39127 | B19: ABRACADEIRA EM ACO PARA AMARRACAO DE ELETRODUTOS, TIPO D, COM 1/2" E CUNHA DE FIXACAO | C19: UN | D19: CR | E19: 2.62
A20: 392 | B20: ABRACADEIRA EM ACO PARA AMARRACAO DE ELETRODUTOS, TIPO D, COM 1/2" E PARAFUSO DE FIXACAO | C20: UN | D20: CR | E20: 2.68
A21: 39129 | B21: ABRACADEIRA EM ACO PARA AMARRACAO DE ELETRODUTOS, TIPO D, COM 1" E CUNHA DE FIXACAO | C21: UN | D21: CR | E21: 3.06
A22: 393 | B22: ABRACADEIRA EM ACO PARA AMARRACAO DE ELETRODUTOS, TIPO D, COM 1" E PARAFUSO DE FIXACAO | C22: UN | D22: C | E22: 3.2
A23: 39133 | B23: ABRACADEIRA EM ACO PARA AMARRACAO DE ELETRODUTOS, TIPO D, COM 2 1/2" E CUNHA DE FIXACAO | C23: UN | D23: CR | E23: 7.14
A24: 397 | B24: ABRACADEIRA EM ACO PARA AMARRACAO DE ELETRODUTOS, TIPO D, COM 2 1/2" E PARAFUSO DE FIXACAO | C24: UN | D24: CR | E24: 7.89
A25: 39132 | B25: ABRACADEIRA EM ACO PARA AMARRACAO DE ELETRODUTOS, TIPO D, COM 2" E CUNHA DE FIXACAO | C25: UN | D25: CR | E25: 5.71
A26: 396 | B26: ABRACADEIRA EM ACO PARA AMARRACAO DE ELETRODUTOS, TIPO D, COM 2" E PARAFUSO DE FIXACAO | C26: UN | D26: CR | E26: 6.12
A27: 39135 | B27: ABRACADEIRA EM ACO PARA AMARRACAO DE ELETRODUTOS, TIPO D, COM 3 1/2" E CUNHA DE FIXACAO | C27: UN | D27: CR | E27: 11.43
A28: 39128 | B28: ABRACADEIRA EM ACO PARA AMARRACAO DE ELETRODUTOS, TIPO D, COM 3/4" E CUNHA DE FIXACAO | C28: UN | D28: CR | E28: 2.85
A29: 400 | B29: ABRACADEIRA EM ACO PARA AMARRACAO DE ELETRODUTOS, TIPO D, COM 3/4" E PARAFUSO DE FIXACAO | C29: UN | D29: CR | E29: 2.79
A30: 39125 | B30: ABRACADEIRA EM ACO PARA AMARRACAO DE ELETRODUTOS, TIPO D, COM 3/8" E PARAFUSO DE FIXACAO | C30: UN | D30: CR | E30: 2.85
A31: 39134 | B31: ABRACADEIRA EM ACO PARA AMARRACAO DE ELETRODUTOS, TIPO D, COM 3" E CUNHA DE FIXACAO | C31: UN | D31: CR | E31: 9.53
A32: 398 | B32: ABRACADEIRA EM ACO PARA AMARRACAO DE ELETRODUTOS, TIPO D, COM 3" E PARAFUSO DE FIXACAO | C32: UN | D32: CR | E32: 8.78
A33: 39126 | B33: ABRACADEIRA EM ACO PARA AMARRACAO DE ELETRODUTOS, TIPO D, COM 4" E CUNHA DE FIXACAO | C33: UN | D33: CR | E33: 12.86
A34: 399 | B34: ABRACADEIRA EM ACO PARA AMARRACAO DE ELETRODUTOS, TIPO D, COM 4" E PARAFUSO DE FIXACAO | C34: UN | D34: CR | E34: 11.33
A35: 39158 | B35: ABRACADEIRA EM ACO PARA AMARRACAO DE ELETRODUTOS, TIPO ECONOMICA (GOTA), COM 8" | C35: UN | D35: CR | E35: 30.43
A36: 39141 | B36: ABRACADEIRA EM ACO PARA AMARRACAO DE ELETRODUTOS, TIPO U SIMPLES, COM 1 1/2" | C36: UN | D36: CR | E36: 2.21
A37: 39140 | B37: ABRACADEIRA EM ACO PARA AMARRACAO DE ELETRODUTOS, TIPO U SIMPLES, COM 1 1/4" | C37: UN | D37: CR | E37: 2
A38: 39137 | B38: ABRACADEIRA EM ACO PARA AMARRACAO DE ELETRODUTOS, TIPO U SIMPLES, COM 1/2" | C38: UN | D38: CR | E38: 1.15
A39: 39139 | B39: ABRACADEIRA EM ACO PARA AMARRACAO DE ELETRODUTOS, TIPO U SIMPLES, COM 1" | C39: UN | D39: CR | E39: 1.66
A40: 39143 | B40: ABRACADEIRA EM ACO PARA AMARRACAO DE ELETRODUTOS, TIPO U SIMPLES, COM 2 1/2" | C40: UN | D40: CR | E40: 4.56
A41: 39142 | B41: ABRACADEIRA EM ACO PARA AMARRACAO DE ELETRODUTOS, TIPO U SIMPLES, COM 2" | C41: UN | D41: CR | E41: 3.26
A42: 39138 | B42: ABRACADEIRA EM ACO PARA AMARRACAO DE ELETRODUTOS, TIPO U SIMPLES, COM 3/4" | C42: UN | D42: CR | E42: 1.22
A43: 39136 | B43: ABRACADEIRA EM ACO PARA AMARRACAO DE ELETRODUTOS, TIPO U SIMPLES, COM 3/8" | C43: UN | D43: CR | E43: 0.81
A44: 39144 | B44: ABRACADEIRA EM ACO PARA AMARRACAO DE ELETRODUTOS, TIPO U SIMPLES, COM 3" | C44: UN | D44: CR | E44: 5.31
A45: 39145 | B45: ABRACADEIRA EM ACO PARA AMARRACAO DE ELETRODUTOS, TIPO U SIMPLES, COM 4" | C45: UN | D45: CR | E45: 8.74
A46: 12615 | B46: ABRACADEIRA PVC, PARA CALHA PLUVIAL, DIAMETRO ENTRE *80 E 100* MM, PARA DRENAGEM PLUVIAL PREDIAL | C46: UN | D46: CR | E46: 11.02
A47: 11927 | B47: ABRACADEIRA, GALVANIZADA/ZINCADA, ROSCA SEM FIM, PARAFUSO INOX, LARGURA FITA *12,6 A *14 MM, D = 2" A 2 1/2" | C47: UN | D47: CR | E47: 12.1
A48: 11928 | B48: ABRACADEIRA, GALVANIZADA/ZINCADA, ROSCA SEM FIM, PARAFUSO INOX, LARGURA FITA *12,6 A *14 MM, D = 3" A 3 3/4" | C48: UN | D48: CR | E48: 13.87
A49: 11929 | B49: ABRACADEIRA, GALVANIZADA/ZINCADA, ROSCA SEM FIM, PARAFUSO INOX, LARGURA FITA *12,6 A *14 MM, D = 4" A 4 3/4" | C49: UN | D49: CR | E49: 21.45
A50: 36801 | B50: ACABAMENTO DE METAL CROMADO PARA REGISTRO PEQUENO, DE PAREDE, 1/2" OU 3/4" | C50: UN | D50: CR | E50: 36.74
A51: 36246 | B51: ACABAMENTO SIMPLES/CONVENCIONAL PARA FORRO PVC, TIPO "U" OU "C", COR BRANCA, COMPRIMENTO 6 M | C51: M | D51: CR | E51: 4.06
A52: 37600 | B52: ACESSORIO DE LIGACAO NAO ELETRICO PARA CARGAS EXPLOSIVAS, TUBO DE 6 M | C52: UN | D52: AS | E52: 106.49
A53: 37599 | B53: ACESSORIO INICIADOR NAO ELETRICO, TUBO DE 6 M, TEMPO DE RETARDO DE *160* MS | C53: UN | D53: AS | E53: 99.11
A54: 1 | B54: ACETILENO (RECARGA DE GAS ACETILENO PARA CILINDRO DE CONJUNTO OXICORTE GRANDE) NAO INCLUI TROCA/MANUTENCAO DO CILINDRO | C54: KG | D54: AS | E54: 95
A55: 3 | B55: ACIDO CLORIDRICO / ACIDO MURIATICO, DILUICAO 10% A 12% PARA USO EM LIMPEZA | C55: L | D55: CR | E55: 22.29
A56: 43054 | B56: ACO CA-25, 10,0 MM, OU 12,5 MM, OU 16,0 MM, OU 20,0 MM, OU 25,0 MM, VERGALHAO | C56: KG | D56: CR | E56: 9.14
A57: 42402 | B57: ACO CA-25, 16,0 MM, BARRA DE TRANSFERENCIA | C57: KG | D57: CR | E57: 8.74
A58: 42403 | B58: ACO CA-25, 20,0 MM, BARRA DE TRANSFERENCIA | C58: KG | D58: CR | E58: 11.21
A59: 42404 | B59: ACO CA-25, 25,0 MM, BARRA DE TRANSFERENCIA | C59: KG | D59: CR | E59: 11.14
